Workbook

Sheet INDICE
B2: ÍNDICE
B3: 1. ESTABLECIMIENTOS EDUCATIVOS
B4: 2. SEDES EDUCATIVAS
B5: 3. PROYECCIÓN DE POBLACIÓN - DANE 2018
B6: 4. MATRÍCULA SECTOR GRADOS NIVEL
B7: 5. MATRÍCULA SECTOR ZONA GRADOS NIVEL
B8: 6. TASA DE COBERTURA BRUTA
B9: 7. TASA DE COBERTURA NETA
B10: 8. TASA DESERCIÓN OFICIAL
B11: 9. MATRÍCULA GRUPOS ÉTNICOS
B12: 10.EXTRAEDAD
B13: 11.TASA MATRICULACION 5A16
B14: 12.ESTUDIANTES VENEZOLANOS
B15: 13.TRAYECTORIA GRADO
B16: 14.TASA ANALFABETISMO
B17: 15. EFICIENCIA
B18: 16. MATRÍCULA RESIDENCIAS ESCOLARES
B19: 17. POB DISCAPACIDAD

Sheet 1 ESTAB
B1: ESTABLECIMIENTOS EDUCATIVOS | M1: Indice
B2: Corte OCTUBRE 2023 información preliminar
B3: ENTIDAD
B4: AMAZONAS | C4: SECTOR | D4: 2014 | E4: 2015 | F4: 2016 | G4: 2017 | H4: 2018 | I4: 2019 | J4: 2020 | K4: 2021 | L4: 2022 | M4: Oct. 2023
C5: Oficial | D5: =+SUMIFS($D$200:$D$395,$B$200:$B$395,$B$4,$C$200:$C$395,C5) -> 29 | E5: =+SUMIFS($E$200:$E$395,$B$200:$B$395,$B$4,$C$200:$C$395,C5) -> 29 | F5: =+SUMIFS($F$200:$F$395,$B$200:$B$395,$B$4,$C$200:$C$395,C5) -> 29 | G5: =+SUMIFS($G$200:$G$395,$B$200:$B$395,$B$4,$C$200:$C$395,C5) -> 50 | H5: =+SUMIFS($H$200:$H$395,$B$200:$B$395,$B$4,$C$200:$C$395,C5) -> 49 | I5: =+SUMIFS($I$200:$I$395,$B$200:$B$395,$B$4,$C$200:$C$395,C5) -> 56 | J5: =+SUMIFS($J$200:$J$395,$B$200:$B$395,$B$4,$C$200:$C$395,C5) -> 54 | K5: =+SUMIFS($K$200:$K$395,$B$200:$B$395,$B$4,$C$200:$C$395,C5) -> 56 | L5: =+SUMIFS($L$200:$L$395,$B$200:$B$395,$B$4,$C$200:$C$395,C5) -> 55 | M5: =+SUMIFS($M$200:$M$395,$B$200:$B$395,$B$4,$C$200:$C$395,C5) -> 50
C6: No Oficial | D6: =+SUMIFS($D$200:$D$395,$B$200:$B$395,$B$4,$C$200:$C$395,C6) -> 26 | E6: =+SUMIFS($E$200:$E$395,$B$200:$B$395,$B$4,$C$200:$C$395,C6) -> 26 | F6: =+SUMIFS($F$200:$F$395,$B$200:$B$395,$B$4,$C$200:$C$395,C6) -> 26 | G6: =+SUMIFS($G$200:$G$395,$B$200:$B$395,$B$4,$C$200:$C$395,C6) -> 5 | H6: =+SUMIFS($H$200:$H$395,$B$200:$B$395,$B$4,$C$200:$C$395,C6) -> 6 | I6: =+SUMIFS($I$200:$I$395,$B$200:$B$395,$B$4,$C$200:$C$395,C6) -> 6 | J6: =+SUMIFS($J$200:$J$395,$B$200:$B$395,$B$4,$C$200:$C$395,C6) -> 5 | K6: =+SUMIFS($K$200:$K$395,$B$200:$B$395,$B$4,$C$200:$C$395,C6) -> 7 | L6: =+SUMIFS($L$200:$L$395,$B$200:$B$395,$B$4,$C$200:$C$395,C6) -> 5 | M6: =+SUMIFS($M$200:$M$395,$B$200:$B$395,$B$4,$C$200:$C$395,C6) -> 5
C7: Total | D7: =SUM(D5:D6) -> 55 | E7: 55 | F7: 55 | G7: 55 | H7: 55 | I7: 62 | J7: 59 | K7: =SUM(K5:K6) -> 63 | L7: 60 | M7: =SUM(M5:M6) -> 55
C8: FUENTE: SIMAT OAPF
C10: =+B4 -> AMAZONAS
A199: lista | B199: ENTIDAD | C199: Sector | D199: 2014 | E199: 2015 | F199: 2016 | G199: 2017 | H199: 2018 | I199: 2019 | J199: 2020 | K199: =+K4 -> 2021 | L199: =+L4 -> 1905-07-14 | M199: 2023
A200: AMAZONAS | B200: AMAZONAS | C200: OFICIAL | D200: 29 | E200: 29 | F200: 29 | G200: 50 | H200: 49 | I200: 56 | J200: 54 | K200: 56 | L200: 55 | M200: 50
A201: ANTIOQUIA | B201: AMAZONAS | C201: NO OFICIAL | D201: 26 | E201: 26 | F201: 26 | G201: 5 | H201: 6 | I201: 6 | J201: 5 | K201: 7 | L201: 5 | M201: 5
A202: APARTADO | B202: ANTIOQUIA | C202: OFICIAL | D202: 2,692 | E202: 618 | F202: 625 | G202: 617 | H202: 607 | I202: 584 | J202: 585 | K202: 577 | L202: 569 | M202: 557
A203: ARAUCA | B203: ANTIOQUIA | C203: NO OFICIAL | D203: 218 | E203: 213 | F203: 140 | G203: 139 | H203: 136 | I203: 154 | J203: 155 | K203: 147 | L203: 148 | M203: 128
A204: ARMENIA | B204: APARTADO | C204: OFICIAL | D204: 22 | E204: 21 | F204: 21 | G204: 22 | H204: 22 | I204: 21 | J204: 21 | K204: 21 | L204: 21 | M204: 21
A205: ATLANTICO | B205: APARTADO | C205: NO OFICIAL | D205: 16 | E205: 12 | F205: 9 | G205: 9 | H205: 10 | I205: 10 | J205: 11 | K205: 12 | L205: 11 | M205: 12
A206: BARRANCABERMEJA | B206: ARAUCA | C206: OFICIAL | D206: 68 | E206: 68 | F206: 66 | G206: 66 | H206: 67 | I206: 67 | J206: 67 | K206: 44 | L206: 67 | M206: 67
A207: BARRANQUILLA | B207: ARAUCA | C207: NO OFICIAL | D207: 22 | E207: 22 | F207: 23 | G207: 28 | H207: 29 | I207: 34 | J207: 42 | K207: 67 | L207: 48 | M207: 44
A208: BELLO | B208: ARMENIA | C208: OFICIAL | D208: 29 | E208: 29 | F208: 29 | G208: 30 | H208: 30 | I208: 30 | J208: 30 | K208: 29 | L208: 29 | M208: 29
A209: BOGOTA | B209: ARMENIA | C209: NO OFICIAL | D209: 41 | E209: 42 | F209: 40 | G209: 38 | H209: 37 | I209: 38 | J209: 38 | K209: 37 | L209: 37 | M209: 36
A210: BOLIVAR | B210: ATLANTICO | C210: OFICIAL | D210: 76 | E210: 76 | F210: 84 | G210: 85 | H210: 85 | I210: 85 | J210: 85 | K210: 85 | L210: 85 | M210: 85
A211: BOYACA | B211: ATLANTICO | C211: NO OFICIAL | D211: 91 | E211: 90 | F211: 93 | G211: 94 | H211: 97 | I211: 102 | J211: 105 | K211: 103 | L211: 106 | M211: 116
A212: BUCARAMANGA | B212: BARRANCABERMEJA | C212: OFICIAL | D212: 22 | E212: 21 | F212: 21 | G212: 22 | H212: 22 | I212: 22 | J212: 22 | K212: 81 | L212: 22 | M212: 21
A213: BUENAVENTURA | B213: BARRANCABERMEJA | C213: NO OFICIAL | D213: 70 | E213: 72 | F213: 77 | G213: 79 | H213: 82 | I213: 81 | J213: 81 | K213: 22 | L213: 77 | M213: 75
A214: BUGA | B214: BARRANQUILLA | C214: OFICIAL | D214: 161 | E214: 160 | F214: 160 | G214: 163 | H214: 162 | I214: 160 | J214: 160 | K214: 344 | L214: 160 | M214: 160
A215: CALDAS | B215: BARRANQUILLA | C215: NO OFICIAL | D215: 300 | E215: 314 | F215: 339 | G215: 353 | H215: 346 | I215: 341 | J215: 343 | K215: 160 | L215: 330 | M215: 343
A216: CALI | B216: BELLO | C216: OFICIAL | D216: 40 | E216: 39 | F216: 40 | G216: 40 | H216: 40 | I216: 40 | J216: 39 | K216: 80 | L216: 39 | M216: 39
A217: CAQUETA | B217: BELLO | C217: NO OFICIAL | D217: 59 | E217: 61 | F217: 60 | G217: 64 | H217: 64 | I217: 66 | J217: 76 | K217: 39 | L217: 83 | M217: 80
A218: CARTAGENA | B218: BOGOTA | C218: OFICIAL | D218: 386 | E218: 385 | F218: 386 | G218: 387 | H218: 388 | I218: 394 | J218: 402 | K218: 403 | L218: 405 | M218: 411
A219: CARTAGO | B219: BOGOTA | C219: NO OFICIAL | D219: 1,852 | E219: 1840 | F219: 1786 | G219: 1775 | H219: 1748 | I219: 1713 | J219: 1,700 | K219: 1624 | L219: 1566 | M219: 1514
A220: CASANARE | B220: BOLIVAR | C220: OFICIAL | D220: 224 | E220: 224 | F220: 224 | G220: 224 | H220: 224 | I220: 225 | J220: 226 | K220: 226 | L220: 226 | M220: 226
A221: CAUCA | B221: BOLIVAR | C221: NO OFICIAL | D221: 43 | E221: 57 | F221: 61 | G221: 74 | H221: 79 | I221: 91 | J221: 101 | K221: 97 | L221: 104 | M221: 107
A222: CESAR | B222: BOYACA | C222: OFICIAL | D222: 255 | E222: 254 | F222: 254 | G222: 254 | H222: 254 | I222: 255 | J222: 255 | K222: 255 | L222: 256 | M222: 256
A223: CHÍA | B223: BOYACA | C223: NO OFICIAL | D223: 96 | E223: 97 | F223: 97 | G223: 107 | H223: 109 | I223: 110 | J223: 111 | K223: 104 | L223: 101 | M223: 100
A224: CHOCO | B224: BUCARAMANGA | C224: OFICIAL | D224: 51 | E224: 49 | F224: 48 | G224: 47 | H224: 48 | I224: 47 | J224: 47 | K224: 47 | L224: 47 | M224: 48
A225: CIENAGA | B225: BUCARAMANGA | C225: NO OFICIAL | D225: 164 | E225: 168 | F225: 168 | G225: 175 | H225: 177 | I225: 169 | J225: 160 | K225: 154 | L225: 145 | M225: 142
A226: CORDOBA | B226: BUENAVENTURA | C226: OFICIAL | D226: 43 | E226: 43 | F226: 43 | G226: 44 | H226: 44 | I226: 44 | J226: 44 | K226: 124 | L226: 45 | M226: 45
A227: CUCUTA | B227: BUENAVENTURA | C227: NO OFICIAL | D227: 378 | E227: 388 | F227: 218 | G227: 218 | H227: 215 | I227: 123 | J227: 122 | K227: 45 | L227: 109 | M227: 109
A228: CUNDINAMARCA | B228: BUGA | C228: OFICIAL | D228: 14 | E228: 14 | F228: 14 | G228: 14 | H228: 14 | I228: 14 | J228: 14 | K228: 14 | L228: 14 | M228: 14
A229: DOSQUEBRADAS | B229: BUGA | C229: NO OFICIAL | D229: 51 | E229: 55 | F229: 52 | G229: 53 | H229: 53 | I229: 53 | J229: 53 | K229: 52 | L229: 52 | M229: 53
A230: DUITAMA | B230: CALDAS | C230: OFICIAL | D230: 169 | E230: 168 | F230: 166 | G230: 165 | H230: 165 | I230: 165 | J230: 164 | K230: 163 | L230: 162 | M230: 162
A231: ENVIGADO | B231: CALDAS | C231: NO OFICIAL | D231: 45 | E231: 46 | F231: 49 | G231: 46 | H231: 48 | I231: 46 | J231: 50 | K231: 49 | L231: 44 | M231: 46
A232: FACATATIVA | B232: CALI | C232: OFICIAL | D232: 93 | E232: 93 | F232: 93 | G232: 95 | H232: 95 | I232: 95 | J232: 96 | K232: 96 | L232: 96 | M232: 96
A233: FLORENCIA | B233: CALI | C233: NO OFICIAL | D233: 743 | E233: 715 | F233: 699 | G233: 692 | H233: 682 | I233: 665 | J233: 635 | K233: 630 | L233: 605 | M233: 596
A234: FLORIDABLANCA | B234: CAQUETA | C234: OFICIAL | D234: 150 | E234: 150 | F234: 146 | G234: 145 | H234: 144 | I234: 143 | J234: 144 | K234: 144 | L234: 144 | M234: 144
A235: FUNZA | B235: CAQUETA | C235: NO OFICIAL | D235: 6 | E235: 5 | F235: 5 | G235: 5 | H235: 4 | I235: 4 | J235: 4 | K235: 4 | L235: 5 | M235: 4
A236: FUSAGASUGA | B236: CARTAGENA | C236: OFICIAL | D236: 97 | E236: 97 | F236: 98 | G236: 100 | H236: 101 | I236: 101 | J236: 102 | K236: 102 | L236: 103 | M236: 103
A237: GIRARDOT | B237: CARTAGENA | C237: NO OFICIAL | D237: 282 | E237: 281 | F237: 274 | G237: 269 | H237: 259 | I237: 262 | J237: 268 | K237: 271 | L237: 263 | M237: 273
A238: GIRON | B238: CARTAGO | C238: OFICIAL | D238: 12 | E238: 12 | F238: 12 | G238: 12 | H238: 12 | I238: 12 | J238: 12 | K238: 12 | L238: 12 | M238: 12
A239: GUAINIA | B239: CARTAGO | C239: NO OFICIAL | D239: 30 | E239: 30 | F239: 29 | G239: 27 | H239: 28 | I239: 28 | J239: 27 | K239: 23 | L239: 25 | M239: 25
A240: GUAVIARE | B240: CASANARE | C240: OFICIAL | D240: 68 | E240: 69 | F240: 69 | G240: 69 | H240: 69 | I240: 69 | J240: 69 | K240: 69 | L240: 69 | M240: 68
A241: HUILA | B241: CASANARE | C241: NO OFICIAL | D241: 19 | E241: 20 | F241: 20 | G241: 21 | H241: 21 | I241: 19 | J241: 19 | K241: 14 | L241: 14 | M241: 17
A242: IBAGUE | B242: CAUCA | C242: OFICIAL | D242: 564 | E242: 559 | F242: 556 | G242: 553 | H242: 553 | I242: 553 | J242: 552 | K242: 552 | L242: 553 | M242: 554
A243: IPIALES | B243: CAUCA | C243: NO OFICIAL | D243: 59 | E243: 63 | F243: 64 | G243: 66 | H243: 65 | I243: 63 | J243: 63 | K243: 65 | L243: 63 | M243: 61
A244: ITAGUI | B244: CESAR | C244: OFICIAL | D244: 186 | E244: 184 | F244: 182 | G244: 181 | H244: 181 | I244: 180 | J244: 180 | K244: 180 | L244: 181 | M244: 180
A245: JAMUNDÍ | B245: CESAR | C245: NO OFICIAL | D245: 74 | E245: 75 | F245: 74 | G245: 78 | H245: 86 | I245: 95 | J245: 99 | K245: 96 | L245: 97 | M245: 102
A246: LA ESTRELLA | B246: CHÍA | C246: OFICIAL | D246: 12 | E246: 12 | F246: 12 | G246: 12 | H246: 12 | I246: 12 | J246: 12 | K246: 12 | L246: 12 | M246: 12
A247: LA GUAJIRA | B247: CHÍA | C247: NO OFICIAL | D247: 70 | E247: 77 | F247: 76 | G247: 79 | H247: 76 | I247: 80 | J247: 81 | K247: 84 | L247: 81 | M247: 83
A248: LORICA | B248: CHOCO | C248: OFICIAL | D248: 169 | E248: 165 | F248: 176 | G248: 183 | H248: 183 | I248: 184 | J248: 186 | K248: 189 | L248: 192 | M248: 195
A249: MAGANGUE | B249: CHOCO | C249: NO OFICIAL | D249: 2 | E249: 4 | F249: 5 | G249: 5 | H249: 4 | I249: 3 | J249: 3 | K249: 3 | L249: 4 | M249: 4
A250: MAGDALENA | B250: CIENAGA | C250: OFICIAL | D250: 25 | E250: 24 | F250: 25 | G250: 25 | H250: 25 | I250: 25 | J250: 25 | K250: 25 | L250: 25 | M250: 25
A251: MAICAO | B251: CIENAGA | C251: NO OFICIAL | D251: 34 | E251: 35 | F251: 37 | G251: 37 | H251: 50 | I251: 49 | J251: 49 | K251: 50 | L251: 50 | M251: 49
A252: MALAMBO | B252: CORDOBA | C252: OFICIAL | D252: 370 | E252: 368 | F252: 359 | G252: 351 | H252: 335 | I252: 334 | J252: 328 | K252: 100 | L252: 325 | M252: 315
A253: MANIZALES | B253: CORDOBA | C253: NO OFICIAL | D253: 84 | E253: 87 | F253: 95 | G253: 96 | H253: 99 | I253: 101 | J253: 101 | K253: 327 | L253: 98 | M253: 97
A254: MEDELLIN | B254: CUCUTA | C254: OFICIAL | D254: 59 | E254: 59 | F254: 59 | G254: 59 | H254: 60 | I254: 61 | J254: 61 | K254: 62 | L254: 64 | M254: 64
A255: META | B255: CUCUTA | C255: NO OFICIAL | D255: 202 | E255: 194 | F255: 203 | G255: 209 | H255: 210 | I255: 210 | J255: 213 | K255: 209 | L255: 196 | M255: 195
A256: MONTERIA | B256: CUNDINAMARCA | C256: OFICIAL | D256: 283 | E256: 283 | F256: 283 | G256: 283 | H256: 281 | I256: 277 | J256: 276 | K256: 277 | L256: 277 | M256: 276
A257: MOSQUERA | B257: CUNDINAMARCA | C257: NO OFICIAL | D257: 326 | E257: 340 | F257: 348 | G257: 353 | H257: 359 | I257: 330 | J257: 332 | K257: 325 | L257: 330 | M257: 336
A258: NARIÑO | B258: DOSQUEBRADAS | C258: OFICIAL | D258: 20 | E258: 20 | F258: 20 | G258: 20 | H258: 21 | I258: 21 | J258: 21 | K258: 21 | L258: 21 | M258: 21
A259: NEIVA | B259: DOSQUEBRADAS | C259: NO OFICIAL | D259: 56 | E259: 59 | F259: 59 | G259: 64 | H259: 73 | I259: 72 | J259: 72 | K259: 66 | L259: 67 | M259: 65
A260: NORTE SANTANDER | B260: DUITAMA | C260: OFICIAL | D260: 16 | E260: 14 | F260: 14 | G260: 14 | H260: 14 | I260: 14 | J260: 14 | K260: 14 | L260: 14 | M260: 14
A261: PALMIRA | B261: DUITAMA | C261: NO OFICIAL | D261: 49 | E261: 49 | F261: 50 | G261: 52 | H261: 52 | I261: 52 | J261: 50 | K261: 47 | L261: 47 | M261: 47
A262: PASTO | B262: ENVIGADO | C262: OFICIAL | D262: 12 | E262: 12 | F262: 13 | G262: 14 | H262: 14 | I262: 14 | J262: 14 | K262: 14 | L262: 14 | M262: 14
A263: PEREIRA | B263: ENVIGADO | C263: NO OFICIAL | D263: 54 | E263: 57 | F263: 58 | G263: 59 | H263: 63 | I263: 62 | J263: 62 | K263: 57 | L263: 57 | M263: 57
A264: PIEDECUESTA | B264: FACATATIVA | C264: OFICIAL | D264: 11 | E264: 11 | F264: 11 | G264: 11 | H264: 11 | I264: 11 | J264: 11 | K264: 64 | L264: 11 | M264: 11
A265: PITALITO | B265: FACATATIVA | C265: NO OFICIAL | D265: 53 | E265: 56 | F265: 61 | G265: 63 | H265: 66 | I265: 69 | J265: 68 | K265: 11 | L265: 63 | M265: 56
A266: POPAYAN | B266: FLORENCIA | C266: OFICIAL | D266: 29 | E266: 29 | F266: 31 | G266: 31 | H266: 30 | I266: 30 | J266: 30 | K266: 30 | L266: 30 | M266: 30
A267: PUTUMAYO | B267: FLORENCIA | C267: NO OFICIAL | D267: 30 | E267: 32 | F267: 35 | G267: 41 | H267: 41 | I267: 42 | J267: 42 | K267: 44 | L267: 42 | M267: 42
A268: QUIBDÓ | B268: FLORIDABLANCA | C268: OFICIAL | D268: 16 | E268: 16 | F268: 16 | G268: 16 | H268: 16 | I268: 16 | J268: 16 | K268: 97 | L268: 16 | M268: 16
A269: QUINDIO | B269: FLORIDABLANCA | C269: NO OFICIAL | D269: 103 | E269: 105 | F269: 111 | G269: 101 | H269: 100 | I269: 104 | J269: 96 | K269: 16 | L269: 97 | M269: 94
A270: RIOHACHA | B270: FUNZA | C270: OFICIAL | I270: 4 | J270: 4 | K270: 4 | L270: 4 | M270: 4
A271: RIONEGRO | B271: FUNZA | C271: NO OFICIAL | I271: 40 | J271: 41 | K271: 42 | L271: 45 | M271: 44
A272: RISARALDA | B272: FUSAGASUGA | C272: OFICIAL | D272: 14 | E272: 14 | F272: 14 | G272: 14 | H272: 14 | I272: 13 | J272: 13 | K272: 48 | L272: 13 | M272: 13
A273: SABANETA | B273: FUSAGASUGA | C273: NO OFICIAL | D273: 43 | E273: 44 | F273: 46 | G273: 45 | H273: 45 | I273: 47 | J273: 48 | K273: 13 | L273: 46 | M273: 48
A274: SAHAGUN | B274: GIRARDOT | C274: OFICIAL | D274: 8 | E274: 8 | F274: 8 | G274: 8 | H274: 8 | I274: 8 | J274: 8 | K274: 62 | L274: 8 | M274: 8
A275: SAN_ANDRES | B275: GIRARDOT | C275: NO OFICIAL | D275: 43 | E275: 47 | F275: 49 | G275: 51 | H275: 53 | I275: 51 | J275: 64 | K275: 8 | L275: 61 | M275: 58
A276: SANTA MARTA | B276: GIRON | C276: OFICIAL | D276: 13 | E276: 13 | F276: 15 | G276: 15 | H276: 15 | I276: 19 | J276: 20 | K276: 29 | L276: 20 | M276: 20
A277: SANTANDER | B277: GIRON | C277: NO OFICIAL | D277: 39 | E277: 38 | F277: 37 | G277: 38 | H277: 37 | I277: 35 | J277: 35 | K277: 20 | L277: 25 | M277: 24
A278: SINCELEJO | B278: GUAINIA | C278: OFICIAL | D278: 21 | E278: 21 | F278: 21 | G278: 21 | H278: 21 | I278: 21 | J278: 21 | K278: 21 | L278: 21 | M278: 25
A279: SOACHA | B279: GUAINIA | C279: NO OFICIAL | D279: 1 | E279: 1 | F279: 1 | G279: 1 | H279: 1 | I279: 2 | J279: 2 | K279: 2 | L279: 2 | M279: 2
A280: SOGAMOSO | B280: GUAVIARE | C280: OFICIAL | D280: 41 | E280: 41 | F280: 43 | G280: 43 | H280: 43 | I280: 43 | J280: 43 | K280: 43 | L280: 43 | M280: 43
A281: SOLEDAD | B281: GUAVIARE | C281: NO OFICIAL | D281: 10 | E281: 10 | F281: 13 | G281: 11 | H281: 11 | I281: 13 | J281: 13 | K281: 13 | L281: 12 | M281: 13
A282: SUCRE | B282: HUILA | C282: OFICIAL | D282: 188 | E282: 182 | F282: 179 | G282: 178 | H282: 178 | I282: 177 | J282: 177 | K282: 177 | L282: 177 | M282: 176
A283: TOLIMA | B283: HUILA | C283: NO OFICIAL | D283: 53 | E283: 50 | F283: 49 | G283: 50 | H283: 50 | I283: 50 | J283: 50 | K283: 47 | L283: 44 | M283: 46
A284: TULUA | B284: IBAGUE | C284: OFICIAL | D284: 59 | E284: 58 | F284: 58 | G284: 60 | H284: 60 | I284: 60 | J284: 60 | K284: 60 | L284: 60 | M284: 60
A285: TUMACO | B285: IBAGUE | C285: NO OFICIAL | D285: 177 | E285: 174 | F285: 173 | G285: 164 | H285: 165 | I285: 160 | J285: 161 | K285: 149 | L285: 144 | M285: 145
A286: TUNJA | B286: IPIALES | C286: OFICIAL | D286: 61 | E286: 62 | F286: 62 | G286: 62 | H286: 62 | I286: 62 | J286: 61 | K286: 37 | L286: 61 | M286: 35
A287: TURBO | B287: IPIALES | C287: NO OFICIAL | D287: 27 | E287: 31 | F287: 27 | G287: 33 | H287: 36 | I287: 34 | J287: 35 | K287: 61 | L287: 36 | M287: 39
A288: URIBIA | B288: ITAGUI | C288: OFICIAL | D288: 24 | E288: 24 | F288: 24 | G288: 24 | H288: 24 | I288: 24 | J288: 24 | K288: 24 | L288: 24 | M288: 24
A289: VALLE | B289: ITAGUI | C289: NO OFICIAL | D289: 49 | E289: 52 | F289: 47 | G289: 50 | H289: 50 | I289: 50 | J289: 51 | K289: 52 | L289: 51 | M289: 50
A290: VALLEDUPAR | B290: JAMUNDÍ | C290: OFICIAL | D290: 15 | E290: 15 | F290: 15 | G290: 15 | H290: 15 | I290: 16 | J290: 16 | K290: 16 | L290: 16 | M290: 16
A291: VAUPES | B291: JAMUNDÍ | C291: NO OFICIAL | D291: 20 | E291: 28 | F291: 32 | G291: 34 | H291: 33 | I291: 36 | J291: 39 | K291: 43 | L291: 42 | M291: 40
A292: VICHADA | B292: LA ESTRELLA | C292: OFICIAL | M292: 4
A293: VILLAVICENCIO | B293: LA ESTRELLA | C293: NO OFICIAL | M293: 21
A294: YOPAL | B294: LA GUAJIRA | C294: OFICIAL | D294: 85 | E294: 88 | F294: 88 | G294: 90 | H294: 90 | I294: 91 | J294: 91 | K294: 91 | L294: 91 | M294: 97
A295: YUMBO | B295: LA GUAJIRA | C295: NO OFICIAL | D295: 25 | E295: 24 | F295: 31 | G295: 40 | H295: 40 | I295: 41 | J295: 42 | K295: 42 | L295: 43 | M295: 49
A296: ZIPAQUIRA | B296: LORICA | C296: OFICIAL | D296: 31 | E296: 31 | F296: 31 | G296: 31 | H296: 31 | I296: 31 | J296: 31 | K296: 17 | L296: 31 | M296: 31
A297: COLOMBIA | B297: LORICA | C297: NO OFICIAL | D297: 21 | E297: 21 | F297: 18 | G297: 18 | H297: 16 | I297: 18 | J297: 17 | K297: 31 | L297: 18 | M297: 20
B298: MAGANGUE | C298: OFICIAL | D298: 20 | E298: 20 | F298: 20 | G298: 20 | H298: 20 | I298: 20 | J298: 20 | K298: 20 | L298: 20 | M298: 20
B299: MAGANGUE | C299: NO OFICIAL | D299: 26 | E299: 29 | F299: 27 | G299: 26 | H299: 27 | I299: 25 | J299: 27 | K299: 24 | L299: 27 | M299: 28
B300: MAGDALENA | C300: OFICIAL | D300: 156 | E300: 159 | F300: 154 | G300: 154 | H300: 154 | I300: 154 | J300: 153 | K300: 153 | L300: 153 | M300: 153
B301: MAGDALENA | C301: NO OFICIAL | D301: 82 | E301: 95 | F301: 113 | G301: 121 | H301: 121 | I301: 117 | J301: 67 | K301: 74 | L301: 74 | M301: 82
B302: MAICAO | C302: OFICIAL | D302: 27 | E302: 27 | F302: 27 | G302: 27 | H302: 27 | I302: 27 | J302: 27 | K302: 27 | L302: 27 | M302: 27
B303: MAICAO | C303: NO OFICIAL | D303: 17 | E303: 17 | F303: 19 | G303: 18 | H303: 20 | I303: 21 | J303: 21 | K303: 20 | L303: 21 | M303: 25
B304: MALAMBO | C304: OFICIAL | D304: 14 | E304: 13 | F304: 13 | G304: 13 | H304: 13 | I304: 13 | J304: 13 | K304: 61 | L304: 13 | M304: 13
B305: MALAMBO | C305: NO OFICIAL | D305: 44 | E305: 47 | F305: 48 | G305: 49 | H305: 49 | I305: 53 | J305: 61 | K305: 13 | L305: 60 | M305: 63
B306: MANIZALES | C306: OFICIAL | D306: 59 | E306: 56 | F306: 55 | G306: 54 | H306: 56 | I306: 54 | J306: 53 | K306: 53 | L306: 53 | M306: 52
B307: MANIZALES | C307: NO OFICIAL | D307: 77 | E307: 76 | F307: 76 | G307: 74 | H307: 71 | I307: 73 | J307: 75 | K307: 70 | L307: 69 | M307: 65
B308: MEDELLIN | C308: OFICIAL | D308: 218 | E308: 219 | F308: 230 | G308: 231 | H308: 230 | I308: 231 | J308: 231 | K308: 330 | L308: 231 | M308: 230
B309: MEDELLIN | C309: NO OFICIAL | D309: 351 | E309: 360 | F309: 363 | G309: 354 | H309: 345 | I309: 351 | J309: 346 | K309: 231 | L309: 323 | M309: 318
B310: META | C310: OFICIAL | D310: 142 | E310: 140 | F310: 141 | G310: 136 | H310: 134 | I310: 134 | J310: 134 | K310: 134 | L310: 135 | M310: 136
B311: META | C311: NO OFICIAL | D311: 54 | E311: 56 | F311: 54 | G311: 56 | H311: 59 | I311: 63 | J311: 67 | K311: 69 | L311: 73 | M311: 78
B312: MONTERIA | C312: OFICIAL | D312: 60 | E312: 60 | F312: 60 | G312: 60 | H312: 61 | I312: 61 | J312: 61 | K312: 61 | L312: 61 | M312: 64
B313: MONTERIA | C313: NO OFICIAL | D313: 83 | E313: 82 | F313: 85 | G313: 85 | H313: 86 | I313: 86 | J313: 86 | K313: 86 | L313: 84 | M313: 81
B314: MOSQUERA | C314: OFICIAL | D314: 6 | E314: 8 | F314: 8 | G314: 8 | H314: 8 | I314: 8 | J314: 8 | K314: 8 | L314: 8 | M314: 8
B315: MOSQUERA | C315: NO OFICIAL | D315: 38 | E315: 40 | F315: 42 | G315: 41 | H315: 39 | I315: 34 | J315: 33 | K315: 32 | L315: 31 | M315: 33
B316: NARIÑO | C316: OFICIAL | D316: 1,955 | E316: 1944 | F316: 1909 | G316: 1887 | H316: 1835 | I316: 1820 | J316: 1,375 | K316: 606 | L316: 519 | M316: 463
B317: NARIÑO | C317: NO OFICIAL | D317: 13 | E317: 13 | F317: 16 | G317: 18 | H317: 18 | I317: 17 | J317: 18 | K317: 16 | L317: 19 | M317: 20
B318: NEIVA | C318: OFICIAL | D318: 37 | E318: 37 | F318: 37 | G318: 37 | H318: 37 | I318: 37 | J318: 37 | K318: 37 | L318: 37 | M318: 37
B319: NEIVA | C319: NO OFICIAL | D319: 108 | E319: 120 | F319: 127 | G319: 131 | H319: 133 | I319: 137 | J319: 134 | K319: 128 | L319: 129 | M319: 129
B320: NORTE SANTANDER | C320: OFICIAL | D320: 218 | E320: 219 | F320: 216 | G320: 211 | H320: 211 | I320: 209 | J320: 211 | K320: 211 | L320: 214 | M320: 216
B321: NORTE SANTANDER | C321: NO OFICIAL | D321: 77 | E321: 82 | F321: 77 | G321: 80 | H321: 85 | I321: 80 | J321: 79 | K321: 77 | L321: 84 | M321: 84
B322: PALMIRA | C322: OFICIAL | D322: 27 | E322: 27 | F322: 27 | G322: 27 | H322: 27 | I322: 27 | J322: 27 | K322: 27 | L322: 27 | M322: 27
B323: PALMIRA | C323: NO OFICIAL | D323: 97 | E323: 104 | F323: 116 | G323: 116 | H323: 114 | I323: 111 | J323: 107 | K323: 102 | L323: 105 | M323: 105
B324: PASTO | C324: OFICIAL | D324: 51 | E324: 51 | F324: 50 | G324: 50 | H324: 49 | I324: 50 | J324: 50 | K324: 49 | L324: 49 | M324: 49
B325: PASTO | C325: NO OFICIAL | D325: 93 | E325: 92 | F325: 94 | G325: 99 | H325: 104 | I325: 107 | J325: 115 | K325: 111 | L325: 113 | M325: 115
B326: PEREIRA | C326: OFICIAL | D326: 72 | E326: 72 | F326: 72 | G326: 73 | H326: 73 | I326: 72 | J326: 71 | K326: 139 | L326: 71 | M326: 71
B327: PEREIRA | C327: NO OFICIAL | D327: 122 | E327: 127 | F327: 129 | G327: 137 | H327: 144 | I327: 152 | J327: 154 | K327: 71 | L327: 142 | M327: 146
B328: PIEDECUESTA | C328: OFICIAL | D328: 17 | E328: 17 | F328: 17 | G328: 17 | H328: 17 | I328: 17 | J328: 17 | K328: 17 | L328: 17 | M328: 18
B329: PIEDECUESTA | C329: NO OFICIAL | D329: 40 | E329: 41 | F329: 46 | G329: 44 | H329: 44 | I329: 43 | J329: 45 | K329: 42 | L329: 43 | M329: 43
B330: PITALITO | C330: OFICIAL | D330: 16 | E330: 16 | F330: 16 | G330: 16 | H330: 16 | I330: 16 | J330: 16 | K330: 16 | L330: 16 | M330: 16
B331: PITALITO | C331: NO OFICIAL | D331: 25 | E331: 26 | F331: 29 | G331: 31 | H331: 31 | I331: 32 | J331: 33 | K331: 32 | L331: 32 | M331: 32
B332: POPAYAN | C332: OFICIAL | D332: 40 | E332: 40 | F332: 40 | G332: 40 | H332: 40 | I332: 40 | J332: 40 | K332: 40 | L332: 43 | M332: 44
B333: POPAYAN | C333: NO OFICIAL | D333: 63 | E333: 73 | F333: 83 | G333: 105 | H333: 104 | I333: 112 | J333: 114 | K333: 114 | L333: 109 | M333: 120
B334: PUTUMAYO | C334: OFICIAL | D334: 158 | E334: 148 | F334: 148 | G334: 149 | H334: 148 | I334: 148 | J334: 149 | K334: 149 | L334: 147 | M334: 147
B335: PUTUMAYO | C335: NO OFICIAL | D335: 23 | E335: 23 | F335: 22 | G335: 25 | H335: 26 | I335: 26 | J335: 27 | K335: 28 | L335: 28 | M335: 29
B336: QUIBDÓ | C336: OFICIAL | D336: 25 | E336: 25 | F336: 24 | G336: 24 | H336: 24 | I336: 24 | J336: 24 | K336: 24 | L336: 24 | M336: 24
B337: QUIBDÓ | C337: NO OFICIAL | D337: 14 | E337: 12 | F337: 16 | G337: 11 | H337: 15 | I337: 15 | J337: 13 | K337: 15 | L337: 15 | M337: 18
B338: QUINDIO | C338: OFICIAL | D338: 55 | E338: 54 | F338: 54 | G338: 54 | H338: 54 | I338: 54 | J338: 54 | K338: 54 | L338: 54 | M338: 54
B339: QUINDIO | C339: NO OFICIAL | D339: 16 | E339: 15 | F339: 14 | G339: 15 | H339: 14 | I339: 16 | J339: 16 | K339: 17 | L339: 17 | M339: 17
B340: RIOHACHA | C340: OFICIAL | D340: 37 | E340: 38 | F340: 38 | G340: 38 | H340: 38 | I340: 40 | J340: 40 | K340: 41 | L340: 41 | M340: 43
B341: RIOHACHA | C341: NO OFICIAL | D341: 42 | E341: 42 | F341: 43 | G341: 52 | H341: 59 | I341: 62 | J341: 64 | K341: 63 | L341: 64 | M341: 70
B342: RIONEGRO | C342: OFICIAL | D342: 16 | E342: 16 | F342: 16 | G342: 16 | H342: 16 | I342: 16 | J342: 16 | K342: 16 | L342: 16 | M342: 16
B343: RIONEGRO | C343: NO OFICIAL | D343: 21 | E343: 20 | F343: 19 | G343: 20 | H343: 20 | I343: 20 | J343: 22 | K343: 21 | L343: 22 | M343: 23
B344: RISARALDA | C344: OFICIAL | D344: 96 | E344: 89 | F344: 79 | G344: 71 | H344: 70 | I344: 69 | J344: 70 | K344: 70 | L344: 69 | M344: 68
B345: RISARALDA | C345: NO OFICIAL | D345: 11 | E345: 12 | F345: 14 | G345: 14 | H345: 16 | I345: 16 | J345: 16 | K345: 15 | L345: 15 | M345: 15
B346: SABANETA | C346: OFICIAL | D346: 8 | E346: 8 | F346: 8 | G346: 8 | H346: 8 | I346: 8 | J346: 8 | K346: 8 | L346: 8 | M346: 8
B347: SABANETA | C347: NO OFICIAL | D347: 20 | E347: 22 | F347: 22 | G347: 21 | H347: 21 | I347: 24 | J347: 26 | K347: 32 | L347: 33 | M347: 36
B348: SAHAGUN | C348: OFICIAL | D348: 28 | E348: 27 | F348: 27 | G348: 27 | H348: 27 | I348: 27 | J348: 26 | K348: 26 | L348: 26 | M348: 24
B349: SAHAGUN | C349: NO OFICIAL | D349: 7 | E349: 7 | F349: 6 | G349: 6 | H349: 6 | I349: 6 | J349: 7 | K349: 7 | L349: 7 | M349: 7
B350: SAN_ANDRES | C350: OFICIAL | D350: 12 | E350: 11 | F350: 11 | G350: 11 | H350: 11 | I350: 11 | J350: 11 | K350: 11 | L350: 11 | M350: 11
B351: SAN_ANDRES | C351: NO OFICIAL | D351: 9 | E351: 11 | F351: 10 | G351: 10 | H351: 10 | I351: 10 | J351: 10 | K351: 9 | L351: 9 | M351: 9
B352: SANTA MARTA | C352: OFICIAL | D352: 73 | E352: 72 | F352: 72 | G352: 72 | H352: 74 | I352: 75 | J352: 75 | K352: 75 | L352: 76 | M352: 75
B353: SANTA MARTA | C353: NO OFICIAL | D353: 184 | E353: 182 | F353: 198 | G353: 206 | H353: 208 | I353: 212 | J353: 218 | K353: 218 | L353: 216 | M353: 219
B354: SANTANDER | C354: OFICIAL | D354: 278 | E354: 276 | F354: 276 | G354: 275 | H354: 274 | I354: 274 | J354: 272 | K354: 274 | L354: 274 | M354: 275
B355: SANTANDER | C355: NO OFICIAL | D355: 155 | E355: 154 | F355: 162 | G355: 165 | H355: 161 | I355: 167 | J355: 166 | K355: 171 | L355: 169 | M355: 167
B356: SINCELEJO | C356: OFICIAL | D356: 35 | E356: 35 | F356: 35 | G356: 36 | H356: 36 | I356: 36 | J356: 36 | K356: 36 | L356: 36 | M356: 36
B357: SINCELEJO | C357: NO OFICIAL | D357: 68 | E357: 69 | F357: 70 | G357: 71 | H357: 72 | I357: 70 | J357: 70 | K357: 70 | L357: 67 | M357: 65
B358: SOACHA | C358: OFICIAL | D358: 22 | E358: 22 | F358: 22 | G358: 22 | H358: 22 | I358: 24 | J358: 26 | K358: 199 | L358: 28 | M358: 30
B359: SOACHA | C359: NO OFICIAL | D359: 138 | E359: 146 | F359: 155 | G359: 172 | H359: 182 | I359: 194 | J359: 199 | K359: 28 | L359: 201 | M359: 193
B360: SOGAMOSO | C360: OFICIAL | D360: 16 | E360: 16 | F360: 16 | G360: 16 | H360: 16 | I360: 16 | J360: 16 | K360: 16 | L360: 16 | M360: 16
B361: SOGAMOSO | C361: NO OFICIAL | D361: 42 | E361: 47 | F361: 47 | G361: 45 | H361: 49 | I361: 50 | J361: 50 | K361: 49 | L361: 46 | M361: 47
B362: SOLEDAD | C362: OFICIAL | D362: 30 | E362: 30 | F362: 30 | G362: 31 | H362: 31 | I362: 32 | J362: 32 | K362: 273 | L362: 32 | M362: 34
B363: SOLEDAD | C363: NO OFICIAL | D363: 196 | E363: 208 | F363: 216 | G363: 233 | H363: 248 | I363: 256 | J363: 273 | K363: 32 | L363: 291 | M363: 305
B364: SUCRE | C364: OFICIAL | D364: 268 | E364: 268 | F364: 268 | G364: 269 | H364: 268 | I364: 267 | J364: 267 | K364: 268 | L364: 267 | M364: 267
B365: SUCRE | C365: NO OFICIAL | D365: 61 | E365: 63 | F365: 62 | G365: 68 | H365: 69 | I365: 71 | J365: 71 | K365: 69 | L365: 76 | M365: 81
B366: TOLIMA | C366: OFICIAL | D366: 213 | E366: 213 | F366: 213 | G366: 213 | H366: 213 | I366: 212 | J366: 212 | K366: 212 | L366: 212 | M366: 212
B367: TOLIMA | C367: NO OFICIAL | D367: 125 | E367: 125 | F367: 125 | G367: 133 | H367: 136 | I367: 138 | J367: 144 | K367: 144 | L367: 147 | M367: 153
B368: TULUA | C368: OFICIAL | D368: 18 | E368: 18 | F368: 18 | G368: 18 | H368: 18 | I368: 18 | J368: 18 | K368: 45 | L368: 18 | M368: 18
B369: TULUA | C369: NO OFICIAL | D369: 53 | E369: 52 | F369: 48 | G369: 48 | H369: 47 | I369: 46 | J369: 46 | K369: 18 | L369: 43 | M369: 42
B370: TUMACO | C370: OFICIAL | D370: 66 | E370: 66 | F370: 66 | G370: 66 | H370: 66 | I370: 66 | J370: 66 | K370: 66 | L370: 66 | M370: 66
B371: TUMACO | C371: NO OFICIAL | D371: 11 | E371: 14 | F371: 19 | G371: 22 | H371: 20 | I371: 25 | J371: 26 | K371: 28 | L371: 29 | M371: 31
B372: TUNJA | C372: OFICIAL | D372: 14 | E372: 14 | F372: 14 | G372: 14 | H372: 14 | I372: 14 | J372: 14 | K372: 14 | L372: 14 | M372: 14
B373: TUNJA | C373: NO OFICIAL | D373: 92 | E373: 99 | F373: 99 | G373: 109 | H373: 112 | I373: 113 | J373: 113 | K373: 108 | L373: 109 | M373: 107
B374: TURBO | C374: OFICIAL | D374: 39 | E374: 39 | F374: 39 | G374: 38 | H374: 39 | I374: 38 | J374: 38 | K374: 17 | L374: 36 | M374: 36
B375: TURBO | C375: NO OFICIAL | D375: 13 | E375: 12 | F375: 12 | G375: 14 | H375: 15 | I375: 16 | J375: 16 | K375: 36 | L375: 19 | M375: 20
B376: URIBIA | C376: OFICIAL | D376: 22 | E376: 22 | F376: 22 | G376: 22 | H376: 25 | I376: 25 | J376: 30 | K376: 37 | L376: 37 | M376: 38
B377: URIBIA | C377: NO OFICIAL | D377: 1 | E377: 1 | F377: 1 | G377: 1 | H377: 1 | I377: 1 | J377: 1 | K377: 1 | L377: 1 | M377: 1
B378: VALLE | C378: OFICIAL | D378: 152 | E378: 152 | F378: 149 | G378: 149 | H378: 149 | I378: 149 | J378: 149 | K378: 149 | L378: 150 | M378: 149
B379: VALLE | C379: NO OFICIAL | D379: 104 | E379: 120 | F379: 118 | G379: 114 | H379: 123 | I379: 125 | J379: 130 | K379: 127 | L379: 120 | M379: 118
B380: VALLEDUPAR | C380: OFICIAL | D380: 42 | E380: 42 | F380: 43 | G380: 44 | H380: 48 | I380: 47 | J380: 47 | K380: 186 | L380: 48 | M380: 47
B381: VALLEDUPAR | C381: NO OFICIAL | D381: 140 | E381: 148 | F381: 151 | G381: 158 | H381: 169 | I381: 182 | J381: 186 | K381: 48 | L381: 199 | M381: 199
B382: VAUPES | C382: OFICIAL | D382: 16 | E382: 16 | F382: 16 | G382: 16 | H382: 15 | I382: 16 | J382: 16 | K382: 16 | L382: 16 | M382: 17
B383: VAUPES | C383: NO OFICIAL | D383: 1 | E383: 1 | F383: 1 | G383: 1 | H383: 1 | I383: 1 | J383: 4 | K383: 3 | L383: 3 | M383: 3
B384: VICHADA | C384: OFICIAL | D384: 47 | E384: 46 | F384: 48 | G384: 50 | H384: 52 | I384: 52 | J384: 54 | K384: 56 | L384: 59 | M384: 59
B385: VICHADA | C385: NO OFICIAL | D385: 2 | E385: 2 | F385: 2 | G385: 2 | H385: 3 | I385: 3 | J385: 3 | K385: 4 | L385: 4 | M385: 5
B386: VILLAVICENCIO | C386: OFICIAL | D386: 50 | E386: 50 | F386: 57 | G386: 59 | H386: 62 | I386: 62 | J386: 59 | K386: 185 | L386: 61 | M386: 55
B387: VILLAVICENCIO | C387: NO OFICIAL | D387: 165 | E387: 171 | F387: 181 | G387: 195 | H387: 190 | I387: 193 | J387: 188 | K387: 60 | L387: 186 | M387: 190
B388: YOPAL | C388: OFICIAL | D388: 24 | E388: 24 | F388: 25 | G388: 25 | H388: 25 | I388: 25 | J388: 25 | K388: 25 | L388: 25 | M388: 25
B389: YOPAL | C389: NO OFICIAL | D389: 41 | E389: 46 | F389: 50 | G389: 53 | H389: 51 | I389: 50 | J389: 51 | K389: 48 | L389: 48 | M389: 45
... 8 more rows

Sheet 2 SEDES
B1: SEDES EDUCATIVAS | Q1: Indice
B2: =+'1 ESTAB'!B2 -> Corte OCTUBRE 2023 información preliminar
B3: ENTIDAD
B4: AMAZONAS | C4: SECTOR | D4: 2014 | E4: 2015 | F4: 2016 | G4: 2017 | H4: 2018 | I4: 2019 | J4: 2020 | K4: =+'1 ESTAB'!K4 -> 2021 | L4: =+'1 ESTAB'!L4 -> 2022 | M4: =+'1 ESTAB'!M4 -> Oct. 2023 | O4: TOTAL SEDES 2023
C5: Oficial Urbana | D5: =+SUMIFS($D$200:$D$591,$B$200:$B$591,$B$4,$C$200:$C$591,C5) -> 13 | E5: =+SUMIFS($E$200:$E$591,$B$200:$B$591,$B$4,$C$200:$C$591,C5) -> 13 | F5: =+SUMIFS($F$200:$F$591,$B$200:$B$591,$B$4,$C$200:$C$591,C5) -> 13 | G5: =+SUMIFS($G$200:$G$591,$B$200:$B$591,$B$4,$C$200:$C$591,C5) -> 14 | H5: =+SUMIFS($H$200:$H$591,$B$200:$B$591,$B$4,$C$200:$C$591,C5) -> 14 | I5: =+SUMIFS($I$200:$I$591,$B$200:$B$591,$B$4,$C$200:$C$591,C5) -> 13 | J5: =+SUMIFS($J$200:$J$591,$B$200:$B$591,$B$4,$C$200:$C$591,C5) -> 12 | K5: =+SUMIFS($K$200:$K$591,$B$200:$B$591,$B$4,$C$200:$C$591,C5) -> 13 | L5: =+SUMIFS($L$200:$L$591,$B$200:$B$591,$B$4,$C$200:$C$591,C5) -> 13 | M5: =+SUMIFS($M$200:$M$591,$B$200:$B$591,$B$4,$C$200:$C$591,C5) -> 13 | O5: OFICIALES | P5: NO OFICIALES | Q5: TOTAL
C6: Oficial Rural | D6: =+SUMIFS($D$200:$D$591,$B$200:$B$591,$B$4,$C$200:$C$591,C6) -> 97 | E6: =+SUMIFS($E$200:$E$591,$B$200:$B$591,$B$4,$C$200:$C$591,C6) -> 97 | F6: =+SUMIFS($F$200:$F$591,$B$200:$B$591,$B$4,$C$200:$C$591,C6) -> 96 | G6: =+SUMIFS($G$200:$G$591,$B$200:$B$591,$B$4,$C$200:$C$591,C6) -> 116 | H6: =+SUMIFS($H$200:$H$591,$B$200:$B$591,$B$4,$C$200:$C$591,C6) -> 114 | I6: =+SUMIFS($I$200:$I$591,$B$200:$B$591,$B$4,$C$200:$C$591,C6) -> 118 | J6: =+SUMIFS($J$200:$J$591,$B$200:$B$591,$B$4,$C$200:$C$591,C6) -> 116 | K6: =+SUMIFS($K$200:$K$591,$B$200:$B$591,$B$4,$C$200:$C$591,C6) -> 118 | L6: =+SUMIFS($L$200:$L$591,$B$200:$B$591,$B$4,$C$200:$C$591,C6) -> 117 | M6: =+SUMIFS($M$200:$M$591,$B$200:$B$591,$B$4,$C$200:$C$591,C6) -> 116 | O6: =SUM(M5:M6) -> 129 | P6: =SUM(M7:M8) -> 5 | Q6: =SUM(O6:P6) -> 134
C7: No oficial Urbana | D7: =+SUMIFS($D$200:$D$591,$B$200:$B$591,$B$4,$C$200:$C$591,C7) -> 5 | E7: =+SUMIFS($E$200:$E$591,$B$200:$B$591,$B$4,$C$200:$C$591,C7) -> 5 | F7: =+SUMIFS($F$200:$F$591,$B$200:$B$591,$B$4,$C$200:$C$591,C7) -> 6 | G7: =+SUMIFS($G$200:$G$591,$B$200:$B$591,$B$4,$C$200:$C$591,C7) -> 5 | H7: =+SUMIFS($H$200:$H$591,$B$200:$B$591,$B$4,$C$200:$C$591,C7) -> 6 | I7: =+SUMIFS($I$200:$I$591,$B$200:$B$591,$B$4,$C$200:$C$591,C7) -> 6 | J7: =+SUMIFS($J$200:$J$591,$B$200:$B$591,$B$4,$C$200:$C$591,C7) -> 5 | K7: =+SUMIFS($K$200:$K$591,$B$200:$B$591,$B$4,$C$200:$C$591,C7) -> 7 | L7: =+SUMIFS($L$200:$L$591,$B$200:$B$591,$B$4,$C$200:$C$591,C7) -> 5 | M7: =+SUMIFS($M$200:$M$591,$B$200:$B$591,$B$4,$C$200:$C$591,C7) -> 5
C8: No oficial Rural | D8: =+SUMIFS($D$200:$D$591,$B$200:$B$591,$B$4,$C$200:$C$591,C8) -> 21 | E8: =+SUMIFS($E$200:$E$591,$B$200:$B$591,$B$4,$C$200:$C$591,C8) -> 21 | F8: =+SUMIFS($F$200:$F$591,$B$200:$B$591,$B$4,$C$200:$C$591,C8) -> 20 | G8: =+SUMIFS($G$200:$G$591,$B$200:$B$591,$B$4,$C$200:$C$591,C8) -> 0 | H8: =+SUMIFS($H$200:$H$591,$B$200:$B$591,$B$4,$C$200:$C$591,C8) -> 0 | I8: =+SUMIFS($I$200:$I$591,$B$200:$B$591,$B$4,$C$200:$C$591,C8) -> 0 | J8: =+SUMIFS($J$200:$J$591,$B$200:$B$591,$B$4,$C$200:$C$591,C8) -> 0 | K8: =+SUMIFS($K$200:$K$591,$B$200:$B$591,$B$4,$C$200:$C$591,C8) -> 0 | L8: =+SUMIFS($L$200:$L$591,$B$200:$B$591,$B$4,$C$200:$C$591,C8) -> 0 | M8: =+SUMIFS($M$200:$M$591,$B$200:$B$591,$B$4,$C$200:$C$591,C8) -> 0
C9: Total | D9: =SUM(D5:D8) -> 136 | E9: 136 | F9: 135 | G9: 135 | H9: 134 | I9: 137 | J9: 133 | K9: =SUM(K5:K8) -> 138 | L9: 135 | M9: 134
C10: FUENTE: SIMAT OAPF
C12: =+B4 -> AMAZONAS
A199: lista | B199: Entidad | C199: Sector Zona | D199: 2014 | E199: 2015 | F199: 2016 | G199: 2017 | H199: 2018 | I199: 2019 | J199: 2020 | K199: 2021 | L199: =+L4 -> 2022 | M199: 2023
A200: AMAZONAS | B200: AMAZONAS | C200: Oficial Urbana | D200: 13 | E200: 13 | F200: 13 | G200: 14 | H200: 14 | I200: 13 | J200: 12 | K200: 13 | L200: 13 | M200: 13 | N200: AMAZONAS
A201: ANTIOQUIA | B201: AMAZONAS | C201: Oficial Rural | D201: 97 | E201: 97 | F201: 96 | G201: 116 | H201: 114 | I201: 118 | J201: 116 | K201: 118 | L201: 117 | M201: 116
A202: APARTADO | B202: AMAZONAS | C202: No oficial Urbana | D202: 5 | E202: 5 | F202: 6 | G202: 5 | H202: 6 | I202: 6 | J202: 5 | K202: 7 | L202: 5 | M202: 5
A203: ARAUCA | B203: AMAZONAS | C203: No oficial Rural | D203: 21 | E203: 21 | F203: 20 | G203: 0 | H203: 0 | I203: 0 | J203: 0 | K203: 0 | L203: 0 | M203: 0
A204: ARMENIA | B204: ANTIOQUIA | C204: Oficial Urbana | D204: 425 | E204: 428 | F204: 415 | G204: 417 | H204: 410 | I204: 406 | J204: 405 | K204: 401 | L204: 411 | M204: 406
A205: ATLANTICO | B205: ANTIOQUIA | C205: Oficial Rural | D205: 3,577 | E205: 3571 | F205: 3745 | G205: 3798 | H205: 3829 | I205: 3852 | J205: 3855 | K205: 3,848 | L205: 3,839 | M205: 3848
A206: BARRANCABERMEJA | B206: ANTIOQUIA | C206: No oficial Urbana | D206: 148 | E206: 161 | F206: 122 | G206: 121 | H206: 119 | I206: 134 | J206: 134 | K206: 127 | L206: 128 | M206: 107
A207: BARRANQUILLA | B207: ANTIOQUIA | C207: No oficial Rural | D207: 48 | E207: 52 | F207: 18 | G207: 18 | H207: 17 | I207: 20 | J207: 21 | K207: 20 | L207: 20 | M207: 21
A208: BELLO | B208: APARTADO | C208: Oficial Urbana | D208: 15 | E208: 17 | F208: 17 | G208: 17 | H208: 18 | I208: 18 | J208: 18 | K208: 18 | L208: 17 | M208: 17
A209: BOGOTA | B209: APARTADO | C209: Oficial Rural | D209: 43 | E209: 47 | F209: 47 | G209: 47 | H209: 46 | I209: 47 | J209: 47 | K209: 47 | L209: 48 | M209: 49
A210: BOLIVAR | B210: APARTADO | C210: No oficial Urbana | D210: 15 | E210: 11 | F210: 8 | G210: 8 | H210: 9 | I210: 9 | J210: 10 | K210: 11 | L210: 10 | M210: 11
A211: BOYACA | B211: APARTADO | C211: No oficial Rural | D211: 1 | E211: 1 | F211: 1 | G211: 1 | H211: 1 | I211: 1 | J211: 1 | K211: 1 | L211: 1 | M211: 1
A212: BUCARAMANGA | B212: ARAUCA | C212: Oficial Urbana | D212: 78 | E212: 77 | F212: 77 | G212: 76 | H212: 76 | I212: 76 | J212: 76 | K212: 75 | L212: 75 | M212: 75
A213: BUENAVENTURA | B213: ARAUCA | C213: Oficial Rural | D213: 391 | E213: 397 | F213: 398 | G213: 393 | H213: 393 | I213: 395 | J213: 395 | K213: 397 | L213: 397 | M213: 399
A214: BUGA | B214: ARAUCA | C214: No oficial Urbana | D214: 21 | E214: 21 | F214: 22 | G214: 27 | H214: 28 | I214: 30 | J214: 38 | K214: 40 | L214: 44 | M214: 40
A215: CALDAS | B215: ARAUCA | C215: No oficial Rural | D215: 1 | E215: 1 | F215: 1 | G215: 1 | H215: 1 | I215: 4 | J215: 4 | K215: 4 | L215: 4 | M215: 4
A216: CALI | B216: ARMENIA | C216: Oficial Urbana | D216: 56 | E216: 55 | F216: 55 | G216: 56 | H216: 56 | I216: 56 | J216: 56 | K216: 56 | L216: 55 | M216: 55
A217: CAQUETA | B217: ARMENIA | C217: Oficial Rural | D217: 16 | E217: 16 | F217: 15 | G217: 16 | H217: 16 | I217: 16 | J217: 16 | K217: 16 | L217: 16 | M217: 16
A218: CARTAGENA | B218: ARMENIA | C218: No oficial Urbana | D218: 35 | E218: 37 | F218: 35 | G218: 33 | H218: 32 | I218: 32 | J218: 32 | K218: 31 | L218: 31 | M218: 30
A219: CARTAGO | B219: ARMENIA | C219: No oficial Rural | D219: 4 | E219: 5 | F219: 5 | G219: 5 | H219: 5 | I219: 6 | J219: 6 | K219: 6 | L219: 6 | M219: 6
A220: CASANARE | B220: ATLANTICO | C220: Oficial Urbana | D220: 130 | E220: 129 | F220: 130 | G220: 129 | H220: 128 | I220: 126 | J220: 121 | K220: 119 | L220: 119 | M220: 117
A221: CAUCA | B221: ATLANTICO | C221: Oficial Rural | D221: 75 | E221: 75 | F221: 75 | G221: 77 | H221: 76 | I221: 76 | J221: 76 | K221: 81 | L221: 89 | M221: 86
A222: CESAR | B222: ATLANTICO | C222: No oficial Urbana | D222: 90 | E222: 89 | F222: 92 | G222: 93 | H222: 95 | I222: 100 | J222: 103 | K222: 101 | L222: 104 | M222: 114
A223: CHÍA | B223: ATLANTICO | C223: No oficial Rural | D223: 1 | E223: 1 | F223: 1 | G223: 1 | H223: 2 | I223: 2 | J223: 2 | K223: 2 | L223: 2 | M223: 2
A224: CHOCO | B224: BARRANCABERMEJA | C224: Oficial Urbana | D224: 54 | E224: 55 | F224: 53 | G224: 54 | H224: 54 | I224: 54 | J224: 54 | K224: 54 | L224: 54 | M224: 54
A225: CIENAGA | B225: BARRANCABERMEJA | C225: Oficial Rural | D225: 53 | E225: 54 | F225: 54 | G225: 54 | H225: 53 | I225: 54 | J225: 53 | K225: 53 | L225: 53 | M225: 53
A226: CORDOBA | B226: BARRANCABERMEJA | C226: No oficial Urbana | D226: 71 | E226: 73 | F226: 78 | G226: 79 | H226: 82 | I226: 81 | J226: 81 | K226: 81 | L226: 77 | M226: 75
A227: CUCUTA | B227: BARRANCABERMEJA | C227: No oficial Rural | D227: 1 | E227: 1 | F227: 1 | G227: 2 | H227: 2 | I227: 2 | J227: 2 | K227: 2 | L227: 2 | M227: 2
A228: CUNDINAMARCA | B228: BARRANQUILLA | C228: Oficial Urbana | D228: 212 | E228: 211 | F228: 210 | G228: 216 | H228: 217 | I228: 218 | J228: 216 | K228: 217 | L228: 219 | M228: 220
A229: DOSQUEBRADAS | B229: BARRANQUILLA | C229: Oficial Rural | D229: 0 | E229: 0 | F229: 0 | G229: 0 | H229: 0 | I229: 0 | J229: 0 | K229: 0 | L229: 0 | M229: 0
A230: DUITAMA | B230: BARRANQUILLA | C230: No oficial Urbana | D230: 300 | E230: 313 | F230: 338 | G230: 352 | H230: 345 | I230: 340 | J230: 342 | K230: 343 | L230: 329 | M230: 342
A231: ENVIGADO | B231: BARRANQUILLA | C231: No oficial Rural | D231: 0 | E231: 1 | F231: 1 | G231: 1 | H231: 1 | I231: 1 | J231: 1 | K231: 1 | L231: 1 | M231: 1
A232: FACATATIVA | B232: BELLO | C232: Oficial Urbana | D232: 61 | E232: 57 | F232: 57 | G232: 57 | H232: 54 | I232: 55 | J232: 55 | K232: 55 | L232: 55 | M232: 55
A233: FLORENCIA | B233: BELLO | C233: Oficial Rural | D233: 6 | E233: 6 | F233: 6 | G233: 6 | H233: 6 | I233: 6 | J233: 6 | K233: 6 | L233: 7 | M233: 7
A234: FLORIDABLANCA | B234: BELLO | C234: No oficial Urbana | D234: 58 | E234: 60 | F234: 59 | G234: 63 | H234: 63 | I234: 65 | J234: 75 | K234: 79 | L234: 82 | M234: 79
A235: FUNZA | B235: BELLO | C235: No oficial Rural | D235: 1 | E235: 1 | F235: 1 | G235: 1 | H235: 1 | I235: 1 | J235: 1 | K235: 1 | L235: 1 | M235: 1
A236: FUSAGASUGA | B236: BOGOTA | C236: Oficial Urbana | D236: 659 | E236: 660 | F236: 681 | G236: 681 | H236: 670 | I236: 679 | J236: 684 | K236: 684 | L236: 687 | M236: 693
A237: GIRARDOT | B237: BOGOTA | C237: Oficial Rural | D237: 50 | E237: 47 | F237: 44 | G237: 44 | H237: 52 | I237: 52 | J237: 52 | K237: 52 | L237: 52 | M237: 52
A238: GIRON | B238: BOGOTA | C238: No oficial Urbana | D238: 1,844 | E238: 1830 | F238: 1776 | G238: 1764 | H238: 1737 | I238: 1702 | J238: 1689 | K238: 1,613 | L238: 1,556 | M238: 1504
A239: GUAINIA | B239: BOGOTA | C239: No oficial Rural | D239: 8 | E239: 10 | F239: 10 | G239: 11 | H239: 11 | I239: 11 | J239: 11 | K239: 11 | L239: 10 | M239: 10
A240: GUAVIARE | B240: BOLIVAR | C240: Oficial Urbana | D240: 249 | E240: 246 | F240: 243 | G240: 244 | H240: 243 | I240: 244 | J240: 243 | K240: 240 | L240: 238 | M240: 238
A241: HUILA | B241: BOLIVAR | C241: Oficial Rural | D241: 986 | E241: 987 | F241: 976 | G241: 980 | H241: 974 | I241: 979 | J241: 974 | K241: 977 | L241: 971 | M241: 968
A242: IBAGUE | B242: BOLIVAR | C242: No oficial Urbana | D242: 42 | E242: 55 | F242: 60 | G242: 72 | H242: 76 | I242: 88 | J242: 98 | K242: 94 | L242: 100 | M242: 101
A243: IPIALES | B243: BOLIVAR | C243: No oficial Rural | D243: 1 | E243: 2 | F243: 1 | G243: 2 | H243: 3 | I243: 3 | J243: 3 | K243: 3 | L243: 4 | M243: 6
A244: ITAGUI | B244: BOYACA | C244: Oficial Urbana | D244: 267 | E244: 267 | F244: 267 | G244: 270 | H244: 267 | I244: 269 | J244: 269 | K244: 268 | L244: 270 | M244: 270
A245: JAMUNDÍ | B245: BOYACA | C245: Oficial Rural | D245: 1,859 | E245: 1841 | F245: 1822 | G245: 1791 | H245: 1784 | I245: 1758 | J245: 1744 | K245: 1,736 | L245: 1,722 | M245: 1713
A246: LA ESTRELLA | B246: BOYACA | C246: No oficial Urbana | D246: 86 | E246: 86 | F246: 86 | G246: 92 | H246: 91 | I246: 91 | J246: 92 | K246: 85 | L246: 82 | M246: 81
A247: LA GUAJIRA | B247: BOYACA | C247: No oficial Rural | D247: 10 | E247: 11 | F247: 11 | G247: 15 | H247: 18 | I247: 19 | J247: 19 | K247: 19 | L247: 19 | M247: 19
A248: LORICA | B248: BUCARAMANGA | C248: Oficial Urbana | D248: 106 | E248: 105 | F248: 104 | G248: 104 | H248: 105 | I248: 104 | J248: 104 | K248: 102 | L248: 100 | M248: 101
A249: MAGANGUE | B249: BUCARAMANGA | C249: Oficial Rural | D249: 19 | E249: 19 | F249: 18 | G249: 19 | H249: 19 | I249: 19 | J249: 19 | K249: 20 | L249: 20 | M249: 20
A250: MAGDALENA | B250: BUCARAMANGA | C250: No oficial Urbana | D250: 163 | E250: 168 | F250: 168 | G250: 175 | H250: 177 | I250: 169 | J250: 160 | K250: 154 | L250: 145 | M250: 142
A251: MAICAO | B251: BUCARAMANGA | C251: No oficial Rural | D251: 2 | E251: 0 | F251: 0 | G251: 0 | H251: 0 | I251: 0 | J251: 0 | K251: 0 | L251: 0 | M251: 0
A252: MALAMBO | B252: BUENAVENTURA | C252: Oficial Urbana | D252: 68 | E252: 66 | F252: 67 | G252: 67 | H252: 63 | I252: 62 | J252: 62 | K252: 63 | L252: 63 | M252: 61
A253: MANIZALES | B253: BUENAVENTURA | C253: Oficial Rural | D253: 152 | E253: 154 | F253: 149 | G253: 146 | H253: 148 | I253: 146 | J253: 144 | K253: 145 | L253: 151 | M253: 139
A254: MEDELLIN | B254: BUENAVENTURA | C254: No oficial Urbana | D254: 406 | E254: 404 | F254: 220 | G254: 221 | H254: 217 | I254: 125 | J254: 123 | K254: 124 | L254: 109 | M254: 109
A255: META | B255: BUENAVENTURA | C255: No oficial Rural | D255: 0 | E255: 0 | F255: 0 | G255: 0 | H255: 0 | I255: 0 | J255: 0 | K255: 0 | L255: 0 | M255: 0
A256: MONTERIA | B256: BUGA | C256: Oficial Urbana | D256: 31 | E256: 28 | F256: 28 | G256: 28 | H256: 29 | I256: 29 | J256: 28 | K256: 28 | L256: 28 | M256: 29
A257: MOSQUERA | B257: BUGA | C257: Oficial Rural | D257: 35 | E257: 35 | F257: 35 | G257: 33 | H257: 33 | I257: 34 | J257: 34 | K257: 34 | L257: 33 | M257: 31
A258: NARIÑO | B258: BUGA | C258: No oficial Urbana | D258: 51 | E258: 55 | F258: 52 | G258: 53 | H258: 53 | I258: 53 | J258: 53 | K258: 52 | L258: 52 | M258: 53
A259: NEIVA | B259: BUGA | C259: No oficial Rural | D259: 0 | E259: 0 | F259: 0 | G259: 0 | H259: 0 | I259: 0 | J259: 0 | K259: 0 | L259: 0 | M259: 0
A260: NORTE SANTANDER | B260: CALDAS | C260: Oficial Urbana | D260: 146 | E260: 145 | F260: 145 | G260: 141 | H260: 140 | I260: 138 | J260: 138 | K260: 139 | L260: 140 | M260: 139
A261: PALMIRA | B261: CALDAS | C261: Oficial Rural | D261: 916 | E261: 918 | F261: 907 | G261: 895 | H261: 895 | I261: 884 | J261: 875 | K261: 872 | L261: 871 | M261: 857
A262: PASTO | B262: CALDAS | C262: No oficial Urbana | D262: 41 | E262: 42 | F262: 45 | G262: 42 | H262: 44 | I262: 42 | J262: 46 | K262: 45 | L262: 40 | M262: 41
A263: PEREIRA | B263: CALDAS | C263: No oficial Rural | D263: 4 | E263: 4 | F263: 4 | G263: 4 | H263: 4 | I263: 4 | J263: 4 | K263: 4 | L263: 4 | M263: 5
A264: PIEDECUESTA | B264: CALI | C264: Oficial Urbana | D264: 290 | E264: 294 | F264: 290 | G264: 299 | H264: 304 | I264: 304 | J264: 306 | K264: 307 | L264: 307 | M264: 301
A265: PITALITO | B265: CALI | C265: Oficial Rural | D265: 46 | E265: 46 | F265: 46 | G265: 46 | H265: 46 | I265: 46 | J265: 46 | K265: 46 | L265: 47 | M265: 51
A266: POPAYAN | B266: CALI | C266: No oficial Urbana | D266: 729 | E266: 705 | F266: 687 | G266: 680 | H266: 669 | I266: 651 | J266: 623 | K266: 617 | L266: 592 | M266: 579
A267: PUTUMAYO | B267: CALI | C267: No oficial Rural | D267: 15 | E267: 15 | F267: 12 | G267: 12 | H267: 13 | I267: 14 | J267: 12 | K267: 13 | L267: 13 | M267: 17
A268: QUIBDÓ | B268: CAQUETA | C268: Oficial Urbana | D268: 69 | E268: 64 | F268: 63 | G268: 63 | H268: 63 | I268: 63 | J268: 63 | K268: 63 | L268: 63 | M268: 59
A269: QUINDIO | B269: CAQUETA | C269: Oficial Rural | D269: 1,170 | E269: 1156 | F269: 1148 | G269: 1147 | H269: 1137 | I269: 1130 | J269: 1124 | K269: 1,126 | L269: 1,113 | M269: 1119
A270: RIOHACHA | B270: CAQUETA | C270: No oficial Urbana | D270: 7 | E270: 5 | F270: 6 | G270: 5 | H270: 4 | I270: 4 | J270: 4 | K270: 4 | L270: 5 | M270: 4
A271: RIONEGRO | B271: CAQUETA | C271: No oficial Rural | D271: 1 | E271: 0 | F271: 0 | G271: 0 | H271: 0 | I271: 0 | J271: 0 | K271: 0 | L271: 0 | M271: 0
A272: RISARALDA | B272: CARTAGENA | C272: Oficial Urbana | D272: 152 | E272: 152 | F272: 153 | G272: 155 | H272: 164 | I272: 165 | J272: 166 | K272: 166 | L272: 167 | M272: 167
A273: SABANETA | B273: CARTAGENA | C273: Oficial Rural | D273: 32 | E273: 32 | F273: 35 | G273: 35 | H273: 36 | I273: 36 | J273: 36 | K273: 37 | L273: 37 | M273: 37
A274: SAHAGUN | B274: CARTAGENA | C274: No oficial Urbana | D274: 276 | E274: 275 | F274: 268 | G274: 263 | H274: 252 | I274: 255 | J274: 261 | K274: 263 | L274: 255 | M274: 264
A275: SAN ANDRES | B275: CARTAGENA | C275: No oficial Rural | D275: 6 | E275: 6 | F275: 6 | G275: 6 | H275: 7 | I275: 7 | J275: 7 | K275: 8 | L275: 8 | M275: 9
A276: SANTA MARTA | B276: CARTAGO | C276: Oficial Urbana | D276: 31 | E276: 31 | F276: 31 | G276: 31 | H276: 30 | I276: 30 | J276: 30 | K276: 30 | L276: 30 | M276: 30
A277: SANTANDER | B277: CARTAGO | C277: Oficial Rural | D277: 12 | E277: 12 | F277: 12 | G277: 12 | H277: 12 | I277: 12 | J277: 12 | K277: 12 | L277: 12 | M277: 12
A278: SINCELEJO | B278: CARTAGO | C278: No oficial Urbana | D278: 30 | E278: 30 | F278: 29 | G278: 27 | H278: 27 | I278: 27 | J278: 26 | K278: 22 | L278: 24 | M278: 24
A279: SOACHA | B279: CARTAGO | C279: No oficial Rural | D279: 0 | E279: 0 | F279: 0 | G279: 0 | H279: 1 | I279: 1 | J279: 1 | K279: 1 | L279: 1 | M279: 1
A280: SOGAMOSO | B280: CASANARE | C280: Oficial Urbana | D280: 62 | E280: 60 | F280: 60 | G280: 61 | H280: 61 | I280: 61 | J280: 61 | K280: 61 | L280: 62 | M280: 62
A281: SOLEDAD | B281: CASANARE | C281: Oficial Rural | D281: 461 | E281: 462 | F281: 458 | G281: 457 | H281: 450 | I281: 440 | J281: 438 | K281: 437 | L281: 436 | M281: 434
A282: SUCRE | B282: CASANARE | C282: No oficial Urbana | D282: 18 | E282: 19 | F282: 19 | G282: 19 | H282: 19 | I282: 17 | J282: 17 | K282: 13 | L282: 13 | M282: 16
A283: TOLIMA | B283: CASANARE | C283: No oficial Rural | D283: 1 | E283: 1 | F283: 1 | G283: 2 | H283: 2 | I283: 2 | J283: 2 | K283: 1 | L283: 1 | M283: 1
A284: TULUA | B284: CAUCA | C284: Oficial Urbana | D284: 211 | E284: 195 | F284: 192 | G284: 185 | H284: 184 | I284: 184 | J284: 184 | K284: 184 | L284: 184 | M284: 185
A285: TUMACO | B285: CAUCA | C285: Oficial Rural | D285: 2,218 | E285: 2223 | F285: 2207 | G285: 2205 | H285: 2200 | I285: 2208 | J285: 2205 | K285: 2,203 | L285: 2,201 | M285: 2191
A286: TUNJA | B286: CAUCA | C286: No oficial Urbana | D286: 51 | E286: 58 | F286: 59 | G286: 60 | H286: 58 | I286: 56 | J286: 57 | K286: 59 | L286: 57 | M286: 55
A287: TURBO | B287: CAUCA | C287: No oficial Rural | D287: 8 | E287: 5 | F287: 5 | G287: 6 | H287: 7 | I287: 7 | J287: 6 | K287: 6 | L287: 6 | M287: 6
A288: URIBIA | B288: CESAR | C288: Oficial Urbana | D288: 181 | E288: 180 | F288: 180 | G288: 179 | H288: 178 | I288: 179 | J288: 180 | K288: 182 | L288: 182 | M288: 181
A289: VALLE | B289: CESAR | C289: Oficial Rural | D289: 885 | E289: 856 | F289: 854 | G289: 862 | H289: 856 | I289: 853 | J289: 845 | K289: 851 | L289: 851 | M289: 850
A290: VALLEDUPAR | B290: CESAR | C290: No oficial Urbana | D290: 72 | E290: 73 | F290: 72 | G290: 76 | H290: 83 | I290: 92 | J290: 95 | K290: 92 | L290: 93 | M290: 98
A291: VAUPES | B291: CESAR | C291: No oficial Rural | D291: 2 | E291: 2 | F291: 2 | G291: 2 | H291: 3 | I291: 3 | J291: 4 | K291: 4 | L291: 4 | M291: 4
A292: VICHADA | B292: CHÍA | C292: Oficial Urbana | D292: 8 | E292: 8 | F292: 8 | G292: 8 | H292: 8 | I292: 7 | J292: 7 | K292: 7 | L292: 7 | M292: 6
A293: VILLAVICENCIO | B293: CHÍA | C293: Oficial Rural | D293: 13 | E293: 13 | F293: 13 | G293: 13 | H293: 13 | I293: 13 | J293: 13 | K293: 13 | L293: 13 | M293: 13
A294: YOPAL | B294: CHÍA | C294: No oficial Urbana | D294: 39 | E294: 40 | F294: 41 | G294: 43 | H294: 42 | I294: 44 | J294: 44 | K294: 45 | L294: 43 | M294: 44
A295: YUMBO | B295: CHÍA | C295: No oficial Rural | D295: 31 | E295: 37 | F295: 35 | G295: 36 | H295: 34 | I295: 36 | J295: 37 | K295: 39 | L295: 38 | M295: 39
A296: ZIPAQUIRA | B296: CHOCO | C296: Oficial Urbana | D296: 117 | E296: 105 | F296: 105 | G296: 103 | H296: 100 | I296: 89 | J296: 88 | K296: 88 | L296: 88 | M296: 88
A297: COLOMBIA | B297: CHOCO | C297: Oficial Rural | D297: 946 | E297: 965 | F297: 973 | G297: 986 | H297: 987 | I297: 1002 | J297: 1002 | K297: 1,014 | L297: 1,016 | M297: 1019
B298: CHOCO | C298: No oficial Urbana | D298: 2 | E298: 4 | F298: 5 | G298: 5 | H298: 4 | I298: 3 | J298: 3 | K298: 3 | L298: 4 | M298: 4
B299: CHOCO | C299: No oficial Rural | D299: 0 | E299: 0 | F299: 0 | G299: 0 | H299: 0 | I299: 0 | J299: 0 | K299: 0 | L299: 0 | M299: 0
B300: CIENAGA | C300: Oficial Urbana | D300: 32 | E300: 29 | F300: 27 | G300: 27 | H300: 27 | I300: 27 | J300: 27 | K300: 27 | L300: 27 | M300: 27
B301: CIENAGA | C301: Oficial Rural | D301: 67 | E301: 79 | F301: 91 | G301: 92 | H301: 92 | I301: 91 | J301: 91 | K301: 91 | L301: 89 | M301: 85
B302: CIENAGA | C302: No oficial Urbana | D302: 34 | E302: 35 | F302: 37 | G302: 37 | H302: 49 | I302: 48 | J302: 49 | K302: 50 | L302: 49 | M302: 48
B303: CIENAGA | C303: No oficial Rural | D303: 0 | E303: 0 | F303: 0 | G303: 0 | H303: 1 | I303: 1 | J303: 0 | K303: 0 | L303: 1 | M303: 1
B304: CORDOBA | C304: Oficial Urbana | D304: 156 | E304: 155 | F304: 153 | G304: 153 | H304: 156 | I304: 157 | J304: 155 | K304: 155 | L304: 153 | M304: 156
B305: CORDOBA | C305: Oficial Rural | D305: 1,134 | E305: 1196 | F305: 1147 | G305: 1174 | H305: 1219 | I305: 1229 | J305: 1240 | K305: 1,237 | L305: 1,228 | M305: 1223
B306: CORDOBA | C306: No oficial Urbana | D306: 69 | E306: 73 | F306: 78 | G306: 81 | H306: 83 | I306: 85 | J306: 85 | K306: 85 | L306: 83 | M306: 82
B307: CORDOBA | C307: No oficial Rural | D307: 15 | E307: 14 | F307: 17 | G307: 15 | H307: 16 | I307: 16 | J307: 16 | K307: 15 | L307: 15 | M307: 15
B308: CUCUTA | C308: Oficial Urbana | D308: 159 | E308: 158 | F308: 158 | G308: 155 | H308: 156 | I308: 156 | J308: 156 | K308: 156 | L308: 157 | M308: 158
B309: CUCUTA | C309: Oficial Rural | D309: 60 | E309: 63 | F309: 62 | G309: 63 | H309: 63 | I309: 63 | J309: 63 | K309: 62 | L309: 62 | M309: 62
B310: CUCUTA | C310: No oficial Urbana | D310: 199 | E310: 191 | F310: 200 | G310: 206 | H310: 207 | I310: 207 | J310: 211 | K310: 207 | L310: 194 | M310: 193
B311: CUCUTA | C311: No oficial Rural | D311: 3 | E311: 3 | F311: 3 | G311: 3 | H311: 3 | I311: 3 | J311: 2 | K311: 2 | L311: 2 | M311: 2
B312: CUNDINAMARCA | C312: Oficial Urbana | D312: 409 | E312: 423 | F312: 426 | G312: 426 | H312: 396 | I312: 373 | J312: 372 | K312: 371 | L312: 361 | M312: 355
B313: CUNDINAMARCA | C313: Oficial Rural | D313: 2,133 | E313: 2127 | F313: 2123 | G313: 2111 | H313: 2136 | I313: 2123 | J313: 2103 | K313: 2,100 | L313: 2,074 | M313: 2049
B314: CUNDINAMARCA | C314: No oficial Urbana | D314: 212 | E314: 255 | F314: 265 | G314: 266 | H314: 269 | I314: 235 | J314: 239 | K314: 230 | L314: 232 | M314: 238
B315: CUNDINAMARCA | C315: No oficial Rural | D315: 82 | E315: 87 | F315: 83 | G315: 87 | H315: 90 | I315: 95 | J315: 93 | K315: 95 | L315: 98 | M315: 98
B316: DOSQUEBRADAS | C316: Oficial Urbana | D316: 47 | E316: 47 | F316: 47 | G316: 46 | H316: 46 | I316: 46 | J316: 46 | K316: 46 | L316: 46 | M316: 45
B317: DOSQUEBRADAS | C317: Oficial Rural | D317: 26 | E317: 26 | F317: 26 | G317: 27 | H317: 27 | I317: 27 | J317: 27 | K317: 27 | L317: 27 | M317: 27
B318: DOSQUEBRADAS | C318: No oficial Urbana | D318: 55 | E318: 58 | F318: 58 | G318: 63 | H318: 72 | I318: 71 | J318: 71 | K318: 65 | L318: 66 | M318: 64
B319: DOSQUEBRADAS | C319: No oficial Rural | D319: 1 | E319: 1 | F319: 1 | G319: 1 | H319: 1 | I319: 1 | J319: 1 | K319: 1 | L319: 1 | M319: 1
B320: DUITAMA | C320: Oficial Urbana | D320: 18 | E320: 18 | F320: 18 | G320: 17 | H320: 17 | I320: 17 | J320: 17 | K320: 17 | L320: 17 | M320: 17
B321: DUITAMA | C321: Oficial Rural | D321: 16 | E321: 15 | F321: 14 | G321: 13 | H321: 12 | I321: 12 | J321: 12 | K321: 12 | L321: 12 | M321: 12
B322: DUITAMA | C322: No oficial Urbana | D322: 49 | E322: 48 | F322: 49 | G322: 51 | H322: 51 | I322: 51 | J322: 49 | K322: 46 | L322: 46 | M322: 46
B323: DUITAMA | C323: No oficial Rural | D323: 0 | E323: 1 | F323: 1 | G323: 1 | H323: 1 | I323: 1 | J323: 1 | K323: 1 | L323: 1 | M323: 1
B324: ENVIGADO | C324: Oficial Urbana | D324: 19 | E324: 19 | F324: 19 | G324: 18 | H324: 18 | I324: 18 | J324: 18 | K324: 18 | L324: 18 | M324: 18
B325: ENVIGADO | C325: Oficial Rural | D325: 5 | E325: 5 | F325: 5 | G325: 5 | H325: 5 | I325: 5 | J325: 5 | K325: 5 | L325: 5 | M325: 5
B326: ENVIGADO | C326: No oficial Urbana | D326: 53 | E326: 55 | F326: 56 | G326: 57 | H326: 60 | I326: 59 | J326: 59 | K326: 55 | L326: 55 | M326: 55
B327: ENVIGADO | C327: No oficial Rural | D327: 1 | E327: 2 | F327: 2 | G327: 2 | H327: 3 | I327: 3 | J327: 3 | K327: 2 | L327: 2 | M327: 2
B328: FACATATIVA | C328: Oficial Urbana | D328: 21 | E328: 21 | F328: 21 | G328: 21 | H328: 21 | I328: 19 | J328: 19 | K328: 17 | L328: 17 | M328: 16
B329: FACATATIVA | C329: Oficial Rural | D329: 7 | E329: 7 | F329: 7 | G329: 7 | H329: 7 | I329: 7 | J329: 7 | K329: 9 | L329: 9 | M329: 9
B330: FACATATIVA | C330: No oficial Urbana | D330: 50 | E330: 53 | F330: 57 | G330: 59 | H330: 62 | I330: 65 | J330: 64 | K330: 60 | L330: 59 | M330: 52
B331: FACATATIVA | C331: No oficial Rural | D331: 3 | E331: 3 | F331: 4 | G331: 4 | H331: 4 | I331: 4 | J331: 4 | K331: 4 | L331: 4 | M331: 4
B332: FLORENCIA | C332: Oficial Urbana | D332: 43 | E332: 43 | F332: 44 | G332: 45 | H332: 46 | I332: 46 | J332: 46 | K332: 44 | L332: 44 | M332: 43
B333: FLORENCIA | C333: Oficial Rural | D333: 113 | E333: 113 | F333: 114 | G333: 109 | H333: 107 | I333: 103 | J333: 90 | K333: 99 | L333: 99 | M333: 82
B334: FLORENCIA | C334: No oficial Urbana | D334: 29 | E334: 32 | F334: 35 | G334: 41 | H334: 40 | I334: 41 | J334: 41 | K334: 43 | L334: 41 | M334: 41
B335: FLORENCIA | C335: No oficial Rural | D335: 1 | E335: 0 | F335: 0 | G335: 0 | H335: 1 | I335: 1 | J335: 1 | K335: 1 | L335: 1 | M335: 1
B336: FLORIDABLANCA | C336: Oficial Urbana | D336: 42 | E336: 42 | F336: 42 | G336: 42 | H336: 42 | I336: 41 | J336: 40 | K336: 40 | L336: 40 | M336: 40
B337: FLORIDABLANCA | C337: Oficial Rural | D337: 19 | E337: 19 | F337: 19 | G337: 19 | H337: 19 | I337: 16 | J337: 16 | K337: 16 | L337: 16 | M337: 16
B338: FLORIDABLANCA | C338: No oficial Urbana | D338: 98 | E338: 102 | F338: 108 | G338: 98 | H338: 96 | I338: 98 | J338: 90 | K338: 90 | L338: 90 | M338: 87
B339: FLORIDABLANCA | C339: No oficial Rural | D339: 4 | E339: 3 | F339: 3 | G339: 3 | H339: 4 | I339: 6 | J339: 6 | K339: 7 | L339: 7 | M339: 7
B340: FUNZA | C340: Oficial Urbana | D340: 15 | I340: 15 | J340: 15 | K340: 15 | L340: 15 | M340: 15
B341: FUNZA | C341: Oficial Rural | D341: 3 | I341: 3 | J341: 3 | K341: 3 | L341: 3 | M341: 3
B342: FUNZA | C342: No oficial Urbana | D342: 31 | I342: 39 | J342: 40 | K342: 41 | L342: 44 | M342: 43
B343: FUNZA | C343: No oficial Rural | D343: 0 | I343: 1 | J343: 1 | K343: 1 | L343: 1 | M343: 1
B344: FUSAGASUGA | C344: Oficial Urbana | D344: 25 | E344: 25 | F344: 25 | G344: 25 | H344: 25 | I344: 24 | J344: 24 | K344: 24 | L344: 24 | M344: 24
B345: FUSAGASUGA | C345: Oficial Rural | D345: 34 | E345: 34 | F345: 34 | G345: 34 | H345: 34 | I345: 34 | J345: 34 | K345: 34 | L345: 34 | M345: 34
B346: FUSAGASUGA | C346: No oficial Urbana | D346: 42 | E346: 42 | F346: 44 | G346: 43 | H346: 43 | I346: 45 | J346: 46 | K346: 45 | L346: 43 | M346: 45
B347: FUSAGASUGA | C347: No oficial Rural | D347: 1 | E347: 2 | F347: 2 | G347: 2 | H347: 2 | I347: 2 | J347: 2 | K347: 3 | L347: 3 | M347: 3
B348: GIRARDOT | C348: Oficial Urbana | D348: 29 | E348: 29 | F348: 29 | G348: 29 | H348: 29 | I348: 29 | J348: 29 | K348: 28 | L348: 28 | M348: 27
B349: GIRARDOT | C349: Oficial Rural | D349: 5 | E349: 5 | F349: 5 | G349: 5 | H349: 5 | I349: 5 | J349: 5 | K349: 5 | L349: 5 | M349: 5
B350: GIRARDOT | C350: No oficial Urbana | D350: 43 | E350: 47 | F350: 49 | G350: 51 | H350: 53 | I350: 51 | J350: 64 | K350: 62 | L350: 61 | M350: 58
B351: GIRARDOT | C351: No oficial Rural | D351: 0 | E351: 0 | F351: 0 | G351: 0 | H351: 0 | I351: 0 | J351: 0 | K351: 0 | L351: 0 | M351: 0
B352: GIRON | C352: Oficial Urbana | D352: 26 | E352: 28 | F352: 27 | G352: 27 | H352: 27 | I352: 23 | J352: 24 | K352: 24 | L352: 24 | M352: 24
B353: GIRON | C353: Oficial Rural | D353: 36 | E353: 35 | F353: 35 | G353: 35 | H353: 35 | I353: 34 | J353: 34 | K353: 34 | L353: 34 | M353: 33
B354: GIRON | C354: No oficial Urbana | D354: 39 | E354: 38 | F354: 37 | G354: 38 | H354: 37 | I354: 35 | J354: 35 | K354: 29 | L354: 25 | M354: 24
B355: GIRON | C355: No oficial Rural | D355: 0 | E355: 0 | F355: 0 | G355: 0 | H355: 0 | I355: 0 | J355: 0 | K355: 0 | L355: 0 | M355: 0
B356: GUAINIA | C356: Oficial Urbana | D356: 7 | E356: 6 | F356: 6 | G356: 6 | H356: 6 | I356: 6 | J356: 6 | K356: 6 | L356: 6 | M356: 6
B357: GUAINIA | C357: Oficial Rural | D357: 84 | E357: 84 | F357: 84 | G357: 84 | H357: 82 | I357: 82 | J357: 84 | K357: 87 | L357: 88 | M357: 88
B358: GUAINIA | C358: No oficial Urbana | D358: 1 | E358: 1 | F358: 1 | G358: 1 | H358: 1 | I358: 2 | J358: 2 | K358: 2 | L358: 2 | M358: 2
B359: GUAINIA | C359: No oficial Rural | D359: 0 | E359: 0 | F359: 0 | G359: 0 | H359: 0 | I359: 0 | J359: 0 | K359: 0 | L359: 0 | M359: 0
B360: GUAVIARE | C360: Oficial Urbana | D360: 17 | E360: 17 | F360: 16 | G360: 16 | H360: 16 | I360: 16 | J360: 16 | K360: 16 | L360: 16 | M360: 16
B361: GUAVIARE | C361: Oficial Rural | D361: 232 | E361: 229 | F361: 227 | G361: 226 | H361: 223 | I361: 220 | J361: 218 | K361: 223 | L361: 219 | M361: 218
B362: GUAVIARE | C362: No oficial Urbana | D362: 10 | E362: 10 | F362: 13 | G362: 11 | H362: 11 | I362: 13 | J362: 13 | K362: 13 | L362: 12 | M362: 13
B363: GUAVIARE | C363: No oficial Rural | D363: 0 | E363: 0 | F363: 0 | G363: 0 | H363: 0 | I363: 0 | J363: 0 | K363: 0 | L363: 0 | M363: 0
B364: HUILA | C364: Oficial Urbana | D364: 168 | E364: 169 | F364: 167 | G364: 163 | H364: 154 | I364: 149 | J364: 149 | K364: 149 | L364: 149 | M364: 149
B365: HUILA | C365: Oficial Rural | D365: 1,283 | E365: 1292 | F365: 1285 | G365: 1287 | H365: 1295 | I365: 1298 | J365: 1300 | K365: 1,299 | L365: 1,299 | M365: 1300
B366: HUILA | C366: No oficial Urbana | D366: 52 | E366: 48 | F366: 47 | G366: 48 | H366: 48 | I366: 47 | J366: 46 | K366: 43 | L366: 40 | M366: 42
B367: HUILA | C367: No oficial Rural | D367: 1 | E367: 2 | F367: 2 | G367: 2 | H367: 2 | I367: 3 | J367: 4 | K367: 4 | L367: 4 | M367: 4
B368: IBAGUE | C368: Oficial Urbana | D368: 113 | E368: 113 | F368: 110 | G368: 115 | H368: 115 | I368: 115 | J368: 114 | K368: 112 | L368: 113 | M368: 112
B369: IBAGUE | C369: Oficial Rural | D369: 106 | E369: 106 | F369: 106 | G369: 107 | H369: 106 | I369: 106 | J369: 106 | K369: 105 | L369: 103 | M369: 103
B370: IBAGUE | C370: No oficial Urbana | D370: 178 | E370: 175 | F370: 173 | G370: 164 | H370: 165 | I370: 160 | J370: 161 | K370: 149 | L370: 145 | M370: 146
B371: IBAGUE | C371: No oficial Rural | D371: 0 | E371: 0 | F371: 0 | G371: 0 | H371: 0 | I371: 0 | J371: 0 | K371: 0 | L371: 0 | M371: 0
B372: IPIALES | C372: Oficial Urbana | D372: 16 | E372: 16 | F372: 16 | G372: 16 | H372: 15 | I372: 15 | J372: 15 | K372: 14 | L372: 14 | M372: 14
B373: IPIALES | C373: Oficial Rural | D373: 66 | E373: 67 | F373: 65 | G373: 66 | H373: 65 | I373: 67 | J373: 67 | K373: 68 | L373: 68 | M373: 68
B374: IPIALES | C374: No oficial Urbana | D374: 27 | E374: 31 | F374: 27 | G374: 33 | H374: 36 | I374: 34 | J374: 35 | K374: 37 | L374: 36 | M374: 39
B375: IPIALES | C375: No oficial Rural | D375: 0 | E375: 0 | F375: 0 | G375: 0 | H375: 0 | I375: 0 | J375: 0 | K375: 0 | L375: 0 | M375: 0
B376: ITAGUI | C376: Oficial Urbana | D376: 34 | E376: 34 | F376: 33 | G376: 33 | H376: 33 | I376: 33 | J376: 33 | K376: 33 | L376: 33 | M376: 33
B377: ITAGUI | C377: Oficial Rural | D377: 4 | E377: 4 | F377: 4 | G377: 4 | H377: 4 | I377: 4 | J377: 4 | K377: 4 | L377: 4 | M377: 4
B378: ITAGUI | C378: No oficial Urbana | D378: 49 | E378: 52 | F378: 47 | G378: 50 | H378: 50 | I378: 50 | J378: 51 | K378: 52 | L378: 51 | M378: 50
B379: ITAGUI | C379: No oficial Rural | D379: 0 | E379: 0 | F379: 0 | G379: 0 | H379: 0 | I379: 0 | J379: 0 | K379: 0 | L379: 0 | M379: 0
B380: JAMUNDÍ | C380: Oficial Urbana | D380: 13 | E380: 13 | F380: 13 | G380: 13 | H380: 13 | I380: 14 | J380: 14 | K380: 14 | L380: 14 | M380: 14
B381: JAMUNDÍ | C381: Oficial Rural | D381: 55 | E381: 55 | F381: 56 | G381: 56 | H381: 55 | I381: 54 | J381: 61 | K381: 62 | L381: 60 | M381: 60
B382: JAMUNDÍ | C382: No oficial Urbana | D382: 20 | E382: 28 | F382: 31 | G382: 33 | H382: 32 | I382: 34 | J382: 37 | K382: 40 | L382: 39 | M382: 37
B383: JAMUNDÍ | C383: No oficial Rural | D383: 0 | E383: 0 | F383: 1 | G383: 1 | H383: 1 | I383: 2 | J383: 2 | K383: 3 | L383: 3 | M383: 3
B384: LA ESTRELLA | C384: Oficial Urbana | M384: 9
B385: LA ESTRELLA | C385: Oficial Rural | M385: 0
B386: LA ESTRELLA | C386: No oficial Urbana | M386: 17
B387: LA ESTRELLA | C387: No oficial Rural | M387: 4
... 206 more rows

Sheet 3 POB DANE 2018
B1: PROYECCIÓN DE POBLACIÓN DANE 5 A 16 AÑOS | I1: Indice
B2: Censo 2018
B3: ENTIDAD
B4: AMAZONAS | C4: Año | D4: 5_años | E4: 6 a 10_años | F4: 11 A 14_años | G4: 15 A 16_ años | H4: 5 A16 años
C5: 2018 | D5: =+SUMIFS($D$200:$D$1753,$B$200:$B$1753,$B$4,$C$200:$C$1753,C5) -> 1,968 | E5: =+SUMIFS($E$200:$E$1753,$B$200:$B$1753,$B$4,$C$200:$C$1753,C5) -> 9,712 | F5: =+SUMIFS($F$200:$F$1753,$B$200:$B$1753,$B$4,$C$200:$C$1753,C5) -> 7,248 | G5: =+SUMIFS($G$200:$G$1753,$B$200:$B$1753,$B$4,$C$200:$C$1753,C5) -> 3,329 | H5: =SUM(D5:G5) -> 22,257
C6: 2019 | D6: 1,946 | E6: 9,703 | F6: 7,362 | G6: 3,424 | H6: 22,435
C7: 2020 | D7: 1,961 | E7: 9,840 | F7: 7,573 | G7: 3,544 | H7: =SUM(D7:G7) -> 22,918
C8: 2021 | D8: 1,945 | E8: 9,850 | F8: 7,699 | G8: 3,638 | H8: 23,132
C9: 2022 | D9: 1,913 | E9: 9,825 | F9: 7,783 | G9: 3,718 | H9: 23,239
C10: 2023 | D10: 1,880 | E10: 9,742 | F10: 7,839 | G10: 3,786 | H10: =SUM(D10:G10) -> 23,247
C11: 2024 | D11: =+SUMIFS($D$200:$D$1753,$B$200:$B$1753,$B$4,$C$200:$C$1753,C11) -> 1,887 | E11: =+SUMIFS($E$200:$E$1753,$B$200:$B$1753,$B$4,$C$200:$C$1753,C11) -> 9,628 | F11: =+SUMIFS($F$200:$F$1753,$B$200:$B$1753,$B$4,$C$200:$C$1753,C11) -> 7,860 | G11: =+SUMIFS($G$200:$G$1753,$B$200:$B$1753,$B$4,$C$200:$C$1753,C11) -> 3,842 | H11: 23,217
C12: 2025 | D12: 1,904 | E12: 9,531 | F12: 7,851 | G12: 3,878 | H12: =SUM(D12:G12) -> 23,164
C13: 2026 | D13: 1,877 | E13: 9,455 | F13: 7,826 | G13: 3,892 | H13: 23,050
C14: 2027 | D14: 1,839 | E14: 9,373 | F14: 7,775 | G14: 3,899 | H14: 22,886
C15: 2028 | D15: 1,834 | E15: 9,292 | F15: 7,688 | G15: 3,902 | H15: 22,716
C16: 2029 | D16: 1,827 | E16: 9,238 | F16: 7,583 | G16: 3,888 | H16: 22,536
C17: 2030 | D17: 1,815 | E17: 9,179 | F17: 7,490 | G17: 3,861 | H17: 22,345
C18: FUENTE: PROYECCIONES DE POBLACIÓN DANE CENSO 2018
C21: =+B4 -> AMAZONAS
A199: lista | B199: Entidad | C199: Año | D199: 5_años | E199: 6 a 10_años | F199: 11 A 14_años | G199: 15 A 16_ años
A200: AMAZONAS | B200: AMAZONAS | C200: 2018 | D200: 1,968 | E200: 9,712 | F200: 7,248 | G200: 3,329
A201: ANTIOQUIA | B201: ANTIOQUIA | C201: 2018 | D201: 40,847 | E201: 207,149 | F201: 169,410 | G201: 85,359
A202: APARTADO | B202: APARTADO | C202: 2018 | D202: 2,256 | E202: 11,535 | F202: 9,492 | G202: 4,781
A203: ARAUCA | B203: ARAUCA | C203: 2018 | D203: 5,170 | E203: 25,445 | F203: 20,211 | G203: 10,136
A204: ARMENIA | B204: ARMENIA | C204: 2018 | D204: 3,287 | E204: 16,828 | F204: 15,065 | G204: 8,443
A205: ATLANTICO | B205: ATLANTICO | C205: 2018 | D205: 10,800 | E205: 54,332 | F205: 43,795 | G205: 21,832
A206: BARRANCABERMEJA | B206: BARRANCABERMEJA | C206: 2018 | D206: 3,514 | E206: 17,321 | F206: 13,596 | G206: 6,754
A207: BARRANQUILLA | B207: BARRANQUILLA | C207: 2018 | D207: 18,791 | E207: 95,121 | F207: 78,599 | G207: 40,504
A208: BELLO | B208: BELLO | C208: 2018 | D208: 6,934 | E208: 35,161 | F208: 29,900 | G208: 16,176
A209: BOGOTA | B209: BOGOTA | C209: 2018 | D209: 94,070 | E209: 473,288 | F209: 398,405 | G209: 213,519
A210: BOLIVAR | B210: BOLIVAR | C210: 2018 | D210: 18,896 | E210: 94,517 | F210: 75,985 | G210: 37,909
A211: BOYACA | B211: BOYACA | C211: 2018 | D211: 12,896 | E211: 65,244 | F211: 52,628 | G211: 26,045
A212: BUCARAMANGA | B212: BUCARAMANGA | C212: 2018 | D212: 7,461 | E212: 37,835 | F212: 32,089 | G212: 17,270
A213: BUENAVENTURA | B213: BUENAVENTURA | C213: 2018 | D213: 7,399 | E213: 36,129 | F213: 27,364 | G213: 12,965
A214: BUGA | B214: BUGA | C214: 2018 | D214: 1,911 | E214: 9,751 | F214: 8,034 | G214: 4,068
A215: CALDAS | B215: CALDAS | C215: 2018 | D215: 8,043 | E215: 40,572 | F215: 33,652 | G215: 17,283
A216: CALI | B216: CALI | C216: 2018 | D216: 32,012 | E216: 161,567 | F216: 133,741 | G216: 69,630
A217: CAQUETA | B217: CAQUETA | C217: 2018 | D217: 5,297 | E217: 26,557 | F217: 20,589 | G217: 9,778
A218: CARTAGENA | B218: CARTAGENA | C218: 2018 | D218: 16,423 | E218: 81,231 | F218: 65,677 | G218: 33,996
A219: CARTAGO | B219: CARTAGO | C219: 2018 | D219: 1,877 | E219: 9,947 | F219: 8,616 | G219: 4,456
A220: CASANARE | B220: CASANARE | C220: 2018 | D220: 4,898 | E220: 24,250 | F220: 19,301 | G220: 9,606
A221: CAUCA | B221: CAUCA | C221: 2018 | D221: 19,818 | E221: 100,728 | F221: 84,527 | G221: 43,877
A222: CESAR | B222: CESAR | C222: 2018 | D222: 14,995 | E222: 74,804 | F222: 58,576 | G222: 28,309
A223: CHIA | B223: CHIA | C223: 2018 | D223: 1,642 | E223: 8,721 | F223: 7,986 | G223: 4,418
A224: CHOCO | B224: CHOCO | C224: 2018 | D224: 9,496 | E224: 47,621 | F224: 37,095 | G224: 17,419
A225: CIENAGA | B225: CIENAGA | C225: 2018 | D225: 2,348 | E225: 11,970 | F225: 9,669 | G225: 4,806
A226: CORDOBA | B226: CORDOBA | C226: 2018 | D226: 20,413 | E226: 101,442 | F226: 80,625 | G226: 39,875
A227: CUCUTA | B227: CUCUTA | C227: 2018 | D227: 11,266 | E227: 56,713 | F227: 46,566 | G227: 24,000
A228: CUNDINAMARCA | B228: CUNDINAMARCA | C228: 2018 | D228: 20,953 | E228: 105,742 | F228: 88,445 | G228: 45,941
A229: DOSQUEBRADAS | B229: DOSQUEBRADAS | C229: 2018 | D229: 2,698 | E229: 13,740 | F229: 11,852 | G229: 6,416
A230: DUITAMA | B230: DUITAMA | C230: 2018 | D230: 1,678 | E230: 8,879 | F230: 7,750 | G230: 4,087
A231: ENVIGADO | B231: ENVIGADO | C231: 2018 | D231: 2,124 | E231: 10,990 | F231: 9,664 | G231: 5,338
A232: FACATATIVA | B232: FACATATIVA | C232: 2018 | D232: 2,058 | E232: 10,554 | F232: 9,143 | G232: 4,943
A233: FLORENCIA | B233: FLORENCIA | C233: 2018 | D233: 2,983 | E233: 14,976 | F233: 12,210 | G233: 6,249
A234: FLORIDABLANCA | B234: FLORIDABLANCA | C234: 2018 | D234: 3,883 | E234: 19,714 | F234: 16,601 | G234: 8,809
A235: FUNZA | B235: FUNZA | C235: 2018 | D235: 1,346 | E235: 6,865 | F235: 5,850 | G235: 3,115
A236: FUSAGASUGA | B236: FUSAGASUGA | C236: 2018 | D236: 1,720 | E236: 9,134 | F236: 8,205 | G236: 4,431
A237: GIRARDOT | B237: GIRARDOT | C237: 2018 | D237: 1,336 | E237: 6,750 | F237: 5,693 | G237: 3,018
A238: GIRON | B238: GIRON | C238: 2018 | D238: 2,432 | E238: 12,193 | F238: 9,978 | G238: 5,166
A239: GUAINIA | B239: GUAINIA | C239: 2018 | D239: 1,362 | E239: 6,763 | F239: 5,198 | G239: 2,443
A240: GUAVIARE | B240: GUAVIARE | C240: 2018 | D240: 1,805 | E240: 8,885 | F240: 6,985 | G240: 3,443
A241: HUILA | B241: HUILA | C241: 2018 | D241: 12,008 | E241: 59,636 | F241: 47,329 | G241: 23,353
A242: IBAGUE | B242: IBAGUE | C242: 2018 | D242: 6,695 | E242: 35,681 | F242: 32,383 | G242: 18,034
A243: IPIALES | B243: IPIALES | C243: 2018 | D243: 1,775 | E243: 8,809 | F243: 7,301 | G243: 3,851
A244: ITAGUI | B244: ITAGUI | C244: 2018 | D244: 3,190 | E244: 16,124 | F244: 13,813 | G244: 7,577
A245: JAMUNDI | B245: JAMUNDI | C245: 2018 | D245: 2,483 | E245: 12,790 | F245: 10,626 | G245: 5,420
A246: LA ESTRELLA | B246: LA ESTRELLA | C246: 2018 | D246: 832 | E246: 4,266 | F246: 3,688 | G246: 2,010
A247: LA GUAJIRA | B247: LA GUAJIRA | C247: 2018 | D247: 8,548 | E247: 41,446 | F247: 30,723 | G247: 15,356
A248: LORICA | B248: LORICA | C248: 2018 | D248: 1,945 | E248: 9,699 | F248: 7,779 | G248: 3,898
A249: MAGANGUE | B249: MAGANGUE | C249: 2018 | D249: 2,520 | E249: 12,819 | F249: 10,527 | G249: 5,284
A250: MAGDALENA | B250: MAGDALENA | C250: 2018 | D250: 15,353 | E250: 77,190 | F250: 60,449 | G250: 28,973
A251: MAICAO | B251: MAICAO | C251: 2018 | D251: 4,265 | E251: 20,328 | F251: 14,681 | G251: 7,259
A252: MALAMBO | B252: MALAMBO | C252: 2018 | D252: 2,384 | E252: 12,102 | F252: 9,876 | G252: 4,953
A253: MANIZALES | B253: MANIZALES | C253: 2018 | D253: 4,622 | E253: 24,091 | F253: 21,812 | G253: 12,316
A254: MEDELLIN | B254: MEDELLIN | C254: 2018 | D254: 29,357 | E254: 151,190 | F254: 131,645 | G254: 72,166
A255: META | B255: META | C255: 2018 | D255: 9,608 | E255: 48,322 | F255: 38,801 | G255: 19,206
A256: MONTERIA | B256: MONTERIA | C256: 2018 | D256: 8,281 | E256: 41,032 | F256: 32,898 | G256: 16,795
A257: MOSQUERA | B257: MOSQUERA | C257: 2018 | D257: 1,990 | E257: 10,042 | F257: 8,440 | G257: 4,475
A258: NARIÑO | B258: NARIÑO | C258: 2018 | D258: 13,507 | E258: 68,214 | F258: 57,557 | G258: 30,212
A259: NEIVA | B259: NEIVA | C259: 2018 | D259: 6,190 | E259: 30,169 | F259: 23,603 | G259: 11,879
A260: NORTE_DE_SANTANDER | B260: NORTE_DE_SANTANDER | C260: 2018 | D260: 14,098 | E260: 70,176 | F260: 56,352 | G260: 28,355
A261: PALMIRA | B261: PALMIRA | C261: 2018 | D261: 5,209 | E261: 26,223 | F261: 21,435 | G261: 10,966
A262: PASTO | B262: PASTO | C262: 2018 | D262: 4,807 | E262: 24,392 | F262: 21,252 | G262: 11,755
A263: PEREIRA | B263: PEREIRA | C263: 2018 | D263: 5,636 | E263: 28,711 | F263: 24,962 | G263: 13,641
A264: PIEDECUESTA | B264: PIEDECUESTA | C264: 2018 | D264: 2,562 | E264: 12,923 | F264: 10,643 | G264: 5,497
A265: PITALITO | B265: PITALITO | C265: 2018 | D265: 2,322 | E265: 11,611 | F265: 9,387 | G265: 4,751
A266: POPAYAN | B266: POPAYAN | C266: 2018 | D266: 4,074 | E266: 20,882 | F266: 18,050 | G266: 9,758
A267: PUTUMAYO | B267: PUTUMAYO | C267: 2018 | D267: 6,566 | E267: 33,224 | F267: 27,293 | G267: 13,889
A268: QUIBDO | B268: QUIBDO | C268: 2018 | D268: 2,847 | E268: 13,864 | F268: 10,551 | G268: 5,082
A269: QUINDIO | B269: QUINDIO | C269: 2018 | D269: 3,024 | E269: 15,491 | F269: 13,736 | G269: 7,509
A270: RIOHACHA | B270: RIOHACHA | C270: 2018 | D270: 4,618 | E270: 21,860 | F270: 15,600 | G270: 7,668
A271: RIONEGRO | B271: RIONEGRO | C271: 2018 | D271: 1,632 | E271: 8,344 | F271: 7,245 | G271: 3,974
A272: RISARALDA | B272: RISARALDA | C272: 2018 | D272: 4,025 | E272: 20,319 | F272: 16,867 | G272: 8,610
A273: SABANETA | B273: SABANETA | C273: 2018 | D273: 925 | E273: 4,327 | F273: 3,347 | G273: 1,807
A274: SAHAGUN | B274: SAHAGUN | C274: 2018 | D274: 1,747 | E274: 8,857 | F274: 7,269 | G274: 3,684
A275: SAN_ANDRES | B275: SAN_ANDRES | C275: 2018 | D275: 923 | E275: 4,516 | F275: 3,589 | G275: 1,825
A276: SANTA_MARTA | B276: SANTA_MARTA | C276: 2018 | D276: 8,640 | E276: 44,114 | F276: 35,983 | G276: 18,157
A277: SANTANDER | B277: SANTANDER | C277: 2018 | D277: 12,237 | E277: 63,549 | F277: 52,935 | G277: 26,501
A278: SINCELEJO | B278: SINCELEJO | C278: 2018 | D278: 4,731 | E278: 23,994 | F278: 19,823 | G278: 10,236
A279: SOACHA | B279: SOACHA | C279: 2018 | D279: 10,407 | E279: 52,720 | F279: 44,353 | G279: 23,395
A280: SOGAMOSO | B280: SOGAMOSO | C280: 2018 | D280: 1,772 | E280: 9,167 | F280: 7,803 | G280: 4,096
A281: SOLEDAD | B281: SOLEDAD | C281: 2018 | D281: 10,657 | E281: 53,226 | F281: 42,906 | G281: 21,752
A282: SUCRE | B282: SUCRE | C282: 2018 | D282: 11,544 | E282: 58,741 | F282: 48,153 | G282: 24,221
A283: TOLIMA | B283: TOLIMA | C283: 2018 | D283: 12,728 | E283: 66,188 | F283: 55,530 | G283: 28,257
A284: TULUA | B284: TULUA | C284: 2018 | D284: 3,222 | E284: 16,880 | F284: 14,359 | G284: 7,335
A285: TUMACO | B285: TUMACO | C285: 2018 | D285: 5,077 | E285: 25,215 | F285: 20,481 | G285: 10,374
A286: TUNJA | B286: TUNJA | C286: 2018 | D286: 2,431 | E286: 12,631 | F286: 11,023 | G286: 5,986
A287: TURBO | B287: TURBO | C287: 2018 | D287: 2,869 | E287: 14,038 | F287: 10,848 | G287: 5,268
A288: URIBIA | B288: URIBIA | C288: 2018 | D288: 3,866 | E288: 19,120 | F288: 14,904 | G288: 7,749
A289: VALLE | B289: VALLE | C289: 2018 | D289: 13,651 | E289: 70,920 | F289: 59,190 | G289: 29,672
A290: VALLEDUPAR | B290: VALLEDUPAR | C290: 2018 | D290: 9,507 | E290: 47,013 | F290: 36,881 | G290: 18,326
A291: VAUPES | B291: VAUPES | C291: 2018 | D291: 1,310 | E291: 6,639 | F291: 5,105 | G291: 2,309
A292: VICHADA | B292: VICHADA | C292: 2018 | D292: 2,837 | E292: 14,152 | F292: 10,855 | G292: 5,107
A293: VILLAVICENCIO | B293: VILLAVICENCIO | C293: 2018 | D293: 8,157 | E293: 41,619 | F293: 34,809 | G293: 18,185
A294: YOPAL | B294: YOPAL | C294: 2018 | D294: 2,865 | E294: 14,268 | F294: 11,640 | G294: 6,031
A295: YUMBO | B295: YUMBO | C295: 2018 | D295: 1,694 | E295: 8,733 | F295: 7,303 | G295: 3,738
A296: ZIPAQUIRA | B296: ZIPAQUIRA | C296: 2018 | D296: 1,996 | E296: 9,784 | F296: 8,007 | G296: 4,257
A297: COLOMBIA | B297: COLOMBIA | C297: 2018 | D297: 763,872 | E297: 3,853,057 | F297: 3,170,415 | G297: 1,632,682
B298: AMAZONAS | C298: 2019 | D298: 1,946 | E298: 9,703 | F298: 7,362 | G298: 3,424
B299: ANTIOQUIA | C299: 2019 | D299: 41,282 | E299: 208,669 | F299: 169,483 | G299: 85,011
B300: APARTADO | C300: 2019 | D300: 2,305 | E300: 11,728 | F300: 9,569 | G300: 4,802
B301: ARAUCA | C301: 2019 | D301: 5,527 | E301: 26,917 | F301: 21,085 | G301: 10,566
B302: ARMENIA | C302: 2019 | D302: 3,372 | E302: 16,962 | F302: 14,780 | G302: 8,231
B303: ATLANTICO | C303: 2019 | D303: 11,257 | E303: 56,181 | F303: 44,835 | G303: 22,353
B304: BARRANCABERMEJA | C304: 2019 | D304: 3,579 | E304: 17,507 | F304: 13,594 | G304: 6,732
B305: BARRANQUILLA | C305: 2019 | D305: 19,218 | E305: 96,510 | F305: 78,998 | G305: 40,780
B306: BELLO | C306: 2019 | D306: 7,035 | E306: 35,443 | F306: 29,887 | G306: 16,130
B307: BOGOTA | C307: 2019 | D307: 95,822 | E307: 478,298 | F307: 396,340 | G307: 211,071
B308: BOLIVAR | C308: 2019 | D308: 19,360 | E308: 96,235 | F308: 76,675 | G308: 38,160
B309: BOYACA | C309: 2019 | D309: 12,916 | E309: 65,444 | F309: 52,660 | G309: 25,961
B310: BUCARAMANGA | C310: 2019 | D310: 7,629 | E310: 38,343 | F310: 32,125 | G310: 17,235
B311: BUENAVENTURA | C311: 2019 | D311: 7,397 | E311: 36,032 | F311: 27,198 | G311: 12,867
B312: BUGA | C312: 2019 | D312: 1,907 | E312: 9,692 | F312: 7,950 | G312: 4,018
B313: CALDAS | C313: 2019 | D313: 8,136 | E313: 40,783 | F313: 33,447 | G313: 17,103
B314: CALI | C314: 2019 | D314: 31,900 | E314: 160,307 | F314: 131,956 | G314: 68,590
B315: CAQUETA | C315: 2019 | D315: 5,253 | E315: 26,455 | F315: 20,717 | G315: 9,906
B316: CARTAGENA | C316: 2019 | D316: 16,840 | E316: 82,749 | F316: 66,235 | G316: 34,160
B317: CARTAGO | C317: 2019 | D317: 1,871 | E317: 9,868 | F317: 8,497 | G317: 4,385
B318: CASANARE | C318: 2019 | D318: 4,931 | E318: 24,344 | F318: 19,265 | G318: 9,564
B319: CAUCA | C319: 2019 | D319: 19,843 | E319: 100,320 | F319: 83,361 | G319: 43,183
B320: CESAR | C320: 2019 | D320: 15,430 | E320: 76,761 | F320: 60,004 | G320: 29,036
B321: CHIA | C321: 2019 | D321: 1,754 | E321: 9,239 | F321: 8,310 | G321: 4,568
B322: CHOCO | C322: 2019 | D322: 9,409 | E322: 47,411 | F322: 37,255 | G322: 17,698
B323: CIENAGA | C323: 2019 | D323: 2,343 | E323: 11,914 | F323: 9,645 | G323: 4,815
B324: CORDOBA | C324: 2019 | D324: 20,607 | E324: 102,187 | F324: 80,868 | G324: 39,898
B325: CUCUTA | C325: 2019 | D325: 11,881 | E325: 59,120 | F325: 47,797 | G325: 24,550
B326: CUNDINAMARCA | C326: 2019 | D326: 22,081 | E326: 110,426 | F326: 90,742 | G326: 46,789
B327: DOSQUEBRADAS | C327: 2019 | D327: 2,742 | E327: 13,790 | F327: 11,684 | G327: 6,294
B328: DUITAMA | C328: 2019 | D328: 1,698 | E328: 8,932 | F328: 7,741 | G328: 4,051
B329: ENVIGADO | C329: 2019 | D329: 2,157 | E329: 11,073 | F329: 9,646 | G329: 5,314
B330: FACATATIVA | C330: 2019 | D330: 2,187 | E330: 11,092 | F330: 9,422 | G330: 5,059
B331: FLORENCIA | C331: 2019 | D331: 2,976 | E331: 14,925 | F331: 12,198 | G331: 6,245
B332: FLORIDABLANCA | C332: 2019 | D332: 3,993 | E332: 20,096 | F332: 16,723 | G332: 8,845
B333: FUNZA | C333: 2019 | D333: 1,439 | E333: 7,246 | F333: 6,048 | G333: 3,200
B334: FUSAGASUGA | C334: 2019 | D334: 1,824 | E334: 9,575 | F334: 8,442 | G334: 4,527
B335: GIRARDOT | C335: 2019 | D335: 1,392 | E335: 6,962 | F335: 5,752 | G335: 3,029
B336: GIRON | C336: 2019 | D336: 2,527 | E336: 12,568 | F336: 10,173 | G336: 5,253
B337: GUAINIA | C337: 2019 | D337: 1,359 | E337: 6,744 | F337: 5,220 | G337: 2,485
B338: GUAVIARE | C338: 2019 | D338: 1,826 | E338: 8,965 | F338: 7,034 | G338: 3,476
B339: HUILA | C339: 2019 | D339: 12,062 | E339: 59,792 | F339: 47,297 | G339: 23,316
B340: IBAGUE | C340: 2019 | D340: 6,684 | E340: 35,379 | F340: 31,732 | G340: 17,523
B341: IPIALES | C341: 2019 | D341: 1,764 | E341: 8,711 | F341: 7,115 | G341: 3,721
B342: ITAGUI | C342: 2019 | D342: 3,217 | E342: 16,166 | F342: 13,741 | G342: 7,517
B343: JAMUNDI | C343: 2019 | D343: 2,528 | E343: 12,978 | F343: 10,744 | G343: 5,472
B344: LA ESTRELLA | C344: 2019 | D344: 850 | E344: 4,321 | F344: 3,697 | G344: 2,010
B345: LA GUAJIRA | C345: 2019 | D345: 8,794 | E345: 42,931 | F345: 31,565 | G345: 15,503
B346: LORICA | C346: 2019 | D346: 1,945 | E346: 9,686 | F346: 7,741 | G346: 3,871
B347: MAGANGUE | C347: 2019 | D347: 2,581 | E347: 13,054 | F347: 10,623 | G347: 5,316
B348: MAGDALENA | C348: 2019 | D348: 15,639 | E348: 78,474 | F348: 61,580 | G348: 29,666
B349: MAICAO | C349: 2019 | D349: 4,369 | E349: 20,964 | F349: 15,041 | G349: 7,321
B350: MALAMBO | C350: 2019 | D350: 2,490 | E350: 12,533 | F350: 10,132 | G350: 5,087
B351: MANIZALES | C351: 2019 | D351: 4,691 | E351: 24,151 | F351: 21,496 | G351: 12,085
B352: MEDELLIN | C352: 2019 | D352: 29,681 | E352: 151,627 | F352: 130,667 | G352: 71,411
B353: META | C353: 2019 | D353: 9,631 | E353: 48,343 | F353: 38,730 | G353: 19,128
B354: MONTERIA | C354: 2019 | D354: 8,331 | E354: 41,146 | F354: 32,844 | G354: 16,716
B355: MOSQUERA | C355: 2019 | D355: 2,163 | E355: 10,780 | F355: 8,871 | G355: 4,671
B356: NARIÑO | C356: 2019 | D356: 13,443 | E356: 67,518 | F356: 56,276 | G356: 29,433
B357: NEIVA | C357: 2019 | D357: 6,182 | E357: 30,064 | F357: 23,407 | G357: 11,757
B358: NORTE_DE_SANTANDER | C358: 2019 | D358: 14,815 | E358: 73,064 | F358: 57,953 | G358: 29,072
B359: PALMIRA | C359: 2019 | D359: 5,195 | E359: 26,079 | F359: 21,240 | G359: 10,849
B360: PASTO | C360: 2019 | D360: 4,779 | E360: 24,099 | F360: 20,679 | G360: 11,333
B361: PEREIRA | C361: 2019 | D361: 5,686 | E361: 28,707 | F361: 24,555 | G361: 13,361
B362: PIEDECUESTA | C362: 2019 | D362: 2,661 | E362: 13,330 | F362: 10,874 | G362: 5,601
B363: PITALITO | C363: 2019 | D363: 2,353 | E363: 11,734 | F363: 9,452 | G363: 4,778
B364: POPAYAN | C364: 2019 | D364: 4,093 | E364: 20,836 | F364: 17,799 | G364: 9,581
B365: PUTUMAYO | C365: 2019 | D365: 6,589 | E365: 33,237 | F365: 27,205 | G365: 13,859
B366: QUIBDO | C366: 2019 | D366: 2,828 | E366: 13,793 | F366: 10,514 | G366: 5,091
B367: QUINDIO | C367: 2019 | D367: 3,106 | E367: 15,718 | F367: 13,577 | G367: 7,384
B368: RIOHACHA | C368: 2019 | D368: 4,678 | E368: 22,280 | F368: 15,804 | G368: 7,656
B369: RIONEGRO | C369: 2019 | D369: 1,666 | E369: 8,488 | F369: 7,310 | G369: 3,994
B370: RISARALDA | C370: 2019 | D370: 4,032 | E370: 20,265 | F370: 16,600 | G370: 8,458
B371: SABANETA | C371: 2019 | D371: 946 | E371: 4,392 | F371: 3,368 | G371: 1,810
B372: SAHAGUN | C372: 2019 | D372: 1,759 | E372: 8,900 | F372: 7,277 | G372: 3,678
B373: SAN_ANDRES | C373: 2019 | D373: 945 | E373: 4,597 | F373: 3,627 | G373: 1,833
B374: SANTA_MARTA | C374: 2019 | D374: 8,863 | E374: 45,125 | F374: 36,834 | G374: 18,648
B375: SANTANDER | C375: 2019 | D375: 12,409 | E375: 64,203 | F375: 53,188 | G375: 26,610
B376: SINCELEJO | C376: 2019 | D376: 4,825 | E376: 24,341 | F376: 19,964 | G376: 10,279
B377: SOACHA | C377: 2019 | D377: 11,213 | E377: 56,104 | F377: 46,201 | G377: 24,193
B378: SOGAMOSO | C378: 2019 | D378: 1,787 | E378: 9,198 | F378: 7,770 | G378: 4,048
B379: SOLEDAD | C379: 2019 | D379: 11,182 | E379: 55,398 | F379: 44,243 | G379: 22,469
... 1189 more rows

Sheet 4 MAT SECTOR
B1: MATRICULA POR GRADOS SEGÚN SECTOR | I1: Indice | AG1: Indice
B2: =+'1 ESTAB'!B2 -> Corte OCTUBRE 2023 información preliminar
D3: MATRICULA TOTAL X GRADO
B4: ENTIDAD | D4: 2014 | G4: 2015 | J4: 2016 | M4: 2017 | P4: 2018 | S4: 2019 | V4: 2020 | Y4: =+'1 ESTAB'!K4 -> 2021 | AB4: =+'1 ESTAB'!L4 -> 2022 | AE4: =+'1 ESTAB'!M4 -> Oct. 2023
B5: AMAZONAS | C5: Grado | D5: Oficial | E5: Contratada | F5: Privada | G5: Oficial | H5: Contratada | I5: Privada | J5: Oficial | K5: Contratada | L5: Privada | M5: Oficial | N5: Contratada | O5: Privada | P5: Oficial | Q5: Contratada | R5: Privada | S5: Oficial | T5: Contratada | U5: Privada | V5: Oficial | W5: Contratada | X5: Privada | Y5: Oficial | Z5: Contratada | AA5: Privada | AB5: Oficial | AC5: Contratada | AD5: Privada | AE5: Oficial | AF5: Contratada | AG5: Privada
C6: Prejardín | D6: =+SUMIFS($D$200:$D$3135,$B$200:$B$3135,$B$5,$C$200:$C$3135,C6) -> 0 | E6: =+SUMIFS($E$200:$E$3135,$B$200:$B$3135,$B$5,$C$200:$C$3135,C6) -> 0 | F6: =+SUMIFS($F$200:$F$3135,$B$200:$B$3135,$B$5,$C$200:$C$3135,C6) -> 87 | G6: =+SUMIFS($G$200:$G$3135,$B$200:$B$3135,$B$5,$C$200:$C$3135,C6) -> 0 | H6: =+SUMIFS($H$200:$H$3135,$B$200:$B$3135,$B$5,$C$200:$C$3135,C6) -> 0 | I6: =+SUMIFS($I$200:$I$3135,$B$200:$B$3135,$B$5,$C$200:$C$3135,C6) -> 42 | J6: =+SUMIFS($J$200:$J$3135,$B$200:$B$3135,$B$5,$C$200:$C$3135,C6) -> 0 | K6: =+SUMIFS($K$200:$K$3135,$B$200:$B$3135,$B$5,$C$200:$C$3135,C6) -> 0 | L6: =+SUMIFS($L$200:$L$3135,$B$200:$B$3135,$B$5,$C$200:$C$3135,C6) -> 86 | M6: =+SUMIFS($M$200:$M$3135,$B$200:$B$3135,$B$5,$C$200:$C$3135,C6) -> 0 | N6: =+SUMIFS($N$200:$N$3135,$B$200:$B$3135,$B$5,$C$200:$C$3135,C6) -> 0 | O6: =+SUMIFS($O$200:$O$3135,$B$200:$B$3135,$B$5,$C$200:$C$3135,C6) -> 101 | P6: =+SUMIFS($P$200:$P$3135,$B$200:$B$3135,$B$5,$C$200:$C$3135,C6) -> 0 | Q6: =+SUMIFS($Q$200:$Q$3135,$B$200:$B$3135,$B$5,$C$200:$C$3135,C6) -> 0 | R6: =+SUMIFS($R$200:$R$3135,$B$200:$B$3135,$B$5,$C$200:$C$3135,C6) -> 66 | S6: =+SUMIFS($S$200:$S$3135,$B$200:$B$3135,$B$5,$C$200:$C$3135,C6) -> 0 | T6: =+SUMIFS($T$200:$T$3135,$B$200:$B$3135,$B$5,$C$200:$C$3135,C6) -> 0 | U6: =+SUMIFS($U$200:$U$3135,$B$200:$B$3135,$B$5,$C$200:$C$3135,C6) -> 35 | V6: =+SUMIFS($V$200:$V$3135,$B$200:$B$3135,$B$5,$C$200:$C$3135,C6) -> 0 | W6: =+SUMIFS($W$200:$W$3135,$B$200:$B$3135,$B$5,$C$200:$C$3135,C6) -> 0 | X6: =+SUMIFS($X$200:$X$3135,$B$200:$B$3135,$B$5,$C$200:$C$3135,C6) -> 1 | Y6: =+SUMIFS($Y$200:$Y$3135,$B$200:$B$3135,$B$5,$C$200:$C$3135,C6) -> 0 | Z6: =+SUMIFS($Z$200:$Z$3135,$B$200:$B$3135,$B$5,$C$200:$C$3135,C6) -> 0 | AA6: =+SUMIFS($AA$200:$AA$3135,$B$200:$B$3135,$B$5,$C$200:$C$3135,C6) -> 24 | AB6: =+SUMIFS($AB$200:$AB$3135,$B$200:$B$3135,$B$5,$C$200:$C$3135,C6) -> 0 | AC6: =+SUMIFS($AC$200:$AC$3135,$B$200:$B$3135,$B$5,$C$200:$C$3135,C6) -> 0 | AD6: =+SUMIFS($AD$200:$AD$3135,$B$200:$B$3135,$B$5,$C$200:$C$3135,C6) -> 42 | AE6: =+SUMIFS($AE$200:$AE$3135,$B$200:$B$3135,$B$5,$C$200:$C$3135,C6) -> 0 | AF6: =+SUMIFS($AF$200:$AF$3135,$B$200:$B$3135,$B$5,$C$200:$C$3135,C6) -> 0 | AG6: =+SUMIFS($AG$200:$AG$3135,$B$200:$B$3135,$B$5,$C$200:$C$3135,C6) -> 37
C7: Jardín | D7: 0 | E7: 0 | F7: 91 | G7: 0 | H7: 0 | I7: 122 | J7: 0 | K7: 0 | L7: 111 | M7: 0 | N7: 0 | O7: 122 | P7: 1 | Q7: 0 | R7: 128 | S7: 6 | T7: 0 | U7: 66 | V7: 6 | W7: 0 | X7: 65 | Y7: 2 | Z7: 0 | AA7: 65 | AB7: 4 | AC7: 0 | AD7: 68 | AE7: =+SUMIFS($AE$200:$AE$3135,$B$200:$B$3135,$B$5,$C$200:$C$3135,C7) -> 8 | AF7: =+SUMIFS($AF$200:$AF$3135,$B$200:$B$3135,$B$5,$C$200:$C$3135,C7) -> 0 | AG7: =+SUMIFS($AG$200:$AG$3135,$B$200:$B$3135,$B$5,$C$200:$C$3135,C7) -> 68
C8: Transición | D8: 1,481 | E8: 171 | F8: 103 | G8: 1,305 | H8: 171 | I8: 99 | J8: 1,403 | K8: 164 | L8: 118 | M8: 1,568 | N8: 188 | O8: 102 | P8: 1,368 | Q8: 139 | R8: 131 | S8: 1,611 | T8: 201 | U8: 116 | V8: 1,541 | W8: 161 | X8: 43 | Y8: 1,410 | Z8: 192 | AA8: 84 | AB8: 1,502 | AC8: 143 | AD8: 81 | AE8: 1,367 | AF8: 178 | AG8: 74
C9: Primero | D9: 2,059 | E9: 282 | F9: 73 | G9: 1,934 | H9: 251 | I9: 91 | J9: 1,861 | K9: 217 | L9: 77 | M9: 1,946 | N9: 247 | O9: 77 | P9: 2,025 | Q9: 239 | R9: 72 | S9: 1,909 | T9: 201 | U9: 71 | V9: 1,975 | W9: 242 | X9: 78 | Y9: 1,780 | Z9: 236 | AA9: 66 | AB9: 1,773 | AC9: 241 | AD9: 67 | AE9: 1,808 | AF9: 223 | AG9: 80
C10: Segundo | D10: 2,034 | E10: 272 | F10: 67 | G10: 1,816 | H10: 274 | I10: 52 | J10: 1,821 | K10: 228 | L10: 86 | M10: 1,688 | N10: 233 | O10: 61 | P10: 1,735 | Q10: 223 | R10: 80 | S10: 1,827 | T10: 230 | U10: 68 | V10: 1,781 | W10: 203 | X10: 65 | Y10: 1,824 | Z10: 244 | AA10: 73 | AB10: 1,677 | AC10: 233 | AD10: 60 | AE10: 1,686 | AF10: 242 | AG10: 62
C11: Tercero | D11: 1,704 | E11: 204 | F11: 46 | G11: 1,872 | H11: 234 | I11: 65 | J11: 1,691 | K11: 225 | L11: 59 | M11: 1,761 | N11: 221 | O11: 67 | P11: 1,609 | Q11: 189 | R11: 60 | S11: 1,672 | T11: 193 | U11: 70 | V11: 1,749 | W11: 210 | X11: 65 | Y11: 1,795 | Z11: 204 | AA11: 50 | AB11: 1,753 | AC11: 212 | AD11: 64 | AE11: 1,655 | AF11: 231 | AG11: 53
C12: Cuarto | D12: 1,691 | E12: 215 | F12: 34 | G12: 1,650 | H12: 189 | I12: 49 | J12: 1,777 | K12: 198 | L12: 73 | M12: 1,639 | N12: 200 | O12: 39 | P12: 1,621 | Q12: 200 | R12: 78 | S12: 1,525 | T12: 171 | U12: 55 | V12: 1,545 | W12: 172 | X12: 65 | Y12: 1,662 | Z12: 211 | AA12: 44 | AB12: 1,612 | AC12: 163 | AD12: 62 | AE12: 1,583 | AF12: 173 | AG12: 57
C13: Quinto | D13: 1,676 | E13: 192 | F13: 48 | G13: 1,591 | H13: 202 | I13: 28 | J13: 1,588 | K13: 175 | L13: 51 | M13: 1,668 | N13: 187 | O13: 54 | P13: 1,543 | Q13: 162 | R13: 42 | S13: 1,565 | T13: 170 | U13: 68 | V13: 1,442 | W13: 159 | X13: 50 | Y13: 1,522 | Z13: 161 | AA13: 53 | AB13: 1,571 | AC13: 180 | AD13: 49 | AE13: 1,470 | AF13: 141 | AG13: 56
C14: Sexto | D14: 1,789 | E14: 0 | F14: 37 | G14: 1,933 | H14: 0 | I14: 47 | J14: 1,878 | K14: 0 | L14: 48 | M14: 1,859 | N14: 40 | O14: 44 | P14: 2,003 | Q14: 16 | R14: 69 | S14: 1,832 | T14: 20 | U14: 67 | V14: 1,945 | W14: 26 | X14: 69 | Y14: 2,062 | Z14: 15 | AA14: 43 | AB14: 1,705 | AC14: 24 | AD14: 68 | AE14: 1,771 | AF14: 21 | AG14: 57
C15: Septimo | D15: 1,646 | E15: 0 | F15: 47 | G15: 1,524 | H15: 0 | I15: 40 | J15: 1,597 | K15: 0 | L15: 47 | M15: 1,615 | N15: 0 | O15: 37 | P15: 1,566 | Q15: 33 | R15: 58 | S15: 1,724 | T15: 18 | U15: 64 | V15: 1,552 | W15: 17 | X15: 65 | Y15: 1,648 | Z15: 24 | AA15: 57 | AB15: 1,640 | AC15: 8 | AD15: 57 | AE15: 1,472 | AF15: 22 | AG15: 69
C16: Octavo | D16: 1,222 | E16: 0 | F16: 49 | G16: 1,411 | H16: 0 | I16: 39 | J16: 1,334 | K16: 0 | L16: 41 | M16: 1,400 | N16: 0 | O16: 33 | P16: 1,365 | Q16: 0 | R16: 27 | S16: 1,286 | T16: 27 | U16: 59 | V16: 1,460 | W16: 17 | X16: 62 | Y16: 1,395 | Z16: 18 | AA16: 52 | AB16: 1,375 | AC16: 19 | AD16: 65 | AE16: 1,440 | AF16: 7 | AG16: 57
C17: Noveno | D17: 1,043 | E17: 0 | F17: 45 | G17: 1,081 | H17: 0 | I17: 39 | J17: 1,232 | K17: 0 | L17: 35 | M17: 1,171 | N17: 0 | O17: 30 | P17: 1,173 | Q17: 0 | R17: 29 | S17: 1,163 | T17: 0 | U17: 28 | V17: 1,149 | W17: 22 | X17: 50 | Y17: 1,254 | Z17: 16 | AA17: 53 | AB17: 1,172 | AC17: 16 | AD17: 48 | AE17: 1,129 | AF17: 17 | AG17: 67
C18: Decimo | D18: 952 | E18: 0 | F18: 29 | G18: 1,002 | H18: 0 | I18: 38 | J18: 978 | K18: 0 | L18: 29 | M18: 1,077 | N18: 0 | O18: 25 | P18: 1,022 | Q18: 0 | R18: 28 | S18: 1,014 | T18: 0 | U18: 27 | V18: 1,042 | W18: 0 | X18: 29 | Y18: 1,088 | Z18: 0 | AA18: 32 | AB18: 1,049 | AC18: 0 | AD18: 49 | AE18: 1,018 | AF18: 12 | AG18: 46
C19: Once | D19: 659 | E19: 0 | F19: 30 | G19: 732 | H19: 0 | I19: 27 | J19: 784 | K19: 0 | L19: 40 | M19: 786 | N19: 0 | O19: 23 | P19: 854 | Q19: 0 | R19: 21 | S19: 745 | T19: 0 | U19: 27 | V19: 796 | W19: 0 | X19: 25 | Y19: 730 | Z19: 0 | AA19: 24 | AB19: 777 | AC19: 0 | AD19: 42 | AE19: 861 | AF19: 12 | AG19: 43
C20: 12º Normal | D20: 60 | E20: 0 | F20: 0 | G20: 26 | H20: 0 | I20: 0 | J20: 71 | K20: 0 | L20: 0 | M20: 43 | N20: 0 | O20: 0 | P20: 20 | Q20: 0 | R20: 0 | S20: 48 | T20: 0 | U20: 0 | V20: 26 | W20: 0 | X20: 0 | Y20: 53 | Z20: 0 | AA20: 0 | AB20: 42 | AC20: 0 | AD20: 0 | AE20: 19 | AF20: 0 | AG20: 0
C21: 13º Normal | D21: 34 | E21: 0 | F21: 0 | G21: 52 | H21: 0 | I21: 0 | J21: 11 | K21: 0 | L21: 0 | M21: 27 | N21: 0 | O21: 0 | P21: 16 | Q21: 0 | R21: 0 | S21: 38 | T21: 0 | U21: 0 | V21: 22 | W21: 0 | X21: 0 | Y21: 23 | Z21: 0 | AA21: 0 | AB21: 31 | AC21: 0 | AD21: 0 | AE21: 18 | AF21: 0 | AG21: 0
C22: Ciclo 1 Adultos | D22: 40 | E22: 0 | F22: 0 | G22: 97 | H22: 0 | I22: 0 | J22: 66 | K22: 0 | L22: 0 | M22: 81 | N22: 0 | O22: 0 | P22: 62 | Q22: 0 | R22: 0 | S22: 67 | T22: 0 | U22: 0 | V22: 30 | W22: 0 | X22: 0 | Y22: 25 | Z22: 0 | AA22: 0 | AB22: 39 | AC22: 0 | AD22: 0 | AE22: 21 | AF22: 0 | AG22: 0
C23: Ciclo 2 Adultos | D23: 106 | E23: 0 | F23: 0 | G23: 124 | H23: 0 | I23: 0 | J23: 161 | K23: 0 | L23: 0 | M23: 115 | N23: 0 | O23: 0 | P23: 105 | Q23: 0 | R23: 0 | S23: 128 | T23: 0 | U23: 0 | V23: 77 | W23: 0 | X23: 0 | Y23: 58 | Z23: 0 | AA23: 0 | AB23: 62 | AC23: 0 | AD23: 0 | AE23: 32 | AF23: 0 | AG23: 0
C24: Ciclo 3 Adultos | D24: 297 | E24: 0 | F24: 0 | G24: 387 | H24: 0 | I24: 0 | J24: 321 | K24: 0 | L24: 0 | M24: 265 | N24: 0 | O24: 0 | P24: 355 | Q24: 0 | R24: 0 | S24: 378 | T24: 0 | U24: 0 | V24: 414 | W24: 0 | X24: 0 | Y24: 415 | Z24: 0 | AA24: 0 | AB24: 337 | AC24: 0 | AD24: 0 | AE24: 222 | AF24: 0 | AG24: 0
C25: Ciclo 4 Adultos | D25: 278 | E25: 0 | F25: 0 | G25: 293 | H25: 0 | I25: 0 | J25: 383 | K25: 0 | L25: 0 | M25: 278 | N25: 0 | O25: 0 | P25: 302 | Q25: 0 | R25: 0 | S25: 398 | T25: 0 | U25: 0 | V25: 367 | W25: 0 | X25: 0 | Y25: 407 | Z25: 0 | AA25: 0 | AB25: 407 | AC25: 0 | AD25: 0 | AE25: 261 | AF25: 0 | AG25: 0
C26: Ciclo 5 Adultos | D26: 273 | E26: 0 | F26: 0 | G26: 268 | H26: 0 | I26: 0 | J26: 289 | K26: 0 | L26: 0 | M26: 322 | N26: 0 | O26: 0 | P26: 272 | Q26: 0 | R26: 0 | S26: 276 | T26: 0 | U26: 0 | V26: 327 | W26: 0 | X26: 0 | Y26: 369 | Z26: 0 | AA26: 0 | AB26: 328 | AC26: 0 | AD26: 0 | AE26: 186 | AF26: 0 | AG26: 0
C27: Ciclo 6 Adultos | D27: 196 | E27: 0 | F27: 0 | G27: 217 | H27: 0 | I27: 0 | J27: 203 | K27: 0 | L27: 0 | M27: 230 | N27: 0 | O27: 0 | P27: 215 | Q27: 0 | R27: 0 | S27: 236 | T27: 0 | U27: 0 | V27: 265 | W27: 0 | X27: 0 | Y27: 258 | Z27: 0 | AA27: 0 | AB27: 248 | AC27: 0 | AD27: 0 | AE27: 192 | AF27: 0 | AG27: 10
C28: Semestre introductorio NS | D28: 0 | E28: 0 | F28: 0 | G28: 0 | H28: 0 | I28: 0 | J28: 0 | K28: 0 | L28: 0 | M28: 0 | N28: 0 | O28: 0 | P28: 0 | Q28: 0 | R28: 0 | S28: 0 | T28: 0 | U28: 0 | V28: 0 | W28: 0 | X28: 0 | Y28: 0 | Z28: 0 | AA28: 0 | AB28: 0 | AC28: 0 | AD28: 0 | AE28: 0 | AF28: 0 | AG28: 0
C29: Programa formación compl 1 NS | D29: 0 | E29: 0 | F29: 0 | G29: 0 | H29: 0 | I29: 0 | J29: 0 | K29: 0 | L29: 0 | M29: 0 | N29: 0 | O29: 0 | P29: 0 | Q29: 0 | R29: 0 | S29: 0 | T29: 0 | U29: 0 | V29: 0 | W29: 0 | X29: 0 | Y29: 0 | Z29: 0 | AA29: 0 | AB29: 0 | AC29: 0 | AD29: 0 | AE29: 0 | AF29: 0 | AG29: 0
C30: Programa formación compl 2 NS | D30: 0 | E30: 0 | F30: 0 | G30: 0 | H30: 0 | I30: 0 | J30: 0 | K30: 0 | L30: 0 | M30: 0 | N30: 0 | O30: 0 | P30: 0 | Q30: 0 | R30: 0 | S30: 0 | T30: 0 | U30: 0 | V30: 0 | W30: 0 | X30: 0 | Y30: 0 | Z30: 0 | AA30: 0 | AB30: 0 | AC30: 0 | AD30: 0 | AE30: 0 | AF30: 0 | AG30: 0
C31: Programa formación compl 3 NS | D31: 0 | E31: 0 | F31: 0 | G31: 0 | H31: 0 | I31: 0 | J31: 0 | K31: 0 | L31: 0 | M31: 0 | N31: 0 | O31: 0 | P31: 0 | Q31: 0 | R31: 0 | S31: 0 | T31: 0 | U31: 0 | V31: 0 | W31: 0 | X31: 0 | Y31: 0 | Z31: 0 | AA31: 0 | AB31: 0 | AC31: 0 | AD31: 0 | AE31: 0 | AF31: 0 | AG31: 0
C32: Programa formación compl 4 NS | D32: 0 | E32: 0 | F32: 0 | G32: 0 | H32: 0 | I32: 0 | J32: 0 | K32: 0 | L32: 0 | M32: 0 | N32: 0 | O32: 0 | P32: 0 | Q32: 0 | R32: 0 | S32: 0 | T32: 0 | U32: 0 | V32: 0 | W32: 0 | X32: 0 | Y32: 0 | Z32: 0 | AA32: 0 | AB32: 0 | AC32: 0 | AD32: 0 | AE32: 0 | AF32: 0 | AG32: 0
C33: Aceleración del Aprendizaje | D33: 18 | E33: 0 | F33: 0 | G33: 21 | H33: 0 | I33: 0 | J33: 21 | K33: 0 | L33: 0 | M33: 56 | N33: 0 | O33: 0 | P33: 26 | Q33: 0 | R33: 0 | S33: 46 | T33: 0 | U33: 0 | V33: 33 | W33: 0 | X33: 0 | Y33: 17 | Z33: 0 | AA33: 0 | AB33: 0 | AC33: 0 | AD33: 0 | AE33: 0 | AF33: 0 | AG33: 0
C34: Total | D34: =SUM(D6:D33) -> 19,258 | E34: 1,336 | F34: 786 | G34: 19,336 | H34: 1,321 | I34: 778 | J34: 19,470 | K34: 1,207 | L34: 901 | M34: 19,595 | N34: 1,316 | O34: 815 | P34: 19,258 | Q34: 1,201 | R34: 889 | S34: 19,494 | T34: 1,231 | U34: 821 | V34: 19,544 | W34: 1,229 | X34: 732 | Y34: 19,797 | Z34: 1,321 | AA34: 720 | AB34: 19,104 | AC34: 1,239 | AD34: 822 | AE34: 18,219 | AF34: 1,279 | AG34: 836
D35: =SUM(D34:F34) -> 21,380 | G35: =SUM(G34:I34) -> 21,435 | J35: =SUM(J34:L34) -> 21,578 | M35: =SUM(M34:O34) -> 21,726 | P35: =SUM(P34:R34) -> 21,348 | S35: =SUM(S34:U34) -> 21,546 | V35: =SUM(V34:X34) -> 21,505 | Y35: =SUM(Y34:AA34) -> 21,838 | AB35: =SUM(AB34:AD34) -> 21,165 | AE35: =SUM(AE34:AG34) -> 20,334
C36: FUENTE: SIMAT Para lo años 2013 y 2014 La matrícula de ciclo 0 se suma a ciclo 1
C38: =+B5 -> AMAZONAS
D39: 2014 | G39: 2015 | J39: 2016 | M39: 2017 | P39: 2018 | S39: 2019 | V39: =+V4 -> 2020 | Y39: =+Y4 -> 2021 | AB39: =+AB4 -> 2022 | AE39: =+AE4 -> Oct. 2023
C40: NIVEL | D40: Oficial | E40: Contratada | F40: Privada | G40: Oficial | H40: Contratada | I40: Privada | J40: Oficial | K40: Contratada | L40: Privada | M40: Oficial | N40: Contratada | O40: Privada | P40: Oficial | Q40: Contratada | R40: Privada | S40: Oficial | T40: Contratada | U40: Privada | V40: Oficial | W40: Contratada | X40: Privada | Y40: Oficial | Z40: Contratada | AA40: Privada | AB40: Oficial | AC40: Contratada | AD40: Privada | AE40: Oficial | AF40: Contratada | AG40: Privada
C41: Prejardín y jardín | D41: =SUM(D6:D7) -> 0 | E41: 0 | F41: 178 | G41: 0 | H41: 0 | I41: 164 | J41: 0 | K41: 0 | L41: 197 | M41: 0 | N41: 0 | O41: 223 | P41: 1 | Q41: 0 | R41: 194 | S41: 6 | T41: 0 | U41: 101 | V41: =SUM(V6:V7) -> 6 | W41: 0 | X41: 66 | Y41: =SUM(Y6:Y7) -> 2 | Z41: 0 | AA41: 89 | AB41: =SUM(AB6:AB7) -> 4 | AC41: 0 | AD41: 110 | AE41: =SUM(AE6:AE7) -> 8 | AF41: 0 | AG41: 105
C42: Transición | D42: =+D8 -> 1,481 | E42: 171 | F42: 103 | G42: 1,305 | H42: 171 | I42: 99 | J42: 1,403 | K42: 164 | L42: 118 | M42: 1,568 | N42: 188 | O42: 102 | P42: 1,368 | Q42: 139 | R42: 131 | S42: =+S8 -> 1,611 | T42: =+T8 -> 201 | U42: =+U8 -> 116 | V42: =+V8 -> 1,541 | W42: 161 | X42: 43 | Y42: =+Y8 -> 1,410 | Z42: 192 | AA42: 84 | AB42: =+AB8 -> 1,502 | AC42: 143 | AD42: 81 | AE42: =+AE8 -> 1,367 | AF42: 178 | AG42: 74
C43: Primaria | D43: =SUM(D9:D13)+D22+D23+D33 -> 9,328 | E43: 1,165 | F43: 268 | G43: 9,105 | H43: 1,150 | I43: 285 | J43: 8,986 | K43: 1,043 | L43: 346 | M43: 8,954 | N43: 1,088 | O43: 298 | P43: 8,726 | Q43: 1,013 | R43: 332 | S43: 8,739 | T43: 965 | U43: 332 | V43: 8,632 | W43: 986 | X43: 323 | Y43: 8,683 | Z43: 1,056 | AA43: 286 | AB43: 8,487 | AC43: 1,029 | AD43: 302 | AE43: 8,255 | AF43: 1,010 | AG43: 308
C44: Secundaria | D44: =SUM(D14:D17)+D24+D25 -> 6,275 | E44: 0 | F44: 178 | G44: 6,629 | H44: 0 | I44: 165 | J44: 6,745 | K44: 0 | L44: 171 | M44: 6,588 | N44: 40 | O44: 144 | P44: 6,764 | Q44: 49 | R44: 183 | S44: =SUM(S14:S17)+S24+S25 -> 6,781 | T44: =SUM(T14:T17)+T24+T25 -> 65 | U44: =SUM(U14:U17)+U24+U25 -> 218 | V44: =SUM(V14:V17)+V24+V25 -> 6,887 | W44: 82 | X44: 246 | Y44: =SUM(Y14:Y17)+Y24+Y25 -> 7,181 | Z44: 73 | AA44: 205 | AB44: =SUM(AB14:AB17)+AB24+AB25 -> 6,636 | AC44: 67 | AD44: 238 | AE44: =SUM(AE14:AE17)+AE24+AE25+SUM(AE28:AE32) -> 6,295 | AF44: =SUM(AF14:AF17)+AF24+AF25+SUM(AF28:AF32) -> 67 | AG44: 250
C45: Media | D45: =SUM(D18:D21)+D26+D27 -> 2,174 | E45: 0 | F45: 59 | G45: 2,297 | H45: 0 | I45: 65 | J45: 2,336 | K45: 0 | L45: 69 | M45: 2,485 | N45: 0 | O45: 48 | P45: 2,399 | Q45: 0 | R45: 49 | S45: =SUM(S18:S21)+S26+S27 -> 2,357 | T45: =SUM(T18:T21)+T26+T27 -> 0 | U45: =SUM(U18:U21)+U26+U27 -> 54 | V45: =SUM(V18:V21)+V26+V27 -> 2,478 | W45: 0 | X45: 54 | Y45: =SUM(Y18:Y21)+Y26+Y27 -> 2,521 | Z45: 0 | AA45: 56 | AB45: =SUM(AB18:AB21)+AB26+AB27 -> 2,475 | AC45: 0 | AD45: 91 | AE45: =SUM(AE18:AE21)+AE26+AE27 -> 2,294 | AF45: 24 | AG45: 99
C46: Total | D46: =SUM(D41:D45) -> 19,258 | E46: 1,336 | F46: 786 | G46: 19,336 | H46: 1,321 | I46: 778 | J46: 19,470 | K46: 1,207 | L46: 901 | M46: 19,595 | N46: 1,316 | O46: 815 | P46: 19,258 | Q46: 1,201 | R46: 889 | S46: =SUM(S41:S45) -> 19,494 | T46: =SUM(T41:T45) -> 1,231 | U46: =SUM(U41:U45) -> 821 | V46: =SUM(V41:V45) -> 19,544 | W46: 1,229 | X46: 732 | Y46: =SUM(Y41:Y45) -> 19,797 | Z46: 1,321 | AA46: 720 | AB46: 19,104 | AC46: 1,239 | AD46: 822 | AE46: =SUM(AE41:AE45) -> 18,219 | AF46: 1,279 | AG46: 836
C47: FUENTE: SIMAT OAPF
C49: =+B5 -> AMAZONAS
D50: 2014 | G50: 2015 | J50: 2016 | M50: 2017 | P50: 2018 | S50: 2019 | V50: =+V4 -> 2020 | Y50: =+Y4 -> 2021 | AB50: =+AB4 -> 2022 | AE50: =+AE4 -> Oct. 2023
C51: NIVEL ADULTOS | D51: Oficial | E51: Contratada | F51: Privada | G51: Oficial | H51: Contratada | I51: Privada | J51: Oficial | K51: Contratada | L51: Privada | M51: Oficial | N51: Contratada | O51: Privada | P51: Oficial | Q51: Contratada | R51: Privada | S51: Oficial | T51: Contratada | U51: Privada | V51: Oficial | W51: Contratada | X51: Privada | Y51: Oficial | Z51: Contratada | AA51: Privada | AB51: Oficial | AC51: Contratada | AD51: Privada | AE51: Oficial | AF51: Contratada | AG51: Privada
C52: Prejardín y jardín | D52: =SUM(D6:D7) -> 0 | E52: 0 | F52: 178 | G52: 0 | H52: 0 | I52: 164 | J52: 0 | K52: 0 | L52: 197 | M52: 0 | N52: 0 | O52: 223 | P52: 1 | Q52: 0 | R52: 194 | S52: 6 | T52: 0 | U52: 101 | V52: =SUM(V6:V7) -> 6 | W52: 0 | X52: 66 | Y52: =SUM(Y6:Y7) -> 2 | Z52: 0 | AA52: 89 | AB52: =SUM(AB6:AB7) -> 4 | AC52: 0 | AD52: 110 | AE52: =SUM(AE6:AE7) -> 8 | AF52: 0 | AG52: 105
C53: Transición | D53: =+D8 -> 1,481 | E53: 171 | F53: 103 | G53: 1,305 | H53: 171 | I53: 99 | J53: 1,403 | K53: 164 | L53: 118 | M53: 1,568 | N53: 188 | O53: 102 | P53: 1,368 | Q53: 139 | R53: 131 | S53: =+S8 -> 1,611 | T53: =+T8 -> 201 | U53: =+U8 -> 116 | V53: =+V8 -> 1,541 | W53: 161 | X53: 43 | Y53: =+Y8 -> 1,410 | Z53: 192 | AA53: 84 | AB53: =+AB8 -> 1,502 | AC53: 143 | AD53: 81 | AE53: =+AE8 -> 1,367 | AF53: 178 | AG53: 74
C54: Primaria | D54: =SUM(D9:D13)+D33 -> 9,182 | E54: 1,165 | F54: 268 | G54: 8,884 | H54: 1,150 | I54: 285 | J54: 8,759 | K54: 1,043 | L54: 346 | M54: 8,758 | N54: 1,088 | O54: 298 | P54: 8,559 | Q54: 1,013 | R54: 332 | S54: 8,544 | T54: 965 | U54: 332 | V54: 8,525 | W54: 986 | X54: 323 | Y54: 8,600 | Z54: 1,056 | AA54: 286 | AB54: 8,386 | AC54: 1,029 | AD54: 302 | AE54: 8,202 | AF54: 1,010 | AG54: 308
C55: Secundaria | D55: =SUM(D14:D17) -> 5,700 | E55: 0 | F55: 178 | G55: 5,949 | H55: 0 | I55: 165 | J55: 6,041 | K55: 0 | L55: 171 | M55: 6,045 | N55: 40 | O55: 144 | P55: 6,107 | Q55: 49 | R55: 183 | S55: =SUM(S14:S17) -> 6,005 | T55: =SUM(T14:T17) -> 65 | U55: =SUM(U14:U17) -> 218 | V55: =SUM(V14:V17) -> 6,106 | W55: 82 | X55: 246 | Y55: =SUM(Y14:Y17) -> 6,359 | Z55: 73 | AA55: 205 | AB55: =SUM(AB14:AB17) -> 5,892 | AC55: 67 | AD55: 238 | AE55: =SUM(AE14:AE17) -> 5,812 | AF55: 67 | AG55: 250
C56: Media | D56: =SUM(D18:D21) -> 1,705 | E56: 0 | F56: 59 | G56: 1,812 | H56: 0 | I56: 65 | J56: 1,844 | K56: 0 | L56: 69 | M56: 1,933 | N56: 0 | O56: 48 | P56: 1,912 | Q56: 0 | R56: 49 | S56: =SUM(S18:S21) -> 1,845 | T56: =SUM(T18:T21) -> 0 | U56: =SUM(U18:U21) -> 54 | V56: =SUM(V18:V21) -> 1,886 | W56: 0 | X56: 54 | Y56: =SUM(Y18:Y21) -> 1,894 | Z56: 0 | AA56: 56 | AB56: =SUM(AB18:AB21) -> 1,899 | AC56: 0 | AD56: 91 | AE56: =SUM(AE18:AE21)+SUM(AE28:AE32) -> 1,916 | AF56: =SUM(AF18:AF21)+SUM(AF28:AF32) -> 24 | AG56: 89
C57: Adultos | D57: =SUM(D22:D27) -> 1,190 | E57: 0 | F57: 0 | G57: 1,386 | H57: 0 | I57: 0 | J57: 1,423 | K57: 0 | L57: 0 | M57: 1,291 | N57: 0 | O57: 0 | P57: 1,311 | Q57: 0 | R57: 0 | S57: =SUM(S22:S27) -> 1,483 | T57: =SUM(T22:T27) -> 0 | U57: =SUM(U22:U27) -> 0 | V57: =SUM(V22:V27) -> 1,480 | W57: 0 | X57: 0 | Y57: =SUM(Y22:Y27) -> 1,532 | Z57: 0 | AA57: 0 | AB57: =SUM(AB22:AB27) -> 1,421 | AC57: 0 | AD57: 0 | AE57: =SUM(AE22:AE27) -> 914 | AF57: 0 | AG57: 10
C58: Total | D58: =SUM(D52:D57) -> 19,258 | E58: 1,336 | F58: 786 | G58: 19,336 | H58: 1,321 | I58: 778 | J58: 19,470 | K58: 1,207 | L58: 901 | M58: 19,595 | N58: 1,316 | O58: 815 | P58: 19,258 | Q58: 1,201 | R58: 889 | S58: 19,494 | T58: 1,231 | U58: 821 | V58: =SUM(V52:V57) -> 19,544 | W58: 1,229 | X58: 732 | Y58: =SUM(Y52:Y57) -> 19,797 | Z58: 1,321 | AA58: 720 | AB58: 19,104 | AC58: 1,239 | AD58: 822 | AE58: =SUM(AE52:AE57) -> 18,219 | AF58: 1,279 | AG58: 836
C59: FUENTE: SIMAT OAPF
C61: =+B5 -> AMAZONAS
C62: Sector | D62: 2014 | E62: 2015 | F62: 2016 | G62: 2017 | H62: 2018 | I62: 2019 | J62: 2020 | K62: 2021 | L62: 2022 | M62: 2023
C63: Oficial | D63: =+D58 -> 19,258 | E63: =+G58 -> 19,336 | F63: =+J58 -> 19,470 | G63: =+M58 -> 19,595 | H63: =+P58 -> 19,258 | I63: =+S58 -> 19,494 | J63: =+V58 -> 19,544 | K63: =+Y58 -> 19,797 | L63: =+AB58 -> 19,104 | M63: =+AE58 -> 18,219
C64: Contratada | D64: =+E58 -> 1,336 | E64: =+H58 -> 1,321 | F64: =+K58 -> 1,207 | G64: =+N58 -> 1,316 | H64: =+Q58 -> 1,201 | I64: =+T58 -> 1,231 | J64: =+W58 -> 1,229 | K64: =+Z58 -> 1,321 | L64: =+AC58 -> 1,239 | M64: =+AF58 -> 1,279
C65: Privada | D65: =+F58 -> 786 | E65: =+I58 -> 778 | F65: =+L58 -> 901 | G65: =+O58 -> 815 | H65: =+R58 -> 889 | I65: =+U58 -> 821 | J65: =+X58 -> 732 | K65: =+AA58 -> 720 | L65: =+AD58 -> 822 | M65: =+AG58 -> 836
C66: Total | D66: =SUM(D63:D65) -> 21,380 | E66: 21,435 | F66: 21,578 | G66: 21,726 | H66: 21,348 | I66: 21,546 | J66: 21,505 | K66: 21,838 | L66: 21,165 | M66: 20,334
C67: FUENTE: SIMAT OAPF 2023 información preliminar
P68: =+B5 -> AMAZONAS
D69: =+B5 -> AMAZONAS
D198: 2,014 | G198: 2,015 | J198: 2,016 | M198: 2,017 | P198: 2,018 | S198: 2,019 | V198: =+V4 -> 2020 | Y198: =+Y4 -> 2021 | AB198: =+AB4 -> 2022 | AE198: =+AE4 -> Oct. 2023
A199: lista | B199: ENTIDAD | C199: GRADO | D199: Oficial | E199: Contratada | F199: Privada | G199: Oficial | H199: Contratada | I199: Privada | J199: Oficial | K199: Contratada | L199: Privada | M199: Oficial | N199: Contratada | O199: Privada | P199: Oficial | Q199: Contratada | R199: Privada | S199: Oficial | T199: Contratada | U199: Privada | V199: Oficial | W199: Contratada | X199: Privada | Y199: Oficial | Z199: Contratada | AA199: Privada | AB199: Oficial | AC199: Contratada | AD199: Privada | AE199: Oficial | AF199: Contratada | AG199: Privada
A200: AMAZONAS | B200: AMAZONAS | C200: Prejardín | D200: 0 | E200: 0 | F200: 87 | G200: 0 | H200: 0 | I200: 42 | J200: 0 | K200: 0 | L200: 86 | M200: 0 | N200: 0 | O200: 101 | P200: 0 | Q200: 0 | R200: 66 | S200: 0 | T200: 0 | U200: 35 | V200: 0 | W200: 0 | X200: 1 | Y200: 0 | Z200: 0 | AA200: 24 | AB200: 0 | AC200: 0 | AD200: 42 | AE200: 0 | AF200: 0 | AG200: 37
A201: ANTIOQUIA | B201: AMAZONAS | C201: Jardín | D201: 0 | E201: 0 | F201: 91 | G201: 0 | H201: 0 | I201: 122 | J201: 0 | K201: 0 | L201: 111 | M201: 0 | N201: 0 | O201: 122 | P201: 1 | Q201: 0 | R201: 128 | S201: 6 | T201: 0 | U201: 66 | V201: 6 | W201: 0 | X201: 65 | Y201: 2 | Z201: 0 | AA201: 65 | AB201: 4 | AC201: 0 | AD201: 68 | AE201: 8 | AF201: 0 | AG201: 68
A202: APARTADO | B202: AMAZONAS | C202: Transición | D202: 1,481 | E202: 171 | F202: 103 | G202: 1,305 | H202: 171 | I202: 99 | J202: 1,403 | K202: 164 | L202: 118 | M202: 1,568 | N202: 188 | O202: 102 | P202: 1,368 | Q202: 139 | R202: 131 | S202: 1,611 | T202: 201 | U202: 116 | V202: 1,541 | W202: 161 | X202: 43 | Y202: 1,410 | Z202: 192 | AA202: 84 | AB202: 1,502 | AC202: 143 | AD202: 81 | AE202: 1,367 | AF202: 178 | AG202: 74
A203: ARAUCA | B203: AMAZONAS | C203: Primero | D203: 2,059 | E203: 282 | F203: 73 | G203: 1,934 | H203: 251 | I203: 91 | J203: 1,861 | K203: 217 | L203: 77 | M203: 1,946 | N203: 247 | O203: 77 | P203: 2,025 | Q203: 239 | R203: 72 | S203: 1,909 | T203: 201 | U203: 71 | V203: 1,975 | W203: 242 | X203: 78 | Y203: 1,780 | Z203: 236 | AA203: 66 | AB203: 1,773 | AC203: 241 | AD203: 67 | AE203: 1,808 | AF203: 223 | AG203: 80
A204: ARMENIA | B204: AMAZONAS | C204: Segundo | D204: 2,034 | E204: 272 | F204: 67 | G204: 1,816 | H204: 274 | I204: 52 | J204: 1,821 | K204: 228 | L204: 86 | M204: 1,688 | N204: 233 | O204: 61 | P204: 1,735 | Q204: 223 | R204: 80 | S204: 1,827 | T204: 230 | U204: 68 | V204: 1,781 | W204: 203 | X204: 65 | Y204: 1,824 | Z204: 244 | AA204: 73 | AB204: 1,677 | AC204: 233 | AD204: 60 | AE204: 1,686 | AF204: 242 | AG204: 62
A205: ATLANTICO | B205: AMAZONAS | C205: Tercero | D205: 1,704 | E205: 204 | F205: 46 | G205: 1,872 | H205: 234 | I205: 65 | J205: 1,691 | K205: 225 | L205: 59 | M205: 1,761 | N205: 221 | O205: 67 | P205: 1,609 | Q205: 189 | R205: 60 | S205: 1,672 | T205: 193 | U205: 70 | V205: 1,749 | W205: 210 | X205: 65 | Y205: 1,795 | Z205: 204 | AA205: 50 | AB205: 1,753 | AC205: 212 | AD205: 64 | AE205: 1,655 | AF205: 231 | AG205: 53
A206: BARRANCABERMEJA | B206: AMAZONAS | C206: Cuarto | D206: 1,691 | E206: 215 | F206: 34 | G206: 1,650 | H206: 189 | I206: 49 | J206: 1,777 | K206: 198 | L206: 73 | M206: 1,639 | N206: 200 | O206: 39 | P206: 1,621 | Q206: 200 | R206: 78 | S206: 1,525 | T206: 171 | U206: 55 | V206: 1,545 | W206: 172 | X206: 65 | Y206: 1,662 | Z206: 211 | AA206: 44 | AB206: 1,612 | AC206: 163 | AD206: 62 | AE206: 1,583 | AF206: 173 | AG206: 57
A207: BARRANQUILLA | B207: AMAZONAS | C207: Quinto | D207: 1,676 | E207: 192 | F207: 48 | G207: 1,591 | H207: 202 | I207: 28 | J207: 1,588 | K207: 175 | L207: 51 | M207: 1,668 | N207: 187 | O207: 54 | P207: 1,543 | Q207: 162 | R207: 42 | S207: 1,565 | T207: 170 | U207: 68 | V207: 1,442 | W207: 159 | X207: 50 | Y207: 1,522 | Z207: 161 | AA207: 53 | AB207: 1,571 | AC207: 180 | AD207: 49 | AE207: 1,470 | AF207: 141 | AG207: 56
A208: BELLO | B208: AMAZONAS | C208: Sexto | D208: 1,789 | E208: 0 | F208: 37 | G208: 1,933 | H208: 0 | I208: 47 | J208: 1,878 | K208: 0 | L208: 48 | M208: 1,859 | N208: 40 | O208: 44 | P208: 2,003 | Q208: 16 | R208: 69 | S208: 1,832 | T208: 20 | U208: 67 | V208: 1,945 | W208: 26 | X208: 69 | Y208: 2,062 | Z208: 15 | AA208: 43 | AB208: 1,705 | AC208: 24 | AD208: 68 | AE208: 1,771 | AF208: 21 | AG208: 57
A209: BOGOTA | B209: AMAZONAS | C209: Septimo | D209: 1,646 | E209: 0 | F209: 47 | G209: 1,524 | H209: 0 | I209: 40 | J209: 1,597 | K209: 0 | L209: 47 | M209: 1,615 | N209: 0 | O209: 37 | P209: 1,566 | Q209: 33 | R209: 58 | S209: 1,724 | T209: 18 | U209: 64 | V209: 1,552 | W209: 17 | X209: 65 | Y209: 1,648 | Z209: 24 | AA209: 57 | AB209: 1,640 | AC209: 8 | AD209: 57 | AE209: 1,472 | AF209: 22 | AG209: 69
A210: BOLIVAR | B210: AMAZONAS | C210: Octavo | D210: 1,222 | E210: 0 | F210: 49 | G210: 1,411 | H210: 0 | I210: 39 | J210: 1,334 | K210: 0 | L210: 41 | M210: 1,400 | N210: 0 | O210: 33 | P210: 1,365 | Q210: 0 | R210: 27 | S210: 1,286 | T210: 27 | U210: 59 | V210: 1,460 | W210: 17 | X210: 62 | Y210: 1,395 | Z210: 18 | AA210: 52 | AB210: 1,375 | AC210: 19 | AD210: 65 | AE210: 1,440 | AF210: 7 | AG210: 57
A211: BOYACA | B211: AMAZONAS | C211: Noveno | D211: 1,043 | E211: 0 | F211: 45 | G211: 1,081 | H211: 0 | I211: 39 | J211: 1,232 | K211: 0 | L211: 35 | M211: 1,171 | N211: 0 | O211: 30 | P211: 1,173 | Q211: 0 | R211: 29 | S211: 1,163 | T211: 0 | U211: 28 | V211: 1,149 | W211: 22 | X211: 50 | Y211: 1,254 | Z211: 16 | AA211: 53 | AB211: 1,172 | AC211: 16 | AD211: 48 | AE211: 1,129 | AF211: 17 | AG211: 67
A212: BUCARAMANGA | B212: AMAZONAS | C212: Decimo | D212: 952 | E212: 0 | F212: 29 | G212: 1,002 | H212: 0 | I212: 38 | J212: 978 | K212: 0 | L212: 29 | M212: 1,077 | N212: 0 | O212: 25 | P212: 1,022 | Q212: 0 | R212: 28 | S212: 1,014 | T212: 0 | U212: 27 | V212: 1,042 | W212: 0 | X212: 29 | Y212: 1,088 | Z212: 0 | AA212: 32 | AB212: 1,049 | AC212: 0 | AD212: 49 | AE212: 1,018 | AF212: 12 | AG212: 46
A213: BUENAVENTURA | B213: AMAZONAS | C213: Once | D213: 659 | E213: 0 | F213: 30 | G213: 732 | H213: 0 | I213: 27 | J213: 784 | K213: 0 | L213: 40 | M213: 786 | N213: 0 | O213: 23 | P213: 854 | Q213: 0 | R213: 21 | S213: 745 | T213: 0 | U213: 27 | V213: 796 | W213: 0 | X213: 25 | Y213: 730 | Z213: 0 | AA213: 24 | AB213: 777 | AC213: 0 | AD213: 42 | AE213: 861 | AF213: 12 | AG213: 43
A214: BUGA | B214: AMAZONAS | C214: 12º Normal | D214: 60 | E214: 0 | F214: 0 | G214: 26 | H214: 0 | I214: 0 | J214: 71 | K214: 0 | L214: 0 | M214: 43 | N214: 0 | O214: 0 | P214: 20 | Q214: 0 | R214: 0 | S214: 48 | T214: 0 | U214: 0 | V214: 26 | W214: 0 | X214: 0 | Y214: 53 | Z214: 0 | AA214: 0 | AB214: 42 | AC214: 0 | AD214: 0 | AE214: 19 | AF214: 0 | AG214: 0
A215: CALDAS | B215: AMAZONAS | C215: 13º Normal | D215: 34 | E215: 0 | F215: 0 | G215: 52 | H215: 0 | I215: 0 | J215: 11 | K215: 0 | L215: 0 | M215: 27 | N215: 0 | O215: 0 | P215: 16 | Q215: 0 | R215: 0 | S215: 38 | T215: 0 | U215: 0 | V215: 22 | W215: 0 | X215: 0 | Y215: 23 | Z215: 0 | AA215: 0 | AB215: 31 | AC215: 0 | AD215: 0 | AE215: 18 | AF215: 0 | AG215: 0
A216: CALI | B216: AMAZONAS | C216: Ciclo 1 Adultos | D216: 40 | E216: 0 | F216: 0 | G216: 97 | H216: 0 | I216: 0 | J216: 66 | K216: 0 | L216: 0 | M216: 81 | N216: 0 | O216: 0 | P216: 62 | Q216: 0 | R216: 0 | S216: 67 | T216: 0 | U216: 0 | V216: 30 | W216: 0 | X216: 0 | Y216: 25 | Z216: 0 | AA216: 0 | AB216: 39 | AC216: 0 | AD216: 0 | AE216: 21 | AF216: 0 | AG216: 0
A217: CAQUETA | B217: AMAZONAS | C217: Ciclo 2 Adultos | D217: 106 | E217: 0 | F217: 0 | G217: 124 | H217: 0 | I217: 0 | J217: 161 | K217: 0 | L217: 0 | M217: 115 | N217: 0 | O217: 0 | P217: 105 | Q217: 0 | R217: 0 | S217: 128 | T217: 0 | U217: 0 | V217: 77 | W217: 0 | X217: 0 | Y217: 58 | Z217: 0 | AA217: 0 | AB217: 62 | AC217: 0 | AD217: 0 | AE217: 32 | AF217: 0 | AG217: 0
A218: CARTAGENA | B218: AMAZONAS | C218: Ciclo 3 Adultos | D218: 297 | E218: 0 | F218: 0 | G218: 387 | H218: 0 | I218: 0 | J218: 321 | K218: 0 | L218: 0 | M218: 265 | N218: 0 | O218: 0 | P218: 355 | Q218: 0 | R218: 0 | S218: 378 | T218: 0 | U218: 0 | V218: 414 | W218: 0 | X218: 0 | Y218: 415 | Z218: 0 | AA218: 0 | AB218: 337 | AC218: 0 | AD218: 0 | AE218: 222 | AF218: 0 | AG218: 0
A219: CARTAGO | B219: AMAZONAS | C219: Ciclo 4 Adultos | D219: 278 | E219: 0 | F219: 0 | G219: 293 | H219: 0 | I219: 0 | J219: 383 | K219: 0 | L219: 0 | M219: 278 | N219: 0 | O219: 0 | P219: 302 | Q219: 0 | R219: 0 | S219: 398 | T219: 0 | U219: 0 | V219: 367 | W219: 0 | X219: 0 | Y219: 407 | Z219: 0 | AA219: 0 | AB219: 407 | AC219: 0 | AD219: 0 | AE219: 261 | AF219: 0 | AG219: 0
A220: CASANARE | B220: AMAZONAS | C220: Ciclo 5 Adultos | D220: 273 | E220: 0 | F220: 0 | G220: 268 | H220: 0 | I220: 0 | J220: 289 | K220: 0 | L220: 0 | M220: 322 | N220: 0 | O220: 0 | P220: 272 | Q220: 0 | R220: 0 | S220: 276 | T220: 0 | U220: 0 | V220: 327 | W220: 0 | X220: 0 | Y220: 369 | Z220: 0 | AA220: 0 | AB220: 328 | AC220: 0 | AD220: 0 | AE220: 186 | AF220: 0 | AG220: 0
A221: CAUCA | B221: AMAZONAS | C221: Ciclo 6 Adultos | D221: 196 | E221: 0 | F221: 0 | G221: 217 | H221: 0 | I221: 0 | J221: 203 | K221: 0 | L221: 0 | M221: 230 | N221: 0 | O221: 0 | P221: 215 | Q221: 0 | R221: 0 | S221: 236 | T221: 0 | U221: 0 | V221: 265 | W221: 0 | X221: 0 | Y221: 258 | Z221: 0 | AA221: 0 | AB221: 248 | AC221: 0 | AD221: 0 | AE221: 192 | AF221: 0 | AG221: 10
A222: CESAR | B222: AMAZONAS | C222: Semestre introductorio NS | D222: 0 | E222: 0 | F222: 0 | G222: 0 | H222: 0 | I222: 0 | J222: 0 | K222: 0 | L222: 0 | M222: 0 | N222: 0 | O222: 0 | P222: 0 | Q222: 0 | R222: 0 | S222: 0 | T222: 0 | U222: 0 | V222: 0 | W222: 0 | X222: 0 | Y222: 0 | Z222: 0 | AA222: 0 | AB222: 0 | AC222: 0 | AD222: 0 | AE222: 0 | AF222: 0 | AG222: 0
A223: CHIA | B223: AMAZONAS | C223: Programa formación compl 1 NS | D223: 0 | E223: 0 | F223: 0 | G223: 0 | H223: 0 | I223: 0 | J223: 0 | K223: 0 | L223: 0 | M223: 0 | N223: 0 | O223: 0 | P223: 0 | Q223: 0 | R223: 0 | S223: 0 | T223: 0 | U223: 0 | V223: 0 | W223: 0 | X223: 0 | Y223: 0 | Z223: 0 | AA223: 0 | AB223: 0 | AC223: 0 | AD223: 0 | AE223: 0 | AF223: 0 | AG223: 0
A224: CHOCO | B224: AMAZONAS | C224: Programa formación compl 2 NS | D224: 0 | E224: 0 | F224: 0 | G224: 0 | H224: 0 | I224: 0 | J224: 0 | K224: 0 | L224: 0 | M224: 0 | N224: 0 | O224: 0 | P224: 0 | Q224: 0 | R224: 0 | S224: 0 | T224: 0 | U224: 0 | V224: 0 | W224: 0 | X224: 0 | Y224: 0 | Z224: 0 | AA224: 0 | AB224: 0 | AC224: 0 | AD224: 0 | AE224: 0 | AF224: 0 | AG224: 0
A225: CIENAGA | B225: AMAZONAS | C225: Programa formación compl 3 NS | D225: 0 | E225: 0 | F225: 0 | G225: 0 | H225: 0 | I225: 0 | J225: 0 | K225: 0 | L225: 0 | M225: 0 | N225: 0 | O225: 0 | P225: 0 | Q225: 0 | R225: 0 | S225: 0 | T225: 0 | U225: 0 | V225: 0 | W225: 0 | X225: 0 | Y225: 0 | Z225: 0 | AA225: 0 | AB225: 0 | AC225: 0 | AD225: 0 | AE225: 0 | AF225: 0 | AG225: 0
A226: CORDOBA | B226: AMAZONAS | C226: Programa formación compl 4 NS | D226: 0 | E226: 0 | F226: 0 | G226: 0 | H226: 0 | I226: 0 | J226: 0 | K226: 0 | L226: 0 | M226: 0 | N226: 0 | O226: 0 | P226: 0 | Q226: 0 | R226: 0 | S226: 0 | T226: 0 | U226: 0 | V226: 0 | W226: 0 | X226: 0 | Y226: 0 | Z226: 0 | AA226: 0 | AB226: 0 | AC226: 0 | AD226: 0 | AE226: 0 | AF226: 0 | AG226: 0
A227: CUCUTA | B227: AMAZONAS | C227: Aceleración del Aprendizaje | D227: 18 | E227: 0 | F227: 0 | G227: 21 | H227: 0 | I227: 0 | J227: 21 | K227: 0 | L227: 0 | M227: 56 | N227: 0 | O227: 0 | P227: 26 | Q227: 0 | R227: 0 | S227: 46 | T227: 0 | U227: 0 | V227: 33 | W227: 0 | X227: 0 | Y227: 17 | Z227: 0 | AA227: 0 | AB227: 0 | AC227: 0 | AD227: 0 | AE227: 0 | AF227: 0 | AG227: 0
A228: CUNDINAMARCA | B228: ANTIOQUIA | C228: Prejardín | D228: 0 | E228: 0 | F228: 1,092 | G228: 0 | H228: 0 | I228: 981 | J228: 0 | K228: 0 | L228: 1,397 | M228: 0 | N228: 0 | O228: 1,335 | P228: 0 | Q228: 0 | R228: 1,391 | S228: 0 | T228: 0 | U228: 1,504 | V228: 0 | W228: 0 | X228: 1,357 | Y228: 0 | Z228: 0 | AA228: 1,202 | AB228: 0 | AC228: 0 | AD228: 1,263 | AE228: 0 | AF228: 0 | AG228: 1,312
A229: DOSQUEBRADAS | B229: ANTIOQUIA | C229: Jardín | D229: 0 | E229: 0 | F229: 1,392 | G229: 0 | H229: 0 | I229: 1,476 | J229: 0 | K229: 0 | L229: 1,642 | M229: 0 | N229: 0 | O229: 1,717 | P229: 26 | Q229: 0 | R229: 1,699 | S229: 0 | T229: 0 | U229: 1,742 | V229: 0 | W229: 0 | X229: 1,854 | Y229: 0 | Z229: 0 | AA229: 1,660 | AB229: 0 | AC229: 0 | AD229: 1,901 | AE229: 0 | AF229: 0 | AG229: 1,809
A230: DUITAMA | B230: ANTIOQUIA | C230: Transición | D230: 35,385 | E230: 2,124 | F230: 1,764 | G230: 33,088 | H230: 1,979 | I230: 1,680 | J230: 31,964 | K230: 1,967 | L230: 1,860 | M230: 32,022 | N230: 1,443 | O230: 1,953 | P230: 31,156 | Q230: 1,170 | R230: 1,954 | S230: 30,742 | T230: 1,301 | U230: 1,962 | V230: 30,057 | W230: 1,088 | X230: 2,104 | Y230: 29,921 | Z230: 971 | AA230: 2,067 | AB230: 32,233 | AC230: 1,019 | AD230: 2,305 | AE230: 31,517 | AF230: 1,295 | AG230: 2,401
A231: ENVIGADO | B231: ANTIOQUIA | C231: Primero | D231: 53,570 | E231: 4,248 | F231: 1,424 | G231: 50,124 | H231: 3,888 | I231: 1,555 | J231: 47,261 | K231: 3,532 | L231: 1,556 | M231: 44,490 | N231: 2,799 | O231: 1,616 | P231: 43,913 | Q231: 2,316 | R231: 1,600 | S231: 42,631 | T231: 2,097 | U231: 1,724 | V231: 41,131 | W231: 1,847 | X231: 1,706 | Y231: 39,076 | Z231: 1,539 | AA231: 1,716 | AB231: 40,849 | AC231: 1,627 | AD231: 1,968 | AE231: 41,290 | AF231: 1,628 | AG231: 2,013
A232: FACATATIVA | B232: ANTIOQUIA | C232: Segundo | D232: 51,883 | E232: 3,579 | F232: 1,509 | G232: 47,616 | H232: 3,268 | I232: 1,506 | J232: 45,579 | K232: 2,947 | L232: 1,538 | M232: 43,230 | N232: 2,598 | O232: 1,592 | P232: 40,498 | Q232: 2,289 | R232: 1,555 | S232: 39,930 | T232: 2,005 | U232: 1,570 | V232: 38,734 | W232: 1,827 | X232: 1,694 | Y232: 39,079 | Z232: 1,748 | AA232: 1,604 | AB232: 37,148 | AC232: 1,590 | AD232: 1,819 | AE232: 37,427 | AF232: 1,558 | AG232: 1,924
A233: FLORENCIA | B233: ANTIOQUIA | C233: Tercero | D233: 48,559 | E233: 3,179 | F233: 1,432 | G233: 49,182 | H233: 2,961 | I233: 1,512 | J233: 46,667 | K233: 2,710 | L233: 1,577 | M233: 44,169 | N233: 2,352 | O233: 1,576 | P233: 41,591 | Q233: 2,363 | R233: 1,542 | S233: 39,755 | T233: 2,121 | U233: 1,565 | V233: 39,249 | W233: 1,892 | X233: 1,577 | Y233: 38,845 | Z233: 1,785 | AA233: 1,597 | AB233: 36,531 | AC233: 1,703 | AD233: 1,673 | AE233: 36,346 | AF233: 1,522 | AG233: 1,862
A234: FLORIDABLANCA | B234: ANTIOQUIA | C234: Cuarto | D234: 46,715 | E234: 2,662 | F234: 1,419 | G234: 45,760 | H234: 2,642 | I234: 1,435 | J234: 46,880 | K234: 2,393 | L234: 1,504 | M234: 44,349 | N234: 2,205 | O234: 1,593 | P234: 41,857 | Q234: 2,014 | R234: 1,546 | S234: 40,158 | T234: 1,914 | U234: 1,490 | V234: 38,539 | W234: 1,724 | X234: 1,553 | Y234: 39,102 | Z234: 1,695 | AA234: 1,526 | AB234: 37,236 | AC234: 1,615 | AD234: 1,668 | AE234: 34,794 | AF234: 1,465 | AG234: 1,677
A235: FUNZA | B235: ANTIOQUIA | C235: Quinto | D235: 44,961 | E235: 2,371 | F235: 1,308 | G235: 43,998 | H235: 2,289 | I235: 1,455 | J235: 43,817 | K235: 1,958 | L235: 1,496 | M235: 44,345 | N235: 2,014 | O235: 1,547 | P235: 42,114 | Q235: 1,836 | R235: 1,609 | S235: 40,615 | T235: 1,778 | U235: 1,529 | V235: 38,870 | W235: 1,636 | X235: 1,504 | Y235: 38,486 | Z235: 1,704 | AA235: 1,483 | AB235: 37,797 | AC235: 1,638 | AD235: 1,603 | AE235: 35,923 | AF235: 1,541 | AG235: 1,696
A236: FUSAGASUGA | B236: ANTIOQUIA | C236: Sexto | D236: 46,069 | E236: 5,473 | F236: 1,243 | G236: 46,314 | H236: 5,443 | I236: 1,507 | J236: 46,432 | K236: 5,045 | L236: 1,502 | M236: 47,241 | N236: 3,850 | O236: 1,513 | P236: 48,053 | Q236: 3,694 | R236: 1,583 | S236: 45,853 | T236: 3,503 | U236: 1,631 | V236: 45,528 | W236: 3,391 | X236: 1,580 | Y236: 42,046 | Z236: 2,909 | AA236: 1,650 | AB236: 40,453 | AC236: 3,060 | AD236: 1,624 | AE236: 39,550 | AF236: 2,829 | AG236: 1,703
A237: GIRARDOT | B237: ANTIOQUIA | C237: Septimo | D237: 39,083 | E237: 5,485 | F237: 1,282 | G237: 37,628 | H237: 4,725 | I237: 1,351 | J237: 39,240 | K237: 4,031 | L237: 1,310 | M237: 39,072 | N237: 3,677 | O237: 1,517 | P237: 39,436 | Q237: 3,318 | R237: 1,506 | S237: 40,305 | T237: 3,151 | U237: 1,507 | V237: 39,620 | W237: 3,065 | X237: 1,623 | Y237: 40,820 | Z237: 3,210 | AA237: 1,700 | AB237: 37,394 | AC237: 2,784 | AD237: 1,651 | AE237: 36,257 | AF237: 2,718 | AG237: 1,616
A238: GIRON | B238: ANTIOQUIA | C238: Octavo | D238: 33,318 | E238: 3,354 | F238: 1,217 | G238: 32,710 | H238: 4,593 | I238: 1,380 | J238: 32,213 | K238: 3,475 | L238: 1,252 | M238: 33,484 | N238: 3,107 | O238: 1,325 | P238: 32,929 | Q238: 2,994 | R238: 1,469 | S238: 34,325 | T238: 2,669 | U238: 1,412 | V238: 35,566 | W238: 2,697 | X238: 1,449 | Y238: 36,186 | Z238: 2,780 | AA238: 1,652 | AB238: 34,847 | AC238: 2,823 | AD238: 1,670 | AE238: 32,654 | AF238: 2,365 | AG238: 1,653
A239: GUAINIA | B239: ANTIOQUIA | C239: Noveno | D239: 28,012 | E239: 3,421 | F239: 1,177 | G239: 27,665 | H239: 2,966 | I239: 1,324 | J239: 28,108 | K239: 3,056 | L239: 1,202 | M239: 27,485 | N239: 2,673 | O239: 1,245 | P239: 28,360 | Q239: 2,463 | R239: 1,313 | S239: 28,674 | T239: 2,419 | U239: 1,401 | V239: 30,093 | W239: 2,362 | X239: 1,328 | Y239: 32,328 | Z239: 2,533 | AA239: 1,481 | AB239: 31,069 | AC239: 2,415 | AD239: 1,570 | AE239: 29,810 | AF239: 2,371 | AG239: 1,569
A240: GUAVIARE | B240: ANTIOQUIA | C240: Decimo | D240: 23,426 | E240: 2,742 | F240: 1,040 | G240: 23,431 | H240: 2,720 | I240: 1,081 | J240: 23,624 | K240: 2,087 | L240: 1,121 | M240: 23,800 | N240: 2,318 | O240: 1,130 | P240: 23,437 | Q240: 2,030 | R240: 1,141 | S240: 24,350 | T240: 1,876 | U240: 1,139 | V240: 25,141 | W240: 1,905 | X240: 1,316 | Y240: 26,342 | Z240: 2,114 | AA240: 1,314 | AB240: 26,850 | AC240: 2,043 | AD240: 1,373 | AE240: 25,890 | AF240: 1,927 | AG240: 1,465
A241: HUILA | B241: ANTIOQUIA | C241: Once | D241: 19,472 | E241: 2,422 | F241: 1,016 | G241: 18,844 | H241: 2,373 | I241: 1,032 | J241: 19,808 | K241: 1,819 | L241: 986 | M241: 19,585 | N241: 1,555 | O241: 1,042 | P241: 19,652 | Q241: 1,886 | R241: 1,023 | S241: 20,058 | T241: 1,576 | U241: 1,028 | V241: 21,035 | W241: 1,537 | X241: 1,036 | Y241: 21,614 | Z241: 1,705 | AA241: 1,262 | AB241: 21,385 | AC241: 1,661 | AD241: 1,205 | AE241: 22,403 | AF241: 1,592 | AG241: 1,215
A242: IBAGUE | B242: ANTIOQUIA | C242: 12º Normal | D242: 587 | E242: 0 | F242: 6 | G242: 594 | H242: 0 | I242: 0 | J242: 416 | K242: 0 | L242: 0 | M242: 383 | N242: 0 | O242: 1 | P242: 411 | Q242: 0 | R242: 0 | S242: 441 | T242: 0 | U242: 0 | V242: 461 | W242: 0 | X242: 0 | Y242: 448 | Z242: 0 | AA242: 0 | AB242: 498 | AC242: 0 | AD242: 1 | AE242: 0 | AF242: 0 | AG242: 0
A243: IPIALES | B243: ANTIOQUIA | C243: 13º Normal | D243: 658 | E243: 0 | F243: 0 | G243: 519 | H243: 1 | I243: 0 | J243: 419 | K243: 0 | L243: 0 | M243: 335 | N243: 0 | O243: 0 | P243: 275 | Q243: 0 | R243: 0 | S243: 279 | T243: 0 | U243: 0 | V243: 307 | W243: 0 | X243: 0 | Y243: 350 | Z243: 0 | AA243: 0 | AB243: 341 | AC243: 0 | AD243: 0 | AE243: 0 | AF243: 0 | AG243: 1
A244: ITAGUI | B244: ANTIOQUIA | C244: Ciclo 1 Adultos | D244: 460 | E244: 1,982 | F244: 8 | G244: 10,207 | H244: 27 | I244: 4 | J244: 9,738 | K244: 34 | L244: 0 | M244: 3,228 | N244: 0 | O244: 26 | P244: 10,274 | Q244: 0 | R244: 0 | S244: 3,606 | T244: 0 | U244: 0 | V244: 107 | W244: 0 | X244: 0 | Y244: 1,099 | Z244: 0 | AA244: 0 | AB244: 196 | AC244: 0 | AD244: 0 | AE244: 107 | AF244: 0 | AG244: 1
A245: JAMUNDI | B245: ANTIOQUIA | C245: Ciclo 2 Adultos | D245: 1,316 | E245: 2,039 | F245: 32 | G245: 1,896 | H245: 1,327 | I245: 25 | J245: 2,536 | K245: 2,018 | L245: 18 | M245: 2,438 | N245: 0 | O245: 19 | P245: 2,158 | Q245: 0 | R245: 485 | S245: 2,013 | T245: 0 | U245: 104 | V245: 2,031 | W245: 0 | X245: 24 | Y245: 1,399 | Z245: 0 | AA245: 26 | AB245: 1,720 | AC245: 0 | AD245: 30 | AE245: 1,114 | AF245: 0 | AG245: 36
A246: LA ESTRELLA | B246: ANTIOQUIA | C246: Ciclo 3 Adultos | D246: 6,300 | E246: 3,239 | F246: 481 | G246: 7,608 | H246: 3,210 | I246: 502 | J246: 8,520 | K246: 1,593 | L246: 507 | M246: 10,083 | N246: 0 | O246: 382 | P246: 11,542 | Q246: 0 | R246: 893 | S246: 11,304 | T246: 0 | U246: 804 | V246: 9,924 | W246: 0 | X246: 447 | Y246: 8,131 | Z246: 0 | AA246: 442 | AB246: 8,912 | AC246: 0 | AD246: 556 | AE246: 7,037 | AF246: 0 | AG246: 522
A247: LA GUAJIRA | B247: ANTIOQUIA | C247: Ciclo 4 Adultos | D247: 7,229 | E247: 2,958 | F247: 899 | G247: 8,672 | H247: 3,076 | I247: 821 | J247: 9,827 | K247: 2,398 | L247: 883 | M247: 11,018 | N247: 0 | O247: 874 | P247: 12,085 | Q247: 0 | R247: 1,205 | S247: 12,387 | T247: 0 | U247: 1,192 | V247: 11,861 | W247: 0 | X247: 1,146 | Y247: 10,021 | Z247: 0 | AA247: 742 | AB247: 10,305 | AC247: 0 | AD247: 1,041 | AE247: 9,368 | AF247: 0 | AG247: 1,074
A248: LORICA | B248: ANTIOQUIA | C248: Ciclo 5 Adultos | D248: 2,414 | E248: 1,246 | F248: 533 | G248: 3,517 | H248: 1,019 | I248: 621 | J248: 3,568 | K248: 929 | L248: 681 | M248: 3,218 | N248: 0 | O248: 529 | P248: 4,014 | Q248: 0 | R248: 960 | S248: 3,206 | T248: 0 | U248: 439 | V248: 2,276 | W248: 0 | X248: 591 | Y248: 4,539 | Z248: 0 | AA248: 725 | AB248: 2,832 | AC248: 0 | AD248: 789 | AE248: 3,039 | AF248: 0 | AG248: 902
A249: MAGANGUE | B249: ANTIOQUIA | C249: Ciclo 6 Adultos | D249: 6,226 | E249: 1,325 | F249: 1,470 | G249: 6,254 | H249: 1,524 | I249: 1,259 | J249: 7,103 | K249: 1,445 | L249: 1,179 | M249: 8,667 | N249: 0 | O249: 1,293 | P249: 9,040 | Q249: 0 | R249: 1,295 | S249: 10,299 | T249: 0 | U249: 2,116 | V249: 11,214 | W249: 0 | X249: 1,417 | Y249: 7,856 | Z249: 0 | AA249: 1,279 | AB249: 8,302 | AC249: 0 | AD249: 1,931 | AE249: 7,176 | AF249: 0 | AG249: 1,764
A250: MAGDALENA | B250: ANTIOQUIA | C250: Semestre introductorio NS | D250: 0 | E250: 0 | F250: 0 | G250: 0 | H250: 0 | I250: 0 | J250: 0 | K250: 0 | L250: 0 | M250: 0 | N250: 0 | O250: 0 | P250: 0 | Q250: 0 | R250: 0 | S250: 0 | T250: 0 | U250: 0 | V250: 0 | W250: 0 | X250: 0 | Y250: 0 | Z250: 0 | AA250: 0 | AB250: 0 | AC250: 0 | AD250: 0 | AE250: 128 | AF250: 0 | AG250: 0
A251: MAICAO | B251: ANTIOQUIA | C251: Programa formación compl 1 NS | D251: 0 | E251: 0 | F251: 0 | G251: 0 | H251: 0 | I251: 0 | J251: 0 | K251: 0 | L251: 0 | M251: 0 | N251: 0 | O251: 0 | P251: 0 | Q251: 0 | R251: 0 | S251: 0 | T251: 0 | U251: 0 | V251: 0 | W251: 0 | X251: 0 | Y251: 0 | Z251: 0 | AA251: 0 | AB251: 0 | AC251: 0 | AD251: 0 | AE251: 210 | AF251: 0 | AG251: 1
A252: MALAMBO | B252: ANTIOQUIA | C252: Programa formación compl 2 NS | D252: 0 | E252: 0 | F252: 0 | G252: 0 | H252: 0 | I252: 0 | J252: 0 | K252: 0 | L252: 0 | M252: 0 | N252: 0 | O252: 0 | P252: 0 | Q252: 0 | R252: 0 | S252: 0 | T252: 0 | U252: 0 | V252: 0 | W252: 0 | X252: 0 | Y252: 0 | Z252: 0 | AA252: 0 | AB252: 0 | AC252: 0 | AD252: 0 | AE252: 173 | AF252: 0 | AG252: 0
A253: MANIZALES | B253: ANTIOQUIA | C253: Programa formación compl 3 NS | D253: 0 | E253: 0 | F253: 0 | G253: 0 | H253: 0 | I253: 0 | J253: 0 | K253: 0 | L253: 0 | M253: 0 | N253: 0 | O253: 0 | P253: 0 | Q253: 0 | R253: 0 | S253: 0 | T253: 0 | U253: 0 | V253: 0 | W253: 0 | X253: 0 | Y253: 0 | Z253: 0 | AA253: 0 | AB253: 0 | AC253: 0 | AD253: 0 | AE253: 119 | AF253: 0 | AG253: 0
A254: MEDELLIN | B254: ANTIOQUIA | C254: Programa formación compl 4 NS | D254: 0 | E254: 0 | F254: 0 | G254: 0 | H254: 0 | I254: 0 | J254: 0 | K254: 0 | L254: 0 | M254: 0 | N254: 0 | O254: 0 | P254: 0 | Q254: 0 | R254: 0 | S254: 0 | T254: 0 | U254: 0 | V254: 0 | W254: 0 | X254: 0 | Y254: 0 | Z254: 0 | AA254: 0 | AB254: 0 | AC254: 0 | AD254: 0 | AE254: 225 | AF254: 0 | AG254: 0
A255: META | B255: ANTIOQUIA | C255: Aceleración del Aprendizaje | D255: 1,141 | E255: 700 | F255: 0 | G255: 1,238 | H255: 747 | I255: 0 | J255: 1,317 | K255: 4 | L255: 0 | M255: 1,334 | N255: 0 | O255: 0 | P255: 1,619 | Q255: 0 | R255: 0 | S255: 1,495 | T255: 0 | U255: 0 | V255: 1,427 | W255: 0 | X255: 0 | Y255: 1,212 | Z255: 0 | AA255: 0 | AB255: 1,219 | AC255: 0 | AD255: 0 | AE255: 1,170 | AF255: 0 | AG255: 0
A256: MONTERIA | B256: APARTADO | C256: Prejardín | D256: 0 | E256: 0 | F256: 39 | G256: 0 | H256: 0 | I256: 27 | J256: 0 | K256: 0 | L256: 38 | M256: 0 | N256: 0 | O256: 20 | P256: 0 | Q256: 0 | R256: 46 | S256: 0 | T256: 0 | U256: 83 | V256: 0 | W256: 0 | X256: 84 | Y256: 0 | Z256: 0 | AA256: 162 | AB256: 0 | AC256: 0 | AD256: 53 | AE256: 0 | AF256: 0 | AG256: 163
A257: MOSQUERA | B257: APARTADO | C257: Jardín | D257: 0 | E257: 0 | F257: 85 | G257: 0 | H257: 0 | I257: 73 | J257: 0 | K257: 0 | L257: 63 | M257: 0 | N257: 0 | O257: 63 | P257: 0 | Q257: 0 | R257: 111 | S257: 0 | T257: 0 | U257: 113 | V257: 0 | W257: 0 | X257: 119 | Y257: 0 | Z257: 0 | AA257: 214 | AB257: 0 | AC257: 0 | AD257: 214 | AE257: 0 | AF257: 0 | AG257: 191
A258: NARIÑO | B258: APARTADO | C258: Transición | D258: 1,915 | E258: 469 | F258: 161 | G258: 2,064 | H258: 99 | I258: 133 | J258: 1,868 | K258: 70 | L258: 150 | M258: 2,084 | N258: 7 | O258: 172 | P258: 1,957 | Q258: 0 | R258: 188 | S258: 1,979 | T258: 0 | U258: 167 | V258: 2,079 | W258: 0 | X258: 194 | Y258: 1,893 | Z258: 0 | AA258: 178 | AB258: 2,057 | AC258: 0 | AD258: 238 | AE258: 1,890 | AF258: 0 | AG258: 261
A259: NEIVA | B259: APARTADO | C259: Primero | D259: 2,499 | E259: 711 | F259: 201 | G259: 2,807 | H259: 103 | I259: 184 | J259: 2,586 | K259: 0 | L259: 218 | M259: 2,394 | N259: 54 | O259: 184 | P259: 2,477 | Q259: 2 | R259: 190 | S259: 2,529 | T259: 0 | U259: 168 | V259: 2,342 | W259: 0 | X259: 149 | Y259: 2,370 | Z259: 0 | AA259: 150 | AB259: 2,279 | AC259: 0 | AD259: 181 | AE259: 2,268 | AF259: 0 | AG259: 168
A260: NORTE_DE_SANTANDER | B260: APARTADO | C260: Segundo | D260: 2,349 | E260: 782 | F260: 187 | G260: 2,867 | H260: 99 | I260: 216 | J260: 2,809 | K260: 0 | L260: 210 | M260: 2,467 | N260: 5 | O260: 205 | P260: 2,278 | Q260: 0 | R260: 189 | S260: 2,354 | T260: 0 | U260: 184 | V260: 2,293 | W260: 0 | X260: 165 | Y260: 2,225 | Z260: 0 | AA260: 135 | AB260: 2,226 | AC260: 0 | AD260: 161 | AE260: 2,105 | AF260: 0 | AG260: 176
A261: PALMIRA | B261: APARTADO | C261: Tercero | D261: 2,293 | E261: 648 | F261: 199 | G261: 2,755 | H261: 107 | I261: 221 | J261: 2,716 | K261: 0 | L261: 204 | M261: 2,657 | N261: 3 | O261: 198 | P261: 2,335 | Q261: 0 | R261: 215 | S261: 2,242 | T261: 0 | U261: 172 | V261: 2,250 | W261: 0 | X261: 191 | Y261: 2,246 | Z261: 0 | AA261: 144 | AB261: 2,107 | AC261: 0 | AD261: 150 | AE261: 2,105 | AF261: 0 | AG261: 171
A262: PASTO | B262: APARTADO | C262: Cuarto | D262: 2,262 | E262: 602 | F262: 178 | G262: 2,543 | H262: 102 | I262: 212 | J262: 2,634 | K262: 0 | L262: 200 | M262: 2,722 | N262: 3 | O262: 195 | P262: 2,605 | Q262: 0 | R262: 193 | S262: 2,366 | T262: 0 | U262: 217 | V262: 2,167 | W262: 0 | X262: 171 | Y262: 2,255 | Z262: 0 | AA262: 186 | AB262: 2,147 | AC262: 0 | AD262: 150 | AE262: 1,952 | AF262: 0 | AG262: 149
A263: PEREIRA | B263: APARTADO | C263: Quinto | D263: 2,168 | E263: 537 | F263: 167 | G263: 2,524 | H263: 124 | I263: 198 | J263: 2,583 | K263: 0 | L263: 196 | M263: 2,649 | N263: 4 | O263: 201 | P263: 2,633 | Q263: 0 | R263: 205 | S263: 2,534 | T263: 0 | U263: 195 | V263: 2,339 | W263: 0 | X263: 198 | Y263: 2,162 | Z263: 0 | AA263: 163 | AB263: 2,187 | AC263: 0 | AD263: 180 | AE263: 2,068 | AF263: 0 | AG263: 157
A264: PIEDECUESTA | B264: APARTADO | C264: Sexto | D264: 2,543 | E264: 527 | F264: 160 | G264: 3,043 | H264: 104 | I264: 186 | J264: 3,150 | K264: 0 | L264: 190 | M264: 3,231 | N264: 0 | O264: 203 | P264: 3,063 | Q264: 0 | R264: 205 | S264: 3,209 | T264: 0 | U264: 218 | V264: 2,941 | W264: 0 | X264: 190 | Y264: 2,567 | Z264: 0 | AA264: 158 | AB264: 2,328 | AC264: 0 | AD264: 157 | AE264: 2,330 | AF264: 0 | AG264: 178
A265: PITALITO | B265: APARTADO | C265: Septimo | D265: 2,220 | E265: 364 | F265: 141 | G265: 2,499 | H265: 80 | I265: 192 | J265: 2,585 | K265: 0 | L265: 160 | M265: 2,606 | N265: 0 | O265: 185 | P265: 2,990 | Q265: 0 | R265: 209 | S265: 2,804 | T265: 0 | U265: 196 | V265: 2,912 | W265: 0 | X265: 221 | Y265: 2,878 | Z265: 0 | AA265: 166 | AB265: 2,553 | AC265: 0 | AD265: 159 | AE265: 2,341 | AF265: 0 | AG265: 158
A266: POPAYAN | B266: APARTADO | C266: Octavo | D266: 1,941 | E266: 231 | F266: 159 | G266: 2,015 | H266: 47 | I266: 158 | J266: 2,085 | K266: 0 | L266: 161 | M266: 2,183 | N266: 0 | O266: 148 | P266: 2,208 | Q266: 0 | R266: 185 | S266: 2,320 | T266: 0 | U266: 199 | V266: 2,370 | W266: 0 | X266: 194 | Y266: 2,406 | Z266: 0 | AA266: 196 | AB266: 2,246 | AC266: 0 | AD266: 181 | AE266: 1,980 | AF266: 0 | AG266: 159
A267: PUTUMAYO | B267: APARTADO | C267: Noveno | D267: 1,563 | E267: 155 | F267: 118 | G267: 1,770 | H267: 15 | I267: 162 | J267: 1,720 | K267: 0 | L267: 138 | M267: 1,750 | N267: 0 | O267: 157 | P267: 1,910 | Q267: 0 | R267: 152 | S267: 2,052 | T267: 0 | U267: 172 | V267: 2,226 | W267: 0 | X267: 194 | Y267: 2,475 | Z267: 0 | AA267: 166 | AB267: 2,306 | AC267: 0 | AD267: 193 | AE267: 2,142 | AF267: 0 | AG267: 187
A268: QUIBDO | B268: APARTADO | C268: Decimo | D268: 1,269 | E268: 66 | F268: 146 | G268: 1,438 | H268: 0 | I268: 117 | J268: 1,511 | K268: 0 | L268: 153 | M268: 1,457 | N268: 0 | O268: 116 | P268: 1,495 | Q268: 0 | R268: 147 | S268: 1,622 | T268: 0 | U268: 134 | V268: 1,784 | W268: 0 | X268: 153 | Y268: 1,919 | Z268: 0 | AA268: 177 | AB268: 1,957 | AC268: 0 | AD268: 173 | AE268: 1,873 | AF268: 0 | AG268: 175
A269: QUINDIO | B269: APARTADO | C269: Once | D269: 1,035 | E269: 56 | F269: 89 | G269: 1,055 | H269: 0 | I269: 162 | J269: 1,171 | K269: 0 | L269: 107 | M269: 1,278 | N269: 0 | O269: 136 | P269: 1,174 | Q269: 0 | R269: 107 | S269: 1,223 | T269: 0 | U269: 145 | V269: 1,387 | W269: 0 | X269: 130 | Y269: 1,417 | Z269: 0 | AA269: 136 | AB269: 1,452 | AC269: 0 | AD269: 165 | AE269: 1,503 | AF269: 0 | AG269: 160
A270: RIOHACHA | B270: APARTADO | C270: 12º Normal | D270: 0 | E270: 0 | F270: 0 | G270: 0 | H270: 0 | I270: 0 | J270: 0 | K270: 0 | L270: 0 | M270: 0 | N270: 0 | O270: 0 | P270: 0 | Q270: 0 | R270: 0 | S270: 0 | T270: 0 | U270: 0 | V270: 0 | W270: 0 | X270: 0 | Y270: 0 | Z270: 0 | AA270: 0 | AB270: 0 | AC270: 0 | AD270: 0 | AE270: 0 | AF270: 0 | AG270: 0
A271: RIONEGRO | B271: APARTADO | C271: 13º Normal | D271: 0 | E271: 0 | F271: 0 | G271: 0 | H271: 0 | I271: 0 | J271: 0 | K271: 0 | L271: 0 | M271: 0 | N271: 0 | O271: 0 | P271: 0 | Q271: 0 | R271: 0 | S271: 0 | T271: 0 | U271: 0 | V271: 0 | W271: 0 | X271: 0 | Y271: 0 | Z271: 0 | AA271: 0 | AB271: 0 | AC271: 0 | AD271: 0 | AE271: 0 | AF271: 0 | AG271: 0
A272: RISARALDA | B272: APARTADO | C272: Ciclo 1 Adultos | D272: 124 | E272: 0 | F272: 0 | G272: 1,649 | H272: 0 | I272: 0 | J272: 941 | K272: 0 | L272: 0 | M272: 33 | N272: 0 | O272: 0 | P272: 926 | Q272: 0 | R272: 0 | S272: 8 | T272: 0 | U272: 0 | V272: 0 | W272: 0 | X272: 0 | Y272: 382 | Z272: 2 | AA272: 0 | AB272: 0 | AC272: 0 | AD272: 0 | AE272: 2 | AF272: 0 | AG272: 0
A273: SABANETA | B273: APARTADO | C273: Ciclo 2 Adultos | D273: 325 | E273: 0 | F273: 0 | G273: 456 | H273: 0 | I273: 0 | J273: 1,431 | K273: 2,122 | L273: 0 | M273: 913 | N273: 0 | O273: 1 | P273: 41 | Q273: 432 | R273: 0 | S273: 110 | T273: 217 | U273: 0 | V273: 10 | W273: 216 | X273: 0 | Y273: 17 | Z273: 186 | AA273: 5 | AB273: 8 | AC273: 79 | AD273: 11 | AE273: 11 | AF273: 98 | AG273: 5
A274: SAHAGUN | B274: APARTADO | C274: Ciclo 3 Adultos | D274: 1,026 | E274: 22 | F274: 10 | G274: 1,199 | H274: 3 | I274: 10 | J274: 1,330 | K274: 597 | L274: 1 | M274: 1,336 | N274: 0 | O274: 30 | P274: 54 | Q274: 1,504 | R274: 7 | S274: 133 | T274: 857 | U274: 4 | V274: 24 | W274: 600 | X274: 6 | Y274: 47 | Z274: 562 | AA274: 16 | AB274: 30 | AC274: 498 | AD274: 70 | AE274: 28 | AF274: 426 | AG274: 37
A275: SAN_ANDRES | B275: APARTADO | C275: Ciclo 4 Adultos | D275: 1,141 | E275: 46 | F275: 10 | G275: 1,229 | H275: 0 | I275: 18 | J275: 1,470 | K275: 356 | L275: 8 | M275: 1,347 | N275: 0 | O275: 29 | P275: 37 | Q275: 1,211 | R275: 19 | S275: 203 | T275: 1,495 | U275: 10 | V275: 25 | W275: 815 | X275: 6 | Y275: 74 | Z275: 783 | AA275: 18 | AB275: 45 | AC275: 627 | AD275: 52 | AE275: 25 | AF275: 616 | AG275: 65
A276: SANTA_MARTA | B276: APARTADO | C276: Ciclo 5 Adultos | D276: 159 | E276: 28 | F276: 13 | G276: 215 | H276: 0 | I276: 16 | J276: 318 | K276: 161 | L276: 17 | M276: 344 | N276: 0 | O276: 39 | P276: 95 | Q276: 78 | R276: 31 | S276: 49 | T276: 263 | U276: 18 | V276: 8 | W276: 166 | X276: 33 | Y276: 184 | Z276: 190 | AA276: 25 | AB276: 89 | AC276: 154 | AD276: 68 | AE276: 38 | AF276: 185 | AG276: 75
A277: SANTANDER | B277: APARTADO | C277: Ciclo 6 Adultos | D277: 1,117 | E277: 4 | F277: 34 | G277: 1,073 | H277: 24 | I277: 30 | J277: 1,047 | K277: 80 | L277: 0 | M277: 1,120 | N277: 0 | O277: 9 | P277: 132 | Q277: 1,092 | R277: 91 | S277: 61 | T277: 997 | U277: 90 | V277: 17 | W277: 968 | X277: 20 | Y277: 168 | Z277: 497 | AA277: 124 | AB277: 25 | AC277: 710 | AD277: 76 | AE277: 52 | AF277: 729 | AG277: 180
A278: SINCELEJO | B278: APARTADO | C278: Semestre introductorio NS | D278: 0 | E278: 0 | F278: 0 | G278: 0 | H278: 0 | I278: 0 | J278: 0 | K278: 0 | L278: 0 | M278: 0 | N278: 0 | O278: 0 | P278: 0 | Q278: 0 | R278: 0 | S278: 0 | T278: 0 | U278: 0 | V278: 0 | W278: 0 | X278: 0 | Y278: 0 | Z278: 0 | AA278: 0 | AB278: 0 | AC278: 0 | AD278: 0 | AE278: 0 | AF278: 0 | AG278: 0
A279: SOACHA | B279: APARTADO | C279: Programa formación compl 1 NS | D279: 0 | E279: 0 | F279: 0 | G279: 0 | H279: 0 | I279: 0 | J279: 0 | K279: 0 | L279: 0 | M279: 0 | N279: 0 | O279: 0 | P279: 0 | Q279: 0 | R279: 0 | S279: 0 | T279: 0 | U279: 0 | V279: 0 | W279: 0 | X279: 0 | Y279: 0 | Z279: 0 | AA279: 0 | AB279: 0 | AC279: 0 | AD279: 0 | AE279: 0 | AF279: 0 | AG279: 0
A280: SOGAMOSO | B280: APARTADO | C280: Programa formación compl 2 NS | D280: 0 | E280: 0 | F280: 0 | G280: 0 | H280: 0 | I280: 0 | J280: 0 | K280: 0 | L280: 0 | M280: 0 | N280: 0 | O280: 0 | P280: 0 | Q280: 0 | R280: 0 | S280: 0 | T280: 0 | U280: 0 | V280: 0 | W280: 0 | X280: 0 | Y280: 0 | Z280: 0 | AA280: 0 | AB280: 0 | AC280: 0 | AD280: 0 | AE280: 0 | AF280: 0 | AG280: 0
A281: SOLEDAD | B281: APARTADO | C281: Programa formación compl 3 NS | D281: 0 | E281: 0 | F281: 0 | G281: 0 | H281: 0 | I281: 0 | J281: 0 | K281: 0 | L281: 0 | M281: 0 | N281: 0 | O281: 0 | P281: 0 | Q281: 0 | R281: 0 | S281: 0 | T281: 0 | U281: 0 | V281: 0 | W281: 0 | X281: 0 | Y281: 0 | Z281: 0 | AA281: 0 | AB281: 0 | AC281: 0 | AD281: 0 | AE281: 0 | AF281: 0 | AG281: 0
A282: SUCRE | B282: APARTADO | C282: Programa formación compl 4 NS | D282: 0 | E282: 0 | F282: 0 | G282: 0 | H282: 0 | I282: 0 | J282: 0 | K282: 0 | L282: 0 | M282: 0 | N282: 0 | O282: 0 | P282: 0 | Q282: 0 | R282: 0 | S282: 0 | T282: 0 | U282: 0 | V282: 0 | W282: 0 | X282: 0 | Y282: 0 | Z282: 0 | AA282: 0 | AB282: 0 | AC282: 0 | AD282: 0 | AE282: 0 | AF282: 0 | AG282: 0
A283: TOLIMA | B283: APARTADO | C283: Aceleración del Aprendizaje | D283: 228 | E283: 0 | F283: 0 | G283: 267 | H283: 0 | I283: 0 | J283: 340 | K283: 0 | L283: 0 | M283: 285 | N283: 0 | O283: 0 | P283: 436 | Q283: 0 | R283: 0 | S283: 427 | T283: 0 | U283: 0 | V283: 411 | W283: 0 | X283: 0 | Y283: 347 | Z283: 0 | AA283: 0 | AB283: 358 | AC283: 0 | AD283: 0 | AE283: 389 | AF283: 0 | AG283: 0
A284: TULUA | B284: ARAUCA | C284: Prejardín | D284: 0 | E284: 0 | F284: 125 | G284: 0 | H284: 0 | I284: 217 | J284: 0 | K284: 0 | L284: 60 | M284: 0 | N284: 0 | O284: 227 | P284: 0 | Q284: 0 | R284: 130 | S284: 0 | T284: 0 | U284: 144 | V284: 0 | W284: 0 | X284: 150 | Y284: 0 | Z284: 0 | AA284: 68 | AB284: 0 | AC284: 0 | AD284: 195 | AE284: 0 | AF284: 0 | AG284: 206
A285: TUMACO | B285: ARAUCA | C285: Jardín | D285: 0 | E285: 0 | F285: 292 | G285: 0 | H285: 0 | I285: 270 | J285: 0 | K285: 0 | L285: 240 | M285: 0 | N285: 0 | O285: 251 | P285: 0 | Q285: 0 | R285: 325 | S285: 0 | T285: 0 | U285: 269 | V285: 0 | W285: 0 | X285: 307 | Y285: 0 | Z285: 0 | AA285: 194 | AB285: 0 | AC285: 0 | AD285: 327 | AE285: 139 | AF285: 0 | AG285: 305
A286: TUNJA | B286: ARAUCA | C286: Transición | D286: 4,715 | E286: 0 | F286: 290 | G286: 4,983 | H286: 0 | I286: 361 | J286: 4,971 | K286: 0 | L286: 298 | M286: 5,024 | N286: 0 | O286: 335 | P286: 5,089 | Q286: 0 | R286: 260 | S286: 5,158 | T286: 0 | U286: 336 | V286: 5,247 | W286: 0 | X286: 347 | Y286: 5,546 | Z286: 0 | AA286: 310 | AB286: 5,806 | AC286: 0 | AD286: 389 | AE286: 5,402 | AF286: 0 | AG286: 416
A287: TURBO | B287: ARAUCA | C287: Primero | D287: 6,441 | E287: 0 | F287: 287 | G287: 6,155 | H287: 0 | I287: 320 | J287: 6,189 | K287: 0 | L287: 297 | M287: 6,234 | N287: 0 | O287: 317 | P287: 6,506 | Q287: 0 | R287: 296 | S287: 6,752 | T287: 0 | U287: 244 | V287: 6,874 | W287: 0 | X287: 361 | Y287: 6,967 | Z287: 0 | AA287: 330 | AB287: 7,316 | AC287: 0 | AD287: 371 | AE287: 7,347 | AF287: 0 | AG287: 366
A288: URIBIA | B288: ARAUCA | C288: Segundo | D288: 5,922 | E288: 0 | F288: 271 | G288: 5,713 | H288: 0 | I288: 291 | J288: 5,444 | K288: 0 | L288: 313 | M288: 5,585 | N288: 0 | O288: 322 | P288: 5,731 | Q288: 0 | R288: 305 | S288: 5,952 | T288: 0 | U288: 297 | V288: 6,072 | W288: 0 | X288: 299 | Y288: 6,388 | Z288: 0 | AA288: 295 | AB288: 5,740 | AC288: 0 | AD288: 341 | AE288: 6,256 | AF288: 0 | AG288: 393
A289: VALLE | B289: ARAUCA | C289: Tercero | D289: 5,457 | E289: 0 | F289: 265 | G289: 5,756 | H289: 0 | I289: 287 | J289: 5,643 | K289: 0 | L289: 250 | M289: 5,415 | N289: 0 | O289: 296 | P289: 5,505 | Q289: 0 | R289: 292 | S289: 5,742 | T289: 0 | U289: 291 | V289: 5,975 | W289: 0 | X289: 309 | Y289: 6,291 | Z289: 0 | AA289: 278 | AB289: 5,709 | AC289: 0 | AD289: 300 | AE289: 5,374 | AF289: 0 | AG289: 347
A290: VALLEDUPAR | B290: ARAUCA | C290: Cuarto | D290: 5,135 | E290: 0 | F290: 230 | G290: 5,400 | H290: 0 | I290: 252 | J290: 5,711 | K290: 0 | L290: 248 | M290: 5,474 | N290: 0 | O290: 247 | P290: 5,416 | Q290: 0 | R290: 258 | S290: 5,490 | T290: 0 | U290: 292 | V290: 5,733 | W290: 0 | X290: 298 | Y290: 5,908 | Z290: 0 | AA290: 263 | AB290: 5,579 | AC290: 0 | AD290: 275 | AE290: 5,220 | AF290: 0 | AG290: 293
A291: VAUPES | B291: ARAUCA | C291: Quinto | D291: 4,877 | E291: 0 | F291: 198 | G291: 4,870 | H291: 0 | I291: 221 | J291: 5,238 | K291: 0 | L291: 235 | M291: 5,582 | N291: 0 | O291: 244 | P291: 5,512 | Q291: 0 | R291: 204 | S291: 5,552 | T291: 0 | U291: 241 | V291: 5,513 | W291: 0 | X291: 293 | Y291: 5,847 | Z291: 0 | AA291: 269 | AB291: 5,620 | AC291: 0 | AD291: 262 | AE291: 5,265 | AF291: 0 | AG291: 284
A292: VICHADA | B292: ARAUCA | C292: Sexto | D292: 5,327 | E292: 0 | F292: 159 | G292: 5,414 | H292: 0 | I292: 184 | J292: 5,507 | K292: 0 | L292: 174 | M292: 5,808 | N292: 0 | O292: 187 | P292: 6,171 | Q292: 0 | R292: 189 | S292: 5,982 | T292: 0 | U292: 193 | V292: 6,127 | W292: 0 | X292: 239 | Y292: 6,041 | Z292: 0 | AA292: 264 | AB292: 5,763 | AC292: 0 | AD292: 253 | AE292: 5,613 | AF292: 0 | AG292: 269
A293: VILLAVICENCIO | B293: ARAUCA | C293: Septimo | D293: 4,459 | E293: 0 | F293: 181 | G293: 4,645 | H293: 0 | I293: 159 | J293: 4,618 | K293: 0 | L293: 160 | M293: 4,708 | N293: 0 | O293: 168 | P293: 4,982 | Q293: 0 | R293: 162 | S293: 5,446 | T293: 0 | U293: 202 | V293: 5,431 | W293: 0 | X293: 196 | Y293: 5,673 | Z293: 0 | AA293: 228 | AB293: 5,206 | AC293: 0 | AD293: 261 | AE293: 5,145 | AF293: 0 | AG293: 301
A294: YOPAL | B294: ARAUCA | C294: Octavo | D294: 3,665 | E294: 0 | F294: 171 | G294: 3,684 | H294: 0 | I294: 164 | J294: 3,882 | K294: 0 | L294: 146 | M294: 3,922 | N294: 0 | O294: 149 | P294: 3,956 | Q294: 0 | R294: 146 | S294: 4,252 | T294: 0 | U294: 171 | V294: 4,657 | W294: 0 | X294: 197 | Y294: 4,622 | Z294: 0 | AA294: 191 | AB294: 4,296 | AC294: 0 | AD294: 239 | AE294: 4,126 | AF294: 0 | AG294: 290
A295: YUMBO | B295: ARAUCA | C295: Noveno | D295: 3,003 | E295: 0 | F295: 147 | G295: 3,157 | H295: 0 | I295: 140 | J295: 3,225 | K295: 0 | L295: 144 | M295: 3,359 | N295: 0 | O295: 134 | P295: 3,343 | Q295: 0 | R295: 142 | S295: 3,432 | T295: 0 | U295: 116 | V295: 3,825 | W295: 0 | X295: 171 | Y295: 4,377 | Z295: 0 | AA295: 191 | AB295: 4,020 | AC295: 0 | AD295: 210 | AE295: 3,913 | AF295: 0 | AG295: 268
A296: ZIPAQUIRA | B296: ARAUCA | C296: Decimo | D296: 2,629 | E296: 0 | F296: 110 | G296: 2,666 | H296: 0 | I296: 126 | J296: 2,785 | K296: 0 | L296: 104 | M296: 2,890 | N296: 0 | O296: 129 | P296: 2,900 | Q296: 0 | R296: 85 | S296: 2,924 | T296: 0 | U296: 99 | V296: 3,025 | W296: 0 | X296: 123 | Y296: 3,259 | Z296: 0 | AA296: 161 | AB296: 3,391 | AC296: 0 | AD296: 208 | AE296: 3,335 | AF296: 0 | AG296: 222
A297: COLOMBIA | B297: ARAUCA | C297: Once | D297: 2,000 | E297: 0 | F297: 120 | G297: 2,154 | H297: 0 | I297: 108 | J297: 2,177 | K297: 0 | L297: 117 | M297: 2,195 | N297: 0 | O297: 123 | P297: 2,345 | Q297: 0 | R297: 118 | S297: 2,356 | T297: 0 | U297: 108 | V297: 2,466 | W297: 0 | X297: 126 | Y297: 2,499 | Z297: 0 | AA297: 129 | AB297: 2,486 | AC297: 0 | AD297: 150 | AE297: 2,810 | AF297: 0 | AG297: 252
B298: ARAUCA | C298: 12º Normal | D298: 96 | E298: 0 | F298: 0 | G298: 89 | H298: 0 | I298: 0 | J298: 118 | K298: 0 | L298: 0 | M298: 100 | N298: 0 | O298: 0 | P298: 78 | Q298: 0 | R298: 0 | S298: 98 | T298: 0 | U298: 0 | V298: 111 | W298: 0 | X298: 0 | Y298: 96 | Z298: 0 | AA298: 0 | AB298: 113 | AC298: 0 | AD298: 0 | AE298: 0 | AF298: 0 | AG298: 0
B299: ARAUCA | C299: 13º Normal | D299: 27 | E299: 0 | F299: 0 | G299: 48 | H299: 1 | I299: 0 | J299: 49 | K299: 0 | L299: 0 | M299: 28 | N299: 0 | O299: 0 | P299: 53 | Q299: 0 | R299: 0 | S299: 51 | T299: 0 | U299: 0 | V299: 43 | W299: 0 | X299: 0 | Y299: 48 | Z299: 0 | AA299: 0 | AB299: 38 | AC299: 0 | AD299: 0 | AE299: 0 | AF299: 0 | AG299: 0
B300: ARAUCA | C300: Ciclo 1 Adultos | D300: 0 | E300: 580 | F300: 0 | G300: 0 | H300: 0 | I300: 0 | J300: 1,027 | K300: 0 | L300: 0 | M300: 1,076 | N300: 0 | O300: 0 | P300: 1,844 | Q300: 0 | R300: 0 | S300: 7 | T300: 0 | U300: 0 | V300: 703 | W300: 0 | X300: 0 | Y300: 1,131 | Z300: 0 | AA300: 0 | AB300: 39 | AC300: 0 | AD300: 0 | AE300: 0 | AF300: 0 | AG300: 1
B301: ARAUCA | C301: Ciclo 2 Adultos | D301: 0 | E301: 330 | F301: 0 | G301: 30 | H301: 0 | I301: 0 | J301: 17 | K301: 0 | L301: 0 | M301: 97 | N301: 0 | O301: 0 | P301: 824 | Q301: 0 | R301: 0 | S301: 170 | T301: 0 | U301: 0 | V301: 90 | W301: 0 | X301: 0 | Y301: 96 | Z301: 0 | AA301: 0 | AB301: 91 | AC301: 0 | AD301: 0 | AE301: 70 | AF301: 0 | AG301: 0
B302: ARAUCA | C302: Ciclo 3 Adultos | D302: 1,080 | E302: 61 | F302: 46 | G302: 1,359 | H302: 1 | I302: 82 | J302: 1,267 | K302: 0 | L302: 80 | M302: 1,409 | N302: 0 | O302: 79 | P302: 1,469 | Q302: 0 | R302: 101 | S302: 1,330 | T302: 0 | U302: 89 | V302: 1,132 | W302: 0 | X302: 55 | Y302: 1,008 | Z302: 0 | AA302: 52 | AB302: 1,103 | AC302: 0 | AD302: 83 | AE302: 985 | AF302: 0 | AG302: 84
B303: ARAUCA | C303: Ciclo 4 Adultos | D303: 1,108 | E303: 63 | F303: 115 | G303: 1,493 | H303: 8 | I303: 187 | J303: 1,443 | K303: 0 | L303: 181 | M303: 1,371 | N303: 0 | O303: 133 | P303: 1,569 | Q303: 0 | R303: 194 | S303: 1,534 | T303: 0 | U303: 242 | V303: 1,363 | W303: 0 | X303: 181 | Y303: 1,210 | Z303: 0 | AA303: 172 | AB303: 1,195 | AC303: 0 | AD303: 220 | AE303: 1,185 | AF303: 0 | AG303: 216
B304: ARAUCA | C304: Ciclo 5 Adultos | D304: 526 | E304: 85 | F304: 83 | G304: 506 | H304: 0 | I304: 137 | J304: 661 | K304: 0 | L304: 150 | M304: 313 | N304: 0 | O304: 107 | P304: 302 | Q304: 0 | R304: 97 | S304: 402 | T304: 0 | U304: 123 | V304: 291 | W304: 0 | X304: 205 | Y304: 276 | Z304: 0 | AA304: 264 | AB304: 206 | AC304: 0 | AD304: 216 | AE304: 335 | AF304: 0 | AG304: 307
B305: ARAUCA | C305: Ciclo 6 Adultos | D305: 576 | E305: 47 | F305: 73 | G305: 894 | H305: 0 | I305: 126 | J305: 963 | K305: 0 | L305: 223 | M305: 1,194 | N305: 0 | O305: 271 | P305: 1,381 | Q305: 0 | R305: 418 | S305: 1,317 | T305: 0 | U305: 1,079 | V305: 1,410 | W305: 0 | X305: 729 | Y305: 1,178 | Z305: 0 | AA305: 856 | AB305: 1,154 | AC305: 0 | AD305: 1,012 | AE305: 976 | AF305: 0 | AG305: 859
B306: ARAUCA | C306: Semestre introductorio NS | D306: 0 | E306: 0 | F306: 0 | G306: 0 | H306: 0 | I306: 0 | J306: 0 | K306: 0 | L306: 0 | M306: 0 | N306: 0 | O306: 0 | P306: 0 | Q306: 0 | R306: 0 | S306: 0 | T306: 0 | U306: 0 | V306: 0 | W306: 0 | X306: 0 | Y306: 0 | Z306: 0 | AA306: 0 | AB306: 0 | AC306: 0 | AD306: 0 | AE306: 9 | AF306: 0 | AG306: 0
B307: ARAUCA | C307: Programa formación compl 1 NS | D307: 0 | E307: 0 | F307: 0 | G307: 0 | H307: 0 | I307: 0 | J307: 0 | K307: 0 | L307: 0 | M307: 0 | N307: 0 | O307: 0 | P307: 0 | Q307: 0 | R307: 0 | S307: 0 | T307: 0 | U307: 0 | V307: 0 | W307: 0 | X307: 0 | Y307: 0 | Z307: 0 | AA307: 0 | AB307: 0 | AC307: 0 | AD307: 0 | AE307: 25 | AF307: 0 | AG307: 0
B308: ARAUCA | C308: Programa formación compl 2 NS | D308: 0 | E308: 0 | F308: 0 | G308: 0 | H308: 0 | I308: 0 | J308: 0 | K308: 0 | L308: 0 | M308: 0 | N308: 0 | O308: 0 | P308: 0 | Q308: 0 | R308: 0 | S308: 0 | T308: 0 | U308: 0 | V308: 0 | W308: 0 | X308: 0 | Y308: 0 | Z308: 0 | AA308: 0 | AB308: 0 | AC308: 0 | AD308: 0 | AE308: 36 | AF308: 0 | AG308: 0
B309: ARAUCA | C309: Programa formación compl 3 NS | D309: 0 | E309: 0 | F309: 0 | G309: 0 | H309: 0 | I309: 0 | J309: 0 | K309: 0 | L309: 0 | M309: 0 | N309: 0 | O309: 0 | P309: 0 | Q309: 0 | R309: 0 | S309: 0 | T309: 0 | U309: 0 | V309: 0 | W309: 0 | X309: 0 | Y309: 0 | Z309: 0 | AA309: 0 | AB309: 0 | AC309: 0 | AD309: 0 | AE309: 26 | AF309: 0 | AG309: 0
B310: ARAUCA | C310: Programa formación compl 4 NS | D310: 0 | E310: 0 | F310: 0 | G310: 0 | H310: 0 | I310: 0 | J310: 0 | K310: 0 | L310: 0 | M310: 0 | N310: 0 | O310: 0 | P310: 0 | Q310: 0 | R310: 0 | S310: 0 | T310: 0 | U310: 0 | V310: 0 | W310: 0 | X310: 0 | Y310: 0 | Z310: 0 | AA310: 0 | AB310: 0 | AC310: 0 | AD310: 0 | AE310: 37 | AF310: 0 | AG310: 0
B311: ARAUCA | C311: Aceleración del Aprendizaje | D311: 113 | E311: 0 | F311: 0 | G311: 129 | H311: 0 | I311: 0 | J311: 134 | K311: 0 | L311: 0 | M311: 95 | N311: 0 | O311: 0 | P311: 162 | Q311: 0 | R311: 0 | S311: 184 | T311: 0 | U311: 0 | V311: 330 | W311: 0 | X311: 0 | Y311: 333 | Z311: 0 | AA311: 0 | AB311: 446 | AC311: 0 | AD311: 0 | AE311: 415 | AF311: 0 | AG311: 0
B312: ARMENIA | C312: Prejardín | D312: 0 | E312: 0 | F312: 446 | G312: 0 | H312: 0 | I312: 548 | J312: 0 | K312: 0 | L312: 644 | M312: 0 | N312: 0 | O312: 605 | P312: 0 | Q312: 0 | R312: 638 | S312: 0 | T312: 0 | U312: 623 | V312: 0 | W312: 0 | X312: 476 | Y312: 0 | Z312: 0 | AA312: 323 | AB312: 0 | AC312: 0 | AD312: 409 | AE312: 57 | AF312: 0 | AG312: 376
B313: ARMENIA | C313: Jardín | D313: 0 | E313: 0 | F313: 620 | G313: 0 | H313: 0 | I313: 669 | J313: 0 | K313: 0 | L313: 729 | M313: 0 | N313: 0 | O313: 785 | P313: 0 | Q313: 0 | R313: 793 | S313: 0 | T313: 0 | U313: 801 | V313: 0 | W313: 0 | X313: 765 | Y313: 0 | Z313: 0 | AA313: 510 | AB313: 295 | AC313: 0 | AD313: 586 | AE313: 557 | AF313: 0 | AG313: 490
B314: ARMENIA | C314: Transición | D314: 2,628 | E314: 0 | F314: 628 | G314: 2,557 | H314: 0 | I314: 725 | J314: 2,389 | K314: 0 | L314: 827 | M314: 2,407 | N314: 0 | O314: 805 | P314: 2,472 | Q314: 0 | R314: 843 | S314: 2,513 | T314: 0 | U314: 870 | V314: 2,576 | W314: 0 | X314: 866 | Y314: 2,432 | Z314: 0 | AA314: 787 | AB314: 2,717 | AC314: 0 | AD314: 800 | AE314: 2,563 | AF314: 0 | AG314: 740
B315: ARMENIA | C315: Primero | D315: 3,250 | E315: 0 | F315: 683 | G315: 2,897 | H315: 0 | I315: 696 | J315: 2,849 | K315: 0 | L315: 764 | M315: 2,799 | N315: 0 | O315: 724 | P315: 2,817 | Q315: 0 | R315: 711 | S315: 2,859 | T315: 0 | U315: 724 | V315: 2,948 | W315: 0 | X315: 734 | Y315: 2,929 | Z315: 0 | AA315: 684 | AB315: 3,033 | AC315: 0 | AD315: 763 | AE315: 3,194 | AF315: 0 | AG315: 750
B316: ARMENIA | C316: Segundo | D316: 3,576 | E316: 0 | F316: 620 | G316: 3,119 | H316: 0 | I316: 721 | J316: 2,868 | K316: 0 | L316: 739 | M316: 2,839 | N316: 0 | O316: 711 | P316: 2,695 | Q316: 0 | R316: 702 | S316: 2,740 | T316: 0 | U316: 725 | V316: 2,834 | W316: 0 | X316: 695 | Y316: 2,902 | Z316: 0 | AA316: 670 | AB316: 2,984 | AC316: 0 | AD316: 722 | AE316: 2,828 | AF316: 0 | AG316: 799
B317: ARMENIA | C317: Tercero | D317: 3,438 | E317: 0 | F317: 652 | G317: 3,490 | H317: 0 | I317: 639 | J317: 3,090 | K317: 0 | L317: 719 | M317: 2,903 | N317: 0 | O317: 699 | P317: 2,851 | Q317: 0 | R317: 687 | S317: 2,778 | T317: 0 | U317: 645 | V317: 2,745 | W317: 0 | X317: 679 | Y317: 2,792 | Z317: 0 | AA317: 648 | AB317: 2,858 | AC317: 0 | AD317: 656 | AE317: 2,908 | AF317: 0 | AG317: 748
B318: ARMENIA | C318: Cuarto | D318: 3,418 | E318: 0 | F318: 632 | G318: 3,427 | H318: 0 | I318: 644 | J318: 3,508 | K318: 0 | L318: 672 | M318: 3,121 | N318: 0 | O318: 663 | P318: 2,935 | Q318: 0 | R318: 688 | S318: 2,810 | T318: 0 | U318: 675 | V318: 2,809 | W318: 0 | X318: 614 | Y318: 2,740 | Z318: 0 | AA318: 605 | AB318: 2,708 | AC318: 0 | AD318: 649 | AE318: 2,657 | AF318: 0 | AG318: 708
B319: ARMENIA | C319: Quinto | D319: 3,696 | E319: 0 | F319: 591 | G319: 3,348 | H319: 0 | I319: 637 | J319: 3,348 | K319: 0 | L319: 667 | M319: 3,456 | N319: 0 | O319: 613 | P319: 3,154 | Q319: 0 | R319: 659 | S319: 2,926 | T319: 0 | U319: 668 | V319: 2,845 | W319: 0 | X319: 630 | Y319: 2,800 | Z319: 0 | AA319: 566 | AB319: 2,800 | AC319: 0 | AD319: 602 | AE319: 2,602 | AF319: 0 | AG319: 669
B320: ARMENIA | C320: Sexto | D320: 4,320 | E320: 1 | F320: 585 | G320: 4,010 | H320: 0 | I320: 640 | J320: 3,789 | K320: 0 | L320: 722 | M320: 3,765 | N320: 0 | O320: 637 | P320: 3,811 | Q320: 0 | R320: 607 | S320: 3,445 | T320: 0 | U320: 639 | V320: 3,321 | W320: 0 | X320: 629 | Y320: 3,138 | Z320: 0 | AA320: 564 | AB320: 3,123 | AC320: 0 | AD320: 554 | AE320: 3,074 | AF320: 0 | AG320: 650
B321: ARMENIA | C321: Septimo | D321: 4,444 | E321: 0 | F321: 609 | G321: 4,142 | H321: 0 | I321: 620 | J321: 3,989 | K321: 0 | L321: 648 | M321: 3,890 | N321: 0 | O321: 637 | P321: 3,812 | Q321: 0 | R321: 627 | S321: 3,928 | T321: 0 | U321: 601 | V321: 3,746 | W321: 0 | X321: 600 | Y321: 3,493 | Z321: 0 | AA321: 567 | AB321: 3,261 | AC321: 0 | AD321: 570 | AE321: 3,089 | AF321: 0 | AG321: 592
B322: ARMENIA | C322: Octavo | D322: 3,897 | E322: 0 | F322: 642 | G322: 3,735 | H322: 0 | I322: 601 | J322: 3,445 | K322: 0 | L322: 657 | M322: 3,523 | N322: 0 | O322: 571 | P322: 3,382 | Q322: 0 | R322: 631 | S322: 3,264 | T322: 0 | U322: 607 | V322: 3,383 | W322: 0 | X322: 561 | Y322: 3,178 | Z322: 0 | AA322: 582 | AB322: 2,965 | AC322: 0 | AD322: 590 | AE322: 2,795 | AF322: 0 | AG322: 629
B323: ARMENIA | C323: Noveno | D323: 3,958 | E323: 1 | F323: 590 | G323: 3,679 | H323: 0 | I323: 629 | J323: 3,643 | K323: 0 | L323: 594 | M323: 3,385 | N323: 0 | O323: 564 | P323: 3,422 | Q323: 0 | R323: 525 | S323: 3,372 | T323: 0 | U323: 583 | V323: 3,424 | W323: 0 | X323: 544 | Y323: 3,609 | Z323: 0 | AA323: 534 | AB323: 3,313 | AC323: 0 | AD323: 552 | AE323: 2,863 | AF323: 0 | AG323: 570
B324: ARMENIA | C324: Decimo | D324: 3,059 | E324: 0 | F324: 518 | G324: 3,357 | H324: 0 | I324: 567 | J324: 3,208 | K324: 0 | L324: 579 | M324: 3,006 | N324: 0 | O324: 450 | P324: 2,829 | Q324: 0 | R324: 489 | S324: 2,847 | T324: 0 | U324: 466 | V324: 2,877 | W324: 0 | X324: 508 | Y324: 2,791 | Z324: 0 | AA324: 478 | AB324: 2,842 | AC324: 0 | AD324: 489 | AE324: 2,665 | AF324: 0 | AG324: 556
B325: ARMENIA | C325: Once | D325: 2,796 | E325: 0 | F325: 481 | G325: 2,579 | H325: 0 | I325: 508 | J325: 3,037 | K325: 0 | L325: 545 | M325: 2,972 | N325: 0 | O325: 483 | P325: 2,765 | Q325: 0 | R325: 466 | S325: 2,597 | T325: 0 | U325: 440 | V325: 2,637 | W325: 0 | X325: 410 | Y325: 2,774 | Z325: 0 | AA325: 477 | AB325: 2,606 | AC325: 0 | AD325: 404 | AE325: 2,435 | AF325: 0 | AG325: 431
B326: ARMENIA | C326: 12º Normal | D326: 202 | E326: 0 | F326: 0 | G326: 275 | H326: 0 | I326: 0 | J326: 131 | K326: 0 | L326: 0 | M326: 130 | N326: 0 | O326: 0 | P326: 133 | Q326: 0 | R326: 0 | S326: 141 | T326: 0 | U326: 0 | V326: 116 | W326: 0 | X326: 0 | Y326: 68 | Z326: 0 | AA326: 0 | AB326: 89 | AC326: 0 | AD326: 0 | AE326: 0 | AF326: 0 | AG326: 0
B327: ARMENIA | C327: 13º Normal | D327: 68 | E327: 0 | F327: 0 | G327: 99 | H327: 0 | I327: 0 | J327: 155 | K327: 0 | L327: 0 | M327: 94 | N327: 0 | O327: 0 | P327: 66 | Q327: 0 | R327: 0 | S327: 68 | T327: 0 | U327: 0 | V327: 81 | W327: 0 | X327: 0 | Y327: 95 | Z327: 0 | AA327: 0 | AB327: 73 | AC327: 0 | AD327: 0 | AE327: 0 | AF327: 0 | AG327: 0
B328: ARMENIA | C328: Ciclo 1 Adultos | D328: 137 | E328: 2 | F328: 25 | G328: 80 | H328: 0 | I328: 25 | J328: 86 | K328: 0 | L328: 0 | M328: 67 | N328: 0 | O328: 0 | P328: 33 | Q328: 0 | R328: 0 | S328: 70 | T328: 0 | U328: 0 | V328: 52 | W328: 0 | X328: 0 | Y328: 39 | Z328: 0 | AA328: 0 | AB328: 31 | AC328: 0 | AD328: 0 | AE328: 27 | AF328: 0 | AG328: 0
B329: ARMENIA | C329: Ciclo 2 Adultos | D329: 305 | E329: 1 | F329: 29 | G329: 143 | H329: 0 | I329: 38 | J329: 178 | K329: 0 | L329: 0 | M329: 187 | N329: 0 | O329: 0 | P329: 135 | Q329: 0 | R329: 0 | S329: 151 | T329: 0 | U329: 0 | V329: 170 | W329: 0 | X329: 2 | Y329: 91 | Z329: 0 | AA329: 0 | AB329: 99 | AC329: 0 | AD329: 4 | AE329: 108 | AF329: 0 | AG329: 10
B330: ARMENIA | C330: Ciclo 3 Adultos | D330: 935 | E330: 0 | F330: 40 | G330: 715 | H330: 0 | I330: 42 | J330: 579 | K330: 0 | L330: 32 | M330: 555 | N330: 0 | O330: 33 | P330: 477 | Q330: 0 | R330: 17 | S330: 397 | T330: 0 | U330: 18 | V330: 374 | W330: 0 | X330: 14 | Y330: 228 | Z330: 0 | AA330: 13 | AB330: 216 | AC330: 0 | AD330: 19 | AE330: 201 | AF330: 0 | AG330: 18
B331: ARMENIA | C331: Ciclo 4 Adultos | D331: 1,172 | E331: 0 | F331: 76 | G331: 993 | H331: 0 | I331: 104 | J331: 971 | K331: 0 | L331: 84 | M331: 824 | N331: 0 | O331: 76 | P331: 745 | Q331: 0 | R331: 74 | S331: 591 | T331: 0 | U331: 81 | V331: 482 | W331: 0 | X331: 75 | Y331: 314 | Z331: 0 | AA331: 88 | AB331: 249 | AC331: 0 | AD331: 71 | AE331: 262 | AF331: 0 | AG331: 53
... 2616 more rows

Sheet 5 MAT SECTOR ZONA
B1: MATRICULA POR GRADOS SEGÚN SECTOR ZONA | AD1: Indice | BK1: Indice
B2: =+'1 ESTAB'!B2 -> Corte OCTUBRE 2023 información preliminar
D5: 2014 | J5: 2015 | P5: 2016 | V5: 2017 | AB5: 2018 | AH5: 2019 | AN5: 2020 | AT5: 2021 | AZ5: 2022 | BF5: =+'1 ESTAB'!M4 -> Oct. 2023
B6: ENTIDAD | D6: Oficial | F6: Contratada | H6: No Oficial | J6: Oficial | L6: Contratada | N6: No Oficial | P6: Oficial | R6: Contratada | T6: No Oficial | V6: Oficial | X6: Contratada | Z6: No Oficial | AB6: Oficial | AD6: Contratada | AF6: No Oficial | AH6: Oficial | AJ6: Contratada | AL6: No Oficial | AN6: Oficial | AP6: Contratada | AR6: No Oficial | AT6: Oficial | AV6: Contratada | AX6: No Oficial | AZ6: Oficial | BB6: Contratada | BD6: No Oficial | BF6: Oficial | BH6: Contratada | BJ6: No Oficial
B7: AMAZONAS | C7: Grado | D7: Urbano | E7: Rural | F7: Urbano | G7: Rural | H7: Urbano | I7: Rural | J7: Urbano | K7: Rural | L7: Urbano | M7: Rural | N7: Urbano | O7: Rural | P7: Urbano | Q7: Rural | R7: Urbano | S7: Rural | T7: Urbano | U7: Rural | V7: Urbano | W7: Rural | X7: Urbano | Y7: Rural | Z7: Urbano | AA7: Rural | AB7: Urbano | AC7: Rural | AD7: Urbano | AE7: Rural | AF7: Urbano | AG7: Rural | AH7: Urbano | AI7: Rural | AJ7: Urbano | AK7: Rural | AL7: Urbano | AM7: Rural | AN7: Urbano | AO7: Rural | AP7: Urbano | AQ7: Rural | AR7: Urbano | AS7: Rural | AT7: Urbano | AU7: Rural | AV7: Urbano | AW7: Rural | AX7: Urbano | AY7: Rural | AZ7: Urbano | BA7: Rural | BB7: Urbano | BC7: Rural | BD7: Urbano | BE7: Rural | BF7: Urbano | BG7: Rural | BH7: Urbano | BI7: Rural | BJ7: Urbano | BK7: Rural
C8: Prejardín | D8: =+SUMIFS($D$200:$D$3135,$B$200:$B$3135,$B$7,$C$200:$C$3135,C8) -> 0 | E8: =+SUMIFS($E$200:$E$3135,$B$200:$B$3135,$B$7,$C$200:$C$3135,C8) -> 0 | F8: =+SUMIFS($F$200:$F$3135,$B$200:$B$3135,$B$7,$C$200:$C$3135,C8) -> 0 | G8: =+SUMIFS($G$200:$G$3135,$B$200:$B$3135,$B$7,$C$200:$C$3135,C8) -> 0 | H8: =+SUMIFS($H$200:$H$3135,$B$200:$B$3135,$B$7,$C$200:$C$3135,C8) -> 85 | I8: =+SUMIFS($I$200:$I$3135,$B$200:$B$3135,$B$7,$C$200:$C$3135,C8) -> 2 | J8: =+SUMIFS($J$200:$J$3135,$B$200:$B$3135,$B$7,$C$200:$C$3135,C8) -> 0 | K8: =+SUMIFS($K$200:$K$3135,$B$200:$B$3135,$B$7,$C$200:$C$3135,C8) -> 0 | L8: =+SUMIFS($L$200:$L$3135,$B$200:$B$3135,$B$7,$C$200:$C$3135,C8) -> 0 | M8: =+SUMIFS($M$200:$M$3135,$B$200:$B$3135,$B$7,$C$200:$C$3135,C8) -> 0 | N8: =+SUMIFS($N$200:$N$3135,$B$200:$B$3135,$B$7,$C$200:$C$3135,C8) -> 42 | O8: =+SUMIFS($O$200:$O$3135,$B$200:$B$3135,$B$7,$C$200:$C$3135,C8) -> 0 | P8: =+SUMIFS($P$200:$P$3135,$B$200:$B$3135,$B$7,$C$200:$C$3135,C8) -> 0 | Q8: =+SUMIFS($Q$200:$Q$3135,$B$200:$B$3135,$B$7,$C$200:$C$3135,C8) -> 0 | R8: =+SUMIFS($R$200:$R$3135,$B$200:$B$3135,$B$7,$C$200:$C$3135,C8) -> 0 | S8: =+SUMIFS($S$200:$S$3135,$B$200:$B$3135,$B$7,$C$200:$C$3135,C8) -> 0 | T8: =+SUMIFS($T$200:$T$3135,$B$200:$B$3135,$B$7,$C$200:$C$3135,C8) -> 86 | U8: =+SUMIFS($U$200:$U$3135,$B$200:$B$3135,$B$7,$C$200:$C$3135,C8) -> 0 | V8: =+SUMIFS($V$200:$V$3135,$B$200:$B$3135,$B$7,$C$200:$C$3135,C8) -> 0 | W8: =+SUMIFS($W$200:$W$3135,$B$200:$B$3135,$B$7,$C$200:$C$3135,C8) -> 0 | X8: =+SUMIFS($X$200:$X$3135,$B$200:$B$3135,$B$7,$C$200:$C$3135,C8) -> 0 | Y8: =+SUMIFS($Y$200:$Y$3135,$B$200:$B$3135,$B$7,$C$200:$C$3135,C8) -> 0 | Z8: =+SUMIFS($Z$200:$Z$3135,$B$200:$B$3135,$B$7,$C$200:$C$3135,C8) -> 101 | AA8: =+SUMIFS($AA$200:$AA$3135,$B$200:$B$3135,$B$7,$C$200:$C$3135,C8) -> 0 | AB8: =+SUMIFS($AB$200:$AB$3135,$B$200:$B$3135,$B$7,$C$200:$C$3135,C8) -> 0 | AC8: =+SUMIFS($AC$200:$AC$3135,$B$200:$B$3135,$B$7,$C$200:$C$3135,C8) -> 0 | AD8: =+SUMIFS($AD$200:$AD$3135,$B$200:$B$3135,$B$7,$C$200:$C$3135,C8) -> 0 | AE8: =+SUMIFS($AE$200:$AE$3135,$B$200:$B$3135,$B$7,$C$200:$C$3135,C8) -> 0 | AF8: =+SUMIFS($AF$200:$AF$3135,$B$200:$B$3135,$B$7,$C$200:$C$3135,C8) -> 66 | AG8: =+SUMIFS($AG$200:$AG$3135,$B$200:$B$3135,$B$7,$C$200:$C$3135,C8) -> 0 | AH8: =+SUMIFS($AH$200:$AH$3135,$B$200:$B$3135,$B$7,$C$200:$C$3135,C8) -> 0 | AI8: =+SUMIFS($AI$200:$AI$3135,$B$200:$B$3135,$B$7,$C$200:$C$3135,C8) -> 0 | AJ8: =+SUMIFS($AJ$200:$AJ$3135,$B$200:$B$3135,$B$7,$C$200:$C$3135,C8) -> 0 | AK8: =+SUMIFS($AK$200:$AK$3135,$B$200:$B$3135,$B$7,$C$200:$C$3135,C8) -> 0 | AL8: =+SUMIFS($AL$200:$AL$3135,$B$200:$B$3135,$B$7,$C$200:$C$3135,C8) -> 35 | AM8: =+SUMIFS($AM$200:$AM$3135,$B$200:$B$3135,$B$7,$C$200:$C$3135,C8) -> 0 | AN8: =+SUMIFS($AN$200:$AN$3135,$B$200:$B$3135,$B$7,$C$200:$C$3135,C8) -> 0 | AO8: =+SUMIFS($AO$200:$AO$3135,$B$200:$B$3135,$B$7,$C$200:$C$3135,C8) -> 0 | AP8: =+SUMIFS($AP$200:$AP$3135,$B$200:$B$3135,$B$7,$C$200:$C$3135,C8) -> 0 | AQ8: =+SUMIFS($AQ$200:$AQ$3135,$B$200:$B$3135,$B$7,$C$200:$C$3135,C8) -> 0 | AR8: =+SUMIFS($AR$200:$AR$3135,$B$200:$B$3135,$B$7,$C$200:$C$3135,C8) -> 1 | AS8: =+SUMIFS($AS$200:$AS$3135,$B$200:$B$3135,$B$7,$C$200:$C$3135,C8) -> 0 | AT8: =+SUMIFS($AT$200:$AT$3135,$B$200:$B$3135,$B$7,$C$200:$C$3135,C8) -> 0 | AU8: =+SUMIFS($AU$200:$AU$3135,$B$200:$B$3135,$B$7,$C$200:$C$3135,C8) -> 0 | AV8: =+SUMIFS($AV$200:$AV$3135,$B$200:$B$3135,$B$7,$C$200:$C$3135,C8) -> 0 | AW8: =+SUMIFS($AW$200:$AW$3135,$B$200:$B$3135,$B$7,$C$200:$C$3135,C8) -> 0 | AX8: =+SUMIFS($AX$200:$AX$3135,$B$200:$B$3135,$B$7,$C$200:$C$3135,C8) -> 24 | AY8: =+SUMIFS($AY$200:$AY$3135,$B$200:$B$3135,$B$7,$C$200:$C$3135,C8) -> 0 | AZ8: =+SUMIFS($AZ$200:$AZ$3135,$B$200:$B$3135,$B$7,$C$200:$C$3135,C8) -> 0 | BA8: =+SUMIFS($BA$200:$BA$3135,$B$200:$B$3135,$B$7,$C$200:$C$3135,C8) -> 0 | BB8: =+SUMIFS($BB$200:$BB$3135,$B$200:$B$3135,$B$7,$C$200:$C$3135,C8) -> 0 | BC8: =+SUMIFS($BC$200:$BC$3135,$B$200:$B$3135,$B$7,$C$200:$C$3135,C8) -> 0 | BD8: =+SUMIFS($BD$200:$BD$3135,$B$200:$B$3135,$B$7,$C$200:$C$3135,C8) -> 42 | BE8: =+SUMIFS($BE$200:$BE$3135,$B$200:$B$3135,$B$7,$C$200:$C$3135,C8) -> 0 | BF8: =+SUMIFS($BF$200:$BF$3135,$B$200:$B$3135,$B$7,$C$200:$C$3135,C8) -> 0 | BG8: =+SUMIFS($BG$200:$BG$3135,$B$200:$B$3135,$B$7,$C$200:$C$3135,C8) -> 0 | BH8: =+SUMIFS($BH$200:$BH$3135,$B$200:$B$3135,$B$7,$C$200:$C$3135,C8) -> 0 | BI8: =+SUMIFS($BI$200:$BI$3135,$B$200:$B$3135,$B$7,$C$200:$C$3135,C8) -> 0 | BJ8: =+SUMIFS($BJ$200:$BJ$3135,$B$200:$B$3135,$B$7,$C$200:$C$3135,C8) -> 37 | BK8: =+SUMIFS($BK$200:$BK$3135,$B$200:$B$3135,$B$7,$C$200:$C$3135,C8) -> 0
C9: Jardín | D9: 0 | E9: 0 | F9: 0 | G9: 0 | H9: 85 | I9: 6 | J9: 0 | K9: 0 | L9: 0 | M9: 0 | N9: 122 | O9: 0 | P9: 0 | Q9: 0 | R9: 0 | S9: 0 | T9: 111 | U9: 0 | V9: 0 | W9: 0 | X9: 0 | Y9: 0 | Z9: 122 | AA9: 0 | AB9: 1 | AC9: 0 | AD9: 0 | AE9: 0 | AF9: 128 | AG9: 0 | AH9: 6 | AI9: 0 | AJ9: 0 | AK9: =+SUMIFS($AK$200:$AK$3135,$B$200:$B$3135,$B$7,$C$200:$C$3135,C9) -> 0 | AL9: 66 | AM9: 0 | AN9: 6 | AO9: =+SUMIFS($AO$200:$AO$3135,$B$200:$B$3135,$B$7,$C$200:$C$3135,C9) -> 0 | AP9: =+SUMIFS($AP$200:$AP$3135,$B$200:$B$3135,$B$7,$C$200:$C$3135,C9) -> 0 | AQ9: =+SUMIFS($AQ$200:$AQ$3135,$B$200:$B$3135,$B$7,$C$200:$C$3135,C9) -> 0 | AR9: 65 | AS9: 0 | AT9: 2 | AU9: 0 | AV9: 0 | AW9: 0 | AX9: 65 | AY9: 0 | AZ9: 4 | BA9: 0 | BB9: 0 | BC9: 0 | BD9: 68 | BE9: 0 | BF9: 8 | BG9: 0 | BH9: 0 | BI9: 0 | BJ9: 68 | BK9: 0
C10: Transición | D10: 746 | E10: 735 | F10: 0 | G10: 171 | H10: 99 | I10: 4 | J10: 701 | K10: 604 | L10: 0 | M10: 171 | N10: 99 | O10: 0 | P10: 738 | Q10: 665 | R10: 0 | S10: 164 | T10: 118 | U10: 0 | V10: 793 | W10: 775 | X10: 0 | Y10: 188 | Z10: 102 | AA10: 0 | AB10: 702 | AC10: 666 | AD10: 0 | AE10: 139 | AF10: 131 | AG10: 0 | AH10: 810 | AI10: 801 | AJ10: 0 | AK10: 201 | AL10: 116 | AM10: 0 | AN10: 809 | AO10: 732 | AP10: 0 | AQ10: 161 | AR10: 43 | AS10: 0 | AT10: 654 | AU10: 756 | AV10: 0 | AW10: 192 | AX10: 84 | AY10: 0 | AZ10: 763 | BA10: 739 | BB10: 0 | BC10: 143 | BD10: 81 | BE10: 0 | BF10: 685 | BG10: 682 | BH10: 0 | BI10: 178 | BJ10: 74 | BK10: 0
C11: Primero | D11: 1,078 | E11: 981 | F11: 0 | G11: 282 | H11: 70 | I11: 3 | J11: 991 | K11: 943 | L11: 0 | M11: 251 | N11: 91 | O11: 0 | P11: 1,029 | Q11: 832 | R11: 0 | S11: 217 | T11: 77 | U11: 0 | V11: 1,054 | W11: 892 | X11: 0 | Y11: 247 | Z11: 77 | AA11: 0 | AB11: 1,045 | AC11: 980 | AD11: 0 | AE11: 239 | AF11: 72 | AG11: 0 | AH11: 936 | AI11: 973 | AJ11: 0 | AK11: 201 | AL11: 71 | AM11: 0 | AN11: 1,006 | AO11: 969 | AP11: 0 | AQ11: 242 | AR11: 78 | AS11: 0 | AT11: 921 | AU11: 859 | AV11: 0 | AW11: 236 | AX11: 66 | AY11: 0 | AZ11: 857 | BA11: 916 | BB11: 0 | BC11: 241 | BD11: 67 | BE11: 0 | BF11: 921 | BG11: 887 | BH11: 0 | BI11: 223 | BJ11: 80 | BK11: 0
C12: Segundo | D12: 1,117 | E12: 917 | F12: 0 | G12: 272 | H12: 65 | I12: 2 | J12: 924 | K12: 892 | L12: 0 | M12: 274 | N12: 52 | O12: 0 | P12: 925 | Q12: 896 | R12: 0 | S12: 228 | T12: 86 | U12: 0 | V12: 880 | W12: 808 | X12: 0 | Y12: 233 | Z12: 61 | AA12: 0 | AB12: 898 | AC12: 837 | AD12: 0 | AE12: 223 | AF12: 80 | AG12: 0 | AH12: 883 | AI12: 944 | AJ12: 0 | AK12: 230 | AL12: 68 | AM12: 0 | AN12: 862 | AO12: 919 | AP12: 0 | AQ12: 203 | AR12: 65 | AS12: 0 | AT12: 868 | AU12: 956 | AV12: 0 | AW12: 244 | AX12: 73 | AY12: 0 | AZ12: 848 | BA12: 829 | BB12: 0 | BC12: 233 | BD12: 60 | BE12: 0 | BF12: 837 | BG12: 849 | BH12: 0 | BI12: 242 | BJ12: 62 | BK12: 0 | BL12: 4
C13: Tercero | D13: 889 | E13: 815 | F13: 0 | G13: 204 | H13: 45 | I13: 1 | J13: 1,029 | K13: 843 | L13: 0 | M13: 234 | N13: 65 | O13: 0 | P13: 881 | Q13: 810 | R13: 0 | S13: 225 | T13: 59 | U13: 0 | V13: 934 | W13: 827 | X13: 0 | Y13: 221 | Z13: 67 | AA13: 0 | AB13: 879 | AC13: 730 | AD13: 0 | AE13: 189 | AF13: 60 | AG13: 0 | AH13: 837 | AI13: 835 | AJ13: 0 | AK13: 193 | AL13: 70 | AM13: 0 | AN13: 862 | AO13: 887 | AP13: 0 | AQ13: 210 | AR13: 65 | AS13: 0 | AT13: 847 | AU13: 948 | AV13: 0 | AW13: 204 | AX13: 50 | AY13: 0 | AZ13: 832 | BA13: 921 | BB13: 0 | BC13: 212 | BD13: 64 | BE13: 0 | BF13: 840 | BG13: 815 | BH13: 0 | BI13: 231 | BJ13: 53 | BK13: 0
C14: Cuarto | D14: 942 | E14: 749 | F14: 0 | G14: 215 | H14: 30 | I14: 4 | J14: 915 | K14: 735 | L14: 0 | M14: 189 | N14: 49 | O14: 0 | P14: 1,019 | Q14: 758 | R14: 0 | S14: 198 | T14: 73 | U14: 0 | V14: 868 | W14: 771 | X14: 0 | Y14: 200 | Z14: 39 | AA14: 0 | AB14: 882 | AC14: 739 | AD14: 0 | AE14: 200 | AF14: 78 | AG14: 0 | AH14: 827 | AI14: 698 | AJ14: 0 | AK14: 171 | AL14: 55 | AM14: 0 | AN14: 807 | AO14: 738 | AP14: 0 | AQ14: 172 | AR14: 65 | AS14: 0 | AT14: 836 | AU14: 826 | AV14: 0 | AW14: 211 | AX14: 44 | AY14: 0 | AZ14: 764 | BA14: 848 | BB14: 0 | BC14: 163 | BD14: 62 | BE14: 0 | BF14: 781 | BG14: 802 | BH14: 0 | BI14: 173 | BJ14: 57 | BK14: 0
C15: Quinto | D15: 887 | E15: 789 | F15: 0 | G15: 192 | H15: 46 | I15: 2 | J15: 892 | K15: 699 | L15: 0 | M15: 202 | N15: 28 | O15: 0 | P15: 875 | Q15: 713 | R15: 0 | S15: 175 | T15: 51 | U15: 0 | V15: 969 | W15: 699 | X15: 0 | Y15: 187 | Z15: 54 | AA15: 0 | AB15: 842 | AC15: 701 | AD15: 0 | AE15: 162 | AF15: 42 | AG15: 0 | AH15: 810 | AI15: 755 | AJ15: 0 | AK15: 170 | AL15: 68 | AM15: 0 | AN15: 817 | AO15: 625 | AP15: 0 | AQ15: 159 | AR15: 50 | AS15: 0 | AT15: 766 | AU15: 756 | AV15: 0 | AW15: 161 | AX15: 53 | AY15: 0 | AZ15: 809 | BA15: 762 | BB15: 0 | BC15: 180 | BD15: 49 | BE15: 0 | BF15: 713 | BG15: 757 | BH15: 0 | BI15: 141 | BJ15: 56 | BK15: 0
C16: Sexto | D16: 976 | E16: 813 | F16: 0 | G16: 0 | H16: 37 | I16: 0 | J16: 1,047 | K16: 886 | L16: 0 | M16: 0 | N16: 47 | O16: 0 | P16: 1,049 | Q16: 829 | R16: 0 | S16: 0 | T16: 48 | U16: 0 | V16: 1,054 | W16: 805 | X16: 0 | Y16: 40 | Z16: 44 | AA16: 0 | AB16: 1,123 | AC16: 880 | AD16: 0 | AE16: 16 | AF16: 69 | AG16: 0 | AH16: 1,026 | AI16: 806 | AJ16: 0 | AK16: 20 | AL16: 67 | AM16: 0 | AN16: 1,063 | AO16: 882 | AP16: 0 | AQ16: 26 | AR16: 69 | AS16: 0 | AT16: 1,223 | AU16: 839 | AV16: 0 | AW16: 15 | AX16: 43 | AY16: 0 | AZ16: 998 | BA16: 707 | BB16: 0 | BC16: 24 | BD16: 68 | BE16: 0 | BF16: 1,005 | BG16: 766 | BH16: 0 | BI16: 21 | BJ16: 57 | BK16: 0
C17: Septimo | D17: 932 | E17: 714 | F17: 0 | G17: 0 | H17: 45 | I17: 2 | J17: 836 | K17: 688 | L17: 0 | M17: 0 | N17: 40 | O17: 0 | P17: 917 | Q17: 680 | R17: 0 | S17: 0 | T17: 47 | U17: 0 | V17: 958 | W17: 657 | X17: 0 | Y17: 0 | Z17: 37 | AA17: 0 | AB17: 925 | AC17: 641 | AD17: 0 | AE17: 33 | AF17: 58 | AG17: 0 | AH17: 985 | AI17: 739 | AJ17: 0 | AK17: 18 | AL17: 64 | AM17: 0 | AN17: 894 | AO17: 658 | AP17: 0 | AQ17: 17 | AR17: 65 | AS17: 0 | AT17: 875 | AU17: 773 | AV17: 0 | AW17: 24 | AX17: 57 | AY17: 0 | AZ17: 906 | BA17: 734 | BB17: 0 | BC17: 8 | BD17: 57 | BE17: 0 | BF17: 833 | BG17: 639 | BH17: 0 | BI17: 22 | BJ17: 69 | BK17: 0
C18: Octavo | D18: 724 | E18: 498 | F18: 0 | G18: 0 | H18: 46 | I18: 3 | J18: 813 | K18: 598 | L18: 0 | M18: 0 | N18: 39 | O18: 0 | P18: 757 | Q18: 577 | R18: 0 | S18: 0 | T18: 41 | U18: 0 | V18: 825 | W18: 575 | X18: 0 | Y18: 0 | Z18: 33 | AA18: 0 | AB18: 847 | AC18: 518 | AD18: 0 | AE18: 0 | AF18: 27 | AG18: 0 | AH18: 811 | AI18: 475 | AJ18: 0 | AK18: 27 | AL18: 59 | AM18: 0 | AN18: 857 | AO18: 603 | AP18: 0 | AQ18: 17 | AR18: 62 | AS18: 0 | AT18: 776 | AU18: 619 | AV18: 0 | AW18: 18 | AX18: 52 | AY18: 0 | AZ18: 736 | BA18: 639 | BB18: 0 | BC18: 19 | BD18: 65 | BE18: 0 | BF18: 875 | BG18: 565 | BH18: 0 | BI18: 7 | BJ18: 57 | BK18: 0
C19: Noveno | D19: 680 | E19: 363 | F19: 0 | G19: 0 | H19: 42 | I19: 3 | J19: 648 | K19: 433 | L19: 0 | M19: 0 | N19: 39 | O19: 0 | P19: 757 | Q19: 475 | R19: 0 | S19: 0 | T19: 35 | U19: 0 | V19: 682 | W19: 489 | X19: 0 | Y19: 0 | Z19: 30 | AA19: 0 | AB19: 718 | AC19: 455 | AD19: 0 | AE19: 0 | AF19: 29 | AG19: 0 | AH19: 742 | AI19: 421 | AJ19: 0 | AK19: 0 | AL19: 28 | AM19: 0 | AN19: 708 | AO19: 441 | AP19: 0 | AQ19: 22 | AR19: 50 | AS19: 0 | AT19: 710 | AU19: 544 | AV19: 0 | AW19: 16 | AX19: 53 | AY19: 0 | AZ19: 679 | BA19: 493 | BB19: 0 | BC19: 16 | BD19: 48 | BE19: 0 | BF19: 645 | BG19: 484 | BH19: 0 | BI19: 17 | BJ19: 67 | BK19: 0
C20: Decimo | D20: 640 | E20: 312 | F20: 0 | G20: 0 | H20: 29 | I20: 0 | J20: 671 | K20: 331 | L20: 0 | M20: 0 | N20: 38 | O20: 0 | P20: 638 | Q20: 340 | R20: 0 | S20: 0 | T20: 29 | U20: 0 | V20: 716 | W20: 361 | X20: 0 | Y20: 0 | Z20: 25 | AA20: 0 | AB20: 651 | AC20: 371 | AD20: 0 | AE20: 0 | AF20: 28 | AG20: 0 | AH20: 655 | AI20: 359 | AJ20: 0 | AK20: 0 | AL20: 27 | AM20: 0 | AN20: 695 | AO20: 347 | AP20: 0 | AQ20: 0 | AR20: 29 | AS20: 0 | AT20: 677 | AU20: 411 | AV20: 0 | AW20: 0 | AX20: 32 | AY20: 0 | AZ20: 606 | BA20: 443 | BB20: 0 | BC20: 0 | BD20: 49 | BE20: 0 | BF20: 633 | BG20: 385 | BH20: 0 | BI20: 12 | BJ20: 46 | BK20: 0
C21: Once | D21: 484 | E21: 175 | F21: 0 | G21: 0 | H21: 28 | I21: 2 | J21: 487 | K21: 245 | L21: 0 | M21: 0 | N21: 27 | O21: 0 | P21: 547 | Q21: 237 | R21: 0 | S21: 0 | T21: 40 | U21: 0 | V21: 533 | W21: 253 | X21: 0 | Y21: 0 | Z21: 23 | AA21: 0 | AB21: 565 | AC21: 289 | AD21: 0 | AE21: 0 | AF21: 21 | AG21: 0 | AH21: 462 | AI21: 283 | AJ21: 0 | AK21: 0 | AL21: 27 | AM21: 0 | AN21: 519 | AO21: 277 | AP21: 0 | AQ21: 0 | AR21: 25 | AS21: 0 | AT21: 443 | AU21: 287 | AV21: 0 | AW21: 0 | AX21: 24 | AY21: 0 | AZ21: 478 | BA21: 299 | BB21: 0 | BC21: 0 | BD21: 42 | BE21: 0 | BF21: 535 | BG21: 326 | BH21: 0 | BI21: 12 | BJ21: 43 | BK21: 0
C22: 12º Normal | D22: 60 | E22: 0 | F22: 0 | G22: 0 | H22: 0 | I22: 0 | J22: 26 | K22: 0 | L22: 0 | M22: 0 | N22: 0 | O22: 0 | P22: 71 | Q22: 0 | R22: 0 | S22: 0 | T22: 0 | U22: 0 | V22: 43 | W22: 0 | X22: 0 | Y22: 0 | Z22: 0 | AA22: 0 | AB22: 20 | AC22: 0 | AD22: 0 | AE22: 0 | AF22: 0 | AG22: 0 | AH22: 48 | AI22: 0 | AJ22: 0 | AK22: 0 | AL22: 0 | AM22: 0 | AN22: 26 | AO22: 0 | AP22: 0 | AQ22: 0 | AR22: 0 | AS22: 0 | AT22: 53 | AU22: 0 | AV22: 0 | AW22: 0 | AX22: 0 | AY22: 0 | AZ22: 42 | BA22: 0 | BB22: 0 | BC22: 0 | BD22: 0 | BE22: 0 | BF22: 19 | BG22: 0 | BH22: 0 | BI22: 0 | BJ22: 0 | BK22: 0
C23: 13º Normal | D23: 34 | E23: 0 | F23: 0 | G23: 0 | H23: 0 | I23: 0 | J23: 52 | K23: 0 | L23: 0 | M23: 0 | N23: 0 | O23: 0 | P23: 11 | Q23: 0 | R23: 0 | S23: 0 | T23: 0 | U23: 0 | V23: 27 | W23: 0 | X23: 0 | Y23: 0 | Z23: 0 | AA23: 0 | AB23: 16 | AC23: 0 | AD23: 0 | AE23: 0 | AF23: 0 | AG23: 0 | AH23: 38 | AI23: 0 | AJ23: 0 | AK23: 0 | AL23: 0 | AM23: 0 | AN23: 22 | AO23: 0 | AP23: 0 | AQ23: 0 | AR23: 0 | AS23: 0 | AT23: 23 | AU23: 0 | AV23: 0 | AW23: 0 | AX23: 0 | AY23: 0 | AZ23: 31 | BA23: 0 | BB23: 0 | BC23: 0 | BD23: 0 | BE23: 0 | BF23: 18 | BG23: 0 | BH23: 0 | BI23: 0 | BJ23: 0 | BK23: 0
C24: Ciclo 1 Adultos | D24: 37 | E24: 3 | F24: 0 | G24: 0 | H24: 0 | I24: 0 | J24: 55 | K24: 42 | L24: 0 | M24: 0 | N24: 0 | O24: 0 | P24: 55 | Q24: 11 | R24: 0 | S24: 0 | T24: 0 | U24: 0 | V24: 39 | W24: 42 | X24: 0 | Y24: 0 | Z24: 0 | AA24: 0 | AB24: 28 | AC24: 34 | AD24: 0 | AE24: 0 | AF24: 0 | AG24: 0 | AH24: 42 | AI24: 25 | AJ24: 0 | AK24: 0 | AL24: 0 | AM24: 0 | AN24: 20 | AO24: 10 | AP24: 0 | AQ24: 0 | AR24: 0 | AS24: 0 | AT24: 19 | AU24: 6 | AV24: 0 | AW24: 0 | AX24: 0 | AY24: 0 | AZ24: 34 | BA24: 5 | BB24: 0 | BC24: 0 | BD24: 0 | BE24: 0 | BF24: 21 | BG24: 0 | BH24: 0 | BI24: 0 | BJ24: 0 | BK24: 0
C25: Ciclo 2 Adultos | D25: 93 | E25: 13 | F25: 0 | G25: 0 | H25: 0 | I25: 0 | J25: 89 | K25: 35 | L25: 0 | M25: 0 | N25: 0 | O25: 0 | P25: 107 | Q25: 54 | R25: 0 | S25: 0 | T25: 0 | U25: 0 | V25: 70 | W25: 45 | X25: 0 | Y25: 0 | Z25: 0 | AA25: 0 | AB25: 66 | AC25: 39 | AD25: 0 | AE25: 0 | AF25: 0 | AG25: 0 | AH25: 75 | AI25: 53 | AJ25: 0 | AK25: 0 | AL25: 0 | AM25: 0 | AN25: 64 | AO25: 13 | AP25: 0 | AQ25: 0 | AR25: 0 | AS25: 0 | AT25: 52 | AU25: 6 | AV25: 0 | AW25: 0 | AX25: 0 | AY25: 0 | AZ25: 46 | BA25: 16 | BB25: 0 | BC25: 0 | BD25: 0 | BE25: 0 | BF25: 32 | BG25: 0 | BH25: 0 | BI25: 0 | BJ25: 0 | BK25: 0
C26: Ciclo 3 Adultos | D26: 255 | E26: 42 | F26: 0 | G26: 0 | H26: 0 | I26: 0 | J26: 256 | K26: 131 | L26: 0 | M26: 0 | N26: 0 | O26: 0 | P26: 250 | Q26: 71 | R26: 0 | S26: 0 | T26: 0 | U26: 0 | V26: 192 | W26: 73 | X26: 0 | Y26: 0 | Z26: 0 | AA26: 0 | AB26: 247 | AC26: 108 | AD26: 0 | AE26: 0 | AF26: 0 | AG26: 0 | AH26: 219 | AI26: 159 | AJ26: 0 | AK26: 0 | AL26: 0 | AM26: 0 | AN26: 279 | AO26: 135 | AP26: 0 | AQ26: 0 | AR26: 0 | AS26: 0 | AT26: 269 | AU26: 146 | AV26: 0 | AW26: 0 | AX26: 0 | AY26: 0 | AZ26: 206 | BA26: 131 | BB26: 0 | BC26: 0 | BD26: 0 | BE26: 0 | BF26: 172 | BG26: 50 | BH26: 0 | BI26: 0 | BJ26: 0 | BK26: 0
C27: Ciclo 4 Adultos | D27: 236 | E27: 42 | F27: 0 | G27: 0 | H27: 0 | I27: 0 | J27: 224 | K27: 69 | L27: 0 | M27: 0 | N27: 0 | O27: 0 | P27: 264 | Q27: 119 | R27: 0 | S27: 0 | T27: 0 | U27: 0 | V27: 194 | W27: 84 | X27: 0 | Y27: 0 | Z27: 0 | AA27: 0 | AB27: 213 | AC27: 89 | AD27: 0 | AE27: 0 | AF27: 0 | AG27: 0 | AH27: 234 | AI27: 164 | AJ27: 0 | AK27: 0 | AL27: 0 | AM27: 0 | AN27: 240 | AO27: 127 | AP27: 0 | AQ27: 0 | AR27: 0 | AS27: 0 | AT27: 246 | AU27: 161 | AV27: 0 | AW27: 0 | AX27: 0 | AY27: 0 | AZ27: 216 | BA27: 191 | BB27: 0 | BC27: 0 | BD27: 0 | BE27: 0 | BF27: 170 | BG27: 91 | BH27: 0 | BI27: 0 | BJ27: 0 | BK27: 0
C28: Ciclo 5 Adultos | D28: 236 | E28: 37 | F28: 0 | G28: 0 | H28: 0 | I28: 0 | J28: 219 | K28: 49 | L28: 0 | M28: 0 | N28: 0 | O28: 0 | P28: 219 | Q28: 70 | R28: 0 | S28: 0 | T28: 0 | U28: 0 | V28: 231 | W28: 91 | X28: 0 | Y28: 0 | Z28: 0 | AA28: 0 | AB28: 201 | AC28: 71 | AD28: 0 | AE28: 0 | AF28: 0 | AG28: 0 | AH28: 177 | AI28: 99 | AJ28: 0 | AK28: 0 | AL28: 0 | AM28: 0 | AN28: 198 | AO28: 129 | AP28: 0 | AQ28: 0 | AR28: 0 | AS28: 0 | AT28: 214 | AU28: 155 | AV28: 0 | AW28: 0 | AX28: 0 | AY28: 0 | AZ28: 173 | BA28: 155 | BB28: 0 | BC28: 0 | BD28: 0 | BE28: 0 | BF28: 131 | BG28: 55 | BH28: 0 | BI28: 0 | BJ28: 0 | BK28: 0
C29: Ciclo 6 Adultos | D29: 172 | E29: 24 | F29: 0 | G29: 0 | H29: 0 | I29: 0 | J29: 185 | K29: 32 | L29: 0 | M29: 0 | N29: 0 | O29: 0 | P29: 159 | Q29: 44 | R29: 0 | S29: 0 | T29: 0 | U29: 0 | V29: 166 | W29: 64 | X29: 0 | Y29: 0 | Z29: 0 | AA29: 0 | AB29: 140 | AC29: 75 | AD29: 0 | AE29: 0 | AF29: 0 | AG29: 0 | AH29: 163 | AI29: 73 | AJ29: 0 | AK29: 0 | AL29: 0 | AM29: 0 | AN29: 161 | AO29: 104 | AP29: 0 | AQ29: 0 | AR29: 0 | AS29: 0 | AT29: 136 | AU29: 122 | AV29: 0 | AW29: 0 | AX29: 0 | AY29: 0 | AZ29: 123 | BA29: 125 | BB29: 0 | BC29: 0 | BD29: 0 | BE29: 0 | BF29: 118 | BG29: 74 | BH29: 0 | BI29: 0 | BJ29: 10 | BK29: 0
C30: Semestre introductorio NS | D30: 0 | E30: 0 | F30: 0 | G30: 0 | H30: 0 | I30: 0 | J30: 0 | K30: 0 | L30: 0 | M30: 0 | N30: 0 | O30: 0 | P30: 0 | Q30: 0 | R30: 0 | S30: 0 | T30: 0 | U30: 0 | V30: 0 | W30: 0 | X30: 0 | Y30: 0 | Z30: 0 | AA30: 0 | AB30: 0 | AC30: 0 | AD30: 0 | AE30: 0 | AF30: 0 | AG30: 0 | AH30: 0 | AI30: 0 | AJ30: 0 | AK30: 0 | AL30: 0 | AM30: 0 | AN30: 0 | AO30: 0 | AP30: 0 | AQ30: 0 | AR30: 0 | AS30: 0 | AT30: 0 | AU30: 0 | AV30: 0 | AW30: 0 | AX30: 0 | AY30: 0 | AZ30: 0 | BA30: 0 | BB30: 0 | BC30: 0 | BD30: 0 | BE30: 0 | BF30: 0 | BG30: 0 | BH30: 0 | BI30: 0 | BJ30: 0 | BK30: 0
C31: Programa formación compl 1 NS | D31: 0 | E31: 0 | F31: 0 | G31: 0 | H31: 0 | I31: 0 | J31: 0 | K31: 0 | L31: 0 | M31: 0 | N31: 0 | O31: 0 | P31: 0 | Q31: 0 | R31: 0 | S31: 0 | T31: 0 | U31: 0 | V31: 0 | W31: 0 | X31: 0 | Y31: 0 | Z31: 0 | AA31: 0 | AB31: 0 | AC31: 0 | AD31: 0 | AE31: 0 | AF31: 0 | AG31: 0 | AH31: 0 | AI31: 0 | AJ31: 0 | AK31: 0 | AL31: 0 | AM31: 0 | AN31: 0 | AO31: 0 | AP31: 0 | AQ31: 0 | AR31: 0 | AS31: 0 | AT31: 0 | AU31: 0 | AV31: 0 | AW31: 0 | AX31: 0 | AY31: 0 | AZ31: 0 | BA31: 0 | BB31: 0 | BC31: 0 | BD31: 0 | BE31: 0 | BF31: 0 | BG31: 0 | BH31: 0 | BI31: 0 | BJ31: 0 | BK31: 0
C32: Programa formación compl 2 NS | D32: 0 | E32: 0 | F32: 0 | G32: 0 | H32: 0 | I32: 0 | J32: 0 | K32: 0 | L32: 0 | M32: 0 | N32: 0 | O32: 0 | P32: 0 | Q32: 0 | R32: 0 | S32: 0 | T32: 0 | U32: 0 | V32: 0 | W32: 0 | X32: 0 | Y32: 0 | Z32: 0 | AA32: 0 | AB32: 0 | AC32: 0 | AD32: 0 | AE32: 0 | AF32: 0 | AG32: 0 | AH32: 0 | AI32: 0 | AJ32: 0 | AK32: 0 | AL32: 0 | AM32: 0 | AN32: 0 | AO32: 0 | AP32: 0 | AQ32: 0 | AR32: 0 | AS32: 0 | AT32: 0 | AU32: 0 | AV32: 0 | AW32: 0 | AX32: 0 | AY32: 0 | AZ32: 0 | BA32: 0 | BB32: 0 | BC32: 0 | BD32: 0 | BE32: 0 | BF32: 0 | BG32: 0 | BH32: 0 | BI32: 0 | BJ32: 0 | BK32: 0
C33: Programa formación compl 3 NS | D33: 0 | E33: 0 | F33: 0 | G33: 0 | H33: 0 | I33: 0 | J33: 0 | K33: 0 | L33: 0 | M33: 0 | N33: 0 | O33: 0 | P33: 0 | Q33: 0 | R33: 0 | S33: 0 | T33: 0 | U33: 0 | V33: 0 | W33: 0 | X33: 0 | Y33: 0 | Z33: 0 | AA33: 0 | AB33: 0 | AC33: 0 | AD33: 0 | AE33: 0 | AF33: 0 | AG33: 0 | AH33: 0 | AI33: 0 | AJ33: 0 | AK33: 0 | AL33: 0 | AM33: 0 | AN33: 0 | AO33: 0 | AP33: 0 | AQ33: 0 | AR33: 0 | AS33: 0 | AT33: 0 | AU33: 0 | AV33: 0 | AW33: 0 | AX33: 0 | AY33: 0 | AZ33: 0 | BA33: 0 | BB33: 0 | BC33: 0 | BD33: 0 | BE33: 0 | BF33: 0 | BG33: 0 | BH33: 0 | BI33: 0 | BJ33: 0 | BK33: 0
C34: Programa formación compl 4 NS | D34: 0 | E34: 0 | F34: 0 | G34: 0 | H34: 0 | I34: 0 | J34: 0 | K34: 0 | L34: 0 | M34: 0 | N34: 0 | O34: 0 | P34: 0 | Q34: 0 | R34: 0 | S34: 0 | T34: 0 | U34: 0 | V34: 0 | W34: 0 | X34: 0 | Y34: 0 | Z34: 0 | AA34: 0 | AB34: 0 | AC34: 0 | AD34: 0 | AE34: 0 | AF34: 0 | AG34: 0 | AH34: 0 | AI34: 0 | AJ34: 0 | AK34: 0 | AL34: 0 | AM34: 0 | AN34: 0 | AO34: 0 | AP34: 0 | AQ34: 0 | AR34: 0 | AS34: 0 | AT34: 0 | AU34: 0 | AV34: 0 | AW34: 0 | AX34: 0 | AY34: 0 | AZ34: 0 | BA34: 0 | BB34: 0 | BC34: 0 | BD34: 0 | BE34: 0 | BF34: 0 | BG34: 0 | BH34: 0 | BI34: 0 | BJ34: 0 | BK34: 0
C35: Aceleración del Aprendizaje | D35: 18 | E35: 0 | F35: 0 | G35: 0 | H35: 0 | I35: 0 | J35: 0 | K35: 21 | L35: 0 | M35: 0 | N35: 0 | O35: 0 | P35: 0 | Q35: 21 | R35: 0 | S35: 0 | T35: 0 | U35: 0 | V35: 33 | W35: 23 | X35: 0 | Y35: 0 | Z35: 0 | AA35: 0 | AB35: 0 | AC35: 26 | AD35: 0 | AE35: 0 | AF35: 0 | AG35: 0 | AH35: 0 | AI35: 46 | AJ35: 0 | AK35: 0 | AL35: 0 | AM35: 0 | AN35: 0 | AO35: 33 | AP35: 0 | AQ35: 0 | AR35: 0 | AS35: 0 | AT35: 0 | AU35: 17 | AV35: 0 | AW35: 0 | AX35: 0 | AY35: 0 | AZ35: 0 | BA35: 0 | BB35: 0 | BC35: 0 | BD35: 0 | BE35: 0 | BF35: 0 | BG35: 0 | BH35: 0 | BI35: 0 | BJ35: 0 | BK35: 0
C36: Total | D36: =SUM(D8:D35) -> 11,236 | E36: 8,022 | F36: 0 | G36: 1,336 | H36: 752 | I36: 34 | J36: 11,060 | K36: 8,276 | L36: 0 | M36: 1,321 | N36: 778 | O36: 0 | P36: 11,268 | Q36: 8,202 | R36: 0 | S36: 1,207 | T36: 901 | U36: 0 | V36: 11,261 | W36: 8,334 | X36: 0 | Y36: 1,316 | Z36: 815 | AA36: 0 | AB36: 11,009 | AC36: 8,249 | AD36: 0 | AE36: 1,201 | AF36: 889 | AG36: 0 | AH36: 10,786 | AI36: 8,708 | AJ36: 0 | AK36: 1,231 | AL36: 821 | AM36: 0 | AN36: 10,915 | AO36: 8,629 | AP36: 0 | AQ36: 1,229 | AR36: 732 | AS36: 0 | AT36: 10,610 | AU36: 9,187 | AV36: 0 | AW36: 1,321 | AX36: 720 | AY36: 0 | AZ36: 10,151 | BA36: 8,953 | BB36: 0 | BC36: 1,239 | BD36: 822 | BE36: 0 | BF36: 9,992 | BG36: 8,227 | BH36: 0 | BI36: 1,279 | BJ36: 836 | BK36: 0
D37: =SUM(D36:E36) -> 19,258 | F37: =SUM(F36:G36) -> 1,336 | H37: =SUM(H36:I36) -> 786 | J37: =SUM(J36:K36) -> 19,336 | L37: =SUM(L36:M36) -> 1,321 | N37: =SUM(N36:O36) -> 778 | P37: =SUM(P36:Q36) -> 19,470 | R37: =SUM(R36:S36) -> 1,207 | T37: =SUM(T36:U36) -> 901 | V37: =SUM(V36:W36) -> 19,595 | X37: =SUM(X36:Y36) -> 1,316 | Z37: =SUM(Z36:AA36) -> 815 | AB37: =SUM(AB36:AC36) -> 19,258 | AD37: =SUM(AD36:AE36) -> 1,201 | AF37: =SUM(AF36:AG36) -> 889 | AH37: =SUM(AH36:AI36) -> 19,494 | AJ37: =SUM(AJ36:AK36) -> 1,231 | AL37: =SUM(AL36:AM36) -> 821 | AN37: =SUM(AN36:AO36) -> 19,544 | AP37: =SUM(AP36:AQ36) -> 1,229 | AR37: =SUM(AR36:AS36) -> 732 | AT37: =SUM(AT36:AU36) -> 19,797 | AV37: =SUM(AV36:AW36) -> 1,321 | AX37: =SUM(AX36:AY36) -> 720 | AZ37: =SUM(AZ36:BA36) -> 19,104 | BB37: =SUM(BB36:BC36) -> 1,239 | BD37: =SUM(BD36:BE36) -> 822 | BF37: =SUM(BF36:BG36) -> 18,219 | BH37: =SUM(BH36:BI36) -> 1,279 | BJ37: =SUM(BJ36:BK36) -> 836
C38: FUENTE: SIMAT OAPF
C40: =+B7 -> AMAZONAS | D40: 2014 | J40: 2015 | P40: 2016 | V40: 2017 | AB40: 2018 | AH40: 2019 | AN40: 2020 | AT40: 2021 | AZ40: 2022 | BF40: =+BF5 -> Oct. 2023
D41: Oficial | F41: Contratada | H41: No Oficial | J41: Oficial | L41: Contratada | N41: No Oficial | P41: Oficial | R41: Contratada | T41: No Oficial | V41: Oficial | X41: Contratada | Z41: No Oficial | AB41: Oficial | AD41: Contratada | AF41: No Oficial | AH41: Oficial | AJ41: Contratada | AL41: No Oficial | AN41: Oficial | AP41: Contratada | AR41: No Oficial | AT41: Oficial | AV41: Contratada | AX41: No Oficial | AZ41: Oficial | BB41: Contratada | BD41: No Oficial | BF41: Oficial | BH41: Contratada | BJ41: No Oficial
C42: NIVEL | D42: Urbano | E42: Rural | F42: Urbano | G42: Rural | H42: Urbano | I42: Rural | J42: Urbano | K42: Rural | L42: Urbano | M42: Rural | N42: Urbano | O42: Rural | P42: Urbano | Q42: Rural | R42: Urbano | S42: Rural | T42: Urbano | U42: Rural | V42: Urbano | W42: Rural | X42: Urbano | Y42: Rural | Z42: Urbano | AA42: Rural | AB42: Urbano | AC42: Rural | AD42: Urbano | AE42: Rural | AF42: Urbano | AG42: Rural | AH42: Urbano | AI42: Rural | AJ42: Urbano | AK42: Rural | AL42: Urbano | AM42: Rural | AN42: Urbano | AO42: Rural | AP42: Urbano | AQ42: Rural | AR42: Urbano | AS42: Rural | AT42: Urbano | AU42: Rural | AV42: Urbano | AW42: Rural | AX42: Urbano | AY42: Rural | AZ42: Urbano | BA42: Rural | BB42: Urbano | BC42: Rural | BD42: Urbano | BE42: Rural | BF42: Urbano | BG42: Rural | BH42: Urbano | BI42: Rural | BJ42: Urbano | BK42: Rural
C43: Pre-Jardin y jardín | D43: =SUM(D8:D9) -> 0 | E43: 0 | F43: 0 | G43: 0 | H43: 170 | I43: 8 | J43: 0 | K43: 0 | L43: 0 | M43: 0 | N43: 164 | O43: 0 | P43: 0 | Q43: 0 | R43: 0 | S43: 0 | T43: 197 | U43: 0 | V43: 0 | W43: 0 | X43: =SUM(X8:X9) -> 0 | Y43: 0 | Z43: 223 | AA43: 0 | AB43: 1 | AC43: 0 | AD43: 0 | AE43: 0 | AF43: 194 | AG43: 0 | AH43: 6 | AI43: 0 | AJ43: 0 | AK43: 0 | AL43: 101 | AM43: 0 | AN43: 6 | AO43: 0 | AP43: 0 | AQ43: 0 | AR43: 66 | AS43: 0 | AT43: 2 | AU43: 0 | AV43: 0 | AW43: 0 | AX43: 89 | AY43: 0 | AZ43: 4 | BA43: 0 | BB43: 0 | BC43: 0 | BD43: 110 | BE43: 0 | BF43: 8 | BG43: 0 | BH43: 0 | BI43: 0 | BJ43: 105 | BK43: 0
C44: Transición | D44: =+D10 -> 746 | E44: 735 | F44: 0 | G44: 171 | H44: 99 | I44: 4 | J44: 701 | K44: 604 | L44: 0 | M44: 171 | N44: =+N10 -> 99 | O44: =+O10 -> 0 | P44: =+P10 -> 738 | Q44: 665 | R44: 0 | S44: 164 | T44: 118 | U44: 0 | V44: 793 | W44: 775 | X44: =+X10 -> 0 | Y44: 188 | Z44: 102 | AA44: 0 | AB44: 702 | AC44: 666 | AD44: 0 | AE44: 139 | AF44: 131 | AG44: 0 | AH44: 810 | AI44: 801 | AJ44: 0 | AK44: 201 | AL44: 116 | AM44: 0 | AN44: 809 | AO44: 732 | AP44: 0 | AQ44: 161 | AR44: 43 | AS44: 0 | AT44: 654 | AU44: 756 | AV44: 0 | AW44: 192 | AX44: 84 | AY44: 0 | AZ44: 763 | BA44: 739 | BB44: 0 | BC44: 143 | BD44: 81 | BE44: 0 | BF44: 685 | BG44: 682 | BH44: 0 | BI44: 178 | BJ44: 74 | BK44: 0
C45: Primaria | D45: =SUM(D11:D15)+D24+D25+D35 -> 5,061 | E45: 4,267 | F45: 0 | G45: 1,165 | H45: 256 | I45: 12 | J45: 4,895 | K45: 4,210 | L45: 0 | M45: 1,150 | N45: =SUM(N11:N15)+N24+N25+N35 -> 285 | O45: =SUM(O11:O15)+O24+O25+O35 -> 0 | P45: =SUM(P11:P15)+P24+P25+P35 -> 4,891 | Q45: 4,095 | R45: =SUM(R11:R15)+R24+R25+R35 -> 0 | S45: 1,043 | T45: =SUM(T11:T15)+T24+T25+T35 -> 346 | U45: 0 | V45: 4,847 | W45: 4,107 | X45: =SUM(X11:X15)+X24+X25+X35 -> 0 | Y45: 1,088 | Z45: 298 | AA45: 0 | AB45: 4,640 | AC45: 4,086 | AD45: 0 | AE45: 1,013 | AF45: 332 | AG45: 0 | AH45: 4,410 | AI45: 4,329 | AJ45: 0 | AK45: 965 | AL45: 332 | AM45: 0 | AN45: 4,438 | AO45: 4,194 | AP45: 0 | AQ45: 986 | AR45: 323 | AS45: 0 | AT45: 4,309 | AU45: 4,374 | AV45: 0 | AW45: 1,056 | AX45: 286 | AY45: 0 | AZ45: 4,190 | BA45: 4,297 | BB45: 0 | BC45: 1,029 | BD45: 302 | BE45: 0 | BF45: 4,145 | BG45: 4,110 | BH45: 0 | BI45: 1,010 | BJ45: 308 | BK45: 0
C46: Secundaria | D46: =SUM(D16:D19)+D26+D27 -> 3,803 | E46: 2,472 | F46: 0 | G46: 0 | H46: 170 | I46: 8 | J46: 3,824 | K46: 2,805 | L46: 0 | M46: 0 | N46: =SUM(N16:N19)+N26+N27 -> 165 | O46: =SUM(O16:O19)+O26+O27 -> 0 | P46: =SUM(P16:P19)+P26+P27 -> 3,994 | Q46: 2,751 | R46: =SUM(R16:R19)+R26+R27 -> 0 | S46: 0 | T46: =SUM(T16:T19)+T26+T27 -> 171 | U46: 0 | V46: 3,905 | W46: 2,683 | X46: =SUM(X16:X19)+X26+X27 -> 0 | Y46: 40 | Z46: 144 | AA46: 0 | AB46: 4,073 | AC46: 2,691 | AD46: 0 | AE46: 49 | AF46: 183 | AG46: 0 | AH46: 4,017 | AI46: 2,764 | AJ46: 0 | AK46: 65 | AL46: 218 | AM46: 0 | AN46: 4,041 | AO46: 2,846 | AP46: 0 | AQ46: 82 | AR46: 246 | AS46: 0 | AT46: 4,099 | AU46: 3,082 | AV46: 0 | AW46: 73 | AX46: 205 | AY46: 0 | AZ46: 3,741 | BA46: 2,895 | BB46: 0 | BC46: 67 | BD46: 238 | BE46: 0 | BF46: 3,700 | BG46: 2,595 | BH46: 0 | BI46: 67 | BJ46: 250 | BK46: 0
C47: Media | D47: =SUM(D20:D23)+D28+D29 -> 1,626 | E47: 548 | F47: 0 | G47: 0 | H47: 57 | I47: 2 | J47: 1,640 | K47: 657 | L47: 0 | M47: 0 | N47: =SUM(N20:N23)+N28+N29 -> 65 | O47: =SUM(O20:O23)+O28+O29 -> 0 | P47: =SUM(P20:P23)+P28+P29 -> 1,645 | Q47: 691 | R47: =SUM(R20:R23)+R28+R29 -> 0 | S47: 0 | T47: =SUM(T20:T23)+T28+T29 -> 69 | U47: 0 | V47: 1,716 | W47: 769 | X47: =SUM(X20:X23)+X28+X29 -> 0 | Y47: 0 | Z47: 48 | AA47: 0 | AB47: 1,593 | AC47: 806 | AD47: 0 | AE47: 0 | AF47: 49 | AG47: 0 | AH47: 1,543 | AI47: 814 | AJ47: 0 | AK47: 0 | AL47: 54 | AM47: 0 | AN47: 1,621 | AO47: 857 | AP47: 0 | AQ47: 0 | AR47: 54 | AS47: 0 | AT47: 1,546 | AU47: 975 | AV47: 0 | AW47: 0 | AX47: 56 | AY47: 0 | AZ47: 1,453 | BA47: 1,022 | BB47: 0 | BC47: 0 | BD47: 91 | BE47: 0 | BF47: 1,454 | BG47: 840 | BH47: 0 | BI47: 24 | BJ47: 99 | BK47: 0
C48: Total | D48: =SUM(D43:D47) -> 11,236 | E48: 8,022 | F48: 0 | G48: 1,336 | H48: 752 | I48: 34 | J48: 11,060 | K48: 8,276 | L48: 0 | M48: 1,321 | N48: 778 | O48: 0 | P48: 11,268 | Q48: 8,202 | R48: 0 | S48: 1,207 | T48: 901 | U48: 0 | V48: 11,261 | W48: 8,334 | X48: =SUM(X43:X47) -> 0 | Y48: 1,316 | Z48: 815 | AA48: 0 | AB48: 11,009 | AC48: 8,249 | AD48: 0 | AE48: 1,201 | AF48: 889 | AG48: 0 | AH48: 10,786 | AI48: 8,708 | AJ48: 0 | AK48: 1,231 | AL48: 821 | AM48: 0 | AN48: 10,915 | AO48: 8,629 | AP48: 0 | AQ48: 1,229 | AR48: 732 | AS48: 0 | AT48: 10,610 | AU48: 9,187 | AV48: 0 | AW48: 1,321 | AX48: 720 | AY48: 0 | AZ48: 10,151 | BA48: 8,953 | BB48: 0 | BC48: 1,239 | BD48: 822 | BE48: 0 | BF48: 9,992 | BG48: 8,227 | BH48: 0 | BI48: 1,279 | BJ48: 836 | BK48: 0
C49: FUENTE: SIMAT OAPF
C51: =+B7 -> AMAZONAS | D51: 2014 | J51: 2015 | P51: 2016 | V51: 2017 | AB51: 2018 | AH51: 2019 | AN51: 2020 | AT51: 2021 | AZ51: 2022 | BF51: =+BF5 -> Oct. 2023
D52: Oficial | F52: Contratada | H52: No Oficial | J52: Oficial | L52: Contratada | N52: No Oficial | P52: Oficial | R52: Contratada | T52: No Oficial | V52: Oficial | X52: Contratada | Z52: No Oficial | AB52: Oficial | AD52: Contratada | AF52: No Oficial | AH52: Oficial | AJ52: Contratada | AL52: No Oficial | AN52: Oficial | AP52: Contratada | AR52: No Oficial | AT52: Oficial | AV52: Contratada | AX52: No Oficial | AZ52: Oficial | BB52: Contratada | BD52: No Oficial | BF52: Oficial | BH52: Contratada | BJ52: No Oficial
C53: NIVEL ADULTOS | D53: Urbano | E53: Rural | F53: Urbano | G53: Rural | H53: Urbano | I53: Rural | J53: Urbano | K53: Rural | L53: Urbano | M53: Rural | N53: Urbano | O53: Rural | P53: Urbano | Q53: Rural | R53: Urbano | S53: Rural | T53: Urbano | U53: Rural | V53: Urbano | W53: Rural | X53: Urbano | Y53: Rural | Z53: Urbano | AA53: Rural | AB53: Urbano | AC53: Rural | AD53: Urbano | AE53: Rural | AF53: Urbano | AG53: Rural | AH53: Urbano | AI53: Rural | AJ53: Urbano | AK53: Rural | AL53: Urbano | AM53: Rural | AN53: Urbano | AO53: Rural | AP53: Urbano | AQ53: Rural | AR53: Urbano | AS53: Rural | AT53: Urbano | AU53: Rural | AV53: Urbano | AW53: Rural | AX53: Urbano | AY53: Rural | AZ53: Urbano | BA53: Rural | BB53: Urbano | BC53: Rural | BD53: Urbano | BE53: Rural | BF53: Urbano | BG53: Rural | BH53: Urbano | BI53: Rural | BJ53: Urbano | BK53: Rural
C54: Pre-Jardin y jardín | D54: =SUM(D8:D9) -> 0 | E54: 0 | F54: 0 | G54: 0 | H54: 170 | I54: 8 | J54: 0 | K54: 0 | L54: 0 | M54: 0 | N54: =SUM(N8:N9) -> 164 | O54: =SUM(O8:O9) -> 0 | P54: =SUM(P8:P9) -> 0 | Q54: 0 | R54: 0 | S54: 0 | T54: 197 | U54: 0 | V54: 0 | W54: 0 | X54: =SUM(X8:X9) -> 0 | Y54: 0 | Z54: 223 | AA54: 0 | AB54: 1 | AC54: 0 | AD54: 0 | AE54: 0 | AF54: 194 | AG54: 0 | AH54: 6 | AI54: 0 | AJ54: 0 | AK54: 0 | AL54: 101 | AM54: 0 | AN54: 6 | AO54: 0 | AP54: 0 | AQ54: 0 | AR54: 66 | AS54: 0 | AT54: 2 | AU54: 0 | AV54: 0 | AW54: 0 | AX54: 89 | AY54: 0 | AZ54: 4 | BA54: 0 | BB54: 0 | BC54: 0 | BD54: 110 | BE54: 0 | BF54: 8 | BG54: 0 | BH54: 0 | BI54: 0 | BJ54: 105 | BK54: 0
C55: Transición | D55: =+D10 -> 746 | E55: 735 | F55: 0 | G55: 171 | H55: 99 | I55: 4 | J55: 701 | K55: 604 | L55: 0 | M55: 171 | N55: =+N10 -> 99 | O55: =+O10 -> 0 | P55: =+P10 -> 738 | Q55: 665 | R55: 0 | S55: 164 | T55: 118 | U55: 0 | V55: 793 | W55: 775 | X55: =+X10 -> 0 | Y55: 188 | Z55: 102 | AA55: 0 | AB55: 702 | AC55: 666 | AD55: 0 | AE55: 139 | AF55: 131 | AG55: 0 | AH55: 810 | AI55: 801 | AJ55: 0 | AK55: 201 | AL55: 116 | AM55: 0 | AN55: 809 | AO55: 732 | AP55: 0 | AQ55: 161 | AR55: 43 | AS55: 0 | AT55: 654 | AU55: 756 | AV55: 0 | AW55: 192 | AX55: 84 | AY55: 0 | AZ55: 763 | BA55: 739 | BB55: 0 | BC55: 143 | BD55: 81 | BE55: 0 | BF55: 685 | BG55: 682 | BH55: 0 | BI55: 178 | BJ55: 74 | BK55: 0
C56: Primaria | D56: =SUM(D11:D15)+D35 -> 4,931 | E56: 4,251 | F56: 0 | G56: 1,165 | H56: 256 | I56: 12 | J56: 4,751 | K56: 4,133 | L56: 0 | M56: 1,150 | N56: =SUM(N11:N15)+N35 -> 285 | O56: =SUM(O11:O15)+O35 -> 0 | P56: =SUM(P11:P15)+P35 -> 4,729 | Q56: 4,030 | R56: =SUM(R11:R15)+R35 -> 0 | S56: 1,043 | T56: =SUM(T11:T15)+T35 -> 346 | U56: 0 | V56: 4,738 | W56: 4,020 | X56: =SUM(X11:X15)+X35 -> 0 | Y56: 1,088 | Z56: 298 | AA56: 0 | AB56: 4,546 | AC56: 4,013 | AD56: 0 | AE56: 1,013 | AF56: 332 | AG56: 0 | AH56: 4,293 | AI56: 4,251 | AJ56: 0 | AK56: 965 | AL56: 332 | AM56: 0 | AN56: 4,354 | AO56: 4,171 | AP56: 0 | AQ56: 986 | AR56: 323 | AS56: 0 | AT56: 4,238 | AU56: 4,362 | AV56: 0 | AW56: 1,056 | AX56: 286 | AY56: 0 | AZ56: 4,110 | BA56: 4,276 | BB56: 0 | BC56: 1,029 | BD56: 302 | BE56: 0 | BF56: 4,092 | BG56: 4,110 | BH56: 0 | BI56: 1,010 | BJ56: 308 | BK56: 0
C57: Secundaria | D57: =SUM(D16:D19) -> 3,312 | E57: 2,388 | F57: 0 | G57: 0 | H57: 170 | I57: 8 | J57: 3,344 | K57: 2,605 | L57: 0 | M57: 0 | N57: =SUM(N16:N19) -> 165 | O57: =SUM(O16:O19) -> 0 | P57: =SUM(P16:P19) -> 3,480 | Q57: 2,561 | R57: 0 | S57: 0 | T57: 171 | U57: 0 | V57: 3,519 | W57: 2,526 | X57: =SUM(X16:X19) -> 0 | Y57: 40 | Z57: 144 | AA57: 0 | AB57: 3,613 | AC57: 2,494 | AD57: 0 | AE57: 49 | AF57: 183 | AG57: 0 | AH57: 3,564 | AI57: 2,441 | AJ57: 0 | AK57: 65 | AL57: 218 | AM57: 0 | AN57: 3,522 | AO57: 2,584 | AP57: 0 | AQ57: 82 | AR57: 246 | AS57: 0 | AT57: 3,584 | AU57: 2,775 | AV57: 0 | AW57: 73 | AX57: 205 | AY57: 0 | AZ57: 3,319 | BA57: 2,573 | BB57: 0 | BC57: 67 | BD57: 238 | BE57: 0 | BF57: 3,358 | BG57: 2,454 | BH57: 0 | BI57: 67 | BJ57: 250 | BK57: 0
C58: Media | D58: =SUM(D20:D23) -> 1,218 | E58: 487 | F58: 0 | G58: 0 | H58: 57 | I58: 2 | J58: 1,236 | K58: 576 | L58: 0 | M58: 0 | N58: =SUM(N20:N23) -> 65 | O58: =SUM(O20:O23) -> 0 | P58: =SUM(P20:P23) -> 1,267 | Q58: 577 | R58: 0 | S58: 0 | T58: 69 | U58: 0 | V58: =SUM(V20:V23)+SUM(V30:V34) -> 1,319 | W58: =SUM(W20:W23)+SUM(W30:W34) -> 614 | X58: =SUM(X20:X23)+SUM(X30:X34) -> 0 | Y58: 0 | Z58: 48 | AA58: 0 | AB58: 1,252 | AC58: 660 | AD58: 0 | AE58: 0 | AF58: 49 | AG58: 0 | AH58: 1,203 | AI58: 642 | AJ58: 0 | AK58: 0 | AL58: 54 | AM58: 0 | AN58: 1,262 | AO58: 624 | AP58: 0 | AQ58: 0 | AR58: 54 | AS58: 0 | AT58: 1,196 | AU58: 698 | AV58: 0 | AW58: 0 | AX58: 56 | AY58: 0 | AZ58: 1,157 | BA58: 742 | BB58: 0 | BC58: 0 | BD58: 91 | BE58: 0 | BF58: 1,205 | BG58: 711 | BH58: 0 | BI58: 24 | BJ58: 89 | BK58: 0
C59: Adultos | D59: =SUM(D24:D29) -> 1,029 | E59: 161 | F59: 0 | G59: 0 | H59: 0 | I59: 0 | J59: 1,028 | K59: 358 | L59: 0 | M59: 0 | N59: =SUM(N24:N29) -> 0 | O59: =SUM(O24:O29) -> 0 | P59: =SUM(P24:P29) -> 1,054 | Q59: 369 | R59: 0 | S59: 0 | T59: 0 | U59: 0 | V59: 892 | W59: 399 | X59: =SUM(X24:X29) -> 0 | Y59: 0 | Z59: 0 | AA59: 0 | AB59: 895 | AC59: 416 | AD59: 0 | AE59: 0 | AF59: 0 | AG59: 0 | AH59: 910 | AI59: 573 | AJ59: 0 | AK59: 0 | AL59: 0 | AM59: 0 | AN59: 962 | AO59: 518 | AP59: 0 | AQ59: 0 | AR59: 0 | AS59: 0 | AT59: 936 | AU59: 596 | AV59: 0 | AW59: 0 | AX59: 0 | AY59: 0 | AZ59: 798 | BA59: 623 | BB59: 0 | BC59: 0 | BD59: 0 | BE59: 0 | BF59: 644 | BG59: 270 | BH59: 0 | BI59: 0 | BJ59: 10 | BK59: 0
C60: Total | D60: =SUM(D54:D59) -> 11,236 | E60: 8,022 | F60: 0 | G60: 1,336 | H60: 752 | I60: 34 | J60: 11,060 | K60: 8,276 | L60: 0 | M60: 1,321 | N60: 778 | O60: 0 | P60: 11,268 | Q60: 8,202 | R60: 0 | S60: 1,207 | T60: 901 | U60: 0 | V60: 11,261 | W60: 8,334 | X60: =SUM(X54:X59) -> 0 | Y60: 1,316 | Z60: 815 | AA60: 0 | AB60: 11,009 | AC60: 8,249 | AD60: 0 | AE60: 1,201 | AF60: 889 | AG60: 0 | AH60: 10,786 | AI60: 8,708 | AJ60: 0 | AK60: 1,231 | AL60: 821 | AM60: 0 | AN60: 10,915 | AO60: 8,629 | AP60: 0 | AQ60: 1,229 | AR60: 732 | AS60: 0 | AT60: 10,610 | AU60: 9,187 | AV60: 0 | AW60: 1,321 | AX60: 720 | AY60: 0 | AZ60: 10,151 | BA60: 8,953 | BB60: 0 | BC60: 1,239 | BD60: 822 | BE60: 0 | BF60: 9,992 | BG60: 8,227 | BH60: 0 | BI60: 1,279 | BJ60: 836 | BK60: 0
C61: FUENTE: SIMAT OAPF
C63: =+B7 -> AMAZONAS
C64: Sector-Zona | D64: 2014 | E64: 2015 | F64: 2016 | G64: 2017 | H64: 2018 | I64: 2019 | J64: 2020 | K64: 2021 | L64: 2022 | M64: 2023
C65: Oficial Urbana | D65: =+D60 -> 11,236 | E65: =+J60 -> 11,060 | F65: =+P60 -> 11,268 | G65: =+V60 -> 11,261 | H65: =+AB60 -> 11,009 | I65: =+AH60 -> 10,786 | J65: =+AN60 -> 10,915 | K65: =+AT60 -> 10,610 | L65: =+AZ60 -> 10,151 | M65: =+BF60 -> 9,992
C66: Oficial Rural | D66: =+E60 -> 8,022 | E66: =+K60 -> 8,276 | F66: =+Q60 -> 8,202 | G66: =+W60 -> 8,334 | H66: =+AC60 -> 8,249 | I66: =+AI60 -> 8,708 | J66: =+AO60 -> 8,629 | K66: =+AU60 -> 9,187 | L66: =+BA60 -> 8,953 | M66: =+BG60 -> 8,227
C67: Contratada Ubana | D67: =+F60 -> 0 | E67: =+L60 -> 0 | F67: =+R60 -> 0 | G67: =+X60 -> 0 | H67: =+AD60 -> 0 | I67: =+AJ60 -> 0 | J67: =+AP60 -> 0 | K67: =+AV60 -> 0 | L67: =+BB60 -> 0 | M67: =+BH60 -> 0
C68: Contratada Rural | D68: =+G60 -> 1,336 | E68: =+M60 -> 1,321 | F68: =+S60 -> 1,207 | G68: =+Y60 -> 1,316 | H68: =+AE60 -> 1,201 | I68: =+AK60 -> 1,231 | J68: =+AQ60 -> 1,229 | K68: =+AW60 -> 1,321 | L68: =+BC60 -> 1,239 | M68: =+BI60 -> 1,279
C69: No Ofcial Urbana | D69: =+H60 -> 752 | E69: =+N60 -> 778 | F69: =+T60 -> 901 | G69: =+Z60 -> 815 | H69: =+AF60 -> 889 | I69: =+AL60 -> 821 | J69: =+AR60 -> 732 | K69: =+AX60 -> 720 | L69: =+BD60 -> 822 | M69: =+BJ60 -> 836
C70: No Oficial Rural | D70: =+I60 -> 34 | E70: =+O60 -> 0 | F70: =+U60 -> 0 | G70: =+AA60 -> 0 | H70: =+AG60 -> 0 | I70: =+AM60 -> 0 | J70: =+AS60 -> 0 | K70: =+AY60 -> 0 | L70: =+BE60 -> 0 | M70: =+BK60 -> 0
C71: Total | D71: =SUM(D65:D70) -> 21,380 | E71: 21,435 | F71: 21,578 | G71: 21,726 | H71: 21,348 | I71: 21,546 | J71: 21,505 | K71: 21,838 | L71: 21,165 | M71: =SUM(M65:M70) -> 20,334
C72: FUENTE: SIMAT OAPF 2023 información preliminar
C74: =+B7 -> AMAZONAS
C75: Zona | D75: 2014 | E75: 2015 | F75: 2016 | G75: 2017 | H75: 2018 | I75: 2019 | J75: 2020 | K75: 2021 | L75: 2022 | M75: 2023
C76: Urbano | D76: =+D65+D67+D69 -> 11,988 | E76: =+E65+E67+E69 -> 11,838 | F76: 12,169 | G76: 12,076 | H76: 11,898 | I76: 11,607 | J76: 11,647 | K76: 11,330 | L76: 10,973 | M76: 10,828
C77: Rural | D77: =+D66+D68+D70 -> 9,392 | E77: =+E66+E68+E70 -> 9,597 | F77: 9,409 | G77: 9,650 | H77: 9,450 | I77: 9,939 | J77: 9,858 | K77: 10,508 | L77: 10,192 | M77: 9,506
C78: Total | D78: =SUM(D76:D77) -> 21,380 | E78: =SUM(E76:E77) -> 21,435 | F78: 21,578 | G78: 21,726 | H78: 21,348 | I78: 21,546 | J78: 21,505 | K78: 21,838 | L78: 21,165 | M78: 20,334
C79: FUENTE: SIMAT OAPF 2023 información preliminar
C81: =+B7 -> AMAZONAS | N81: =+B7 -> AMAZONAS
D197: 2014 | J197: 2015 | P197: 2016 | V197: 2017 | AB197: 2018 | AH197: 2019 | AN197: 2020 | AT197: 2021 | AZ197: 2022 | BF197: =+BF5 -> Oct. 2023
D198: Oficial | F198: Contratada | H198: No Oficial | J198: Oficial | L198: Contratada | N198: No Oficial | P198: Oficial | R198: Contratada | T198: No Oficial | V198: Oficial | X198: Contratada | Z198: No Oficial | AB198: Oficial | AD198: Contratada | AF198: No Oficial | AH198: Oficial | AJ198: Contratada | AL198: No Oficial | AN198: Oficial | AP198: Contratada | AR198: No Oficial | AT198: Oficial | AV198: Contratada | AX198: No Oficial | AZ198: Oficial | BB198: Contratada | BD198: No Oficial | BF198: Oficial | BH198: Contratada | BJ198: No Oficial
A199: lista | B199: ENTIDAD | C199: GRADO | D199: Urbana | E199: Rural | F199: Urbana | G199: Rural | H199: Urbana | I199: Rural | J199: Urbano | K199: Rural | L199: Urbano | M199: Rural | N199: Urbano | O199: Rural | P199: Urbano | Q199: Rural | R199: Urbano | S199: Rural | T199: Urbano | U199: Rural | V199: Urbano | W199: Rural | X199: Urbano | Y199: Rural | Z199: Urbano | AA199: Rural | AB199: Urbano | AC199: Rural | AD199: Urbano | AE199: Rural | AF199: Urbano | AG199: Rural | AH199: Urbano | AI199: Rural | AJ199: Urbano | AK199: Rural | AL199: Urbano | AM199: Rural | AN199: Urbano | AO199: Rural | AP199: Urbano | AQ199: Rural | AR199: Urbano | AS199: Rural | AT199: Urbano | AU199: Rural | AV199: Urbano | AW199: Rural | AX199: Urbano | AY199: Rural | AZ199: Urbano | BA199: Rural | BB199: Urbano | BC199: Rural | BD199: Urbano | BE199: Rural | BF199: Urbano | BG199: Rural | BH199: Urbano | BI199: Rural | BJ199: Urbano | BK199: Rural
A200: AMAZONAS | B200: AMAZONAS | C200: Prejardín | D200: 0 | E200: 0 | F200: 0 | G200: 0 | H200: 85 | I200: 2 | J200: 0 | K200: 0 | L200: 0 | M200: 0 | N200: 42 | O200: 0 | P200: 0 | Q200: 0 | R200: 0 | S200: 0 | T200: 86 | U200: 0 | V200: 0 | W200: 0 | X200: 0 | Y200: 0 | Z200: 101 | AA200: 0 | AB200: 0 | AC200: 0 | AD200: 0 | AE200: 0 | AF200: 66 | AG200: 0 | AH200: 0 | AI200: 0 | AJ200: 0 | AK200: 0 | AL200: 35 | AM200: 0 | AN200: 0 | AO200: 0 | AP200: 0 | AQ200: 0 | AR200: 1 | AS200: 0 | AT200: 0 | AU200: 0 | AV200: 0 | AW200: 0 | AX200: 24 | AY200: 0 | AZ200: 0 | BA200: 0 | BB200: 0 | BC200: 0 | BD200: 42 | BE200: 0 | BF200: 0 | BG200: 0 | BH200: 0 | BI200: 0 | BJ200: 37 | BK200: 0
A201: ANTIOQUIA | B201: AMAZONAS | C201: Jardín | D201: 0 | E201: 0 | F201: 0 | G201: 0 | H201: 85 | I201: 6 | J201: 0 | K201: 0 | L201: 0 | M201: 0 | N201: 122 | O201: 0 | P201: 0 | Q201: 0 | R201: 0 | S201: 0 | T201: 111 | U201: 0 | V201: 0 | W201: 0 | X201: 0 | Y201: 0 | Z201: 122 | AA201: 0 | AB201: 1 | AC201: 0 | AD201: 0 | AE201: 0 | AF201: 128 | AG201: 0 | AH201: 6 | AI201: 0 | AJ201: 0 | AK201: 0 | AL201: 66 | AM201: 0 | AN201: 6 | AO201: 0 | AP201: 0 | AQ201: 0 | AR201: 65 | AS201: 0 | AT201: 2 | AU201: 0 | AV201: 0 | AW201: 0 | AX201: 65 | AY201: 0 | AZ201: 4 | BA201: 0 | BB201: 0 | BC201: 0 | BD201: 68 | BE201: 0 | BF201: 8 | BG201: 0 | BH201: 0 | BI201: 0 | BJ201: 68 | BK201: 0
A202: APARTADO | B202: AMAZONAS | C202: Transición | D202: 746 | E202: 735 | F202: 0 | G202: 171 | H202: 99 | I202: 4 | J202: 701 | K202: 604 | L202: 0 | M202: 171 | N202: 99 | O202: 0 | P202: 738 | Q202: 665 | R202: 0 | S202: 164 | T202: 118 | U202: 0 | V202: 793 | W202: 775 | X202: 0 | Y202: 188 | Z202: 102 | AA202: 0 | AB202: 702 | AC202: 666 | AD202: 0 | AE202: 139 | AF202: 131 | AG202: 0 | AH202: 810 | AI202: 801 | AJ202: 0 | AK202: 201 | AL202: 116 | AM202: 0 | AN202: 809 | AO202: 732 | AP202: 0 | AQ202: 161 | AR202: 43 | AS202: 0 | AT202: 654 | AU202: 756 | AV202: 0 | AW202: 192 | AX202: 84 | AY202: 0 | AZ202: 763 | BA202: 739 | BB202: 0 | BC202: 143 | BD202: 81 | BE202: 0 | BF202: 685 | BG202: 682 | BH202: 0 | BI202: 178 | BJ202: 74 | BK202: 0
A203: ARAUCA | B203: AMAZONAS | C203: Primero | D203: 1,078 | E203: 981 | F203: 0 | G203: 282 | H203: 70 | I203: 3 | J203: 991 | K203: 943 | L203: 0 | M203: 251 | N203: 91 | O203: 0 | P203: 1,029 | Q203: 832 | R203: 0 | S203: 217 | T203: 77 | U203: 0 | V203: 1,054 | W203: 892 | X203: 0 | Y203: 247 | Z203: 77 | AA203: 0 | AB203: 1,045 | AC203: 980 | AD203: 0 | AE203: 239 | AF203: 72 | AG203: 0 | AH203: 936 | AI203: 973 | AJ203: 0 | AK203: 201 | AL203: 71 | AM203: 0 | AN203: 1,006 | AO203: 969 | AP203: 0 | AQ203: 242 | AR203: 78 | AS203: 0 | AT203: 921 | AU203: 859 | AV203: 0 | AW203: 236 | AX203: 66 | AY203: 0 | AZ203: 857 | BA203: 916 | BB203: 0 | BC203: 241 | BD203: 67 | BE203: 0 | BF203: 921 | BG203: 887 | BH203: 0 | BI203: 223 | BJ203: 80 | BK203: 0
A204: ARMENIA | B204: AMAZONAS | C204: Segundo | D204: 1,117 | E204: 917 | F204: 0 | G204: 272 | H204: 65 | I204: 2 | J204: 924 | K204: 892 | L204: 0 | M204: 274 | N204: 52 | O204: 0 | P204: 925 | Q204: 896 | R204: 0 | S204: 228 | T204: 86 | U204: 0 | V204: 880 | W204: 808 | X204: 0 | Y204: 233 | Z204: 61 | AA204: 0 | AB204: 898 | AC204: 837 | AD204: 0 | AE204: 223 | AF204: 80 | AG204: 0 | AH204: 883 | AI204: 944 | AJ204: 0 | AK204: 230 | AL204: 68 | AM204: 0 | AN204: 862 | AO204: 919 | AP204: 0 | AQ204: 203 | AR204: 65 | AS204: 0 | AT204: 868 | AU204: 956 | AV204: 0 | AW204: 244 | AX204: 73 | AY204: 0 | AZ204: 848 | BA204: 829 | BB204: 0 | BC204: 233 | BD204: 60 | BE204: 0 | BF204: 837 | BG204: 849 | BH204: 0 | BI204: 242 | BJ204: 62 | BK204: 0
A205: ATLANTICO | B205: AMAZONAS | C205: Tercero | D205: 889 | E205: 815 | F205: 0 | G205: 204 | H205: 45 | I205: 1 | J205: 1,029 | K205: 843 | L205: 0 | M205: 234 | N205: 65 | O205: 0 | P205: 881 | Q205: 810 | R205: 0 | S205: 225 | T205: 59 | U205: 0 | V205: 934 | W205: 827 | X205: 0 | Y205: 221 | Z205: 67 | AA205: 0 | AB205: 879 | AC205: 730 | AD205: 0 | AE205: 189 | AF205: 60 | AG205: 0 | AH205: 837 | AI205: 835 | AJ205: 0 | AK205: 193 | AL205: 70 | AM205: 0 | AN205: 862 | AO205: 887 | AP205: 0 | AQ205: 210 | AR205: 65 | AS205: 0 | AT205: 847 | AU205: 948 | AV205: 0 | AW205: 204 | AX205: 50 | AY205: 0 | AZ205: 832 | BA205: 921 | BB205: 0 | BC205: 212 | BD205: 64 | BE205: 0 | BF205: 840 | BG205: 815 | BH205: 0 | BI205: 231 | BJ205: 53 | BK205: 0
A206: BARRANCABERMEJA | B206: AMAZONAS | C206: Cuarto | D206: 942 | E206: 749 | F206: 0 | G206: 215 | H206: 30 | I206: 4 | J206: 915 | K206: 735 | L206: 0 | M206: 189 | N206: 49 | O206: 0 | P206: 1,019 | Q206: 758 | R206: 0 | S206: 198 | T206: 73 | U206: 0 | V206: 868 | W206: 771 | X206: 0 | Y206: 200 | Z206: 39 | AA206: 0 | AB206: 882 | AC206: 739 | AD206: 0 | AE206: 200 | AF206: 78 | AG206: 0 | AH206: 827 | AI206: 698 | AJ206: 0 | AK206: 171 | AL206: 55 | AM206: 0 | AN206: 807 | AO206: 738 | AP206: 0 | AQ206: 172 | AR206: 65 | AS206: 0 | AT206: 836 | AU206: 826 | AV206: 0 | AW206: 211 | AX206: 44 | AY206: 0 | AZ206: 764 | BA206: 848 | BB206: 0 | BC206: 163 | BD206: 62 | BE206: 0 | BF206: 781 | BG206: 802 | BH206: 0 | BI206: 173 | BJ206: 57 | BK206: 0
A207: BARRANQUILLA | B207: AMAZONAS | C207: Quinto | D207: 887 | E207: 789 | F207: 0 | G207: 192 | H207: 46 | I207: 2 | J207: 892 | K207: 699 | L207: 0 | M207: 202 | N207: 28 | O207: 0 | P207: 875 | Q207: 713 | R207: 0 | S207: 175 | T207: 51 | U207: 0 | V207: 969 | W207: 699 | X207: 0 | Y207: 187 | Z207: 54 | AA207: 0 | AB207: 842 | AC207: 701 | AD207: 0 | AE207: 162 | AF207: 42 | AG207: 0 | AH207: 810 | AI207: 755 | AJ207: 0 | AK207: 170 | AL207: 68 | AM207: 0 | AN207: 817 | AO207: 625 | AP207: 0 | AQ207: 159 | AR207: 50 | AS207: 0 | AT207: 766 | AU207: 756 | AV207: 0 | AW207: 161 | AX207: 53 | AY207: 0 | AZ207: 809 | BA207: 762 | BB207: 0 | BC207: 180 | BD207: 49 | BE207: 0 | BF207: 713 | BG207: 757 | BH207: 0 | BI207: 141 | BJ207: 56 | BK207: 0
A208: BELLO | B208: AMAZONAS | C208: Sexto | D208: 976 | E208: 813 | F208: 0 | G208: 0 | H208: 37 | I208: 0 | J208: 1,047 | K208: 886 | L208: 0 | M208: 0 | N208: 47 | O208: 0 | P208: 1,049 | Q208: 829 | R208: 0 | S208: 0 | T208: 48 | U208: 0 | V208: 1,054 | W208: 805 | X208: 0 | Y208: 40 | Z208: 44 | AA208: 0 | AB208: 1,123 | AC208: 880 | AD208: 0 | AE208: 16 | AF208: 69 | AG208: 0 | AH208: 1,026 | AI208: 806 | AJ208: 0 | AK208: 20 | AL208: 67 | AM208: 0 | AN208: 1,063 | AO208: 882 | AP208: 0 | AQ208: 26 | AR208: 69 | AS208: 0 | AT208: 1,223 | AU208: 839 | AV208: 0 | AW208: 15 | AX208: 43 | AY208: 0 | AZ208: 998 | BA208: 707 | BB208: 0 | BC208: 24 | BD208: 68 | BE208: 0 | BF208: 1,005 | BG208: 766 | BH208: 0 | BI208: 21 | BJ208: 57 | BK208: 0
A209: BOGOTA | B209: AMAZONAS | C209: Septimo | D209: 932 | E209: 714 | F209: 0 | G209: 0 | H209: 45 | I209: 2 | J209: 836 | K209: 688 | L209: 0 | M209: 0 | N209: 40 | O209: 0 | P209: 917 | Q209: 680 | R209: 0 | S209: 0 | T209: 47 | U209: 0 | V209: 958 | W209: 657 | X209: 0 | Y209: 0 | Z209: 37 | AA209: 0 | AB209: 925 | AC209: 641 | AD209: 0 | AE209: 33 | AF209: 58 | AG209: 0 | AH209: 985 | AI209: 739 | AJ209: 0 | AK209: 18 | AL209: 64 | AM209: 0 | AN209: 894 | AO209: 658 | AP209: 0 | AQ209: 17 | AR209: 65 | AS209: 0 | AT209: 875 | AU209: 773 | AV209: 0 | AW209: 24 | AX209: 57 | AY209: 0 | AZ209: 906 | BA209: 734 | BB209: 0 | BC209: 8 | BD209: 57 | BE209: 0 | BF209: 833 | BG209: 639 | BH209: 0 | BI209: 22 | BJ209: 69 | BK209: 0
A210: BOLIVAR | B210: AMAZONAS | C210: Octavo | D210: 724 | E210: 498 | F210: 0 | G210: 0 | H210: 46 | I210: 3 | J210: 813 | K210: 598 | L210: 0 | M210: 0 | N210: 39 | O210: 0 | P210: 757 | Q210: 577 | R210: 0 | S210: 0 | T210: 41 | U210: 0 | V210: 825 | W210: 575 | X210: 0 | Y210: 0 | Z210: 33 | AA210: 0 | AB210: 847 | AC210: 518 | AD210: 0 | AE210: 0 | AF210: 27 | AG210: 0 | AH210: 811 | AI210: 475 | AJ210: 0 | AK210: 27 | AL210: 59 | AM210: 0 | AN210: 857 | AO210: 603 | AP210: 0 | AQ210: 17 | AR210: 62 | AS210: 0 | AT210: 776 | AU210: 619 | AV210: 0 | AW210: 18 | AX210: 52 | AY210: 0 | AZ210: 736 | BA210: 639 | BB210: 0 | BC210: 19 | BD210: 65 | BE210: 0 | BF210: 875 | BG210: 565 | BH210: 0 | BI210: 7 | BJ210: 57 | BK210: 0
A211: BOYACA | B211: AMAZONAS | C211: Noveno | D211: 680 | E211: 363 | F211: 0 | G211: 0 | H211: 42 | I211: 3 | J211: 648 | K211: 433 | L211: 0 | M211: 0 | N211: 39 | O211: 0 | P211: 757 | Q211: 475 | R211: 0 | S211: 0 | T211: 35 | U211: 0 | V211: 682 | W211: 489 | X211: 0 | Y211: 0 | Z211: 30 | AA211: 0 | AB211: 718 | AC211: 455 | AD211: 0 | AE211: 0 | AF211: 29 | AG211: 0 | AH211: 742 | AI211: 421 | AJ211: 0 | AK211: 0 | AL211: 28 | AM211: 0 | AN211: 708 | AO211: 441 | AP211: 0 | AQ211: 22 | AR211: 50 | AS211: 0 | AT211: 710 | AU211: 544 | AV211: 0 | AW211: 16 | AX211: 53 | AY211: 0 | AZ211: 679 | BA211: 493 | BB211: 0 | BC211: 16 | BD211: 48 | BE211: 0 | BF211: 645 | BG211: 484 | BH211: 0 | BI211: 17 | BJ211: 67 | BK211: 0
A212: BUCARAMANGA | B212: AMAZONAS | C212: Decimo | D212: 640 | E212: 312 | F212: 0 | G212: 0 | H212: 29 | I212: 0 | J212: 671 | K212: 331 | L212: 0 | M212: 0 | N212: 38 | O212: 0 | P212: 638 | Q212: 340 | R212: 0 | S212: 0 | T212: 29 | U212: 0 | V212: 716 | W212: 361 | X212: 0 | Y212: 0 | Z212: 25 | AA212: 0 | AB212: 651 | AC212: 371 | AD212: 0 | AE212: 0 | AF212: 28 | AG212: 0 | AH212: 655 | AI212: 359 | AJ212: 0 | AK212: 0 | AL212: 27 | AM212: 0 | AN212: 695 | AO212: 347 | AP212: 0 | AQ212: 0 | AR212: 29 | AS212: 0 | AT212: 677 | AU212: 411 | AV212: 0 | AW212: 0 | AX212: 32 | AY212: 0 | AZ212: 606 | BA212: 443 | BB212: 0 | BC212: 0 | BD212: 49 | BE212: 0 | BF212: 633 | BG212: 385 | BH212: 0 | BI212: 12 | BJ212: 46 | BK212: 0
A213: BUENAVENTURA | B213: AMAZONAS | C213: Once | D213: 484 | E213: 175 | F213: 0 | G213: 0 | H213: 28 | I213: 2 | J213: 487 | K213: 245 | L213: 0 | M213: 0 | N213: 27 | O213: 0 | P213: 547 | Q213: 237 | R213: 0 | S213: 0 | T213: 40 | U213: 0 | V213: 533 | W213: 253 | X213: 0 | Y213: 0 | Z213: 23 | AA213: 0 | AB213: 565 | AC213: 289 | AD213: 0 | AE213: 0 | AF213: 21 | AG213: 0 | AH213: 462 | AI213: 283 | AJ213: 0 | AK213: 0 | AL213: 27 | AM213: 0 | AN213: 519 | AO213: 277 | AP213: 0 | AQ213: 0 | AR213: 25 | AS213: 0 | AT213: 443 | AU213: 287 | AV213: 0 | AW213: 0 | AX213: 24 | AY213: 0 | AZ213: 478 | BA213: 299 | BB213: 0 | BC213: 0 | BD213: 42 | BE213: 0 | BF213: 535 | BG213: 326 | BH213: 0 | BI213: 12 | BJ213: 43 | BK213: 0
A214: BUGA | B214: AMAZONAS | C214: 12º Normal | D214: 60 | E214: 0 | F214: 0 | G214: 0 | H214: 0 | I214: 0 | J214: 26 | K214: 0 | L214: 0 | M214: 0 | N214: 0 | O214: 0 | P214: 71 | Q214: 0 | R214: 0 | S214: 0 | T214: 0 | U214: 0 | V214: 43 | W214: 0 | X214: 0 | Y214: 0 | Z214: 0 | AA214: 0 | AB214: 20 | AC214: 0 | AD214: 0 | AE214: 0 | AF214: 0 | AG214: 0 | AH214: 48 | AI214: 0 | AJ214: 0 | AK214: 0 | AL214: 0 | AM214: 0 | AN214: 26 | AO214: 0 | AP214: 0 | AQ214: 0 | AR214: 0 | AS214: 0 | AT214: 53 | AU214: 0 | AV214: 0 | AW214: 0 | AX214: 0 | AY214: 0 | AZ214: 42 | BA214: 0 | BB214: 0 | BC214: 0 | BD214: 0 | BE214: 0 | BF214: 19 | BG214: 0 | BH214: 0 | BI214: 0 | BJ214: 0 | BK214: 0
A215: CALDAS | B215: AMAZONAS | C215: 13º Normal | D215: 34 | E215: 0 | F215: 0 | G215: 0 | H215: 0 | I215: 0 | J215: 52 | K215: 0 | L215: 0 | M215: 0 | N215: 0 | O215: 0 | P215: 11 | Q215: 0 | R215: 0 | S215: 0 | T215: 0 | U215: 0 | V215: 27 | W215: 0 | X215: 0 | Y215: 0 | Z215: 0 | AA215: 0 | AB215: 16 | AC215: 0 | AD215: 0 | AE215: 0 | AF215: 0 | AG215: 0 | AH215: 38 | AI215: 0 | AJ215: 0 | AK215: 0 | AL215: 0 | AM215: 0 | AN215: 22 | AO215: 0 | AP215: 0 | AQ215: 0 | AR215: 0 | AS215: 0 | AT215: 23 | AU215: 0 | AV215: 0 | AW215: 0 | AX215: 0 | AY215: 0 | AZ215: 31 | BA215: 0 | BB215: 0 | BC215: 0 | BD215: 0 | BE215: 0 | BF215: 18 | BG215: 0 | BH215: 0 | BI215: 0 | BJ215: 0 | BK215: 0
A216: CALI | B216: AMAZONAS | C216: Ciclo 1 Adultos | D216: 37 | E216: 3 | F216: 0 | G216: 0 | H216: 0 | I216: 0 | J216: 55 | K216: 42 | L216: 0 | M216: 0 | N216: 0 | O216: 0 | P216: 55 | Q216: 11 | R216: 0 | S216: 0 | T216: 0 | U216: 0 | V216: 39 | W216: 42 | X216: 0 | Y216: 0 | Z216: 0 | AA216: 0 | AB216: 28 | AC216: 34 | AD216: 0 | AE216: 0 | AF216: 0 | AG216: 0 | AH216: 42 | AI216: 25 | AJ216: 0 | AK216: 0 | AL216: 0 | AM216: 0 | AN216: 20 | AO216: 10 | AP216: 0 | AQ216: 0 | AR216: 0 | AS216: 0 | AT216: 19 | AU216: 6 | AV216: 0 | AW216: 0 | AX216: 0 | AY216: 0 | AZ216: 34 | BA216: 5 | BB216: 0 | BC216: 0 | BD216: 0 | BE216: 0 | BF216: 21 | BG216: 0 | BH216: 0 | BI216: 0 | BJ216: 0 | BK216: 0
A217: CAQUETA | B217: AMAZONAS | C217: Ciclo 2 Adultos | D217: 93 | E217: 13 | F217: 0 | G217: 0 | H217: 0 | I217: 0 | J217: 89 | K217: 35 | L217: 0 | M217: 0 | N217: 0 | O217: 0 | P217: 107 | Q217: 54 | R217: 0 | S217: 0 | T217: 0 | U217: 0 | V217: 70 | W217: 45 | X217: 0 | Y217: 0 | Z217: 0 | AA217: 0 | AB217: 66 | AC217: 39 | AD217: 0 | AE217: 0 | AF217: 0 | AG217: 0 | AH217: 75 | AI217: 53 | AJ217: 0 | AK217: 0 | AL217: 0 | AM217: 0 | AN217: 64 | AO217: 13 | AP217: 0 | AQ217: 0 | AR217: 0 | AS217: 0 | AT217: 52 | AU217: 6 | AV217: 0 | AW217: 0 | AX217: 0 | AY217: 0 | AZ217: 46 | BA217: 16 | BB217: 0 | BC217: 0 | BD217: 0 | BE217: 0 | BF217: 32 | BG217: 0 | BH217: 0 | BI217: 0 | BJ217: 0 | BK217: 0
A218: CARTAGENA | B218: AMAZONAS | C218: Ciclo 3 Adultos | D218: 255 | E218: 42 | F218: 0 | G218: 0 | H218: 0 | I218: 0 | J218: 256 | K218: 131 | L218: 0 | M218: 0 | N218: 0 | O218: 0 | P218: 250 | Q218: 71 | R218: 0 | S218: 0 | T218: 0 | U218: 0 | V218: 192 | W218: 73 | X218: 0 | Y218: 0 | Z218: 0 | AA218: 0 | AB218: 247 | AC218: 108 | AD218: 0 | AE218: 0 | AF218: 0 | AG218: 0 | AH218: 219 | AI218: 159 | AJ218: 0 | AK218: 0 | AL218: 0 | AM218: 0 | AN218: 279 | AO218: 135 | AP218: 0 | AQ218: 0 | AR218: 0 | AS218: 0 | AT218: 269 | AU218: 146 | AV218: 0 | AW218: 0 | AX218: 0 | AY218: 0 | AZ218: 206 | BA218: 131 | BB218: 0 | BC218: 0 | BD218: 0 | BE218: 0 | BF218: 172 | BG218: 50 | BH218: 0 | BI218: 0 | BJ218: 0 | BK218: 0
A219: CARTAGO | B219: AMAZONAS | C219: Ciclo 4 Adultos | D219: 236 | E219: 42 | F219: 0 | G219: 0 | H219: 0 | I219: 0 | J219: 224 | K219: 69 | L219: 0 | M219: 0 | N219: 0 | O219: 0 | P219: 264 | Q219: 119 | R219: 0 | S219: 0 | T219: 0 | U219: 0 | V219: 194 | W219: 84 | X219: 0 | Y219: 0 | Z219: 0 | AA219: 0 | AB219: 213 | AC219: 89 | AD219: 0 | AE219: 0 | AF219: 0 | AG219: 0 | AH219: 234 | AI219: 164 | AJ219: 0 | AK219: 0 | AL219: 0 | AM219: 0 | AN219: 240 | AO219: 127 | AP219: 0 | AQ219: 0 | AR219: 0 | AS219: 0 | AT219: 246 | AU219: 161 | AV219: 0 | AW219: 0 | AX219: 0 | AY219: 0 | AZ219: 216 | BA219: 191 | BB219: 0 | BC219: 0 | BD219: 0 | BE219: 0 | BF219: 170 | BG219: 91 | BH219: 0 | BI219: 0 | BJ219: 0 | BK219: 0
A220: CASANARE | B220: AMAZONAS | C220: Ciclo 5 Adultos | D220: 236 | E220: 37 | F220: 0 | G220: 0 | H220: 0 | I220: 0 | J220: 219 | K220: 49 | L220: 0 | M220: 0 | N220: 0 | O220: 0 | P220: 219 | Q220: 70 | R220: 0 | S220: 0 | T220: 0 | U220: 0 | V220: 231 | W220: 91 | X220: 0 | Y220: 0 | Z220: 0 | AA220: 0 | AB220: 201 | AC220: 71 | AD220: 0 | AE220: 0 | AF220: 0 | AG220: 0 | AH220: 177 | AI220: 99 | AJ220: 0 | AK220: 0 | AL220: 0 | AM220: 0 | AN220: 198 | AO220: 129 | AP220: 0 | AQ220: 0 | AR220: 0 | AS220: 0 | AT220: 214 | AU220: 155 | AV220: 0 | AW220: 0 | AX220: 0 | AY220: 0 | AZ220: 173 | BA220: 155 | BB220: 0 | BC220: 0 | BD220: 0 | BE220: 0 | BF220: 131 | BG220: 55 | BH220: 0 | BI220: 0 | BJ220: 0 | BK220: 0
A221: CAUCA | B221: AMAZONAS | C221: Ciclo 6 Adultos | D221: 172 | E221: 24 | F221: 0 | G221: 0 | H221: 0 | I221: 0 | J221: 185 | K221: 32 | L221: 0 | M221: 0 | N221: 0 | O221: 0 | P221: 159 | Q221: 44 | R221: 0 | S221: 0 | T221: 0 | U221: 0 | V221: 166 | W221: 64 | X221: 0 | Y221: 0 | Z221: 0 | AA221: 0 | AB221: 140 | AC221: 75 | AD221: 0 | AE221: 0 | AF221: 0 | AG221: 0 | AH221: 163 | AI221: 73 | AJ221: 0 | AK221: 0 | AL221: 0 | AM221: 0 | AN221: 161 | AO221: 104 | AP221: 0 | AQ221: 0 | AR221: 0 | AS221: 0 | AT221: 136 | AU221: 122 | AV221: 0 | AW221: 0 | AX221: 0 | AY221: 0 | AZ221: 123 | BA221: 125 | BB221: 0 | BC221: 0 | BD221: 0 | BE221: 0 | BF221: 118 | BG221: 74 | BH221: 0 | BI221: 0 | BJ221: 10 | BK221: 0
A222: CESAR | B222: AMAZONAS | C222: Semestre introductorio NS | D222: 0 | E222: 0 | F222: 0 | G222: 0 | H222: 0 | I222: 0 | J222: 0 | K222: 0 | L222: 0 | M222: 0 | N222: 0 | O222: 0 | P222: 0 | Q222: 0 | R222: 0 | S222: 0 | T222: 0 | U222: 0 | V222: 0 | W222: 0 | X222: 0 | Y222: 0 | Z222: 0 | AA222: 0 | AB222: 0 | AC222: 0 | AD222: 0 | AE222: 0 | AF222: 0 | AG222: 0 | AH222: 0 | AI222: 0 | AJ222: 0 | AK222: 0 | AL222: 0 | AM222: 0 | AN222: 0 | AO222: 0 | AP222: 0 | AQ222: 0 | AR222: 0 | AS222: 0 | AT222: 0 | AU222: 0 | AV222: 0 | AW222: 0 | AX222: 0 | AY222: 0 | AZ222: 0 | BA222: 0 | BB222: 0 | BC222: 0 | BD222: 0 | BE222: 0 | BF222: 0 | BG222: 0 | BH222: 0 | BI222: 0 | BJ222: 0 | BK222: 0
A223: CHIA | B223: AMAZONAS | C223: Programa formación compl 1 NS | D223: 0 | E223: 0 | F223: 0 | G223: 0 | H223: 0 | I223: 0 | J223: 0 | K223: 0 | L223: 0 | M223: 0 | N223: 0 | O223: 0 | P223: 0 | Q223: 0 | R223: 0 | S223: 0 | T223: 0 | U223: 0 | V223: 0 | W223: 0 | X223: 0 | Y223: 0 | Z223: 0 | AA223: 0 | AB223: 0 | AC223: 0 | AD223: 0 | AE223: 0 | AF223: 0 | AG223: 0 | AH223: 0 | AI223: 0 | AJ223: 0 | AK223: 0 | AL223: 0 | AM223: 0 | AN223: 0 | AO223: 0 | AP223: 0 | AQ223: 0 | AR223: 0 | AS223: 0 | AT223: 0 | AU223: 0 | AV223: 0 | AW223: 0 | AX223: 0 | AY223: 0 | AZ223: 0 | BA223: 0 | BB223: 0 | BC223: 0 | BD223: 0 | BE223: 0 | BF223: 0 | BG223: 0 | BH223: 0 | BI223: 0 | BJ223: 0 | BK223: 0
A224: CHOCO | B224: AMAZONAS | C224: Programa formación compl 2 NS | D224: 0 | E224: 0 | F224: 0 | G224: 0 | H224: 0 | I224: 0 | J224: 0 | K224: 0 | L224: 0 | M224: 0 | N224: 0 | O224: 0 | P224: 0 | Q224: 0 | R224: 0 | S224: 0 | T224: 0 | U224: 0 | V224: 0 | W224: 0 | X224: 0 | Y224: 0 | Z224: 0 | AA224: 0 | AB224: 0 | AC224: 0 | AD224: 0 | AE224: 0 | AF224: 0 | AG224: 0 | AH224: 0 | AI224: 0 | AJ224: 0 | AK224: 0 | AL224: 0 | AM224: 0 | AN224: 0 | AO224: 0 | AP224: 0 | AQ224: 0 | AR224: 0 | AS224: 0 | AT224: 0 | AU224: 0 | AV224: 0 | AW224: 0 | AX224: 0 | AY224: 0 | AZ224: 0 | BA224: 0 | BB224: 0 | BC224: 0 | BD224: 0 | BE224: 0 | BF224: 0 | BG224: 0 | BH224: 0 | BI224: 0 | BJ224: 0 | BK224: 0
A225: CIENAGA | B225: AMAZONAS | C225: Programa formación compl 3 NS | D225: 0 | E225: 0 | F225: 0 | G225: 0 | H225: 0 | I225: 0 | J225: 0 | K225: 0 | L225: 0 | M225: 0 | N225: 0 | O225: 0 | P225: 0 | Q225: 0 | R225: 0 | S225: 0 | T225: 0 | U225: 0 | V225: 0 | W225: 0 | X225: 0 | Y225: 0 | Z225: 0 | AA225: 0 | AB225: 0 | AC225: 0 | AD225: 0 | AE225: 0 | AF225: 0 | AG225: 0 | AH225: 0 | AI225: 0 | AJ225: 0 | AK225: 0 | AL225: 0 | AM225: 0 | AN225: 0 | AO225: 0 | AP225: 0 | AQ225: 0 | AR225: 0 | AS225: 0 | AT225: 0 | AU225: 0 | AV225: 0 | AW225: 0 | AX225: 0 | AY225: 0 | AZ225: 0 | BA225: 0 | BB225: 0 | BC225: 0 | BD225: 0 | BE225: 0 | BF225: 0 | BG225: 0 | BH225: 0 | BI225: 0 | BJ225: 0 | BK225: 0
A226: CORDOBA | B226: AMAZONAS | C226: Programa formación compl 4 NS | D226: 0 | E226: 0 | F226: 0 | G226: 0 | H226: 0 | I226: 0 | J226: 0 | K226: 0 | L226: 0 | M226: 0 | N226: 0 | O226: 0 | P226: 0 | Q226: 0 | R226: 0 | S226: 0 | T226: 0 | U226: 0 | V226: 0 | W226: 0 | X226: 0 | Y226: 0 | Z226: 0 | AA226: 0 | AB226: 0 | AC226: 0 | AD226: 0 | AE226: 0 | AF226: 0 | AG226: 0 | AH226: 0 | AI226: 0 | AJ226: 0 | AK226: 0 | AL226: 0 | AM226: 0 | AN226: 0 | AO226: 0 | AP226: 0 | AQ226: 0 | AR226: 0 | AS226: 0 | AT226: 0 | AU226: 0 | AV226: 0 | AW226: 0 | AX226: 0 | AY226: 0 | AZ226: 0 | BA226: 0 | BB226: 0 | BC226: 0 | BD226: 0 | BE226: 0 | BF226: 0 | BG226: 0 | BH226: 0 | BI226: 0 | BJ226: 0 | BK226: 0
A227: CUCUTA | B227: AMAZONAS | C227: Aceleración del Aprendizaje | D227: 18 | E227: 0 | F227: 0 | G227: 0 | H227: 0 | I227: 0 | J227: 0 | K227: 21 | L227: 0 | M227: 0 | N227: 0 | O227: 0 | P227: 0 | Q227: 21 | R227: 0 | S227: 0 | T227: 0 | U227: 0 | V227: 33 | W227: 23 | X227: 0 | Y227: 0 | Z227: 0 | AA227: 0 | AB227: 0 | AC227: 26 | AD227: 0 | AE227: 0 | AF227: 0 | AG227: 0 | AH227: 0 | AI227: 46 | AJ227: 0 | AK227: 0 | AL227: 0 | AM227: 0 | AN227: 0 | AO227: 33 | AP227: 0 | AQ227: 0 | AR227: 0 | AS227: 0 | AT227: 0 | AU227: 17 | AV227: 0 | AW227: 0 | AX227: 0 | AY227: 0 | AZ227: 0 | BA227: 0 | BB227: 0 | BC227: 0 | BD227: 0 | BE227: 0 | BF227: 0 | BG227: 0 | BH227: 0 | BI227: 0 | BJ227: 0 | BK227: 0
A228: CUNDINAMARCA | B228: ANTIOQUIA | C228: Prejardín | D228: 0 | E228: 0 | F228: 0 | G228: 0 | H228: 957 | I228: 135 | J228: 0 | K228: 0 | L228: 0 | M228: 0 | N228: 891 | O228: 90 | P228: 0 | Q228: 0 | R228: 0 | S228: 0 | T228: 1,305 | U228: 92 | V228: 0 | W228: 0 | X228: 0 | Y228: 0 | Z228: 1,151 | AA228: 184 | AB228: 0 | AC228: 0 | AD228: 0 | AE228: 0 | AF228: 1,290 | AG228: 101 | AH228: 0 | AI228: 0 | AJ228: 0 | AK228: 0 | AL228: 1,348 | AM228: 156 | AN228: 0 | AO228: 0 | AP228: 0 | AQ228: 0 | AR228: 1,185 | AS228: 172 | AT228: 0 | AU228: 0 | AV228: 0 | AW228: 0 | AX228: 1,016 | AY228: 186 | AZ228: 0 | BA228: 0 | BB228: 0 | BC228: 0 | BD228: 1,069 | BE228: 194 | BF228: 0 | BG228: 0 | BH228: 0 | BI228: 0 | BJ228: 1,100 | BK228: 212
A229: DOSQUEBRADAS | B229: ANTIOQUIA | C229: Jardín | D229: 0 | E229: 0 | F229: 0 | G229: 0 | H229: 1,220 | I229: 172 | J229: 0 | K229: 0 | L229: 0 | M229: 0 | N229: 1,283 | O229: 193 | P229: 0 | Q229: 0 | R229: 0 | S229: 0 | T229: 1,494 | U229: 148 | V229: 0 | W229: 0 | X229: 0 | Y229: 0 | Z229: 1,493 | AA229: 224 | AB229: 0 | AC229: 26 | AD229: 0 | AE229: 0 | AF229: 1,555 | AG229: 144 | AH229: 0 | AI229: 0 | AJ229: 0 | AK229: 0 | AL229: 1,575 | AM229: 167 | AN229: 0 | AO229: 0 | AP229: 0 | AQ229: 0 | AR229: 1,590 | AS229: 264 | AT229: 0 | AU229: 0 | AV229: 0 | AW229: 0 | AX229: 1,398 | AY229: 262 | AZ229: 0 | BA229: 0 | BB229: 0 | BC229: 0 | BD229: 1,637 | BE229: 264 | BF229: 0 | BG229: 0 | BH229: 0 | BI229: 0 | BJ229: 1,502 | BK229: 307
A230: DUITAMA | B230: ANTIOQUIA | C230: Transición | D230: 19,584 | E230: 15,801 | F230: 241 | G230: 1,883 | H230: 1,488 | I230: 276 | J230: 18,494 | K230: 14,594 | L230: 159 | M230: 1,820 | N230: 1,416 | O230: 264 | P230: 17,180 | Q230: 14,784 | R230: 95 | S230: 1,872 | T230: 1,543 | U230: 317 | V230: 17,165 | W230: 14,857 | X230: 75 | Y230: 1,368 | Z230: 1,621 | AA230: 332 | AB230: 16,913 | AC230: 14,243 | AD230: 55 | AE230: 1,115 | AF230: 1,741 | AG230: 213 | AH230: 16,774 | AI230: 13,968 | AJ230: 47 | AK230: 1,254 | AL230: 1,680 | AM230: 282 | AN230: 16,724 | AO230: 13,333 | AP230: 32 | AQ230: 1,056 | AR230: 1,748 | AS230: 356 | AT230: 16,240 | AU230: 13,681 | AV230: 19 | AW230: 952 | AX230: 1,632 | AY230: 435 | AZ230: 17,758 | BA230: 14,475 | BB230: 32 | BC230: 987 | BD230: 1,859 | BE230: 446 | BF230: 17,535 | BG230: 13,982 | BH230: 49 | BI230: 1,246 | BJ230: 1,917 | BK230: 484
A231: ENVIGADO | B231: ANTIOQUIA | C231: Primero | D231: 26,567 | E231: 27,003 | F231: 407 | G231: 3,841 | H231: 1,100 | I231: 324 | J231: 25,555 | K231: 24,569 | L231: 428 | M231: 3,460 | N231: 1,196 | O231: 359 | P231: 23,682 | Q231: 23,579 | R231: 187 | S231: 3,345 | T231: 1,194 | U231: 362 | V231: 22,143 | W231: 22,347 | X231: 161 | Y231: 2,638 | Z231: 1,251 | AA231: 365 | AB231: 22,048 | AC231: 21,865 | AD231: 84 | AE231: 2,232 | AF231: 1,324 | AG231: 276 | AH231: 21,705 | AI231: 20,926 | AJ231: 90 | AK231: 2,007 | AL231: 1,363 | AM231: 361 | AN231: 21,233 | AO231: 19,898 | AP231: 55 | AQ231: 1,792 | AR231: 1,330 | AS231: 376 | AT231: 20,400 | AU231: 18,676 | AV231: 35 | AW231: 1,504 | AX231: 1,297 | AY231: 419 | AZ231: 21,805 | BA231: 19,044 | BB231: 30 | BC231: 1,597 | BD231: 1,450 | BE231: 518 | BF231: 22,250 | BG231: 19,040 | BH231: 37 | BI231: 1,591 | BJ231: 1,507 | BK231: 506
A232: FACATATIVA | B232: ANTIOQUIA | C232: Segundo | D232: 25,781 | E232: 26,102 | F232: 325 | G232: 3,254 | H232: 1,186 | I232: 323 | J232: 24,212 | K232: 23,404 | L232: 353 | M232: 2,915 | N232: 1,168 | O232: 338 | P232: 23,334 | Q232: 22,245 | R232: 271 | S232: 2,676 | T232: 1,178 | U232: 360 | V232: 21,985 | W232: 21,245 | X232: 225 | Y232: 2,373 | Z232: 1,213 | AA232: 379 | AB232: 20,506 | AC232: 19,992 | AD232: 152 | AE232: 2,137 | AF232: 1,245 | AG232: 310 | AH232: 20,366 | AI232: 19,564 | AJ232: 59 | AK232: 1,946 | AL232: 1,252 | AM232: 318 | AN232: 19,952 | AO232: 18,782 | AP232: 84 | AQ232: 1,743 | AR232: 1,312 | AS232: 382 | AT232: 19,799 | AU232: 19,280 | AV232: 62 | AW232: 1,686 | AX232: 1,206 | AY232: 398 | AZ232: 19,513 | BA232: 17,635 | BB232: 37 | BC232: 1,553 | BD232: 1,369 | BE232: 450 | BF232: 20,141 | BG232: 17,286 | BH232: 31 | BI232: 1,527 | BJ232: 1,384 | BK232: 540
A233: FLORENCIA | B233: ANTIOQUIA | C233: Tercero | D233: 24,701 | E233: 23,858 | F233: 308 | G233: 2,871 | H233: 1,100 | I233: 332 | J233: 25,307 | K233: 23,875 | L233: 286 | M233: 2,675 | N233: 1,162 | O233: 350 | P233: 23,961 | Q233: 22,706 | R233: 230 | S233: 2,480 | T233: 1,232 | U233: 345 | V233: 22,858 | W233: 21,311 | X233: 273 | Y233: 2,079 | Z233: 1,216 | AA233: 360 | AB233: 21,830 | AC233: 19,761 | AD233: 215 | AE233: 2,148 | AF233: 1,235 | AG233: 307 | AH233: 20,780 | AI233: 18,975 | AJ233: 135 | AK233: 1,986 | AL233: 1,225 | AM233: 340 | AN233: 20,495 | AO233: 18,754 | AP233: 66 | AQ233: 1,826 | AR233: 1,234 | AS233: 343 | AT233: 19,850 | AU233: 18,995 | AV233: 89 | AW233: 1,696 | AX233: 1,212 | AY233: 385 | AZ233: 19,225 | BA233: 17,306 | BB233: 55 | BC233: 1,648 | BD233: 1,249 | BE233: 424 | BF233: 19,358 | BG233: 16,988 | BH233: 35 | BI233: 1,487 | BJ233: 1,383 | BK233: 479
A234: FLORIDABLANCA | B234: ANTIOQUIA | C234: Cuarto | D234: 24,395 | E234: 22,320 | F234: 310 | G234: 2,352 | H234: 1,086 | I234: 333 | J234: 23,892 | K234: 21,868 | L234: 240 | M234: 2,402 | N234: 1,082 | O234: 353 | P234: 24,493 | Q234: 22,387 | R234: 196 | S234: 2,197 | T234: 1,138 | U234: 366 | V234: 23,183 | W234: 21,166 | X234: 267 | Y234: 1,938 | Z234: 1,227 | AA234: 366 | AB234: 22,085 | AC234: 19,772 | AD234: 243 | AE234: 1,771 | AF234: 1,236 | AG234: 310 | AH234: 21,480 | AI234: 18,678 | AJ234: 122 | AK234: 1,792 | AL234: 1,166 | AM234: 324 | AN234: 20,302 | AO234: 18,237 | AP234: 118 | AQ234: 1,606 | AR234: 1,189 | AS234: 364 | AT234: 20,193 | AU234: 18,909 | AV234: 66 | AW234: 1,629 | AX234: 1,163 | AY234: 363 | AZ234: 19,669 | BA234: 17,567 | BB234: 80 | BC234: 1,535 | BD234: 1,266 | BE234: 402 | BF234: 18,757 | BG234: 16,037 | BH234: 46 | BI234: 1,419 | BJ234: 1,223 | BK234: 454
A235: FUNZA | B235: ANTIOQUIA | C235: Quinto | D235: 24,096 | E235: 20,865 | F235: 305 | G235: 2,066 | H235: 980 | I235: 328 | J235: 23,610 | K235: 20,388 | L235: 274 | M235: 2,015 | N235: 1,094 | O235: 361 | P235: 23,128 | Q235: 20,689 | R235: 152 | S235: 1,806 | T235: 1,098 | U235: 398 | V235: 23,414 | W235: 20,931 | X235: 180 | Y235: 1,834 | Z235: 1,174 | AA235: 373 | AB235: 22,435 | AC235: 19,679 | AD235: 182 | AE235: 1,654 | AF235: 1,285 | AG235: 324 | AH235: 21,812 | AI235: 18,803 | AJ235: 160 | AK235: 1,618 | AL235: 1,209 | AM235: 320 | AN235: 21,089 | AO235: 17,781 | AP235: 105 | AQ235: 1,531 | AR235: 1,161 | AS235: 343 | AT235: 20,130 | AU235: 18,356 | AV235: 105 | AW235: 1,599 | AX235: 1,110 | AY235: 373 | AZ235: 20,024 | BA235: 17,773 | BB235: 68 | BC235: 1,570 | BD235: 1,210 | BE235: 393 | BF235: 19,494 | BG235: 16,429 | BH235: 87 | BI235: 1,454 | BJ235: 1,260 | BK235: 436
A236: FUSAGASUGA | B236: ANTIOQUIA | C236: Sexto | D236: 31,429 | E236: 14,640 | F236: 2,388 | G236: 3,085 | H236: 898 | I236: 345 | J236: 31,571 | K236: 14,743 | L236: 2,537 | M236: 2,906 | N236: 1,149 | O236: 358 | P236: 30,744 | Q236: 15,688 | R236: 297 | S236: 4,748 | T236: 1,112 | U236: 390 | V236: 30,385 | W236: 16,856 | X236: 291 | Y236: 3,559 | Z236: 1,113 | AA236: 400 | AB236: 30,608 | AC236: 17,445 | AD236: 266 | AE236: 3,428 | AF236: 1,191 | AG236: 392 | AH236: 28,880 | AI236: 16,973 | AJ236: 243 | AK236: 3,260 | AL236: 1,276 | AM236: 355 | AN236: 28,439 | AO236: 17,089 | AP236: 215 | AQ236: 3,176 | AR236: 1,214 | AS236: 366 | AT236: 26,148 | AU236: 15,898 | AV236: 105 | AW236: 2,804 | AX236: 1,265 | AY236: 385 | AZ236: 25,091 | BA236: 15,362 | BB236: 137 | BC236: 2,923 | BD236: 1,212 | BE236: 412 | BF236: 24,240 | BG236: 15,310 | BH236: 103 | BI236: 2,726 | BJ236: 1,243 | BK236: 460
A237: GIRARDOT | B237: ANTIOQUIA | C237: Septimo | D237: 26,724 | E237: 12,359 | F237: 2,648 | G237: 2,837 | H237: 912 | I237: 370 | J237: 25,787 | K237: 11,841 | L237: 2,209 | M237: 2,516 | N237: 1,018 | O237: 333 | P237: 26,237 | Q237: 13,003 | R237: 254 | S237: 3,777 | T237: 965 | U237: 345 | V237: 25,450 | W237: 13,622 | X237: 226 | Y237: 3,451 | Z237: 1,126 | AA237: 391 | AB237: 25,377 | AC237: 14,059 | AD237: 287 | AE237: 3,031 | AF237: 1,145 | AG237: 361 | AH237: 25,658 | AI237: 14,647 | AJ237: 203 | AK237: 2,948 | AL237: 1,152 | AM237: 355 | AN237: 25,122 | AO237: 14,498 | AP237: 213 | AQ237: 2,852 | AR237: 1,249 | AS237: 374 | AT237: 25,387 | AU237: 15,433 | AV237: 207 | AW237: 3,003 | AX237: 1,318 | AY237: 382 | AZ237: 23,779 | BA237: 13,615 | BB237: 131 | BC237: 2,653 | BD237: 1,266 | BE237: 385 | BF237: 22,934 | BG237: 13,323 | BH237: 139 | BI237: 2,579 | BJ237: 1,176 | BK237: 440
A238: GIRON | B238: ANTIOQUIA | C238: Octavo | D238: 23,067 | E238: 10,251 | F238: 1,429 | G238: 1,925 | H238: 896 | I238: 321 | J238: 22,648 | K238: 10,062 | L238: 2,272 | M238: 2,321 | N238: 1,021 | O238: 359 | P238: 21,611 | Q238: 10,602 | R238: 166 | S238: 3,309 | T238: 911 | U238: 341 | V238: 22,102 | W238: 11,382 | X238: 178 | Y238: 2,929 | Z238: 995 | AA238: 330 | AB238: 21,609 | AC238: 11,320 | AD238: 187 | AE238: 2,807 | AF238: 1,116 | AG238: 353 | AH238: 22,131 | AI238: 12,194 | AJ238: 206 | AK238: 2,463 | AL238: 1,061 | AM238: 351 | AN238: 22,595 | AO238: 12,971 | AP238: 194 | AQ238: 2,503 | AR238: 1,078 | AS238: 371 | AT238: 22,801 | AU238: 13,385 | AV238: 205 | AW238: 2,575 | AX238: 1,273 | AY238: 379 | AZ238: 22,031 | BA238: 12,816 | BB238: 196 | BC238: 2,627 | BD238: 1,281 | BE238: 389 | BF238: 20,892 | BG238: 11,762 | BH238: 120 | BI238: 2,245 | BJ238: 1,276 | BK238: 377
A239: GUAINIA | B239: ANTIOQUIA | C239: Noveno | D239: 20,156 | E239: 7,856 | F239: 1,554 | G239: 1,867 | H239: 855 | I239: 322 | J239: 19,667 | K239: 7,998 | L239: 1,296 | M239: 1,670 | N239: 943 | O239: 381 | P239: 19,364 | Q239: 8,744 | R239: 152 | S239: 2,904 | T239: 865 | U239: 337 | V239: 18,884 | W239: 8,601 | X239: 138 | Y239: 2,535 | Z239: 909 | AA239: 336 | AB239: 19,350 | AC239: 9,010 | AD239: 150 | AE239: 2,313 | AF239: 989 | AG239: 324 | AH239: 19,415 | AI239: 9,259 | AJ239: 130 | AK239: 2,289 | AL239: 1,059 | AM239: 342 | AN239: 20,125 | AO239: 9,968 | AP239: 172 | AQ239: 2,190 | AR239: 963 | AS239: 365 | AT239: 21,133 | AU239: 11,195 | AV239: 193 | AW239: 2,340 | AX239: 1,110 | AY239: 371 | AZ239: 20,807 | BA239: 10,262 | BB239: 183 | BC239: 2,232 | BD239: 1,197 | BE239: 373 | BF239: 19,788 | BG239: 10,022 | BH239: 148 | BI239: 2,223 | BJ239: 1,197 | BK239: 372
A240: GUAVIARE | B240: ANTIOQUIA | C240: Decimo | D240: 17,772 | E240: 5,654 | F240: 1,360 | G240: 1,382 | H240: 748 | I240: 292 | J240: 17,806 | K240: 5,625 | L240: 1,354 | M240: 1,366 | N240: 816 | O240: 265 | P240: 17,250 | Q240: 6,374 | R240: 61 | S240: 2,026 | T240: 825 | U240: 296 | V240: 16,998 | W240: 6,802 | X240: 100 | Y240: 2,218 | Z240: 805 | AA240: 325 | AB240: 16,889 | AC240: 6,548 | AD240: 91 | AE240: 1,939 | AF240: 843 | AG240: 298 | AH240: 17,323 | AI240: 7,027 | AJ240: 86 | AK240: 1,790 | AL240: 847 | AM240: 292 | AN240: 17,613 | AO240: 7,528 | AP240: 102 | AQ240: 1,803 | AR240: 952 | AS240: 364 | AT240: 18,103 | AU240: 8,239 | AV240: 154 | AW240: 1,960 | AX240: 950 | AY240: 364 | AZ240: 18,428 | BA240: 8,422 | BB240: 147 | BC240: 1,896 | BD240: 1,021 | BE240: 352 | BF240: 17,746 | BG240: 8,144 | BH240: 130 | BI240: 1,797 | BJ240: 1,114 | BK240: 351
A241: HUILA | B241: ANTIOQUIA | C241: Once | D241: 14,833 | E241: 4,639 | F241: 1,214 | G241: 1,208 | H241: 726 | I241: 290 | J241: 14,292 | K241: 4,552 | L241: 1,165 | M241: 1,208 | N241: 743 | O241: 289 | P241: 14,532 | Q241: 5,276 | R241: 33 | S241: 1,786 | T241: 741 | U241: 245 | V241: 14,100 | W241: 5,485 | X241: 67 | Y241: 1,488 | Z241: 753 | AA241: 289 | AB241: 14,035 | AC241: 5,617 | AD241: 74 | AE241: 1,812 | AF241: 734 | AG241: 289 | AH241: 14,434 | AI241: 5,624 | AJ241: 54 | AK241: 1,522 | AL241: 742 | AM241: 286 | AN241: 14,802 | AO241: 6,233 | AP241: 74 | AQ241: 1,463 | AR241: 746 | AS241: 290 | AT241: 15,082 | AU241: 6,532 | AV241: 91 | AW241: 1,614 | AX241: 911 | AY241: 351 | AZ241: 14,803 | BA241: 6,582 | BB241: 113 | BC241: 1,548 | BD241: 861 | BE241: 344 | BF241: 15,343 | BG241: 7,060 | BH241: 118 | BI241: 1,474 | BJ241: 881 | BK241: 334
A242: IBAGUE | B242: ANTIOQUIA | C242: 12º Normal | D242: 587 | E242: 0 | F242: 0 | G242: 0 | H242: 6 | I242: 0 | J242: 594 | K242: 0 | L242: 0 | M242: 0 | N242: 0 | O242: 0 | P242: 416 | Q242: 0 | R242: 0 | S242: 0 | T242: 0 | U242: 0 | V242: 357 | W242: 26 | X242: 0 | Y242: 0 | Z242: 1 | AA242: 0 | AB242: 368 | AC242: 43 | AD242: 0 | AE242: 0 | AF242: 0 | AG242: 0 | AH242: 389 | AI242: 52 | AJ242: 0 | AK242: 0 | AL242: 0 | AM242: 0 | AN242: 422 | AO242: 39 | AP242: 0 | AQ242: 0 | AR242: 0 | AS242: 0 | AT242: 380 | AU242: 68 | AV242: 0 | AW242: 0 | AX242: 0 | AY242: 0 | AZ242: 444 | BA242: 54 | BB242: 0 | BC242: 0 | BD242: 1 | BE242: 0 | BF242: 0 | BG242: 0 | BH242: 0 | BI242: 0 | BJ242: 0 | BK242: 0
A243: IPIALES | B243: ANTIOQUIA | C243: 13º Normal | D243: 658 | E243: 0 | F243: 0 | G243: 0 | H243: 0 | I243: 0 | J243: 519 | K243: 0 | L243: 1 | M243: 0 | N243: 0 | O243: 0 | P243: 419 | Q243: 0 | R243: 0 | S243: 0 | T243: 0 | U243: 0 | V243: 319 | W243: 16 | X243: 0 | Y243: 0 | Z243: 0 | AA243: 0 | AB243: 262 | AC243: 13 | AD243: 0 | AE243: 0 | AF243: 0 | AG243: 0 | AH243: 254 | AI243: 25 | AJ243: 0 | AK243: 0 | AL243: 0 | AM243: 0 | AN243: 286 | AO243: 21 | AP243: 0 | AQ243: 0 | AR243: 0 | AS243: 0 | AT243: 324 | AU243: 26 | AV243: 0 | AW243: 0 | AX243: 0 | AY243: 0 | AZ243: 306 | BA243: 35 | BB243: 0 | BC243: 0 | BD243: 0 | BE243: 0 | BF243: 0 | BG243: 0 | BH243: 0 | BI243: 0 | BJ243: 1 | BK243: 0
A244: ITAGUI | B244: ANTIOQUIA | C244: Ciclo 1 Adultos | D244: 304 | E244: 156 | F244: 1,477 | G244: 505 | H244: 6 | I244: 2 | J244: 4,279 | K244: 5,928 | L244: 24 | M244: 3 | N244: 4 | O244: 0 | P244: 5,310 | Q244: 4,428 | R244: 25 | S244: 9 | T244: 0 | U244: 0 | V244: 2,379 | W244: 849 | X244: 0 | Y244: 0 | Z244: 26 | AA244: 0 | AB244: 6,735 | AC244: 3,539 | AD244: 0 | AE244: 0 | AF244: 0 | AG244: 0 | AH244: 2,301 | AI244: 1,305 | AJ244: 0 | AK244: 0 | AL244: 0 | AM244: 0 | AN244: 52 | AO244: 55 | AP244: 0 | AQ244: 0 | AR244: 0 | AS244: 0 | AT244: 772 | AU244: 327 | AV244: 0 | AW244: 0 | AX244: 0 | AY244: 0 | AZ244: 175 | BA244: 21 | BB244: 0 | BC244: 0 | BD244: 0 | BE244: 0 | BF244: 94 | BG244: 13 | BH244: 0 | BI244: 0 | BJ244: 1 | BK244: 0
A245: JAMUNDI | B245: ANTIOQUIA | C245: Ciclo 2 Adultos | D245: 1,107 | E245: 209 | F245: 1,349 | G245: 690 | H245: 24 | I245: 8 | J245: 1,365 | K245: 531 | L245: 850 | M245: 477 | N245: 25 | O245: 0 | P245: 1,552 | Q245: 984 | R245: 952 | S245: 1,066 | T245: 18 | U245: 0 | V245: 1,651 | W245: 787 | X245: 0 | Y245: 0 | Z245: 19 | AA245: 0 | AB245: 1,267 | AC245: 891 | AD245: 0 | AE245: 0 | AF245: 485 | AG245: 0 | AH245: 1,395 | AI245: 618 | AJ245: 0 | AK245: 0 | AL245: 70 | AM245: 34 | AN245: 1,546 | AO245: 485 | AP245: 0 | AQ245: 0 | AR245: 24 | AS245: 0 | AT245: 783 | AU245: 616 | AV245: 0 | AW245: 0 | AX245: 20 | AY245: 6 | AZ245: 1,096 | BA245: 624 | BB245: 0 | BC245: 0 | BD245: 26 | BE245: 4 | BF245: 738 | BG245: 376 | BH245: 0 | BI245: 0 | BJ245: 33 | BK245: 3
A246: LA ESTRELLA | B246: ANTIOQUIA | C246: Ciclo 3 Adultos | D246: 5,367 | E246: 933 | F246: 2,097 | G246: 1,142 | H246: 407 | I246: 74 | J246: 5,848 | K246: 1,760 | L246: 2,342 | M246: 868 | N246: 502 | O246: 0 | P246: 6,277 | Q246: 2,243 | R246: 1,132 | S246: 461 | T246: 507 | U246: 0 | V246: 7,534 | W246: 2,549 | X246: 0 | Y246: 0 | Z246: 382 | AA246: 0 | AB246: 8,412 | AC246: 3,130 | AD246: 0 | AE246: 0 | AF246: 885 | AG246: 8 | AH246: 7,868 | AI246: 3,436 | AJ246: 0 | AK246: 0 | AL246: 647 | AM246: 157 | AN246: 7,270 | AO246: 2,654 | AP246: 0 | AQ246: 0 | AR246: 419 | AS246: 28 | AT246: 5,757 | AU246: 2,374 | AV246: 0 | AW246: 0 | AX246: 416 | AY246: 26 | AZ246: 6,336 | BA246: 2,576 | BB246: 0 | BC246: 0 | BD246: 517 | BE246: 39 | BF246: 4,737 | BG246: 2,300 | BH246: 0 | BI246: 0 | BJ246: 475 | BK246: 47
A247: LA GUAJIRA | B247: ANTIOQUIA | C247: Ciclo 4 Adultos | D247: 6,122 | E247: 1,107 | F247: 2,095 | G247: 863 | H247: 828 | I247: 71 | J247: 6,936 | K247: 1,736 | L247: 2,290 | M247: 786 | N247: 821 | O247: 0 | P247: 7,407 | Q247: 2,420 | R247: 1,825 | S247: 573 | T247: 883 | U247: 0 | V247: 8,299 | W247: 2,719 | X247: 0 | Y247: 0 | Z247: 874 | AA247: 0 | AB247: 8,930 | AC247: 3,155 | AD247: 0 | AE247: 0 | AF247: 1,175 | AG247: 30 | AH247: 9,050 | AI247: 3,337 | AJ247: 0 | AK247: 0 | AL247: 1,003 | AM247: 189 | AN247: 8,826 | AO247: 3,035 | AP247: 0 | AQ247: 0 | AR247: 982 | AS247: 164 | AT247: 7,249 | AU247: 2,772 | AV247: 0 | AW247: 0 | AX247: 707 | AY247: 35 | AZ247: 7,338 | BA247: 2,967 | BB247: 0 | BC247: 0 | BD247: 999 | BE247: 42 | BF247: 6,507 | BG247: 2,861 | BH247: 0 | BI247: 0 | BJ247: 988 | BK247: 86
A248: LORICA | B248: ANTIOQUIA | C248: Ciclo 5 Adultos | D248: 2,047 | E248: 367 | F248: 963 | G248: 283 | H248: 480 | I248: 53 | J248: 2,830 | K248: 687 | L248: 626 | M248: 393 | N248: 621 | O248: 0 | P248: 2,537 | Q248: 1,031 | R248: 645 | S248: 284 | T248: 681 | U248: 0 | V248: 2,402 | W248: 816 | X248: 0 | Y248: 0 | Z248: 529 | AA248: 0 | AB248: 2,726 | AC248: 1,288 | AD248: 0 | AE248: 0 | AF248: 932 | AG248: 28 | AH248: 2,149 | AI248: 1,057 | AJ248: 0 | AK248: 0 | AL248: 424 | AM248: 15 | AN248: 1,677 | AO248: 599 | AP248: 0 | AQ248: 0 | AR248: 551 | AS248: 40 | AT248: 3,312 | AU248: 1,227 | AV248: 0 | AW248: 0 | AX248: 627 | AY248: 98 | AZ248: 1,746 | BA248: 1,086 | BB248: 0 | BC248: 0 | BD248: 745 | BE248: 44 | BF248: 2,149 | BG248: 890 | BH248: 0 | BI248: 0 | BJ248: 837 | BK248: 65
A249: MAGANGUE | B249: ANTIOQUIA | C249: Ciclo 6 Adultos | D249: 5,330 | E249: 896 | F249: 889 | G249: 436 | H249: 1,417 | I249: 53 | J249: 5,183 | K249: 1,071 | L249: 1,257 | M249: 267 | N249: 1,259 | O249: 0 | P249: 5,805 | Q249: 1,298 | R249: 1,216 | S249: 229 | T249: 1,179 | U249: 0 | V249: 6,464 | W249: 2,203 | X249: 0 | Y249: 0 | Z249: 1,293 | AA249: 0 | AB249: 6,951 | AC249: 2,089 | AD249: 0 | AE249: 0 | AF249: 1,229 | AG249: 66 | AH249: 7,848 | AI249: 2,451 | AJ249: 0 | AK249: 0 | AL249: 1,920 | AM249: 196 | AN249: 8,083 | AO249: 3,131 | AP249: 0 | AQ249: 0 | AR249: 1,275 | AS249: 142 | AT249: 5,736 | AU249: 2,120 | AV249: 0 | AW249: 0 | AX249: 1,228 | AY249: 51 | AZ249: 6,498 | BA249: 1,804 | BB249: 0 | BC249: 0 | BD249: 1,821 | BE249: 110 | BF249: 5,128 | BG249: 2,048 | BH249: 0 | BI249: 0 | BJ249: 1,675 | BK249: 89
A250: MAGDALENA | B250: ANTIOQUIA | C250: Semestre introductorio NS | D250: 0 | E250: 0 | F250: 0 | G250: 0 | H250: 0 | I250: 0 | J250: 0 | K250: 0 | L250: 0 | M250: 0 | N250: 0 | O250: 0 | P250: 0 | Q250: 0 | R250: 0 | S250: 0 | T250: 0 | U250: 0 | V250: 0 | W250: 0 | X250: 0 | Y250: 0 | Z250: 0 | AA250: 0 | AB250: 0 | AC250: 0 | AD250: 0 | AE250: 0 | AF250: 0 | AG250: 0 | AH250: 0 | AI250: 0 | AJ250: 0 | AK250: 0 | AL250: 0 | AM250: 0 | AN250: 0 | AO250: 0 | AP250: 0 | AQ250: 0 | AR250: 0 | AS250: 0 | AT250: 0 | AU250: 0 | AV250: 0 | AW250: 0 | AX250: 0 | AY250: 0 | AZ250: 0 | BA250: 0 | BB250: 0 | BC250: 0 | BD250: 0 | BE250: 0 | BF250: 116 | BG250: 12 | BH250: 0 | BI250: 0 | BJ250: 0 | BK250: 0
A251: MAICAO | B251: ANTIOQUIA | C251: Programa formación compl 1 NS | D251: 0 | E251: 0 | F251: 0 | G251: 0 | H251: 0 | I251: 0 | J251: 0 | K251: 0 | L251: 0 | M251: 0 | N251: 0 | O251: 0 | P251: 0 | Q251: 0 | R251: 0 | S251: 0 | T251: 0 | U251: 0 | V251: 0 | W251: 0 | X251: 0 | Y251: 0 | Z251: 0 | AA251: 0 | AB251: 0 | AC251: 0 | AD251: 0 | AE251: 0 | AF251: 0 | AG251: 0 | AH251: 0 | AI251: 0 | AJ251: 0 | AK251: 0 | AL251: 0 | AM251: 0 | AN251: 0 | AO251: 0 | AP251: 0 | AQ251: 0 | AR251: 0 | AS251: 0 | AT251: 0 | AU251: 0 | AV251: 0 | AW251: 0 | AX251: 0 | AY251: 0 | AZ251: 0 | BA251: 0 | BB251: 0 | BC251: 0 | BD251: 0 | BE251: 0 | BF251: 193 | BG251: 17 | BH251: 0 | BI251: 0 | BJ251: 1 | BK251: 0
A252: MALAMBO | B252: ANTIOQUIA | C252: Programa formación compl 2 NS | D252: 0 | E252: 0 | F252: 0 | G252: 0 | H252: 0 | I252: 0 | J252: 0 | K252: 0 | L252: 0 | M252: 0 | N252: 0 | O252: 0 | P252: 0 | Q252: 0 | R252: 0 | S252: 0 | T252: 0 | U252: 0 | V252: 0 | W252: 0 | X252: 0 | Y252: 0 | Z252: 0 | AA252: 0 | AB252: 0 | AC252: 0 | AD252: 0 | AE252: 0 | AF252: 0 | AG252: 0 | AH252: 0 | AI252: 0 | AJ252: 0 | AK252: 0 | AL252: 0 | AM252: 0 | AN252: 0 | AO252: 0 | AP252: 0 | AQ252: 0 | AR252: 0 | AS252: 0 | AT252: 0 | AU252: 0 | AV252: 0 | AW252: 0 | AX252: 0 | AY252: 0 | AZ252: 0 | BA252: 0 | BB252: 0 | BC252: 0 | BD252: 0 | BE252: 0 | BF252: 155 | BG252: 18 | BH252: 0 | BI252: 0 | BJ252: 0 | BK252: 0
A253: MANIZALES | B253: ANTIOQUIA | C253: Programa formación compl 3 NS | D253: 0 | E253: 0 | F253: 0 | G253: 0 | H253: 0 | I253: 0 | J253: 0 | K253: 0 | L253: 0 | M253: 0 | N253: 0 | O253: 0 | P253: 0 | Q253: 0 | R253: 0 | S253: 0 | T253: 0 | U253: 0 | V253: 0 | W253: 0 | X253: 0 | Y253: 0 | Z253: 0 | AA253: 0 | AB253: 0 | AC253: 0 | AD253: 0 | AE253: 0 | AF253: 0 | AG253: 0 | AH253: 0 | AI253: 0 | AJ253: 0 | AK253: 0 | AL253: 0 | AM253: 0 | AN253: 0 | AO253: 0 | AP253: 0 | AQ253: 0 | AR253: 0 | AS253: 0 | AT253: 0 | AU253: 0 | AV253: 0 | AW253: 0 | AX253: 0 | AY253: 0 | AZ253: 0 | BA253: 0 | BB253: 0 | BC253: 0 | BD253: 0 | BE253: 0 | BF253: 108 | BG253: 11 | BH253: 0 | BI253: 0 | BJ253: 0 | BK253: 0
A254: MEDELLIN | B254: ANTIOQUIA | C254: Programa formación compl 4 NS | D254: 0 | E254: 0 | F254: 0 | G254: 0 | H254: 0 | I254: 0 | J254: 0 | K254: 0 | L254: 0 | M254: 0 | N254: 0 | O254: 0 | P254: 0 | Q254: 0 | R254: 0 | S254: 0 | T254: 0 | U254: 0 | V254: 0 | W254: 0 | X254: 0 | Y254: 0 | Z254: 0 | AA254: 0 | AB254: 0 | AC254: 0 | AD254: 0 | AE254: 0 | AF254: 0 | AG254: 0 | AH254: 0 | AI254: 0 | AJ254: 0 | AK254: 0 | AL254: 0 | AM254: 0 | AN254: 0 | AO254: 0 | AP254: 0 | AQ254: 0 | AR254: 0 | AS254: 0 | AT254: 0 | AU254: 0 | AV254: 0 | AW254: 0 | AX254: 0 | AY254: 0 | AZ254: 0 | BA254: 0 | BB254: 0 | BC254: 0 | BD254: 0 | BE254: 0 | BF254: 197 | BG254: 28 | BH254: 0 | BI254: 0 | BJ254: 0 | BK254: 0
A255: META | B255: ANTIOQUIA | C255: Aceleración del Aprendizaje | D255: 982 | E255: 159 | F255: 641 | G255: 59 | H255: 0 | I255: 0 | J255: 1,070 | K255: 168 | L255: 723 | M255: 24 | N255: 0 | O255: 0 | P255: 1,110 | Q255: 207 | R255: 0 | S255: 4 | T255: 0 | U255: 0 | V255: 1,144 | W255: 190 | X255: 0 | Y255: 0 | Z255: 0 | AA255: 0 | AB255: 1,465 | AC255: 154 | AD255: 0 | AE255: 0 | AF255: 0 | AG255: 0 | AH255: 1,351 | AI255: 144 | AJ255: 0 | AK255: 0 | AL255: 0 | AM255: 0 | AN255: 1,290 | AO255: 137 | AP255: 0 | AQ255: 0 | AR255: 0 | AS255: 0 | AT255: 1,093 | AU255: 119 | AV255: 0 | AW255: 0 | AX255: 0 | AY255: 0 | AZ255: 1,116 | BA255: 103 | BB255: 0 | BC255: 0 | BD255: 0 | BE255: 0 | BF255: 1,011 | BG255: 159 | BH255: 0 | BI255: 0 | BJ255: 0 | BK255: 0
A256: MONTERIA | B256: APARTADO | C256: Prejardín | D256: 0 | E256: 0 | F256: 0 | G256: 0 | H256: 25 | I256: 14 | J256: 0 | K256: 0 | L256: 0 | M256: 0 | N256: 15 | O256: 12 | P256: 0 | Q256: 0 | R256: 0 | S256: 0 | T256: 21 | U256: 17 | V256: 0 | W256: 0 | X256: 0 | Y256: 0 | Z256: 0 | AA256: 20 | AB256: 0 | AC256: 0 | AD256: 0 | AE256: 0 | AF256: 24 | AG256: 22 | AH256: 0 | AI256: 0 | AJ256: 0 | AK256: 0 | AL256: 65 | AM256: 18 | AN256: 0 | AO256: 0 | AP256: 0 | AQ256: 0 | AR256: 50 | AS256: 34 | AT256: 0 | AU256: 0 | AV256: 0 | AW256: 0 | AX256: 138 | AY256: 24 | AZ256: 0 | BA256: 0 | BB256: 0 | BC256: 0 | BD256: 30 | BE256: 23 | BF256: 0 | BG256: 0 | BH256: 0 | BI256: 0 | BJ256: 135 | BK256: 28
A257: MOSQUERA | B257: APARTADO | C257: Jardín | D257: 0 | E257: 0 | F257: 0 | G257: 0 | H257: 35 | I257: 50 | J257: 0 | K257: 0 | L257: 0 | M257: 0 | N257: 45 | O257: 28 | P257: 0 | Q257: 0 | R257: 0 | S257: 0 | T257: 22 | U257: 41 | V257: 0 | W257: 0 | X257: 0 | Y257: 0 | Z257: 28 | AA257: 35 | AB257: 0 | AC257: 0 | AD257: 0 | AE257: 0 | AF257: 68 | AG257: 43 | AH257: 0 | AI257: 0 | AJ257: 0 | AK257: 0 | AL257: 78 | AM257: 35 | AN257: 0 | AO257: 0 | AP257: 0 | AQ257: 0 | AR257: 83 | AS257: 36 | AT257: 0 | AU257: 0 | AV257: 0 | AW257: 0 | AX257: 170 | AY257: 44 | AZ257: 0 | BA257: 0 | BB257: 0 | BC257: 0 | BD257: 163 | BE257: 51 | BF257: 0 | BG257: 0 | BH257: 0 | BI257: 0 | BJ257: 153 | BK257: 38
A258: NARIÑO | B258: APARTADO | C258: Transición | D258: 1,539 | E258: 376 | F258: 381 | G258: 88 | H258: 122 | I258: 39 | J258: 1,607 | K258: 457 | L258: 99 | M258: 0 | N258: 91 | O258: 42 | P258: 1,473 | Q258: 395 | R258: 70 | S258: 0 | T258: 95 | U258: 55 | V258: 1,601 | W258: 483 | X258: 7 | Y258: 0 | Z258: 106 | AA258: 66 | AB258: 1,582 | AC258: 375 | AD258: 0 | AE258: 0 | AF258: 139 | AG258: 49 | AH258: 1,568 | AI258: 411 | AJ258: 0 | AK258: 0 | AL258: 116 | AM258: 51 | AN258: 1,636 | AO258: 443 | AP258: 0 | AQ258: 0 | AR258: 150 | AS258: 44 | AT258: 1,497 | AU258: 396 | AV258: 0 | AW258: 0 | AX258: 130 | AY258: 48 | AZ258: 1,630 | BA258: 427 | BB258: 0 | BC258: 0 | BD258: 178 | BE258: 60 | BF258: 1,501 | BG258: 389 | BH258: 0 | BI258: 0 | BJ258: 196 | BK258: 65
A259: NEIVA | B259: APARTADO | C259: Primero | D259: 1,922 | E259: 577 | F259: 579 | G259: 132 | H259: 147 | I259: 54 | J259: 2,080 | K259: 727 | L259: 103 | M259: 0 | N259: 148 | O259: 36 | P259: 1,935 | Q259: 651 | R259: 0 | S259: 0 | T259: 160 | U259: 58 | V259: 1,763 | W259: 631 | X259: 54 | Y259: 0 | Z259: 115 | AA259: 69 | AB259: 1,852 | AC259: 625 | AD259: 0 | AE259: 2 | AF259: 125 | AG259: 65 | AH259: 1,908 | AI259: 621 | AJ259: 0 | AK259: 0 | AL259: 126 | AM259: 42 | AN259: 1,807 | AO259: 535 | AP259: 0 | AQ259: 0 | AR259: 122 | AS259: 27 | AT259: 1,836 | AU259: 534 | AV259: 0 | AW259: 0 | AX259: 111 | AY259: 39 | AZ259: 1,778 | BA259: 501 | BB259: 0 | BC259: 0 | BD259: 147 | BE259: 34 | BF259: 1,762 | BG259: 506 | BH259: 0 | BI259: 0 | BJ259: 116 | BK259: 52
A260: NORTE_DE_SANTANDER | B260: APARTADO | C260: Segundo | D260: 1,846 | E260: 503 | F260: 654 | G260: 128 | H260: 135 | I260: 52 | J260: 2,203 | K260: 664 | L260: 99 | M260: 0 | N260: 165 | O260: 51 | P260: 2,169 | Q260: 640 | R260: 0 | S260: 0 | T260: 154 | U260: 56 | V260: 1,873 | W260: 594 | X260: 5 | Y260: 0 | Z260: 155 | AA260: 50 | AB260: 1,688 | AC260: 590 | AD260: 0 | AE260: 0 | AF260: 131 | AG260: 58 | AH260: 1,794 | AI260: 560 | AJ260: 0 | AK260: 0 | AL260: 122 | AM260: 62 | AN260: 1,745 | AO260: 548 | AP260: 0 | AQ260: 0 | AR260: 131 | AS260: 34 | AT260: 1,722 | AU260: 503 | AV260: 0 | AW260: 0 | AX260: 110 | AY260: 25 | AZ260: 1,757 | BA260: 469 | BB260: 0 | BC260: 0 | BD260: 120 | BE260: 41 | BF260: 1,654 | BG260: 451 | BH260: 0 | BI260: 0 | BJ260: 131 | BK260: 45
A261: PALMIRA | B261: APARTADO | C261: Tercero | D261: 1,788 | E261: 505 | F261: 531 | G261: 117 | H261: 142 | I261: 57 | J261: 2,186 | K261: 569 | L261: 107 | M261: 0 | N261: 173 | O261: 48 | P261: 2,139 | Q261: 577 | R261: 0 | S261: 0 | T261: 152 | U261: 52 | V261: 2,021 | W261: 636 | X261: 3 | Y261: 0 | Z261: 150 | AA261: 48 | AB261: 1,803 | AC261: 532 | AD261: 0 | AE261: 0 | AF261: 161 | AG261: 54 | AH261: 1,698 | AI261: 544 | AJ261: 0 | AK261: 0 | AL261: 119 | AM261: 53 | AN261: 1,720 | AO261: 530 | AP261: 0 | AQ261: 0 | AR261: 128 | AS261: 63 | AT261: 1,683 | AU261: 563 | AV261: 0 | AW261: 0 | AX261: 114 | AY261: 30 | AZ261: 1,629 | BA261: 478 | BB261: 0 | BC261: 0 | BD261: 125 | BE261: 25 | BF261: 1,646 | BG261: 459 | BH261: 0 | BI261: 0 | BJ261: 131 | BK261: 40
A262: PASTO | B262: APARTADO | C262: Cuarto | D262: 1,804 | E262: 458 | F262: 512 | G262: 90 | H262: 122 | I262: 56 | J262: 2,001 | K262: 542 | L262: 102 | M262: 0 | N262: 159 | O262: 53 | P262: 2,096 | Q262: 538 | R262: 0 | S262: 0 | T262: 155 | U262: 45 | V262: 2,124 | W262: 598 | X262: 3 | Y262: 0 | Z262: 144 | AA262: 51 | AB262: 2,000 | AC262: 605 | AD262: 0 | AE262: 0 | AF262: 144 | AG262: 49 | AH262: 1,865 | AI262: 501 | AJ262: 0 | AK262: 0 | AL262: 163 | AM262: 54 | AN262: 1,642 | AO262: 525 | AP262: 0 | AQ262: 0 | AR262: 119 | AS262: 52 | AT262: 1,725 | AU262: 530 | AV262: 0 | AW262: 0 | AX262: 123 | AY262: 63 | AZ262: 1,645 | BA262: 502 | BB262: 0 | BC262: 0 | BD262: 115 | BE262: 35 | BF262: 1,517 | BG262: 435 | BH262: 0 | BI262: 0 | BJ262: 117 | BK262: 32
A263: PEREIRA | B263: APARTADO | C263: Quinto | D263: 1,756 | E263: 412 | F263: 439 | G263: 98 | H263: 123 | I263: 44 | J263: 1,961 | K263: 563 | L263: 124 | M263: 0 | N263: 156 | O263: 42 | P263: 2,015 | Q263: 568 | R263: 0 | S263: 0 | T263: 146 | U263: 50 | V263: 2,097 | W263: 552 | X263: 4 | Y263: 0 | Z263: 160 | AA263: 41 | AB263: 2,033 | AC263: 600 | AD263: 0 | AE263: 0 | AF263: 151 | AG263: 54 | AH263: 1,949 | AI263: 585 | AJ263: 0 | AK263: 0 | AL263: 146 | AM263: 49 | AN263: 1,856 | AO263: 483 | AP263: 0 | AQ263: 0 | AR263: 148 | AS263: 50 | AT263: 1,622 | AU263: 540 | AV263: 0 | AW263: 0 | AX263: 112 | AY263: 51 | AZ263: 1,645 | BA263: 542 | BB263: 0 | BC263: 0 | BD263: 122 | BE263: 58 | BF263: 1,594 | BG263: 474 | BH263: 0 | BI263: 0 | BJ263: 121 | BK263: 36
A264: PIEDECUESTA | B264: APARTADO | C264: Sexto | D264: 2,073 | E264: 470 | F264: 468 | G264: 59 | H264: 113 | I264: 47 | J264: 2,430 | K264: 613 | L264: 104 | M264: 0 | N264: 158 | O264: 28 | P264: 2,467 | Q264: 683 | R264: 0 | S264: 0 | T264: 144 | U264: 46 | V264: 2,553 | W264: 678 | X264: 0 | Y264: 0 | Z264: 146 | AA264: 57 | AB264: 2,382 | AC264: 681 | AD264: 0 | AE264: 0 | AF264: 167 | AG264: 38 | AH264: 2,517 | AI264: 692 | AJ264: 0 | AK264: 0 | AL264: 162 | AM264: 56 | AN264: 2,266 | AO264: 675 | AP264: 0 | AQ264: 0 | AR264: 140 | AS264: 50 | AT264: 2,013 | AU264: 554 | AV264: 0 | AW264: 0 | AX264: 112 | AY264: 46 | AZ264: 1,781 | BA264: 547 | BB264: 0 | BC264: 0 | BD264: 105 | BE264: 52 | BF264: 1,772 | BG264: 558 | BH264: 0 | BI264: 0 | BJ264: 121 | BK264: 57
A265: PITALITO | B265: APARTADO | C265: Septimo | D265: 1,790 | E265: 430 | F265: 297 | G265: 67 | H265: 107 | I265: 34 | J265: 2,068 | K265: 431 | L265: 80 | M265: 0 | N265: 154 | O265: 38 | P265: 2,134 | Q265: 451 | R265: 0 | S265: 0 | T265: 124 | U265: 36 | V265: 2,076 | W265: 530 | X265: 0 | Y265: 0 | Z265: 148 | AA265: 37 | AB265: 2,401 | AC265: 589 | AD265: 0 | AE265: 0 | AF265: 152 | AG265: 57 | AH265: 2,273 | AI265: 531 | AJ265: 0 | AK265: 0 | AL265: 158 | AM265: 38 | AN265: 2,369 | AO265: 543 | AP265: 0 | AQ265: 0 | AR265: 172 | AS265: 49 | AT265: 2,254 | AU265: 624 | AV265: 0 | AW265: 0 | AX265: 117 | AY265: 49 | AZ265: 2,060 | BA265: 493 | BB265: 0 | BC265: 0 | BD265: 112 | BE265: 47 | BF265: 1,826 | BG265: 515 | BH265: 0 | BI265: 0 | BJ265: 104 | BK265: 54
A266: POPAYAN | B266: APARTADO | C266: Octavo | D266: 1,659 | E266: 282 | F266: 193 | G266: 38 | H266: 116 | I266: 43 | J266: 1,618 | K266: 397 | L266: 47 | M266: 0 | N266: 123 | O266: 35 | P266: 1,743 | Q266: 342 | R266: 0 | S266: 0 | T266: 124 | U266: 37 | V266: 1,798 | W266: 385 | X266: 0 | Y266: 0 | Z266: 109 | AA266: 39 | AB266: 1,761 | AC266: 447 | AD266: 0 | AE266: 0 | AF266: 145 | AG266: 40 | AH266: 1,865 | AI266: 455 | AJ266: 0 | AK266: 0 | AL266: 146 | AM266: 53 | AN266: 1,920 | AO266: 450 | AP266: 0 | AQ266: 0 | AR266: 157 | AS266: 37 | AT266: 1,913 | AU266: 493 | AV266: 0 | AW266: 0 | AX266: 147 | AY266: 49 | AZ266: 1,786 | BA266: 460 | BB266: 0 | BC266: 0 | BD266: 133 | BE266: 48 | BF266: 1,597 | BG266: 383 | BH266: 0 | BI266: 0 | BJ266: 110 | BK266: 49
A267: PUTUMAYO | B267: APARTADO | C267: Noveno | D267: 1,313 | E267: 250 | F267: 136 | G267: 19 | H267: 84 | I267: 34 | J267: 1,493 | K267: 277 | L267: 15 | M267: 0 | N267: 125 | O267: 37 | P267: 1,386 | Q267: 334 | R267: 0 | S267: 0 | T267: 114 | U267: 24 | V267: 1,490 | W267: 260 | X267: 0 | Y267: 0 | Z267: 119 | AA267: 38 | AB267: 1,596 | AC267: 314 | AD267: 0 | AE267: 0 | AF267: 115 | AG267: 37 | AH267: 1,705 | AI267: 347 | AJ267: 0 | AK267: 0 | AL267: 134 | AM267: 38 | AN267: 1,829 | AO267: 397 | AP267: 0 | AQ267: 0 | AR267: 144 | AS267: 50 | AT267: 1,987 | AU267: 488 | AV267: 0 | AW267: 0 | AX267: 128 | AY267: 38 | AZ267: 1,838 | BA267: 468 | BB267: 0 | BC267: 0 | BD267: 144 | BE267: 49 | BF267: 1,690 | BG267: 452 | BH267: 0 | BI267: 0 | BJ267: 138 | BK267: 49
A268: QUIBDO | B268: APARTADO | C268: Decimo | D268: 1,109 | E268: 160 | F268: 55 | G268: 11 | H268: 109 | I268: 37 | J268: 1,217 | K268: 221 | L268: 0 | M268: 0 | N268: 93 | O268: 24 | P268: 1,272 | Q268: 239 | R268: 0 | S268: 0 | T268: 115 | U268: 38 | V268: 1,182 | W268: 275 | X268: 0 | Y268: 0 | Z268: 94 | AA268: 22 | AB268: 1,284 | AC268: 211 | AD268: 0 | AE268: 0 | AF268: 112 | AG268: 35 | AH268: 1,346 | AI268: 276 | AJ268: 0 | AK268: 0 | AL268: 98 | AM268: 36 | AN268: 1,474 | AO268: 310 | AP268: 0 | AQ268: 0 | AR268: 126 | AS268: 27 | AT268: 1,567 | AU268: 352 | AV268: 0 | AW268: 0 | AX268: 128 | AY268: 49 | AZ268: 1,597 | BA268: 360 | BB268: 0 | BC268: 0 | BD268: 133 | BE268: 40 | BF268: 1,547 | BG268: 326 | BH268: 0 | BI268: 0 | BJ268: 128 | BK268: 47
A269: QUINDIO | B269: APARTADO | C269: Once | D269: 892 | E269: 143 | F269: 52 | G269: 4 | H269: 57 | I269: 32 | J269: 921 | K269: 134 | L269: 0 | M269: 0 | N269: 117 | O269: 45 | P269: 1,022 | Q269: 149 | R269: 0 | S269: 0 | T269: 73 | U269: 34 | V269: 1,093 | W269: 185 | X269: 0 | Y269: 0 | Z269: 97 | AA269: 39 | AB269: 989 | AC269: 185 | AD269: 0 | AE269: 0 | AF269: 86 | AG269: 21 | AH269: 1,072 | AI269: 151 | AJ269: 0 | AK269: 0 | AL269: 113 | AM269: 32 | AN269: 1,158 | AO269: 229 | AP269: 0 | AQ269: 0 | AR269: 100 | AS269: 30 | AT269: 1,135 | AU269: 282 | AV269: 0 | AW269: 0 | AX269: 114 | AY269: 22 | AZ269: 1,204 | BA269: 248 | BB269: 0 | BC269: 0 | BD269: 119 | BE269: 46 | BF269: 1,241 | BG269: 262 | BH269: 0 | BI269: 0 | BJ269: 119 | BK269: 41
A270: RIOHACHA | B270: APARTADO | C270: 12º Normal | D270: 0 | E270: 0 | F270: 0 | G270: 0 | H270: 0 | I270: 0 | J270: 0 | K270: 0 | L270: 0 | M270: 0 | N270: 0 | O270: 0 | P270: 0 | Q270: 0 | R270: 0 | S270: 0 | T270: 0 | U270: 0 | V270: 0 | W270: 0 | X270: 0 | Y270: 0 | Z270: 0 | AA270: 0 | AB270: 0 | AC270: 0 | AD270: 0 | AE270: 0 | AF270: 0 | AG270: 0 | AH270: 0 | AI270: 0 | AJ270: 0 | AK270: 0 | AL270: 0 | AM270: 0 | AN270: 0 | AO270: 0 | AP270: 0 | AQ270: 0 | AR270: 0 | AS270: 0 | AT270: 0 | AU270: 0 | AV270: 0 | AW270: 0 | AX270: 0 | AY270: 0 | AZ270: 0 | BA270: 0 | BB270: 0 | BC270: 0 | BD270: 0 | BE270: 0 | BF270: 0 | BG270: 0 | BH270: 0 | BI270: 0 | BJ270: 0 | BK270: 0
A271: RIONEGRO | B271: APARTADO | C271: 13º Normal | D271: 0 | E271: 0 | F271: 0 | G271: 0 | H271: 0 | I271: 0 | J271: 0 | K271: 0 | L271: 0 | M271: 0 | N271: 0 | O271: 0 | P271: 0 | Q271: 0 | R271: 0 | S271: 0 | T271: 0 | U271: 0 | V271: 0 | W271: 0 | X271: 0 | Y271: 0 | Z271: 0 | AA271: 0 | AB271: 0 | AC271: 0 | AD271: 0 | AE271: 0 | AF271: 0 | AG271: 0 | AH271: 0 | AI271: 0 | AJ271: 0 | AK271: 0 | AL271: 0 | AM271: 0 | AN271: 0 | AO271: 0 | AP271: 0 | AQ271: 0 | AR271: 0 | AS271: 0 | AT271: 0 | AU271: 0 | AV271: 0 | AW271: 0 | AX271: 0 | AY271: 0 | AZ271: 0 | BA271: 0 | BB271: 0 | BC271: 0 | BD271: 0 | BE271: 0 | BF271: 0 | BG271: 0 | BH271: 0 | BI271: 0 | BJ271: 0 | BK271: 0
A272: RISARALDA | B272: APARTADO | C272: Ciclo 1 Adultos | D272: 99 | E272: 25 | F272: 0 | G272: 0 | H272: 0 | I272: 0 | J272: 965 | K272: 684 | L272: 0 | M272: 0 | N272: 0 | O272: 0 | P272: 740 | Q272: 201 | R272: 0 | S272: 0 | T272: 0 | U272: 0 | V272: 20 | W272: 13 | X272: 0 | Y272: 0 | Z272: 0 | AA272: 0 | AB272: 725 | AC272: 201 | AD272: 0 | AE272: 0 | AF272: 0 | AG272: 0 | AH272: 0 | AI272: 8 | AJ272: 0 | AK272: 0 | AL272: 0 | AM272: 0 | AN272: 0 | AO272: 0 | AP272: 0 | AQ272: 0 | AR272: 0 | AS272: 0 | AT272: 47 | AU272: 335 | AV272: 0 | AW272: 2 | AX272: 0 | AY272: 0 | AZ272: 0 | BA272: 0 | BB272: 0 | BC272: 0 | BD272: 0 | BE272: 0 | BF272: 0 | BG272: 2 | BH272: 0 | BI272: 0 | BJ272: 0 | BK272: 0
A273: SABANETA | B273: APARTADO | C273: Ciclo 2 Adultos | D273: 215 | E273: 110 | F273: 0 | G273: 0 | H273: 0 | I273: 0 | J273: 291 | K273: 165 | L273: 0 | M273: 0 | N273: 0 | O273: 0 | P273: 1,199 | Q273: 232 | R273: 1,243 | S273: 879 | T273: 0 | U273: 0 | V273: 171 | W273: 742 | X273: 0 | Y273: 0 | Z273: 1 | AA273: 0 | AB273: 8 | AC273: 33 | AD273: 138 | AE273: 294 | AF273: 0 | AG273: 0 | AH273: 19 | AI273: 91 | AJ273: 129 | AK273: 88 | AL273: 0 | AM273: 0 | AN273: 0 | AO273: 10 | AP273: 154 | AQ273: 62 | AR273: 0 | AS273: 0 | AT273: 1 | AU273: 16 | AV273: 134 | AW273: 52 | AX273: 5 | AY273: 0 | AZ273: 0 | BA273: 8 | BB273: 36 | BC273: 43 | BD273: 11 | BE273: 0 | BF273: 0 | BG273: 11 | BH273: 28 | BI273: 70 | BJ273: 5 | BK273: 0
A274: SAHAGUN | B274: APARTADO | C274: Ciclo 3 Adultos | D274: 691 | E274: 335 | F274: 22 | G274: 0 | H274: 10 | I274: 0 | J274: 763 | K274: 436 | L274: 3 | M274: 0 | N274: 10 | O274: 0 | P274: 999 | Q274: 331 | R274: 314 | S274: 283 | T274: 1 | U274: 0 | V274: 883 | W274: 453 | X274: 0 | Y274: 0 | Z274: 30 | AA274: 0 | AB274: 40 | AC274: 14 | AD274: 629 | AE274: 875 | AF274: 7 | AG274: 0 | AH274: 29 | AI274: 104 | AJ274: 604 | AK274: 253 | AL274: 4 | AM274: 0 | AN274: 7 | AO274: 17 | AP274: 402 | AQ274: 198 | AR274: 6 | AS274: 0 | AT274: 24 | AU274: 23 | AV274: 390 | AW274: 172 | AX274: 16 | AY274: 0 | AZ274: 16 | BA274: 14 | BB274: 318 | BC274: 180 | BD274: 70 | BE274: 0 | BF274: 8 | BG274: 20 | BH274: 243 | BI274: 183 | BJ274: 37 | BK274: 0
A275: SAN_ANDRES | B275: APARTADO | C275: Ciclo 4 Adultos | D275: 863 | E275: 278 | F275: 46 | G275: 0 | H275: 10 | I275: 0 | J275: 860 | K275: 369 | L275: 0 | M275: 0 | N275: 18 | O275: 0 | P275: 1,114 | Q275: 356 | R275: 210 | S275: 146 | T275: 8 | U275: 0 | V275: 968 | W275: 379 | X275: 0 | Y275: 0 | Z275: 29 | AA275: 0 | AB275: 22 | AC275: 15 | AD275: 842 | AE275: 369 | AF275: 19 | AG275: 0 | AH275: 53 | AI275: 150 | AJ275: 747 | AK275: 748 | AL275: 10 | AM275: 0 | AN275: 7 | AO275: 18 | AP275: 566 | AQ275: 249 | AR275: 6 | AS275: 0 | AT275: 30 | AU275: 44 | AV275: 582 | AW275: 201 | AX275: 18 | AY275: 0 | AZ275: 19 | BA275: 26 | BB275: 437 | BC275: 190 | BD275: 52 | BE275: 0 | BF275: 9 | BG275: 16 | BH275: 432 | BI275: 184 | BJ275: 65 | BK275: 0
A276: SANTA_MARTA | B276: APARTADO | C276: Ciclo 5 Adultos | D276: 117 | E276: 42 | F276: 28 | G276: 0 | H276: 13 | I276: 0 | J276: 157 | K276: 58 | L276: 0 | M276: 0 | N276: 16 | O276: 0 | P276: 260 | Q276: 58 | R276: 123 | S276: 38 | T276: 17 | U276: 0 | V276: 245 | W276: 99 | X276: 0 | Y276: 0 | Z276: 39 | AA276: 0 | AB276: 93 | AC276: 2 | AD276: 41 | AE276: 37 | AF276: 31 | AG276: 0 | AH276: 35 | AI276: 14 | AJ276: 231 | AK276: 32 | AL276: 18 | AM276: 0 | AN276: 7 | AO276: 1 | AP276: 111 | AQ276: 55 | AR276: 33 | AS276: 0 | AT276: 171 | AU276: 13 | AV276: 162 | AW276: 28 | AX276: 25 | AY276: 0 | AZ276: 55 | BA276: 34 | BB276: 105 | BC276: 49 | BD276: 68 | BE276: 0 | BF276: 10 | BG276: 28 | BH276: 143 | BI276: 42 | BJ276: 75 | BK276: 0
A277: SANTANDER | B277: APARTADO | C277: Ciclo 6 Adultos | D277: 829 | E277: 288 | F277: 4 | G277: 0 | H277: 34 | I277: 0 | J277: 814 | K277: 259 | L277: 24 | M277: 0 | N277: 30 | O277: 0 | P277: 751 | Q277: 296 | R277: 43 | S277: 37 | T277: 0 | U277: 0 | V277: 761 | W277: 359 | X277: 0 | Y277: 0 | Z277: 9 | AA277: 0 | AB277: 91 | AC277: 41 | AD277: 798 | AE277: 294 | AF277: 91 | AG277: 0 | AH277: 9 | AI277: 52 | AJ277: 727 | AK277: 270 | AL277: 90 | AM277: 0 | AN277: 7 | AO277: 10 | AP277: 728 | AQ277: 240 | AR277: 20 | AS277: 0 | AT277: 165 | AU277: 3 | AV277: 323 | AW277: 174 | AX277: 124 | AY277: 0 | AZ277: 8 | BA277: 17 | BB277: 530 | BC277: 180 | BD277: 76 | BE277: 0 | BF277: 16 | BG277: 36 | BH277: 545 | BI277: 184 | BJ277: 180 | BK277: 0
A278: SINCELEJO | B278: APARTADO | C278: Semestre introductorio NS | D278: 0 | E278: 0 | F278: 0 | G278: 0 | H278: 0 | I278: 0 | J278: 0 | K278: 0 | L278: 0 | M278: 0 | N278: 0 | O278: 0 | P278: 0 | Q278: 0 | R278: 0 | S278: 0 | T278: 0 | U278: 0 | V278: 0 | W278: 0 | X278: 0 | Y278: 0 | Z278: 0 | AA278: 0 | AB278: 0 | AC278: 0 | AD278: 0 | AE278: 0 | AF278: 0 | AG278: 0 | AH278: 0 | AI278: 0 | AJ278: 0 | AK278: 0 | AL278: 0 | AM278: 0 | AN278: 0 | AO278: 0 | AP278: 0 | AQ278: 0 | AR278: 0 | AS278: 0 | AT278: 0 | AU278: 0 | AV278: 0 | AW278: 0 | AX278: 0 | AY278: 0 | AZ278: 0 | BA278: 0 | BB278: 0 | BC278: 0 | BD278: 0 | BE278: 0 | BF278: 0 | BG278: 0 | BH278: 0 | BI278: 0 | BJ278: 0 | BK278: 0
A279: SOACHA | B279: APARTADO | C279: Programa formación compl 1 NS | D279: 0 | E279: 0 | F279: 0 | G279: 0 | H279: 0 | I279: 0 | J279: 0 | K279: 0 | L279: 0 | M279: 0 | N279: 0 | O279: 0 | P279: 0 | Q279: 0 | R279: 0 | S279: 0 | T279: 0 | U279: 0 | V279: 0 | W279: 0 | X279: 0 | Y279: 0 | Z279: 0 | AA279: 0 | AB279: 0 | AC279: 0 | AD279: 0 | AE279: 0 | AF279: 0 | AG279: 0 | AH279: 0 | AI279: 0 | AJ279: 0 | AK279: 0 | AL279: 0 | AM279: 0 | AN279: 0 | AO279: 0 | AP279: 0 | AQ279: 0 | AR279: 0 | AS279: 0 | AT279: 0 | AU279: 0 | AV279: 0 | AW279: 0 | AX279: 0 | AY279: 0 | AZ279: 0 | BA279: 0 | BB279: 0 | BC279: 0 | BD279: 0 | BE279: 0 | BF279: 0 | BG279: 0 | BH279: 0 | BI279: 0 | BJ279: 0 | BK279: 0
A280: SOGAMOSO | B280: APARTADO | C280: Programa formación compl 2 NS | D280: 0 | E280: 0 | F280: 0 | G280: 0 | H280: 0 | I280: 0 | J280: 0 | K280: 0 | L280: 0 | M280: 0 | N280: 0 | O280: 0 | P280: 0 | Q280: 0 | R280: 0 | S280: 0 | T280: 0 | U280: 0 | V280: 0 | W280: 0 | X280: 0 | Y280: 0 | Z280: 0 | AA280: 0 | AB280: 0 | AC280: 0 | AD280: 0 | AE280: 0 | AF280: 0 | AG280: 0 | AH280: 0 | AI280: 0 | AJ280: 0 | AK280: 0 | AL280: 0 | AM280: 0 | AN280: 0 | AO280: 0 | AP280: 0 | AQ280: 0 | AR280: 0 | AS280: 0 | AT280: 0 | AU280: 0 | AV280: 0 | AW280: 0 | AX280: 0 | AY280: 0 | AZ280: 0 | BA280: 0 | BB280: 0 | BC280: 0 | BD280: 0 | BE280: 0 | BF280: 0 | BG280: 0 | BH280: 0 | BI280: 0 | BJ280: 0 | BK280: 0
A281: SOLEDAD | B281: APARTADO | C281: Programa formación compl 3 NS | D281: 0 | E281: 0 | F281: 0 | G281: 0 | H281: 0 | I281: 0 | J281: 0 | K281: 0 | L281: 0 | M281: 0 | N281: 0 | O281: 0 | P281: 0 | Q281: 0 | R281: 0 | S281: 0 | T281: 0 | U281: 0 | V281: 0 | W281: 0 | X281: 0 | Y281: 0 | Z281: 0 | AA281: 0 | AB281: 0 | AC281: 0 | AD281: 0 | AE281: 0 | AF281: 0 | AG281: 0 | AH281: 0 | AI281: 0 | AJ281: 0 | AK281: 0 | AL281: 0 | AM281: 0 | AN281: 0 | AO281: 0 | AP281: 0 | AQ281: 0 | AR281: 0 | AS281: 0 | AT281: 0 | AU281: 0 | AV281: 0 | AW281: 0 | AX281: 0 | AY281: 0 | AZ281: 0 | BA281: 0 | BB281: 0 | BC281: 0 | BD281: 0 | BE281: 0 | BF281: 0 | BG281: 0 | BH281: 0 | BI281: 0 | BJ281: 0 | BK281: 0
A282: SUCRE | B282: APARTADO | C282: Programa formación compl 4 NS | D282: 0 | E282: 0 | F282: 0 | G282: 0 | H282: 0 | I282: 0 | J282: 0 | K282: 0 | L282: 0 | M282: 0 | N282: 0 | O282: 0 | P282: 0 | Q282: 0 | R282: 0 | S282: 0 | T282: 0 | U282: 0 | V282: 0 | W282: 0 | X282: 0 | Y282: 0 | Z282: 0 | AA282: 0 | AB282: 0 | AC282: 0 | AD282: 0 | AE282: 0 | AF282: 0 | AG282: 0 | AH282: 0 | AI282: 0 | AJ282: 0 | AK282: 0 | AL282: 0 | AM282: 0 | AN282: 0 | AO282: 0 | AP282: 0 | AQ282: 0 | AR282: 0 | AS282: 0 | AT282: 0 | AU282: 0 | AV282: 0 | AW282: 0 | AX282: 0 | AY282: 0 | AZ282: 0 | BA282: 0 | BB282: 0 | BC282: 0 | BD282: 0 | BE282: 0 | BF282: 0 | BG282: 0 | BH282: 0 | BI282: 0 | BJ282: 0 | BK282: 0
A283: TOLIMA | B283: APARTADO | C283: Aceleración del Aprendizaje | D283: 157 | E283: 71 | F283: 0 | G283: 0 | H283: 0 | I283: 0 | J283: 205 | K283: 62 | L283: 0 | M283: 0 | N283: 0 | O283: 0 | P283: 273 | Q283: 67 | R283: 0 | S283: 0 | T283: 0 | U283: 0 | V283: 260 | W283: 25 | X283: 0 | Y283: 0 | Z283: 0 | AA283: 0 | AB283: 396 | AC283: 40 | AD283: 0 | AE283: 0 | AF283: 0 | AG283: 0 | AH283: 386 | AI283: 41 | AJ283: 0 | AK283: 0 | AL283: 0 | AM283: 0 | AN283: 380 | AO283: 31 | AP283: 0 | AQ283: 0 | AR283: 0 | AS283: 0 | AT283: 321 | AU283: 26 | AV283: 0 | AW283: 0 | AX283: 0 | AY283: 0 | AZ283: 328 | BA283: 30 | BB283: 0 | BC283: 0 | BD283: 0 | BE283: 0 | BF283: 348 | BG283: 41 | BH283: 0 | BI283: 0 | BJ283: 0 | BK283: 0
A284: TULUA | B284: ARAUCA | C284: Prejardín | D284: 0 | E284: 0 | F284: 0 | G284: 0 | H284: 125 | I284: 0 | J284: 0 | K284: 0 | L284: 0 | M284: 0 | N284: 217 | O284: 0 | P284: 0 | Q284: 0 | R284: 0 | S284: 0 | T284: 60 | U284: 0 | V284: 0 | W284: 0 | X284: 0 | Y284: 0 | Z284: 225 | AA284: 2 | AB284: 0 | AC284: 0 | AD284: 0 | AE284: 0 | AF284: 127 | AG284: 3 | AH284: 0 | AI284: 0 | AJ284: 0 | AK284: 0 | AL284: 141 | AM284: 3 | AN284: 0 | AO284: 0 | AP284: 0 | AQ284: 0 | AR284: 139 | AS284: 11 | AT284: 0 | AU284: 0 | AV284: 0 | AW284: 0 | AX284: 62 | AY284: 6 | AZ284: 0 | BA284: 0 | BB284: 0 | BC284: 0 | BD284: 183 | BE284: 12 | BF284: 0 | BG284: 0 | BH284: 0 | BI284: 0 | BJ284: 188 | BK284: 18
A285: TUMACO | B285: ARAUCA | C285: Jardín | D285: 0 | E285: 0 | F285: 0 | G285: 0 | H285: 292 | I285: 0 | J285: 0 | K285: 0 | L285: 0 | M285: 0 | N285: 265 | O285: 5 | P285: 0 | Q285: 0 | R285: 0 | S285: 0 | T285: 240 | U285: 0 | V285: 0 | W285: 0 | X285: 0 | Y285: 0 | Z285: 246 | AA285: 5 | AB285: 0 | AC285: 0 | AD285: 0 | AE285: 0 | AF285: 312 | AG285: 13 | AH285: 0 | AI285: 0 | AJ285: 0 | AK285: 0 | AL285: 246 | AM285: 23 | AN285: 0 | AO285: 0 | AP285: 0 | AQ285: 0 | AR285: 292 | AS285: 15 | AT285: 0 | AU285: 0 | AV285: 0 | AW285: 0 | AX285: 182 | AY285: 12 | AZ285: 0 | BA285: 0 | BB285: 0 | BC285: 0 | BD285: 289 | BE285: 38 | BF285: 0 | BG285: 139 | BH285: 0 | BI285: 0 | BJ285: 271 | BK285: 34
A286: TUNJA | B286: ARAUCA | C286: Transición | D286: 2,794 | E286: 1,921 | F286: 0 | G286: 0 | H286: 282 | I286: 8 | J286: 2,895 | K286: 2,088 | L286: 0 | M286: 0 | N286: 356 | O286: 5 | P286: 2,960 | Q286: 2,011 | R286: 0 | S286: 0 | T286: 281 | U286: 17 | V286: 2,893 | W286: 2,131 | X286: 0 | Y286: 0 | Z286: 327 | AA286: 8 | AB286: 2,977 | AC286: 2,112 | AD286: 0 | AE286: 0 | AF286: 247 | AG286: 13 | AH286: 2,977 | AI286: 2,181 | AJ286: 0 | AK286: 0 | AL286: 299 | AM286: 37 | AN286: 3,155 | AO286: 2,092 | AP286: 0 | AQ286: 0 | AR286: 300 | AS286: 47 | AT286: 3,171 | AU286: 2,375 | AV286: 0 | AW286: 0 | AX286: 277 | AY286: 33 | AZ286: 3,228 | BA286: 2,578 | BB286: 0 | BC286: 0 | BD286: 328 | BE286: 61 | BF286: 3,099 | BG286: 2,303 | BH286: 0 | BI286: 0 | BJ286: 380 | BK286: 36
A287: TURBO | B287: ARAUCA | C287: Primero | D287: 3,724 | E287: 2,717 | F287: 0 | G287: 0 | H287: 274 | I287: 13 | J287: 3,628 | K287: 2,527 | L287: 0 | M287: 0 | N287: 305 | O287: 15 | P287: 3,532 | Q287: 2,657 | R287: 0 | S287: 0 | T287: 282 | U287: 15 | V287: 3,449 | W287: 2,785 | X287: 0 | Y287: 0 | Z287: 293 | AA287: 24 | AB287: 3,659 | AC287: 2,847 | AD287: 0 | AE287: 0 | AF287: 283 | AG287: 13 | AH287: 3,807 | AI287: 2,945 | AJ287: 0 | AK287: 0 | AL287: 225 | AM287: 19 | AN287: 3,943 | AO287: 2,931 | AP287: 0 | AQ287: 0 | AR287: 338 | AS287: 23 | AT287: 4,022 | AU287: 2,945 | AV287: 0 | AW287: 0 | AX287: 295 | AY287: 35 | AZ287: 4,085 | BA287: 3,231 | BB287: 0 | BC287: 0 | BD287: 335 | BE287: 36 | BF287: 4,058 | BG287: 3,289 | BH287: 0 | BI287: 0 | BJ287: 327 | BK287: 39
A288: URIBIA | B288: ARAUCA | C288: Segundo | D288: 3,450 | E288: 2,472 | F288: 0 | G288: 0 | H288: 262 | I288: 9 | J288: 3,283 | K288: 2,430 | L288: 0 | M288: 0 | N288: 283 | O288: 8 | P288: 3,230 | Q288: 2,214 | R288: 0 | S288: 0 | T288: 303 | U288: 10 | V288: 3,153 | W288: 2,432 | X288: 0 | Y288: 0 | Z288: 312 | AA288: 10 | AB288: 3,192 | AC288: 2,539 | AD288: 0 | AE288: 0 | AF288: 288 | AG288: 17 | AH288: 3,352 | AI288: 2,600 | AJ288: 0 | AK288: 0 | AL288: 280 | AM288: 17 | AN288: 3,475 | AO288: 2,597 | AP288: 0 | AQ288: 0 | AR288: 274 | AS288: 25 | AT288: 3,550 | AU288: 2,838 | AV288: 0 | AW288: 0 | AX288: 275 | AY288: 20 | AZ288: 3,240 | BA288: 2,500 | BB288: 0 | BC288: 0 | BD288: 306 | BE288: 35 | BF288: 3,456 | BG288: 2,800 | BH288: 0 | BI288: 0 | BJ288: 358 | BK288: 35
A289: VALLE | B289: ARAUCA | C289: Tercero | D289: 3,203 | E289: 2,254 | F289: 0 | G289: 0 | H289: 255 | I289: 10 | J289: 3,403 | K289: 2,353 | L289: 0 | M289: 0 | N289: 281 | O289: 6 | P289: 3,266 | Q289: 2,377 | R289: 0 | S289: 0 | T289: 244 | U289: 6 | V289: 3,175 | W289: 2,240 | X289: 0 | Y289: 0 | Z289: 286 | AA289: 10 | AB289: 3,162 | AC289: 2,343 | AD289: 0 | AE289: 0 | AF289: 281 | AG289: 11 | AH289: 3,221 | AI289: 2,521 | AJ289: 0 | AK289: 0 | AL289: 264 | AM289: 27 | AN289: 3,336 | AO289: 2,639 | AP289: 0 | AQ289: 0 | AR289: 288 | AS289: 21 | AT289: 3,527 | AU289: 2,764 | AV289: 0 | AW289: 0 | AX289: 256 | AY289: 22 | AZ289: 3,179 | BA289: 2,530 | BB289: 0 | BC289: 0 | BD289: 285 | BE289: 15 | BF289: 3,101 | BG289: 2,273 | BH289: 0 | BI289: 0 | BJ289: 315 | BK289: 32
A290: VALLEDUPAR | B290: ARAUCA | C290: Cuarto | D290: 3,071 | E290: 2,064 | F290: 0 | G290: 0 | H290: 222 | I290: 8 | J290: 3,204 | K290: 2,196 | L290: 0 | M290: 0 | N290: 244 | O290: 8 | P290: 3,404 | Q290: 2,307 | R290: 0 | S290: 0 | T290: 241 | U290: 7 | V290: 3,230 | W290: 2,244 | X290: 0 | Y290: 0 | Z290: 235 | AA290: 12 | AB290: 3,223 | AC290: 2,193 | AD290: 0 | AE290: 0 | AF290: 247 | AG290: 11 | AH290: 3,217 | AI290: 2,273 | AJ290: 0 | AK290: 0 | AL290: 274 | AM290: 18 | AN290: 3,285 | AO290: 2,448 | AP290: 0 | AQ290: 0 | AR290: 275 | AS290: 23 | AT290: 3,331 | AU290: 2,577 | AV290: 0 | AW290: 0 | AX290: 245 | AY290: 18 | AZ290: 3,181 | BA290: 2,398 | BB290: 0 | BC290: 0 | BD290: 257 | BE290: 18 | BF290: 2,953 | BG290: 2,267 | BH290: 0 | BI290: 0 | BJ290: 279 | BK290: 14
A291: VAUPES | B291: ARAUCA | C291: Quinto | D291: 2,995 | E291: 1,882 | F291: 0 | G291: 0 | H291: 189 | I291: 9 | J291: 2,970 | K291: 1,900 | L291: 0 | M291: 0 | N291: 215 | O291: 6 | P291: 3,148 | Q291: 2,090 | R291: 0 | S291: 0 | T291: 225 | U291: 10 | V291: 3,350 | W291: 2,232 | X291: 0 | Y291: 0 | Z291: 234 | AA291: 10 | AB291: 3,294 | AC291: 2,218 | AD291: 0 | AE291: 0 | AF291: 194 | AG291: 10 | AH291: 3,317 | AI291: 2,235 | AJ291: 0 | AK291: 0 | AL291: 227 | AM291: 14 | AN291: 3,241 | AO291: 2,272 | AP291: 0 | AQ291: 0 | AR291: 276 | AS291: 17 | AT291: 3,303 | AU291: 2,544 | AV291: 0 | AW291: 0 | AX291: 254 | AY291: 15 | AZ291: 3,192 | BA291: 2,428 | BB291: 0 | BC291: 0 | BD291: 247 | BE291: 15 | BF291: 3,063 | BG291: 2,202 | BH291: 0 | BI291: 0 | BJ291: 267 | BK291: 17
A292: VICHADA | B292: ARAUCA | C292: Sexto | D292: 3,856 | E292: 1,471 | F292: 0 | G292: 0 | H292: 159 | I292: 0 | J292: 3,774 | K292: 1,640 | L292: 0 | M292: 0 | N292: 184 | O292: 0 | P292: 3,758 | Q292: 1,749 | R292: 0 | S292: 0 | T292: 174 | U292: 0 | V292: 3,806 | W292: 2,002 | X292: 0 | Y292: 0 | Z292: 187 | AA292: 0 | AB292: 4,101 | AC292: 2,070 | AD292: 0 | AE292: 0 | AF292: 189 | AG292: 0 | AH292: 3,853 | AI292: 2,129 | AJ292: 0 | AK292: 0 | AL292: 180 | AM292: 13 | AN292: 3,898 | AO292: 2,229 | AP292: 0 | AQ292: 0 | AR292: 228 | AS292: 11 | AT292: 3,848 | AU292: 2,193 | AV292: 0 | AW292: 0 | AX292: 250 | AY292: 14 | AZ292: 3,598 | BA292: 2,165 | BB292: 0 | BC292: 0 | BD292: 231 | BE292: 22 | BF292: 3,464 | BG292: 2,149 | BH292: 0 | BI292: 0 | BJ292: 251 | BK292: 18
A293: VILLAVICENCIO | B293: ARAUCA | C293: Septimo | D293: 3,258 | E293: 1,201 | F293: 0 | G293: 0 | H293: 181 | I293: 0 | J293: 3,332 | K293: 1,313 | L293: 0 | M293: 0 | N293: 159 | O293: 0 | P293: 3,190 | Q293: 1,428 | R293: 0 | S293: 0 | T293: 160 | U293: 0 | V293: 3,136 | W293: 1,572 | X293: 0 | Y293: 0 | Z293: 168 | AA293: 0 | AB293: 3,246 | AC293: 1,736 | AD293: 0 | AE293: 0 | AF293: 162 | AG293: 0 | AH293: 3,560 | AI293: 1,886 | AJ293: 0 | AK293: 0 | AL293: 184 | AM293: 18 | AN293: 3,559 | AO293: 1,872 | AP293: 0 | AQ293: 0 | AR293: 183 | AS293: 13 | AT293: 3,703 | AU293: 1,970 | AV293: 0 | AW293: 0 | AX293: 216 | AY293: 12 | AZ293: 3,420 | BA293: 1,786 | BB293: 0 | BC293: 0 | BD293: 245 | BE293: 16 | BF293: 3,346 | BG293: 1,799 | BH293: 0 | BI293: 0 | BJ293: 278 | BK293: 23
A294: YOPAL | B294: ARAUCA | C294: Octavo | D294: 2,625 | E294: 1,040 | F294: 0 | G294: 0 | H294: 171 | I294: 0 | J294: 2,683 | K294: 1,001 | L294: 0 | M294: 0 | N294: 164 | O294: 0 | P294: 2,778 | Q294: 1,104 | R294: 0 | S294: 0 | T294: 146 | U294: 0 | V294: 2,687 | W294: 1,235 | X294: 0 | Y294: 0 | Z294: 149 | AA294: 0 | AB294: 2,664 | AC294: 1,292 | AD294: 0 | AE294: 0 | AF294: 146 | AG294: 0 | AH294: 2,774 | AI294: 1,478 | AJ294: 0 | AK294: 0 | AL294: 171 | AM294: 0 | AN294: 3,038 | AO294: 1,619 | AP294: 0 | AQ294: 0 | AR294: 183 | AS294: 14 | AT294: 3,027 | AU294: 1,595 | AV294: 0 | AW294: 0 | AX294: 176 | AY294: 15 | AZ294: 2,854 | BA294: 1,442 | BB294: 0 | BC294: 0 | BD294: 222 | BE294: 17 | BF294: 2,686 | BG294: 1,440 | BH294: 0 | BI294: 0 | BJ294: 274 | BK294: 16
A295: YUMBO | B295: ARAUCA | C295: Noveno | D295: 2,167 | E295: 836 | F295: 0 | G295: 0 | H295: 147 | I295: 0 | J295: 2,296 | K295: 861 | L295: 0 | M295: 0 | N295: 140 | O295: 0 | P295: 2,354 | Q295: 871 | R295: 0 | S295: 0 | T295: 144 | U295: 0 | V295: 2,407 | W295: 952 | X295: 0 | Y295: 0 | Z295: 134 | AA295: 0 | AB295: 2,339 | AC295: 1,004 | AD295: 0 | AE295: 0 | AF295: 142 | AG295: 0 | AH295: 2,322 | AI295: 1,110 | AJ295: 0 | AK295: 0 | AL295: 116 | AM295: 0 | AN295: 2,560 | AO295: 1,265 | AP295: 0 | AQ295: 0 | AR295: 171 | AS295: 0 | AT295: 2,937 | AU295: 1,440 | AV295: 0 | AW295: 0 | AX295: 178 | AY295: 13 | AZ295: 2,728 | BA295: 1,292 | BB295: 0 | BC295: 0 | BD295: 190 | BE295: 20 | BF295: 2,715 | BG295: 1,198 | BH295: 0 | BI295: 0 | BJ295: 253 | BK295: 15
A296: ZIPAQUIRA | B296: ARAUCA | C296: Decimo | D296: 2,033 | E296: 596 | F296: 0 | G296: 0 | H296: 110 | I296: 0 | J296: 1,998 | K296: 668 | L296: 0 | M296: 0 | N296: 126 | O296: 0 | P296: 2,097 | Q296: 688 | R296: 0 | S296: 0 | T296: 104 | U296: 0 | V296: 2,130 | W296: 760 | X296: 0 | Y296: 0 | Z296: 129 | AA296: 0 | AB296: 2,131 | AC296: 769 | AD296: 0 | AE296: 0 | AF296: 85 | AG296: 0 | AH296: 2,115 | AI296: 809 | AJ296: 0 | AK296: 0 | AL296: 99 | AM296: 0 | AN296: 2,145 | AO296: 880 | AP296: 0 | AQ296: 0 | AR296: 123 | AS296: 0 | AT296: 2,266 | AU296: 993 | AV296: 0 | AW296: 0 | AX296: 161 | AY296: 0 | AZ296: 2,371 | BA296: 1,020 | BB296: 0 | BC296: 0 | BD296: 208 | BE296: 0 | BF296: 2,303 | BG296: 1,032 | BH296: 0 | BI296: 0 | BJ296: 222 | BK296: 0
A297: COLOMBIA | B297: ARAUCA | C297: Once | D297: 1,561 | E297: 439 | F297: 0 | G297: 0 | H297: 120 | I297: 0 | J297: 1,686 | K297: 468 | L297: 0 | M297: 0 | N297: 108 | O297: 0 | P297: 1,659 | Q297: 518 | R297: 0 | S297: 0 | T297: 117 | U297: 0 | V297: 1,667 | W297: 528 | X297: 0 | Y297: 0 | Z297: 123 | AA297: 0 | AB297: 1,735 | AC297: 610 | AD297: 0 | AE297: 0 | AF297: 118 | AG297: 0 | AH297: 1,697 | AI297: 659 | AJ297: 0 | AK297: 0 | AL297: 108 | AM297: 0 | AN297: 1,785 | AO297: 681 | AP297: 0 | AQ297: 0 | AR297: 126 | AS297: 0 | AT297: 1,749 | AU297: 750 | AV297: 0 | AW297: 0 | AX297: 129 | AY297: 0 | AZ297: 1,747 | BA297: 739 | BB297: 0 | BC297: 0 | BD297: 150 | BE297: 0 | BF297: 2,016 | BG297: 794 | BH297: 0 | BI297: 0 | BJ297: 252 | BK297: 0
B298: ARAUCA | C298: 12º Normal | D298: 96 | E298: 0 | F298: 0 | G298: 0 | H298: 0 | I298: 0 | J298: 89 | K298: 0 | L298: 0 | M298: 0 | N298: 0 | O298: 0 | P298: 118 | Q298: 0 | R298: 0 | S298: 0 | T298: 0 | U298: 0 | V298: 100 | W298: 0 | X298: 0 | Y298: 0 | Z298: 0 | AA298: 0 | AB298: 78 | AC298: 0 | AD298: 0 | AE298: 0 | AF298: 0 | AG298: 0 | AH298: 98 | AI298: 0 | AJ298: 0 | AK298: 0 | AL298: 0 | AM298: 0 | AN298: 111 | AO298: 0 | AP298: 0 | AQ298: 0 | AR298: 0 | AS298: 0 | AT298: 96 | AU298: 0 | AV298: 0 | AW298: 0 | AX298: 0 | AY298: 0 | AZ298: 113 | BA298: 0 | BB298: 0 | BC298: 0 | BD298: 0 | BE298: 0 | BF298: 0 | BG298: 0 | BH298: 0 | BI298: 0 | BJ298: 0 | BK298: 0
B299: ARAUCA | C299: 13º Normal | D299: 27 | E299: 0 | F299: 0 | G299: 0 | H299: 0 | I299: 0 | J299: 48 | K299: 0 | L299: 1 | M299: 0 | N299: 0 | O299: 0 | P299: 49 | Q299: 0 | R299: 0 | S299: 0 | T299: 0 | U299: 0 | V299: 28 | W299: 0 | X299: 0 | Y299: 0 | Z299: 0 | AA299: 0 | AB299: 53 | AC299: 0 | AD299: 0 | AE299: 0 | AF299: 0 | AG299: 0 | AH299: 51 | AI299: 0 | AJ299: 0 | AK299: 0 | AL299: 0 | AM299: 0 | AN299: 43 | AO299: 0 | AP299: 0 | AQ299: 0 | AR299: 0 | AS299: 0 | AT299: 48 | AU299: 0 | AV299: 0 | AW299: 0 | AX299: 0 | AY299: 0 | AZ299: 38 | BA299: 0 | BB299: 0 | BC299: 0 | BD299: 0 | BE299: 0 | BF299: 0 | BG299: 0 | BH299: 0 | BI299: 0 | BJ299: 0 | BK299: 0
B300: ARAUCA | C300: Ciclo 1 Adultos | D300: 0 | E300: 0 | F300: 399 | G300: 181 | H300: 0 | I300: 0 | J300: 0 | K300: 0 | L300: 0 | M300: 0 | N300: 0 | O300: 0 | P300: 647 | Q300: 380 | R300: 0 | S300: 0 | T300: 0 | U300: 0 | V300: 1,012 | W300: 64 | X300: 0 | Y300: 0 | Z300: 0 | AA300: 0 | AB300: 1,347 | AC300: 497 | AD300: 0 | AE300: 0 | AF300: 0 | AG300: 0 | AH300: 5 | AI300: 2 | AJ300: 0 | AK300: 0 | AL300: 0 | AM300: 0 | AN300: 302 | AO300: 401 | AP300: 0 | AQ300: 0 | AR300: 0 | AS300: 0 | AT300: 772 | AU300: 359 | AV300: 0 | AW300: 0 | AX300: 0 | AY300: 0 | AZ300: 39 | BA300: 0 | BB300: 0 | BC300: 0 | BD300: 0 | BE300: 0 | BF300: 0 | BG300: 0 | BH300: 0 | BI300: 0 | BJ300: 1 | BK300: 0
B301: ARAUCA | C301: Ciclo 2 Adultos | D301: 0 | E301: 0 | F301: 168 | G301: 162 | H301: 0 | I301: 0 | J301: 0 | K301: 30 | L301: 0 | M301: 0 | N301: 0 | O301: 0 | P301: 0 | Q301: 17 | R301: 0 | S301: 0 | T301: 0 | U301: 0 | V301: 27 | W301: 70 | X301: 0 | Y301: 0 | Z301: 0 | AA301: 0 | AB301: 589 | AC301: 235 | AD301: 0 | AE301: 0 | AF301: 0 | AG301: 0 | AH301: 99 | AI301: 71 | AJ301: 0 | AK301: 0 | AL301: 0 | AM301: 0 | AN301: 50 | AO301: 40 | AP301: 0 | AQ301: 0 | AR301: 0 | AS301: 0 | AT301: 34 | AU301: 62 | AV301: 0 | AW301: 0 | AX301: 0 | AY301: 0 | AZ301: 65 | BA301: 26 | BB301: 0 | BC301: 0 | BD301: 0 | BE301: 0 | BF301: 54 | BG301: 16 | BH301: 0 | BI301: 0 | BJ301: 0 | BK301: 0
B302: ARAUCA | C302: Ciclo 3 Adultos | D302: 545 | E302: 535 | F302: 61 | G302: 0 | H302: 45 | I302: 1 | J302: 759 | K302: 600 | L302: 1 | M302: 0 | N302: 82 | O302: 0 | P302: 733 | Q302: 534 | R302: 0 | S302: 0 | T302: 80 | U302: 0 | V302: 682 | W302: 727 | X302: 0 | Y302: 0 | Z302: 79 | AA302: 0 | AB302: 958 | AC302: 511 | AD302: 0 | AE302: 0 | AF302: 101 | AG302: 0 | AH302: 874 | AI302: 456 | AJ302: 0 | AK302: 0 | AL302: 89 | AM302: 0 | AN302: 774 | AO302: 358 | AP302: 0 | AQ302: 0 | AR302: 53 | AS302: 2 | AT302: 679 | AU302: 329 | AV302: 0 | AW302: 0 | AX302: 52 | AY302: 0 | AZ302: 793 | BA302: 310 | BB302: 0 | BC302: 0 | BD302: 83 | BE302: 0 | BF302: 554 | BG302: 431 | BH302: 0 | BI302: 0 | BJ302: 84 | BK302: 0
B303: ARAUCA | C303: Ciclo 4 Adultos | D303: 601 | E303: 507 | F303: 63 | G303: 0 | H303: 113 | I303: 2 | J303: 828 | K303: 665 | L303: 8 | M303: 0 | N303: 187 | O303: 0 | P303: 843 | Q303: 600 | R303: 0 | S303: 0 | T303: 181 | U303: 0 | V303: 735 | W303: 636 | X303: 0 | Y303: 0 | Z303: 133 | AA303: 0 | AB303: 867 | AC303: 702 | AD303: 0 | AE303: 0 | AF303: 194 | AG303: 0 | AH303: 1,016 | AI303: 518 | AJ303: 0 | AK303: 0 | AL303: 237 | AM303: 5 | AN303: 914 | AO303: 449 | AP303: 0 | AQ303: 0 | AR303: 176 | AS303: 5 | AT303: 777 | AU303: 433 | AV303: 0 | AW303: 0 | AX303: 161 | AY303: 11 | AZ303: 868 | BA303: 327 | BB303: 0 | BC303: 0 | BD303: 213 | BE303: 7 | BF303: 770 | BG303: 415 | BH303: 0 | BI303: 0 | BJ303: 214 | BK303: 2
B304: ARAUCA | C304: Ciclo 5 Adultos | D304: 149 | E304: 377 | F304: 85 | G304: 0 | H304: 83 | I304: 0 | J304: 195 | K304: 311 | L304: 0 | M304: 0 | N304: 137 | O304: 0 | P304: 382 | Q304: 279 | R304: 0 | S304: 0 | T304: 150 | U304: 0 | V304: 152 | W304: 161 | X304: 0 | Y304: 0 | Z304: 107 | AA304: 0 | AB304: 156 | AC304: 146 | AD304: 0 | AE304: 0 | AF304: 97 | AG304: 0 | AH304: 250 | AI304: 152 | AJ304: 0 | AK304: 0 | AL304: 119 | AM304: 4 | AN304: 166 | AO304: 125 | AP304: 0 | AQ304: 0 | AR304: 195 | AS304: 10 | AT304: 203 | AU304: 73 | AV304: 0 | AW304: 0 | AX304: 250 | AY304: 14 | AZ304: 144 | BA304: 62 | BB304: 0 | BC304: 0 | BD304: 201 | BE304: 15 | BF304: 234 | BG304: 101 | BH304: 0 | BI304: 0 | BJ304: 298 | BK304: 9
B305: ARAUCA | C305: Ciclo 6 Adultos | D305: 452 | E305: 124 | F305: 47 | G305: 0 | H305: 73 | I305: 0 | J305: 610 | K305: 284 | L305: 0 | M305: 0 | N305: 126 | O305: 0 | P305: 642 | Q305: 321 | R305: 0 | S305: 0 | T305: 223 | U305: 0 | V305: 675 | W305: 519 | X305: 0 | Y305: 0 | Z305: 271 | AA305: 0 | AB305: 807 | AC305: 574 | AD305: 0 | AE305: 0 | AF305: 418 | AG305: 0 | AH305: 720 | AI305: 597 | AJ305: 0 | AK305: 0 | AL305: 928 | AM305: 151 | AN305: 1,025 | AO305: 385 | AP305: 0 | AQ305: 0 | AR305: 704 | AS305: 25 | AT305: 853 | AU305: 325 | AV305: 0 | AW305: 0 | AX305: 805 | AY305: 51 | AZ305: 738 | BA305: 416 | BB305: 0 | BC305: 0 | BD305: 975 | BE305: 37 | BF305: 646 | BG305: 330 | BH305: 0 | BI305: 0 | BJ305: 824 | BK305: 35
B306: ARAUCA | C306: Semestre introductorio NS | D306: 0 | E306: 0 | F306: 0 | G306: 0 | H306: 0 | I306: 0 | J306: 0 | K306: 0 | L306: 0 | M306: 0 | N306: 0 | O306: 0 | P306: 0 | Q306: 0 | R306: 0 | S306: 0 | T306: 0 | U306: 0 | V306: 0 | W306: 0 | X306: 0 | Y306: 0 | Z306: 0 | AA306: 0 | AB306: 0 | AC306: 0 | AD306: 0 | AE306: 0 | AF306: 0 | AG306: 0 | AH306: 0 | AI306: 0 | AJ306: 0 | AK306: 0 | AL306: 0 | AM306: 0 | AN306: 0 | AO306: 0 | AP306: 0 | AQ306: 0 | AR306: 0 | AS306: 0 | AT306: 0 | AU306: 0 | AV306: 0 | AW306: 0 | AX306: 0 | AY306: 0 | AZ306: 0 | BA306: 0 | BB306: 0 | BC306: 0 | BD306: 0 | BE306: 0 | BF306: 9 | BG306: 0 | BH306: 0 | BI306: 0 | BJ306: 0 | BK306: 0
B307: ARAUCA | C307: Programa formación compl 1 NS | D307: 0 | E307: 0 | F307: 0 | G307: 0 | H307: 0 | I307: 0 | J307: 0 | K307: 0 | L307: 0 | M307: 0 | N307: 0 | O307: 0 | P307: 0 | Q307: 0 | R307: 0 | S307: 0 | T307: 0 | U307: 0 | V307: 0 | W307: 0 | X307: 0 | Y307: 0 | Z307: 0 | AA307: 0 | AB307: 0 | AC307: 0 | AD307: 0 | AE307: 0 | AF307: 0 | AG307: 0 | AH307: 0 | AI307: 0 | AJ307: 0 | AK307: 0 | AL307: 0 | AM307: 0 | AN307: 0 | AO307: 0 | AP307: 0 | AQ307: 0 | AR307: 0 | AS307: 0 | AT307: 0 | AU307: 0 | AV307: 0 | AW307: 0 | AX307: 0 | AY307: 0 | AZ307: 0 | BA307: 0 | BB307: 0 | BC307: 0 | BD307: 0 | BE307: 0 | BF307: 25 | BG307: 0 | BH307: 0 | BI307: 0 | BJ307: 0 | BK307: 0
B308: ARAUCA | C308: Programa formación compl 2 NS | D308: 0 | E308: 0 | F308: 0 | G308: 0 | H308: 0 | I308: 0 | J308: 0 | K308: 0 | L308: 0 | M308: 0 | N308: 0 | O308: 0 | P308: 0 | Q308: 0 | R308: 0 | S308: 0 | T308: 0 | U308: 0 | V308: 0 | W308: 0 | X308: 0 | Y308: 0 | Z308: 0 | AA308: 0 | AB308: 0 | AC308: 0 | AD308: 0 | AE308: 0 | AF308: 0 | AG308: 0 | AH308: 0 | AI308: 0 | AJ308: 0 | AK308: 0 | AL308: 0 | AM308: 0 | AN308: 0 | AO308: 0 | AP308: 0 | AQ308: 0 | AR308: 0 | AS308: 0 | AT308: 0 | AU308: 0 | AV308: 0 | AW308: 0 | AX308: 0 | AY308: 0 | AZ308: 0 | BA308: 0 | BB308: 0 | BC308: 0 | BD308: 0 | BE308: 0 | BF308: 36 | BG308: 0 | BH308: 0 | BI308: 0 | BJ308: 0 | BK308: 0
B309: ARAUCA | C309: Programa formación compl 3 NS | D309: 0 | E309: 0 | F309: 0 | G309: 0 | H309: 0 | I309: 0 | J309: 0 | K309: 0 | L309: 0 | M309: 0 | N309: 0 | O309: 0 | P309: 0 | Q309: 0 | R309: 0 | S309: 0 | T309: 0 | U309: 0 | V309: 0 | W309: 0 | X309: 0 | Y309: 0 | Z309: 0 | AA309: 0 | AB309: 0 | AC309: 0 | AD309: 0 | AE309: 0 | AF309: 0 | AG309: 0 | AH309: 0 | AI309: 0 | AJ309: 0 | AK309: 0 | AL309: 0 | AM309: 0 | AN309: 0 | AO309: 0 | AP309: 0 | AQ309: 0 | AR309: 0 | AS309: 0 | AT309: 0 | AU309: 0 | AV309: 0 | AW309: 0 | AX309: 0 | AY309: 0 | AZ309: 0 | BA309: 0 | BB309: 0 | BC309: 0 | BD309: 0 | BE309: 0 | BF309: 26 | BG309: 0 | BH309: 0 | BI309: 0 | BJ309: 0 | BK309: 0
B310: ARAUCA | C310: Programa formación compl 4 NS | D310: 0 | E310: 0 | F310: 0 | G310: 0 | H310: 0 | I310: 0 | J310: 0 | K310: 0 | L310: 0 | M310: 0 | N310: 0 | O310: 0 | P310: 0 | Q310: 0 | R310: 0 | S310: 0 | T310: 0 | U310: 0 | V310: 0 | W310: 0 | X310: 0 | Y310: 0 | Z310: 0 | AA310: 0 | AB310: 0 | AC310: 0 | AD310: 0 | AE310: 0 | AF310: 0 | AG310: 0 | AH310: 0 | AI310: 0 | AJ310: 0 | AK310: 0 | AL310: 0 | AM310: 0 | AN310: 0 | AO310: 0 | AP310: 0 | AQ310: 0 | AR310: 0 | AS310: 0 | AT310: 0 | AU310: 0 | AV310: 0 | AW310: 0 | AX310: 0 | AY310: 0 | AZ310: 0 | BA310: 0 | BB310: 0 | BC310: 0 | BD310: 0 | BE310: 0 | BF310: 37 | BG310: 0 | BH310: 0 | BI310: 0 | BJ310: 0 | BK310: 0
B311: ARAUCA | C311: Aceleración del Aprendizaje | D311: 113 | E311: 0 | F311: 0 | G311: 0 | H311: 0 | I311: 0 | J311: 129 | K311: 0 | L311: 0 | M311: 0 | N311: 0 | O311: 0 | P311: 107 | Q311: 27 | R311: 0 | S311: 0 | T311: 0 | U311: 0 | V311: 95 | W311: 0 | X311: 0 | Y311: 0 | Z311: 0 | AA311: 0 | AB311: 162 | AC311: 0 | AD311: 0 | AE311: 0 | AF311: 0 | AG311: 0 | AH311: 162 | AI311: 22 | AJ311: 0 | AK311: 0 | AL311: 0 | AM311: 0 | AN311: 274 | AO311: 56 | AP311: 0 | AQ311: 0 | AR311: 0 | AS311: 0 | AT311: 268 | AU311: 65 | AV311: 0 | AW311: 0 | AX311: 0 | AY311: 0 | AZ311: 394 | BA311: 52 | BB311: 0 | BC311: 0 | BD311: 0 | BE311: 0 | BF311: 368 | BG311: 47 | BH311: 0 | BI311: 0 | BJ311: 0 | BK311: 0
B312: ARMENIA | C312: Prejardín | D312: 0 | E312: 0 | F312: 0 | G312: 0 | H312: 413 | I312: 33 | J312: 0 | K312: 0 | L312: 0 | M312: 0 | N312: 501 | O312: 47 | P312: 0 | Q312: 0 | R312: 0 | S312: 0 | T312: 602 | U312: 42 | V312: 0 | W312: 0 | X312: 0 | Y312: 0 | Z312: 558 | AA312: 47 | AB312: 0 | AC312: 0 | AD312: 0 | AE312: 0 | AF312: 578 | AG312: 60 | AH312: 0 | AI312: 0 | AJ312: 0 | AK312: 0 | AL312: 563 | AM312: 60 | AN312: 0 | AO312: 0 | AP312: 0 | AQ312: 0 | AR312: 431 | AS312: 45 | AT312: 0 | AU312: 0 | AV312: 0 | AW312: 0 | AX312: 270 | AY312: 53 | AZ312: 0 | BA312: 0 | BB312: 0 | BC312: 0 | BD312: 355 | BE312: 54 | BF312: 57 | BG312: 0 | BH312: 0 | BI312: 0 | BJ312: 319 | BK312: 57
B313: ARMENIA | C313: Jardín | D313: 0 | E313: 0 | F313: 0 | G313: 0 | H313: 596 | I313: 24 | J313: 0 | K313: 0 | L313: 0 | M313: 0 | N313: 619 | O313: 50 | P313: 0 | Q313: 0 | R313: 0 | S313: 0 | T313: 678 | U313: 51 | V313: 0 | W313: 0 | X313: 0 | Y313: 0 | Z313: 730 | AA313: 55 | AB313: 0 | AC313: 0 | AD313: 0 | AE313: 0 | AF313: 748 | AG313: 45 | AH313: 0 | AI313: 0 | AJ313: 0 | AK313: 0 | AL313: 731 | AM313: 70 | AN313: 0 | AO313: 0 | AP313: 0 | AQ313: 0 | AR313: 700 | AS313: 65 | AT313: 0 | AU313: 0 | AV313: 0 | AW313: 0 | AX313: 443 | AY313: 67 | AZ313: 295 | BA313: 0 | BB313: 0 | BC313: 0 | BD313: 517 | BE313: 69 | BF313: 557 | BG313: 0 | BH313: 0 | BI313: 0 | BJ313: 435 | BK313: 55
B314: ARMENIA | C314: Transición | D314: 2,565 | E314: 63 | F314: 0 | G314: 0 | H314: 566 | I314: 62 | J314: 2,505 | K314: 52 | L314: 0 | M314: 0 | N314: 633 | O314: 92 | P314: 2,335 | Q314: 54 | R314: 0 | S314: 0 | T314: 713 | U314: 114 | V314: 2,325 | W314: 82 | X314: 0 | Y314: 0 | Z314: 717 | AA314: 88 | AB314: 2,362 | AC314: 110 | AD314: 0 | AE314: 0 | AF314: 716 | AG314: 127 | AH314: 2,450 | AI314: 63 | AJ314: 0 | AK314: 0 | AL314: 772 | AM314: 98 | AN314: 2,514 | AO314: 62 | AP314: 0 | AQ314: 0 | AR314: 744 | AS314: 122 | AT314: 2,359 | AU314: 73 | AV314: 0 | AW314: 0 | AX314: 638 | AY314: 149 | AZ314: 2,635 | BA314: 82 | BB314: 0 | BC314: 0 | BD314: 680 | BE314: 120 | BF314: 2,495 | BG314: 68 | BH314: 0 | BI314: 0 | BJ314: 626 | BK314: 114
B315: ARMENIA | C315: Primero | D315: 3,178 | E315: 72 | F315: 0 | G315: 0 | H315: 597 | I315: 86 | J315: 2,823 | K315: 74 | L315: 0 | M315: 0 | N315: 592 | O315: 104 | P315: 2,771 | Q315: 78 | R315: 0 | S315: 0 | T315: 653 | U315: 111 | V315: 2,695 | W315: 104 | X315: 0 | Y315: 0 | Z315: 653 | AA315: 71 | AB315: 2,723 | AC315: 94 | AD315: 0 | AE315: 0 | AF315: 620 | AG315: 91 | AH315: 2,754 | AI315: 105 | AJ315: 0 | AK315: 0 | AL315: 627 | AM315: 97 | AN315: 2,866 | AO315: 82 | AP315: 0 | AQ315: 0 | AR315: 656 | AS315: 78 | AT315: 2,845 | AU315: 84 | AV315: 0 | AW315: 0 | AX315: 585 | AY315: 99 | AZ315: 2,942 | BA315: 91 | BB315: 0 | BC315: 0 | BD315: 647 | BE315: 116 | BF315: 3,101 | BG315: 93 | BH315: 0 | BI315: 0 | BJ315: 657 | BK315: 93
B316: ARMENIA | C316: Segundo | D316: 3,495 | E316: 81 | F316: 0 | G316: 0 | H316: 530 | I316: 90 | J316: 3,050 | K316: 69 | L316: 0 | M316: 0 | N316: 608 | O316: 113 | P316: 2,783 | Q316: 85 | R316: 0 | S316: 0 | T316: 632 | U316: 107 | V316: 2,707 | W316: 132 | X316: 0 | Y316: 0 | Z316: 647 | AA316: 64 | AB316: 2,604 | AC316: 91 | AD316: 0 | AE316: 0 | AF316: 608 | AG316: 94 | AH316: 2,657 | AI316: 83 | AJ316: 0 | AK316: 0 | AL316: 624 | AM316: 101 | AN316: 2,732 | AO316: 102 | AP316: 0 | AQ316: 0 | AR316: 598 | AS316: 97 | AT316: 2,817 | AU316: 85 | AV316: 0 | AW316: 0 | AX316: 584 | AY316: 86 | AZ316: 2,894 | BA316: 90 | BB316: 0 | BC316: 0 | BD316: 615 | BE316: 107 | BF316: 2,744 | BG316: 84 | BH316: 0 | BI316: 0 | BJ316: 681 | BK316: 118
B317: ARMENIA | C317: Tercero | D317: 3,342 | E317: 96 | F317: 0 | G317: 0 | H317: 541 | I317: 111 | J317: 3,415 | K317: 75 | L317: 0 | M317: 0 | N317: 531 | O317: 108 | P317: 3,017 | Q317: 73 | R317: 0 | S317: 0 | T317: 607 | U317: 112 | V317: 2,772 | W317: 131 | X317: 0 | Y317: 0 | Z317: 636 | AA317: 63 | AB317: 2,715 | AC317: 136 | AD317: 0 | AE317: 0 | AF317: 603 | AG317: 84 | AH317: 2,694 | AI317: 84 | AJ317: 0 | AK317: 0 | AL317: 552 | AM317: 93 | AN317: 2,656 | AO317: 89 | AP317: 0 | AQ317: 0 | AR317: 577 | AS317: 102 | AT317: 2,694 | AU317: 98 | AV317: 0 | AW317: 0 | AX317: 540 | AY317: 108 | AZ317: 2,768 | BA317: 90 | BB317: 0 | BC317: 0 | BD317: 569 | BE317: 87 | BF317: 2,825 | BG317: 83 | BH317: 0 | BI317: 0 | BJ317: 636 | BK317: 112
B318: ARMENIA | C318: Cuarto | D318: 3,334 | E318: 84 | F318: 0 | G318: 0 | H318: 532 | I318: 100 | J318: 3,332 | K318: 95 | L318: 0 | M318: 0 | N318: 521 | O318: 123 | P318: 3,431 | Q318: 77 | R318: 0 | S318: 0 | T318: 537 | U318: 135 | V318: 2,988 | W318: 133 | X318: 0 | Y318: 0 | Z318: 591 | AA318: 72 | AB318: 2,829 | AC318: 106 | AD318: 0 | AE318: 0 | AF318: 624 | AG318: 64 | AH318: 2,688 | AI318: 122 | AJ318: 0 | AK318: 0 | AL318: 589 | AM318: 86 | AN318: 2,730 | AO318: 79 | AP318: 0 | AQ318: 0 | AR318: 513 | AS318: 101 | AT318: 2,659 | AU318: 81 | AV318: 0 | AW318: 0 | AX318: 504 | AY318: 101 | AZ318: 2,608 | BA318: 100 | BB318: 0 | BC318: 0 | BD318: 547 | BE318: 102 | BF318: 2,572 | BG318: 85 | BH318: 0 | BI318: 0 | BJ318: 614 | BK318: 94
B319: ARMENIA | C319: Quinto | D319: 3,569 | E319: 127 | F319: 0 | G319: 0 | H319: 508 | I319: 83 | J319: 3,269 | K319: 79 | L319: 0 | M319: 0 | N319: 522 | O319: 115 | P319: 3,269 | Q319: 79 | R319: 0 | S319: 0 | T319: 534 | U319: 133 | V319: 3,331 | W319: 125 | X319: 0 | Y319: 0 | Z319: 540 | AA319: 73 | AB319: 3,023 | AC319: 131 | AD319: 0 | AE319: 0 | AF319: 579 | AG319: 80 | AH319: 2,826 | AI319: 100 | AJ319: 0 | AK319: 0 | AL319: 597 | AM319: 71 | AN319: 2,741 | AO319: 104 | AP319: 0 | AQ319: 0 | AR319: 537 | AS319: 93 | AT319: 2,723 | AU319: 77 | AV319: 0 | AW319: 0 | AX319: 461 | AY319: 105 | AZ319: 2,722 | BA319: 78 | BB319: 0 | BC319: 0 | BD319: 498 | BE319: 104 | BF319: 2,511 | BG319: 91 | BH319: 0 | BI319: 0 | BJ319: 567 | BK319: 102
B320: ARMENIA | C320: Sexto | D320: 4,239 | E320: 81 | F320: 1 | G320: 0 | H320: 446 | I320: 139 | J320: 3,903 | K320: 107 | L320: 0 | M320: 0 | N320: 509 | O320: 131 | P320: 3,716 | Q320: 73 | R320: 0 | S320: 0 | T320: 576 | U320: 146 | V320: 3,614 | W320: 151 | X320: 0 | Y320: 0 | Z320: 551 | AA320: 86 | AB320: 3,720 | AC320: 91 | AD320: 0 | AE320: 0 | AF320: 528 | AG320: 79 | AH320: 3,334 | AI320: 111 | AJ320: 0 | AK320: 0 | AL320: 562 | AM320: 77 | AN320: 3,235 | AO320: 86 | AP320: 0 | AQ320: 0 | AR320: 545 | AS320: 84 | AT320: 3,052 | AU320: 86 | AV320: 0 | AW320: 0 | AX320: 470 | AY320: 94 | AZ320: 3,049 | BA320: 74 | BB320: 0 | BC320: 0 | BD320: 452 | BE320: 102 | BF320: 2,990 | BG320: 84 | BH320: 0 | BI320: 0 | BJ320: 538 | BK320: 112
B321: ARMENIA | C321: Septimo | D321: 4,353 | E321: 91 | F321: 0 | G321: 0 | H321: 484 | I321: 125 | J321: 4,050 | K321: 92 | L321: 0 | M321: 0 | N321: 486 | O321: 134 | P321: 3,932 | Q321: 57 | R321: 0 | S321: 0 | T321: 511 | U321: 137 | V321: 3,756 | W321: 134 | X321: 0 | Y321: 0 | Z321: 558 | AA321: 79 | AB321: 3,651 | AC321: 161 | AD321: 0 | AE321: 0 | AF321: 545 | AG321: 82 | AH321: 3,823 | AI321: 105 | AJ321: 0 | AK321: 0 | AL321: 526 | AM321: 75 | AN321: 3,629 | AO321: 117 | AP321: 0 | AQ321: 0 | AR321: 523 | AS321: 77 | AT321: 3,409 | AU321: 84 | AV321: 0 | AW321: 0 | AX321: 488 | AY321: 79 | AZ321: 3,195 | BA321: 66 | BB321: 0 | BC321: 0 | BD321: 481 | BE321: 89 | BF321: 3,018 | BG321: 71 | BH321: 0 | BI321: 0 | BJ321: 483 | BK321: 109
B322: ARMENIA | C322: Octavo | D322: 3,831 | E322: 66 | F322: 0 | G322: 0 | H322: 507 | I322: 135 | J322: 3,677 | K322: 58 | L322: 0 | M322: 0 | N322: 463 | O322: 138 | P322: 3,391 | Q322: 54 | R322: 0 | S322: 0 | T322: 525 | U322: 132 | V322: 3,418 | W322: 105 | X322: 0 | Y322: 0 | Z322: 480 | AA322: 91 | AB322: 3,259 | AC322: 123 | AD322: 0 | AE322: 0 | AF322: 547 | AG322: 84 | AH322: 3,154 | AI322: 110 | AJ322: 0 | AK322: 0 | AL322: 528 | AM322: 79 | AN322: 3,284 | AO322: 99 | AP322: 0 | AQ322: 0 | AR322: 482 | AS322: 79 | AT322: 3,077 | AU322: 101 | AV322: 0 | AW322: 0 | AX322: 502 | AY322: 80 | AZ322: 2,877 | BA322: 88 | BB322: 0 | BC322: 0 | BD322: 513 | BE322: 77 | BF322: 2,722 | BG322: 73 | BH322: 0 | BI322: 0 | BJ322: 542 | BK322: 87
... 801 more rows

Sheet 6 COB BRUTA
B1: COBERTURA BRUTA | I1: Indice
B3: ENTIDAD
B4: AMAZONAS | C4: AÑO | D4: Transición | E4: Primaria | F4: Secundaria | G4: Media | H4: Cob bruta Basica | I4: Total
C5: 2010 | D5: =+SUMIFS($D$200:$D$975,$B$200:$B$975,$B$4,$C$200:$C$975,C5) -> 0.00% | E5: =+SUMIFS($E$200:$E$975,$B$200:$B$975,$B$4,$C$200:$C$975,C5) -> 0.00% | F5: =+SUMIFS($F$200:$F$975,$B$200:$B$975,$B$4,$C$200:$C$975,C5) -> 0.00% | G5: =+SUMIFS($G$200:$G$975,$B$200:$B$975,$B$4,$C$200:$C$975,C5) -> 0.00% | H5: =+SUMIFS($H$200:$H$975,$B$200:$B$975,$B$4,$C$200:$C$975,C5) -> 0.00% | I5: =+SUMIFS($I$200:$I$975,$B$200:$B$975,$B$4,$C$200:$C$975,C5) -> 0.00%
C6: 2011 | D6: =+SUMIFS($D$200:$D$975,$B$200:$B$975,$B$4,$C$200:$C$975,C6) -> 0.00% | E6: =+SUMIFS($E$200:$E$975,$B$200:$B$975,$B$4,$C$200:$C$975,C6) -> 0.00% | F6: =+SUMIFS($F$200:$F$975,$B$200:$B$975,$B$4,$C$200:$C$975,C6) -> 0.00% | G6: =+SUMIFS($G$200:$G$975,$B$200:$B$975,$B$4,$C$200:$C$975,C6) -> 0.00% | H6: =+SUMIFS($H$200:$H$975,$B$200:$B$975,$B$4,$C$200:$C$975,C6) -> 0.00% | I6: =+SUMIFS($I$200:$I$975,$B$200:$B$975,$B$4,$C$200:$C$975,C6) -> 0.00%
C7: 2012 | D7: =+SUMIFS($D$200:$D$1266,$B$200:$B$1266,$B$4,$C$200:$C$1266,C7) -> 128.79% | E7: =+SUMIFS($E$200:$E$1266,$B$200:$B$1266,$B$4,$C$200:$C$1266,C7) -> 134.84% | F7: =+SUMIFS($F$200:$F$1266,$B$200:$B$1266,$B$4,$C$200:$C$1266,C7) -> 109.09% | G7: =+SUMIFS($G$200:$G$1266,$B$200:$B$1266,$B$4,$C$200:$C$1266,C7) -> 78.53% | H7: =+SUMIFS($H$200:$H$1266,$B$200:$B$1266,$B$4,$C$200:$C$1266,C7) -> 124.52% | I7: =+SUMIFS($I$200:$I$1266,$B$200:$B$1266,$B$4,$C$200:$C$1266,C7) -> 117.71%
C8: 2013 | D8: 108.73% | E8: 128.64% | F8: 112.57% | G8: 77.39% | H8: 120.44% | I8: 114.12%
C9: 2014 | D9: 97.72% | E9: 127.02% | F9: 105.51% | G9: 79.49% | H9: 115.78% | I9: 110.47%
C10: 2015 | D10: 84.31% | E10: 119.20% | F10: 107.11% | G10: 81.20% | H10: 110.88% | I10: 106.56%
C11: 2016 | D11: 86.86% | E11: 112.32% | F11: 104.87% | G11: 79.66% | H11: 106.77% | I11: 102.84%
C12: 2017 | D12: 92.12% | E12: 106.97% | F12: 98.47% | G12: 80.69% | H12: 102.21% | I12: 99.10%
B13: En revisión OAPF | C13: 2018 | D13: 83.23% | E13: 103.70% | F13: 96.52% | G13: 73.54% | H13: 98.82% | I13: 95.04%
B14: En revisión OAPF | C14: 2019 | D14: 99.08% | E14: 103.43% | F14: 95.95% | G14: 70.41% | H14: 100.09% | I14: 95.56%
B15: En revisión OAPF | C15: 2020 | D15: 90.51% | E15: 102.71% | F15: 96.86% | G15: 72.20% | H15: 99.19% | I15: 94.99%
B16: En revisión OAPF | C16: 2021 | D16: 88.18% | E16: 103.91% | F16: 99.03% | G16: 72.02% | H16: 100.41% | I16: 95.93%
B17: Definitiva | C17: 2022 | D17: 90.22% | E17: 99.93% | F17: 89.18% | G17: 69.02% | H17: 94.69% | I17: 90.58%
C19: Variación 2022-2021 | D19: =+D17-D16 -> 2.04% | E19: =+E17-E16 -> -3.98% | F19: -9.85% | G19: -3.01% | H19: -5.72% | I19: -5.34%
C20: FUENTE: OAPF La cobertura se estimó con proyección censo DANE 2018
J21: =+B4 -> AMAZONAS
C22: =+B4 -> AMAZONAS
A199: lista | B199: NOMBRE ETC | C199: AÑO | D199: COBERTURA BRUTA TRANSICION | E199: COBERTURA BRUTA PRIMARIA | F199: COBERTURA BRUTA SECUNDARIA | G199: COBERTURA BRUTA MEDIA | H199: COBERTURA BRUTA BÁSICA | I199: COBERTURA BRUTA
A200: AMAZONAS | B200: AMAZONAS | C200: 2012 | D200: 128.79% | E200: 134.84% | F200: 109.09% | G200: 78.53% | H200: 124.52% | I200: 117.71%
A201: ANTIOQUIA | B201: ANTIOQUIA | C201: 2012 | D201: 104.00% | E201: 131.80% | F201: 104.54% | G201: 76.38% | H201: 118.05% | I201: 111.14%
A202: APARTADÓ | B202: APARTADÓ | C202: 2012 | D202: 116.93% | E202: 137.05% | F202: 123.32% | G202: 84.59% | H202: 129.53% | I202: 122.08%
A203: ARAUCA | B203: ARAUCA | C203: 2012 | D203: 149.82% | E203: 177.36% | F203: 138.75% | G203: 87.77% | H203: 158.98% | I203: 146.06%
A204: ARMENIA | B204: ARMENIA | C204: 2012 | D204: 104.08% | E204: 107.32% | F204: 118.92% | G204: 92.08% | H204: 112.05% | I204: 108.32%
A205: ATLÁNTICO | B205: ATLÁNTICO | C205: 2012 | D205: 94.23% | E205: 112.69% | F205: 100.87% | G205: 78.62% | H205: 106.16% | I205: 101.77%
A206: BARRANCABERMEJA | B206: BARRANCABERMEJA | C206: 2012 | D206: 133.10% | E206: 119.32% | F206: 114.89% | G206: 93.44% | H206: 118.85% | I206: 114.54%
A207: BARRANQUILLA | B207: BARRANQUILLA | C207: 2012 | D207: 82.19% | E207: 113.71% | F207: 115.40% | G207: 89.82% | H207: 111.31% | I207: 107.73%
A208: BELLO | B208: BELLO | C208: 2012 | D208: 94.32% | E208: 105.77% | F208: 111.69% | G208: 85.40% | H208: 107.18% | I208: 103.26%
A209: BOGOTÁ | B209: BOGOTÁ | C209: 2012 | D209: 97.72% | E209: 106.67% | F209: 106.09% | G209: 79.97% | H209: 105.61% | I209: 100.81%
A210: BOLÍVAR | B210: BOLÍVAR | C210: 2012 | D210: 115.44% | E210: 120.01% | F210: 99.04% | G210: 73.09% | H210: 111.27% | I210: 105.29%
A211: BOYACÁ | B211: BOYACÁ | C211: 2012 | D211: 101.81% | E211: 105.36% | F211: 125.50% | G211: 94.83% | H211: 113.23% | I211: 110.14%
A212: BUCARAMANGA | B212: BUCARAMANGA | C212: 2012 | D212: 112.31% | E212: 106.78% | F212: 107.57% | G212: 83.23% | H212: 107.63% | I212: 103.02%
A213: BUENAVENTURA | B213: BUENAVENTURA | C213: 2012 | D213: 125.73% | E213: 115.43% | F213: 95.64% | G213: 63.47% | H213: 108.70% | I213: 101.56%
A214: BUGA | B214: BUGA | C214: 2012 | D214: 93.71% | E214: 110.19% | F214: 111.27% | G214: 95.48% | H214: 109.11% | I214: 106.73%
A215: CALDAS | B215: CALDAS | C215: 2012 | D215: 106.05% | E215: 126.13% | F215: 111.40% | G215: 85.25% | H215: 118.09% | I215: 112.37%
A216: CALI | B216: CALI | C216: 2012 | D216: 111.15% | E216: 109.03% | F216: 103.94% | G216: 79.25% | H216: 107.11% | I216: 102.15%
A217: CAQUETÁ | B217: CAQUETÁ | C217: 2012 | D217: 113.93% | E217: 164.35% | F217: 125.65% | G217: 66.50% | H217: 144.26% | I217: 132.71%
